Workbook

Sheet Menu
B2: TABLERO DE CONTROL 2015 INSTITUTO COLOMBIANO DE BIENESTAR FAMILIAR ICBF MENU
C5: El tablero de control 2016, es la herramienta gerencial para medir los avances de la gestión institucional a nivel nacional, regional y zonal. A continuación se presentan las siguientes opciones para navegar en la herramienta:
C7: Marzo | E7: Seleccione el mes de corte para revisión de información y de click en el botón gris para actualizar la herramienta
C9: Nacional
C11: Seleccione la opción que desea revisar:
D13: Avances de la gestión institucional a nivel nacional
D14: Plan de Accion nacional
D15: Comportamiento Plan Indicativo Institucional
D16: Comportamiento SINERGIA
D17: Comportamiento áreas
D18: Comportamiento macroregionales
D19: Comportamiento por agregados (indicadores)
D20: Detalles por indicador
D21: Matriz de seguimiento indicadores tablero de control
C23: Regional
C25: Atlántico | F25: Seleccione la regional y de click en el botón gris para actualizar la información | N25: =+IFERROR(VLOOKUP(C25,referencias!Y23:Z55,2,FALSE),"") -> Atl
C27: Seleccione la opción que desea revisar: | N27: =+IF(C25="",1,0) -> 0
D29: Avances de la gestión institucional a nivel regional
D30: Plan de Accion regional
D31: Comportamiento indicadores por agregados
D32: Matriz de seguimiento indicadores tablero de control regional
C34: Centro zonal
C36: CZ Norte Centro Historico | G36: Seleccione el centro zonal y de click en el botón gris para actualizar la información | N36: =+C25&"-"&C36 -> Atlántico-CZ Norte Centro Historico | O36: =+IFERROR(VLOOKUP(N36,'info graficas'!$G$113:$G$320,1,FALSE),"no") -> Atlántico-CZ Norte Centro Historico
C38: Seleccione la opción que desea revisar:
D40: Avances de la gestión institucional a nivel zonal
D41: Matriz de seguimiento indicadores tablero de control regional

Sheet nacional
B2: TABLERO DE CONTROL 2016 INSTITUTO COLOMBIANO DE BIENESTAR FAMILIAR ICBF SEGUIMIENTO TABLERO DE CONTROL - ANÁLISIS GENERAL
B5: Mes analisis | C5: =+Menu!C7 -> Marzo | R5: Volver al menú
C6: =+VLOOKUP(C5,referencias!$A$14:$B$25,2,FALSE) -> Mar
M10: Comportamiento general
M11: T. control | N11: P. Acción | O11: P. Indicativo
K12: 2 | L12: Optimo | M12: =+HLOOKUP($C$6,'rangos nal'!$A$2:$M$8,$K12,FALSE) -> 44 | N12: =+HLOOKUP($C$6,'rangos nal'!$A$13:$M$19,$K12,FALSE) -> 25 | O12: =+HLOOKUP($C$6,'rangos nal'!$A$24:$M$30,$K12,FALSE) -> 18
K13: 3 | L13: Adecuado | M13: =+HLOOKUP($C$6,'rangos nal'!$A$2:$M$8,$K13,FALSE) -> 20 | N13: =+HLOOKUP($C$6,'rangos nal'!$A$13:$M$19,$K13,FALSE) -> 12 | O13: =+HLOOKUP($C$6,'rangos nal'!$A$24:$M$30,$K13,FALSE) -> 7
K14: 4 | L14: En riesgo | M14: =+HLOOKUP($C$6,'rangos nal'!$A$2:$M$8,$K14,FALSE) -> 3 | N14: =+HLOOKUP($C$6,'rangos nal'!$A$13:$M$19,$K14,FALSE) -> 3 | O14: =+HLOOKUP($C$6,'rangos nal'!$A$24:$M$30,$K14,FALSE) -> 2
K15: 5 | L15: Critico | M15: =+HLOOKUP($C$6,'rangos nal'!$A$2:$M$8,$K15,FALSE) -> 9 | N15: =+HLOOKUP($C$6,'rangos nal'!$A$13:$M$19,$K15,FALSE) -> 6 | O15: =+HLOOKUP($C$6,'rangos nal'!$A$24:$M$30,$K15,FALSE) -> 4
K16: 6 | L16: NA | M16: =+HLOOKUP($C$6,'rangos nal'!$A$2:$M$8,$K16,FALSE) -> 79 | N16: =+HLOOKUP($C$6,'rangos nal'!$A$13:$M$19,$K16,FALSE) -> 56 | O16: =+HLOOKUP($C$6,'rangos nal'!$A$24:$M$30,$K16,FALSE) -> 43 | AG16: Comparación vigencias 2015 - 2016
K17: 7 | L17: Total | M17: =SUM(M12:M16) -> 155 | N17: =SUM(N12:N16) -> 102 | O17: =SUM(O12:O16) -> 74
L18: Aplicaron en el mes de corte | M18: =+M12+M13+M14+M15 -> 76 | N18: =+N12+N13+N14+N15 -> 46 | O18: =+O12+O13+O14+O15 -> 31
L19: =+"Corte "&$C$5 -> Corte Marzo
C20: =+"Corte "&$C$5 -> Corte Marzo
B23: Tablero de Control | G23: Plan de Acción | L23: Plan Indicativo
AG42: Tablero | AH42: Ene | AI42: Feb | AJ42: Mar | AK42: Abr | AL42: May | AM42: Jun | AN42: Jul | AO42: Agt | AP42: Sep | AQ42: Oct | AR42: Nov | AS42: Dic
AG43: 2015 | AH43: =+IF('info graficas'!Z9="","",'info graficas'!Z4) -> 0.7583838906 | AI43: =+IF('info graficas'!AA9="","",'info graficas'!AA4) -> 0.7494365358 | AJ43: =+IF('info graficas'!AB9="","",'info graficas'!AB4) -> 0.7152618223 | AK43: =+IF('info graficas'!AC9="","",'info graficas'!AC4) ->  | AL43: =+IF('info graficas'!AD9="","",'info graficas'!AD4) ->  | AM43: =+IF('info graficas'!AE9="","",'info graficas'!AE4) ->  | AN43: =+IF('info graficas'!AF9="","",'info graficas'!AF4) ->  | AO43: =+IF('info graficas'!AG9="","",'info graficas'!AG4) ->  | AP43: =+IF('info graficas'!AH9="","",'info graficas'!AH4) ->  | AQ43: =+IF('info graficas'!AI9="","",'info graficas'!AI4) ->  | AR43: =+IF('info graficas'!AJ9="","",'info graficas'!AJ4) ->  | AS43: =+IF('info graficas'!AK9="","",'info graficas'!AK4) -> 
AG44: 2016 | AH44: =+IF('info graficas'!Z9="","",'info graficas'!Z9) -> 0.8898165746 | AI44: =+IF('info graficas'!AA9="","",'info graficas'!AA9) -> 0.8994929302 | AJ44: =+IF('info graficas'!AB9="","",'info graficas'!AB9) -> 0.8736798042 | AK44: =+IF('info graficas'!AC9="","",'info graficas'!AC9) ->  | AL44: =+IF('info graficas'!AD9="","",'info graficas'!AD9) ->  | AM44: =+IF('info graficas'!AE9="","",'info graficas'!AE9) ->  | AN44: =+IF('info graficas'!AF9="","",'info graficas'!AF9) ->  | AO44: =+IF('info graficas'!AG9="","",'info graficas'!AG9) ->  | AP44: =+IF('info graficas'!AH9="","",'info graficas'!AH9) ->  | AQ44: =+IF('info graficas'!AI9="","",'info graficas'!AI9) ->  | AR44: =+IF('info graficas'!AJ9="","",'info graficas'!AJ9) ->  | AS44: =+IF('info graficas'!AK9="","",'info graficas'!AK9) -> 
AG45: ∆ | AH45: =+IFERROR((AH44/AH43)-1,0) -> 0.1733062709 | AI45: =+IFERROR((AI44/AI43)-1,0) -> 0.2002256193 | AJ45: 0.2214825074 | AK45: 0 | AL45: 0 | AM45: 0 | AN45: 0 | AO45: 0 | AP45: 0 | AQ45: 0 | AR45: 0 | AS45: 0
B47: =+"Corte "&$C$5 -> Corte Marzo | G47: =+"Corte "&$C$5 -> Corte Marzo | L47: =+"Corte "&$C$5 -> Corte Marzo | AG47: Plan de Acción | AH47: Ene | AI47: Feb | AJ47: Mar | AK47: Abr | AL47: May | AM47: Jun | AN47: Jul | AO47: Agt | AP47: Sep | AQ47: Oct | AR47: Nov | AS47: Dic
AG48: 2015 | AH48: =+IF('info graficas'!Z10="","",'info graficas'!Z5) -> 0.8064739884 | AI48: =+IF('info graficas'!AA10="","",'info graficas'!AA5) -> 0.8011268781 | AJ48: =+IF('info graficas'!AB10="","",'info graficas'!AB5) -> 0.7353057459 | AK48: =+IF('info graficas'!AC10="","",'info graficas'!AC5) ->  | AL48: =+IF('info graficas'!AD10="","",'info graficas'!AD5) ->  | AM48: =+IF('info graficas'!AE10="","",'info graficas'!AE5) ->  | AN48: =+IF('info graficas'!AF10="","",'info graficas'!AF5) ->  | AO48: =+IF('info graficas'!AG10="","",'info graficas'!AG5) ->  | AP48: =+IF('info graficas'!AH10="","",'info graficas'!AH5) ->  | AQ48: =+IF('info graficas'!AI10="","",'info graficas'!AI5) ->  | AR48: =+IF('info graficas'!AJ10="","",'info graficas'!AJ5) ->  | AS48: =+IF('info graficas'!AK10="","",'info graficas'!AK5) -> 
AG49: 2016 | AH49: =+IF('info graficas'!Z10="","",'info graficas'!Z10) -> 0.9228336079 | AI49: =+IF('info graficas'!AA10="","",'info graficas'!AA10) -> 0.9021204981 | AJ49: =+IF('info graficas'!AB10="","",'info graficas'!AB10) -> 0.860511883 | AK49: =+IF('info graficas'!AC10="","",'info graficas'!AC10) ->  | AL49: =+IF('info graficas'!AD10="","",'info graficas'!AD10) ->  | AM49: =+IF('info graficas'!AE10="","",'info graficas'!AE10) ->  | AN49: =+IF('info graficas'!AF10="","",'info graficas'!AF10) ->  | AO49: =+IF('info graficas'!AG10="","",'info graficas'!AG10) ->  | AP49: =+IF('info graficas'!AH10="","",'info graficas'!AH10) ->  | AQ49: =+IF('info graficas'!AI10="","",'info graficas'!AI10) ->  | AR49: =+IF('info graficas'!AJ10="","",'info graficas'!AJ10) ->  | AS49: =+IF('info graficas'!AK10="","",'info graficas'!AK10) -> 
AG50: ∆ | AH50: =+IFERROR((AH49/AH48)-1,0) -> 0.1442819249 | AI50: 0.1260644509 | AJ50: 0.1702776536 | AK50: 0 | AL50: 0 | AM50: 0 | AN50: 0 | AO50: 0 | AP50: 0 | AQ50: 0 | AR50: 0 | AS50: 0
S51: Seguimiento mes a mes gestión ICBF
S52: Ene | T52: Feb | U52: Mar | V52: Abr | W52: May | X52: Jun | Y52: Jul | Z52: Agt | AA52: Sep | AB52: Oct | AC52: Nov | AD52: Dic | AG52: Plan Indicativo | AH52: Ene | AI52: Feb | AJ52: Mar | AK52: Abr | AL52: May | AM52: Jun | AN52: Jul | AO52: Agt | AP52: Sep | AQ52: Oct | AR52: Nov | AS52: Dic
R53: T. control | S53: =+td!AF10 -> 0.8898165746 | T53: =+td!AG10 -> 0.8994929302 | U53: =+td!AH10 -> 0.8736798042 | V53: =+td!AI10 ->  | W53: =+td!AJ10 ->  | X53: =+td!AK10 ->  | Y53: =+td!AL10 ->  | Z53: =+td!AM10 ->  | AA53: =+td!AN10 ->  | AB53: =+td!AO10 ->  | AC53: =+td!AP10 ->  | AD53: =+td!AQ10 ->  | AG53: 2015 | AH53: =+IF('info graficas'!Z11="","",'info graficas'!Z6) -> 0.8038626609 | AI53: =+IF('info graficas'!AA11="","",'info graficas'!AA6) -> 0.8427750411 | AJ53: =+IF('info graficas'!AB11="","",'info graficas'!AB6) -> 0.7417871222 | AK53: =+IF('info graficas'!AC11="","",'info graficas'!AC6) ->  | AL53: =+IF('info graficas'!AD11="","",'info graficas'!AD6) ->  | AM53: =+IF('info graficas'!AE11="","",'info graficas'!AE6) ->  | AN53: =+IF('info graficas'!AF11="","",'info graficas'!AF6) ->  | AO53: =+IF('info graficas'!AG11="","",'info graficas'!AG6) ->  | AP53: =+IF('info graficas'!AH11="","",'info graficas'!AH6) ->  | AQ53: =+IF('info graficas'!AI11="","",'info graficas'!AI6) ->  | AR53: =+IF('info graficas'!AJ11="","",'info graficas'!AJ6) ->  | AS53: =+IF('info graficas'!AK11="","",'info graficas'!AK6) -> 
R54: P. Acción | S54: =+td!AF22 -> 0.9228336079 | T54: =+td!AG22 -> 0.9021204981 | U54: =+td!AH22 -> 0.860511883 | V54: =+td!AI22 ->  | W54: =+td!AJ22 ->  | X54: =+td!AK22 ->  | Y54: =+td!AL22 ->  | Z54: =+td!AM22 ->  | AA54: =+td!AN22 ->  | AB54: =+td!AO22 ->  | AC54: =+td!AP22 ->  | AD54: =+td!AQ22 ->  | AG54: 2016 | AH54: =+IF('info graficas'!Z11="","",'info graficas'!Z11) -> 0.9579930796 | AI54: =+IF('info graficas'!AA11="","",'info graficas'!AA11) -> 0.9117946448 | AJ54: =+IF('info graficas'!AB11="","",'info graficas'!AB11) -> 0.8612113622 | AK54: =+IF('info graficas'!AC11="","",'info graficas'!AC11) ->  | AL54: =+IF('info graficas'!AD11="","",'info graficas'!AD11) ->  | AM54: =+IF('info graficas'!AE11="","",'info graficas'!AE11) ->  | AN54: =+IF('info graficas'!AF11="","",'info graficas'!AF11) ->  | AO54: =+IF('info graficas'!AG11="","",'info graficas'!AG11) ->  | AP54: =+IF('info graficas'!AH11="","",'info graficas'!AH11) ->  | AQ54: =+IF('info graficas'!AI11="","",'info graficas'!AI11) ->  | AR54: =+IF('info graficas'!AJ11="","",'info graficas'!AJ11) ->  | AS54: =+IF('info graficas'!AK11="","",'info graficas'!AK11) -> 
R55: P. Indicativo | S55: =+td!AF34 -> 0.9579930796 | T55: =+td!AG34 -> 0.9117946448 | U55: =+td!AH34 -> 0.8612113622 | V55: =+td!AI34 ->  | W55: =+td!AJ34 ->  | X55: =+td!AK34 ->  | Y55: =+td!AL34 ->  | Z55: =+td!AM34 ->  | AA55: =+td!AN34 ->  | AB55: =+td!AO34 ->  | AC55: =+td!AP34 ->  | AD55: =+td!AQ34 ->  | AG55: ∆ | AH55: =+IFERROR((AH54/AH53)-1,0) -> 0.1917372533 | AI55: 0.08189564287 | AJ55: 0.1609952996 | AK55: 0 | AL55: 0 | AM55: 0 | AN55: 0 | AO55: 0 | AP55: 0 | AQ55: 0 | AR55: 0 | AS55: 0
S56: Ene | T56: Feb | U56: Mar | V56: Abr | W56: May | X56: Jun | Y56: Jul | Z56: Agt | AA56: Sep | AB56: Oct | AC56: Nov | AD56: Dic
R57: T. control | S57: =IF(td!AF10="",NA(),td!AF10) -> 0.8898165746 | T57: =IF(td!AG10="",NA(),td!AG10) -> 0.8994929302 | U57: =IF(td!AH10="",NA(),td!AH10) -> 0.8736798042 | V57: =IF(td!AI10="",NA(),td!AI10) ->  | W57: =IF(td!AJ10="",NA(),td!AJ10) ->  | X57: =IF(td!AK10="",NA(),td!AK10) ->  | Y57: =IF(td!AL10="",NA(),td!AL10) ->  | Z57: =IF(td!AM10="",NA(),td!AM10) ->  | AA57: =IF(td!AN10="",NA(),td!AN10) ->  | AB57: =IF(td!AO10="",NA(),td!AO10) ->  | AC57: =IF(td!AP10="",NA(),td!AP10) ->  | AD57: =IF(td!AQ10="",NA(),td!AQ10) -> 
R58: P. Acción | S58: =IF(td!AF22="",NA(),td!AF22) -> 0.9228336079 | T58: =IF(td!AG22="",NA(),td!AG22) -> 0.9021204981 | U58: =IF(td!AH22="",NA(),td!AH22) -> 0.860511883 | V58: =IF(td!AI22="",NA(),td!AI22) ->  | W58: =IF(td!AJ22="",NA(),td!AJ22) ->  | X58: =IF(td!AK22="",NA(),td!AK22) ->  | Y58: =IF(td!AL22="",NA(),td!AL22) ->  | Z58: =IF(td!AM22="",NA(),td!AM22) ->  | AA58: =IF(td!AN22="",NA(),td!AN22) ->  | AB58: =IF(td!AO22="",NA(),td!AO22) ->  | AC58: =IF(td!AP22="",NA(),td!AP22) ->  | AD58: =IF(td!AQ22="",NA(),td!AQ22) -> 
R59: P. Indicativo | S59: =IF(td!AF34="",NA(),td!AF34) -> 0.9579930796 | T59: =IF(td!AG34="",NA(),td!AG34) -> 0.9117946448 | U59: =IF(td!AH34="",NA(),td!AH34) -> 0.8612113622 | V59: =IF(td!AI34="",NA(),td!AI34) ->  | W59: =IF(td!AJ34="",NA(),td!AJ34) ->  | X59: =IF(td!AK34="",NA(),td!AK34) ->  | Y59: =IF(td!AL34="",NA(),td!AL34) ->  | Z59: =IF(td!AM34="",NA(),td!AM34) ->  | AA59: =IF(td!AN34="",NA(),td!AN34) ->  | AB59: =IF(td!AO34="",NA(),td!AO34) ->  | AC59: =IF(td!AP34="",NA(),td!AP34) ->  | AD59: =IF(td!AQ34="",NA(),td!AQ34) -> 
B61: Mapa Estratégico 2015 -2018
B62: =+"Corte "&$C$5 -> Corte Marzo | T62: Categoria | Y62: Perspectivas
AG71: Comportamiento agregado de indicadores
AG72: =+VLOOKUP(C5,referencias!$I$1:$P$12,8,FALSE) -> 4 | AH72: optimo | AI72: adecuado | AJ72: en riesgo | AK72: critico | AL72: NA
AM73: Total
AG74: Servicios | AH74: =+SUM(AH75:AH79) -> 15 | AI74: =+SUM(AI75:AI79) -> 9 | AJ74: =+SUM(AJ75:AJ79) -> 0 | AK74: =+SUM(AK75:AK79) -> 1 | AL74: =+SUM(AL75:AL79) -> 44 | AM74: =+SUM(AH74:AL74) -> 69
AG75: PS1 | AH75: =+VLOOKUP($AG75&AH$72,'rangos nal'!$C$355:$O$414,$AG$72,FALSE) -> 5 | AI75: =+VLOOKUP($AG75&AI$72,'rangos nal'!$C$355:$O$414,$AG$72,FALSE) -> 0 | AJ75: =+VLOOKUP($AG75&AJ$72,'rangos nal'!$C$355:$O$414,$AG$72,FALSE) -> 0 | AK75: =+VLOOKUP($AG75&AK$72,'rangos nal'!$C$355:$O$414,$AG$72,FALSE) -> 0 | AL75: =+VLOOKUP($AG75&AL$72,'rangos nal'!$C$355:$O$414,$AG$72,FALSE) -> 13 | AM75: =+SUM(AH75:AL75) -> 18
AG76: PS2 | AH76: =+VLOOKUP($AG76&AH$72,'rangos nal'!$C$355:$O$414,$AG$72,FALSE) -> 0 | AI76: =+VLOOKUP($AG76&AI$72,'rangos nal'!$C$355:$O$414,$AG$72,FALSE) -> 0 | AJ76: =+VLOOKUP($AG76&AJ$72,'rangos nal'!$C$355:$O$414,$AG$72,FALSE) -> 0 | AK76: =+VLOOKUP($AG76&AK$72,'rangos nal'!$C$355:$O$414,$AG$72,FALSE) -> 0 | AL76: =+VLOOKUP($AG76&AL$72,'rangos nal'!$C$355:$O$414,$AG$72,FALSE) -> 8 | AM76: 8
AG77: PS3 | AH77: =+VLOOKUP($AG77&AH$72,'rangos nal'!$C$355:$O$414,$AG$72,FALSE) -> 1 | AI77: =+VLOOKUP($AG77&AI$72,'rangos nal'!$C$355:$O$414,$AG$72,FALSE) -> 0 | AJ77: =+VLOOKUP($AG77&AJ$72,'rangos nal'!$C$355:$O$414,$AG$72,FALSE) -> 0 | AK77: =+VLOOKUP($AG77&AK$72,'rangos nal'!$C$355:$O$414,$AG$72,FALSE) -> 0 | AL77: =+VLOOKUP($AG77&AL$72,'rangos nal'!$C$355:$O$414,$AG$72,FALSE) -> 5 | AM77: 6
AG78: PS4 | AH78: =+VLOOKUP($AG78&AH$72,'rangos nal'!$C$355:$O$414,$AG$72,FALSE) -> 2 | AI78: =+VLOOKUP($AG78&AI$72,'rangos nal'!$C$355:$O$414,$AG$72,FALSE) -> 1 | AJ78: =+VLOOKUP($AG78&AJ$72,'rangos nal'!$C$355:$O$414,$AG$72,FALSE) -> 0 | AK78: =+VLOOKUP($AG78&AK$72,'rangos nal'!$C$355:$O$414,$AG$72,FALSE) -> 0 | AL78: =+VLOOKUP($AG78&AL$72,'rangos nal'!$C$355:$O$414,$AG$72,FALSE) -> 10 | AM78: 13
AG79: PS5 | AH79: =+VLOOKUP($AG79&AH$72,'rangos nal'!$C$355:$O$414,$AG$72,FALSE) -> 7 | AI79: =+VLOOKUP($AG79&AI$72,'rangos nal'!$C$355:$O$414,$AG$72,FALSE) -> 8 | AJ79: =+VLOOKUP($AG79&AJ$72,'rangos nal'!$C$355:$O$414,$AG$72,FALSE) -> 0 | AK79: =+VLOOKUP($AG79&AK$72,'rangos nal'!$C$355:$O$414,$AG$72,FALSE) -> 1 | AL79: =+VLOOKUP($AG79&AL$72,'rangos nal'!$C$355:$O$414,$AG$72,FALSE) -> 8 | AM79: 24
AG80: Procesos | AH80: =+SUM(AH81:AH84) -> 15 | AI80: =+SUM(AI81:AI84) -> 2 | AJ80: =+SUM(AJ81:AJ84) -> 2 | AK80: =+SUM(AK81:AK84) -> 2 | AL80: =+SUM(AL81:AL84) -> 18 | AM80: 39
S81: =+"Corte "&$C$5 -> Corte Marzo | AG81: PP1 | AH81: =+VLOOKUP($AG81&AH$72,'rangos nal'!$C$355:$O$414,$AG$72,FALSE) -> 9 | AI81: =+VLOOKUP($AG81&AI$72,'rangos nal'!$C$355:$O$414,$AG$72,FALSE) -> 2 | AJ81: =+VLOOKUP($AG81&AJ$72,'rangos nal'!$C$355:$O$414,$AG$72,FALSE) -> 1 | AK81: =+VLOOKUP($AG81&AK$72,'rangos nal'!$C$355:$O$414,$AG$72,FALSE) -> 0 | AL81: =+VLOOKUP($AG81&AL$72,'rangos nal'!$C$355:$O$414,$AG$72,FALSE) -> 11 | AM81: 23
AG82: PP2 | AH82: =+VLOOKUP($AG82&AH$72,'rangos nal'!$C$355:$O$414,$AG$72,FALSE) -> 2 | AI82: =+VLOOKUP($AG82&AI$72,'rangos nal'!$C$355:$O$414,$AG$72,FALSE) -> 0 | AJ82: =+VLOOKUP($AG82&AJ$72,'rangos nal'!$C$355:$O$414,$AG$72,FALSE) -> 1 | AK82: =+VLOOKUP($AG82&AK$72,'rangos nal'!$C$355:$O$414,$AG$72,FALSE) -> 2 | AL82: =+VLOOKUP($AG82&AL$72,'rangos nal'!$C$355:$O$414,$AG$72,FALSE) -> 3 | AM82: 8
O83: PS | Q83: Perspectiva de Servicios | AG83: PP3 | AH83: =+VLOOKUP($AG83&AH$72,'rangos nal'!$C$355:$O$414,$AG$72,FALSE) -> 0 | AI83: =+VLOOKUP($AG83&AI$72,'rangos nal'!$C$355:$O$414,$AG$72,FALSE) -> 0 | AJ83: =+VLOOKUP($AG83&AJ$72,'rangos nal'!$C$355:$O$414,$AG$72,FALSE) -> 0 | AK83: =+VLOOKUP($AG83&AK$72,'rangos nal'!$C$355:$O$414,$AG$72,FALSE) -> 0 | AL83: =+VLOOKUP($AG83&AL$72,'rangos nal'!$C$355:$O$414,$AG$72,FALSE) -> 3 | AM83: 3
Q84: PS1 | R84: Ampliar cobertura y mejorar calidad en la atención integral de la Primera Infancia | AG84: PP4 | AH84: =+VLOOKUP($AG84&AH$72,'rangos nal'!$C$355:$O$414,$AG$72,FALSE) -> 4 | AI84: =+VLOOKUP($AG84&AI$72,'rangos nal'!$C$355:$O$414,$AG$72,FALSE) -> 0 | AJ84: =+VLOOKUP($AG84&AJ$72,'rangos nal'!$C$355:$O$414,$AG$72,FALSE) -> 0 | AK84: =+VLOOKUP($AG84&AK$72,'rangos nal'!$C$355:$O$414,$AG$72,FALSE) -> 0 | AL84: =+VLOOKUP($AG84&AL$72,'rangos nal'!$C$355:$O$414,$AG$72,FALSE) -> 1 | AM84: 5
Q85: PS2 | R85: Promover los derechos de los niños, niñas y adolescentes y prevenir los riesgos o amenazas de su vulneración | AG85: Aliados y Sociedad | AH85: =+SUM(AH86:AH87) -> 10 | AI85: =+SUM(AI86:AI87) -> 4 | AJ85: =+SUM(AJ86:AJ87) -> 0 | AK85: =+SUM(AK86:AK87) -> 1 | AL85: =+SUM(AL86:AL87) -> 14 | AM85: 29
Q86: PS3 | R86: Promover el desarrollo, fortalecer los vinculos de cuidado mutuo y prevenir violencia intrafamiliar y de género en las familias y las comunidades | AG86: PAS1 | AH86: =+VLOOKUP($AG86&AH$72,'rangos nal'!$C$355:$O$414,$AG$72,FALSE) -> 5 | AI86: =+VLOOKUP($AG86&AI$72,'rangos nal'!$C$355:$O$414,$AG$72,FALSE) -> 0 | AJ86: =+VLOOKUP($AG86&AJ$72,'rangos nal'!$C$355:$O$414,$AG$72,FALSE) -> 0 | AK86: =+VLOOKUP($AG86&AK$72,'rangos nal'!$C$355:$O$414,$AG$72,FALSE) -> 1 | AL86: =+VLOOKUP($AG86&AL$72,'rangos nal'!$C$355:$O$414,$AG$72,FALSE) -> 9 | AM86: 15
Q87: PS4 | R87: Promover la seguridad alimentaria y Nutricional | AG87: PAS2 | AH87: =+VLOOKUP($AG87&AH$72,'rangos nal'!$C$355:$O$414,$AG$72,FALSE) -> 5 | AI87: =+VLOOKUP($AG87&AI$72,'rangos nal'!$C$355:$O$414,$AG$72,FALSE) -> 4 | AJ87: =+VLOOKUP($AG87&AJ$72,'rangos nal'!$C$355:$O$414,$AG$72,FALSE) -> 0 | AK87: =+VLOOKUP($AG87&AK$72,'rangos nal'!$C$355:$O$414,$AG$72,FALSE) -> 0 | AL87: =+VLOOKUP($AG87&AL$72,'rangos nal'!$C$355:$O$414,$AG$72,FALSE) -> 5 | AM87: 14
Q88: PS5 | R88: Garantizar la Protección integral de los niños, niñas y adolescentes | AG88: Financiera | AH88: =+AH89 -> 4 | AI88: =+AI89 -> 5 | AJ88: =+AJ89 -> 1 | AK88: =+AK89 -> 5 | AL88: =+AL89 -> 3 | AM88: 18
O89: PP | Q89: Perspectiva de Procesos | AG89: PF | AH89: =+VLOOKUP($AG89&AH$72,'rangos nal'!$C$355:$O$414,$AG$72,FALSE) -> 4 | AI89: =+VLOOKUP($AG89&AI$72,'rangos nal'!$C$355:$O$414,$AG$72,FALSE) -> 5 | AJ89: =+VLOOKUP($AG89&AJ$72,'rangos nal'!$C$355:$O$414,$AG$72,FALSE) -> 1 | AK89: =+VLOOKUP($AG89&AK$72,'rangos nal'!$C$355:$O$414,$AG$72,FALSE) -> 5 | AL89: =+VLOOKUP($AG89&AL$72,'rangos nal'!$C$355:$O$414,$AG$72,FALSE) -> 3 | AM89: 18
Q90: PP1 | R90: Impulsar una cultura de la evaluación y gestión de la calidad para el mejoramiento continuo | AG90: Total | AH90: =+AH74+AH80+AH85+AH88 -> 44 | AI90: 20 | AJ90: 3 | AK90: 9 | AL90: 79 | AM90: 155
Q91: PP2 | R91: Promover condiciones laborales que hagan del ICBF el mejor lugar para trabajar | AH91: =+AH90/$AM$90 -> 0.2838709677 | AI91: =+AI90/$AM$90 -> 0.1290322581 | AJ91: =+AJ90/$AM$90 -> 0.01935483871 | AK91: =+AK90/$AM$90 -> 0.05806451613 | AL91: =+AL90/$AM$90 -> 0.5096774194
Q92: PP3 | R92: Reducir los impactos ambientales generados por nuestra actividad | AG92: =+"Corte "&$C$5 -> Corte Marzo
Q93: PP4 | R93: Gestionar el conocimiento institucional, con sistemas de información integrados y seguros
O94: PAS | Q94: Perspectiva de Aliados y sociedad
Q95: PAS1 | R95: Articular las instancias del Instituto Colombiano de Bienestar Familiar y del Sistema Nacional de Bienestar Familiar
Q96: PAS2 | R96: Trabajar con transparencia y buen Gobierno para promover el control social y la participación ciudadana
O97: PF | Q97: Perspectiva Financiera
Q98: PF | R98: Hacer un uso eficiente de los recursos de los niños, niñas y adolescentes, porque son sagrados
B103: Mapa de Procesos ICBF
B104: =+"Corte "&$C$5 -> Corte Marzo
S106: Procesos
Z108: Comportamiento agregado de indicadores
Z109: =+VLOOKUP(C5,referencias!$I$1:$P$12,8,FALSE) -> 4 | AA109: optimo | AB109: adecuado | AC109: en riesgo | AD109: critico | AE109: NA
AF110: Total
L111: Misionales | Y111: Misionales | AA111: =+AA112+AA113 -> 12 | AB111: =+AB112+AB113 -> 8 | AC111: =+AC112+AC113 -> 0 | AD111: =+AD112+AD113 -> 1 | AE111: =+AE112+AE113 -> 31 | AF111: =+SUM(AA111:AE111) -> 52
L112: PM1 | M112: Promoción y prevención | Z112: PM1 | AA112: =+VLOOKUP($Z112&AA$109,'rangos nal'!$S$355:$AE$429,$Z$109,FALSE) -> 5 | AB112: =+VLOOKUP($Z112&AB$109,'rangos nal'!$S$355:$AE$429,$Z$109,FALSE) -> 1 | AC112: =+VLOOKUP($Z112&AC$109,'rangos nal'!$S$355:$AE$429,$Z$109,FALSE) -> 0 | AD112: =+VLOOKUP($Z112&AD$109,'rangos nal'!$S$355:$AE$429,$Z$109,FALSE) -> 0 | AE112: =+VLOOKUP($Z112&AE$109,'rangos nal'!$S$355:$AE$429,$Z$109,FALSE) -> 29 | AF112: 35
L113: PM2 | M113: Protección | Z113: PM2 | AA113: =+VLOOKUP($Z113&AA$109,'rangos nal'!$S$355:$AE$429,$Z$109,FALSE) -> 7 | AB113: =+VLOOKUP($Z113&AB$109,'rangos nal'!$S$355:$AE$429,$Z$109,FALSE) -> 7 | AC113: =+VLOOKUP($Z113&AC$109,'rangos nal'!$S$355:$AE$429,$Z$109,FALSE) -> 0 | AD113: =+VLOOKUP($Z113&AD$109,'rangos nal'!$S$355:$AE$429,$Z$109,FALSE) -> 1 | AE113: =+VLOOKUP($Z113&AE$109,'rangos nal'!$S$355:$AE$429,$Z$109,FALSE) -> 2 | AF113: 17
L114: Apoyo | Y114: Apoyo | AA114: =+AA115+AA116+AA117+AA118+AA119 -> 12 | AB114: =+AB115+AB116+AB117+AB118+AB119 -> 3 | AC114: =+AC115+AC116+AC117+AC118+AC119 -> 2 | AD114: =+AD115+AD116+AD117+AD118+AD119 -> 5 | AE114: =+AE115+AE116+AE117+AE118+AE119 -> 13 | AF114: 35
L115: PA1 | M115: Gestión financiera | Z115: PA1 | AA115: =+VLOOKUP($Z115&AA$109,'rangos nal'!$S$355:$AE$429,$Z$109,FALSE) -> 1 | AB115: =+VLOOKUP($Z115&AB$109,'rangos nal'!$S$355:$AE$429,$Z$109,FALSE) -> 2 | AC115: =+VLOOKUP($Z115&AC$109,'rangos nal'!$S$355:$AE$429,$Z$109,FALSE) -> 0 | AD115: =+VLOOKUP($Z115&AD$109,'rangos nal'!$S$355:$AE$429,$Z$109,FALSE) -> 2 | AE115: =+VLOOKUP($Z115&AE$109,'rangos nal'!$S$355:$AE$429,$Z$109,FALSE) -> 0 | AF115: 5
L116: PA2 | M116: Adquisición de bienes y servicios | Z116: PA2 | AA116: =+VLOOKUP($Z116&AA$109,'rangos nal'!$S$355:$AE$429,$Z$109,FALSE) -> 3 | AB116: =+VLOOKUP($Z116&AB$109,'rangos nal'!$S$355:$AE$429,$Z$109,FALSE) -> 1 | AC116: =+VLOOKUP($Z116&AC$109,'rangos nal'!$S$355:$AE$429,$Z$109,FALSE) -> 1 | AD116: =+VLOOKUP($Z116&AD$109,'rangos nal'!$S$355:$AE$429,$Z$109,FALSE) -> 1 | AE116: =+VLOOKUP($Z116&AE$109,'rangos nal'!$S$355:$AE$429,$Z$109,FALSE) -> 2 | AF116: 8
L117: PA3 | M117: Servicios administrativos | Z117: PA3 | AA117: =+VLOOKUP($Z117&AA$109,'rangos nal'!$S$355:$AE$429,$Z$109,FALSE) -> 2 | AB117: =+VLOOKUP($Z117&AB$109,'rangos nal'!$S$355:$AE$429,$Z$109,FALSE) -> 0 | AC117: =+VLOOKUP($Z117&AC$109,'rangos nal'!$S$355:$AE$429,$Z$109,FALSE) -> 0 | AD117: =+VLOOKUP($Z117&AD$109,'rangos nal'!$S$355:$AE$429,$Z$109,FALSE) -> 1 | AE117: =+VLOOKUP($Z117&AE$109,'rangos nal'!$S$355:$AE$429,$Z$109,FALSE) -> 7 | AF117: 10
L118: PA4 | M118: Gestión de talento humano | Z118: PA4 | AA118: =+VLOOKUP($Z118&AA$109,'rangos nal'!$S$355:$AE$429,$Z$109,FALSE) -> 4 | AB118: =+VLOOKUP($Z118&AB$109,'rangos nal'!$S$355:$AE$429,$Z$109,FALSE) -> 0 | AC118: =+VLOOKUP($Z118&AC$109,'rangos nal'!$S$355:$AE$429,$Z$109,FALSE) -> 1 | AD118: =+VLOOKUP($Z118&AD$109,'rangos nal'!$S$355:$AE$429,$Z$109,FALSE) -> 1 | AE118: =+VLOOKUP($Z118&AE$109,'rangos nal'!$S$355:$AE$429,$Z$109,FALSE) -> 2 | AF118: 8
L119: PA5 | M119: Gestión jurídica | Z119: PA5 | AA119: =+VLOOKUP($Z119&AA$109,'rangos nal'!$S$355:$AE$429,$Z$109,FALSE) -> 2 | AB119: =+VLOOKUP($Z119&AB$109,'rangos nal'!$S$355:$AE$429,$Z$109,FALSE) -> 0 | AC119: =+VLOOKUP($Z119&AC$109,'rangos nal'!$S$355:$AE$429,$Z$109,FALSE) -> 0 | AD119: =+VLOOKUP($Z119&AD$109,'rangos nal'!$S$355:$AE$429,$Z$109,FALSE) -> 0 | AE119: =+VLOOKUP($Z119&AE$109,'rangos nal'!$S$355:$AE$429,$Z$109,FALSE) -> 2 | AF119: 4
L120: Estratégicos | Y120: Estratégicos | AA120: =+AA121+AA122+AA123 -> 6 | AB120: =+AB121+AB122+AB123 -> 2 | AC120: =+AC121+AC122+AC123 -> 0 | AD120: =+AD121+AD122+AD123 -> 3 | AE120: =+AE121+AE122+AE123 -> 10 | AF120: 21
L121: PE1 | M121: Coordinación y articulación del SNBF y agentes | Z121: PE1 | AA121: =+VLOOKUP($Z121&AA$109,'rangos nal'!$S$355:$AE$429,$Z$109,FALSE) -> 1 | AB121: =+VLOOKUP($Z121&AB$109,'rangos nal'!$S$355:$AE$429,$Z$109,FALSE) -> 0 | AC121: =+VLOOKUP($Z121&AC$109,'rangos nal'!$S$355:$AE$429,$Z$109,FALSE) -> 0 | AD121: =+VLOOKUP($Z121&AD$109,'rangos nal'!$S$355:$AE$429,$Z$109,FALSE) -> 0 | AE121: =+VLOOKUP($Z121&AE$109,'rangos nal'!$S$355:$AE$429,$Z$109,FALSE) -> 4 | AF121: 5
L122: PE2 | M122: Direccionamiento Estratégico | Z122: PE2 | AA122: =+VLOOKUP($Z122&AA$109,'rangos nal'!$S$355:$AE$429,$Z$109,FALSE) -> 5 | AB122: =+VLOOKUP($Z122&AB$109,'rangos nal'!$S$355:$AE$429,$Z$109,FALSE) -> 1 | AC122: =+VLOOKUP($Z122&AC$109,'rangos nal'!$S$355:$AE$429,$Z$109,FALSE) -> 0 | AD122: =+VLOOKUP($Z122&AD$109,'rangos nal'!$S$355:$AE$429,$Z$109,FALSE) -> 1 | AE122: =+VLOOKUP($Z122&AE$109,'rangos nal'!$S$355:$AE$429,$Z$109,FALSE) -> 6 | AF122: 13
L123: PE3 | M123: Comunicación estratégica | Z123: PE3 | AA123: =+VLOOKUP($Z123&AA$109,'rangos nal'!$S$355:$AE$429,$Z$109,FALSE) -> 0 | AB123: =+VLOOKUP($Z123&AB$109,'rangos nal'!$S$355:$AE$429,$Z$109,FALSE) -> 1 | AC123: =+VLOOKUP($Z123&AC$109,'rangos nal'!$S$355:$AE$429,$Z$109,FALSE) -> 0 | AD123: =+VLOOKUP($Z123&AD$109,'rangos nal'!$S$355:$AE$429,$Z$109,FALSE) -> 2 | AE123: =+VLOOKUP($Z123&AE$109,'rangos nal'!$S$355:$AE$429,$Z$109,FALSE) -> 0 | AF123: 3
L124: Evaluación | Y124: Evaluación | AA124: =+AA125+AA126 -> 5 | AB124: =+AB125+AB126 -> 0 | AC124: =+AC125+AC126 -> 1 | AD124: =+AD125+AD126 -> 0 | AE124: =+AE125+AE126 -> 6 | AF124: 12
L125: PEV1 | M125: Inspección vigilancia y control a operadores | Z125: PEV1 | AA125: =+VLOOKUP($Z125&AA$109,'rangos nal'!$S$355:$AE$429,$Z$109,FALSE) -> 2 | AB125: =+VLOOKUP($Z125&AB$109,'rangos nal'!$S$355:$AE$429,$Z$109,FALSE) -> 0 | AC125: =+VLOOKUP($Z125&AC$109,'rangos nal'!$S$355:$AE$429,$Z$109,FALSE) -> 0 | AD125: =+VLOOKUP($Z125&AD$109,'rangos nal'!$S$355:$AE$429,$Z$109,FALSE) -> 0 | AE125: =+VLOOKUP($Z125&AE$109,'rangos nal'!$S$355:$AE$429,$Z$109,FALSE) -> 3 | AF125: 5
L126: PEV2 | M126: Evaluación y monitoreo de la gestión | Z126: PEV2 | AA126: =+VLOOKUP($Z126&AA$109,'rangos nal'!$S$355:$AE$429,$Z$109,FALSE) -> 3 | AB126: =+VLOOKUP($Z126&AB$109,'rangos nal'!$S$355:$AE$429,$Z$109,FALSE) -> 0 | AC126: =+VLOOKUP($Z126&AC$109,'rangos nal'!$S$355:$AE$429,$Z$109,FALSE) -> 1 | AD126: =+VLOOKUP($Z126&AD$109,'rangos nal'!$S$355:$AE$429,$Z$109,FALSE) -> 0 | AE126: =+VLOOKUP($Z126&AE$109,'rangos nal'!$S$355:$AE$429,$Z$109,FALSE) -> 3 | AF126: 7
L127: Transversales | Y127: Transversales | AA127: =+AA128+AA129+AA130 -> 9 | AB127: =+AB128+AB129+AB130 -> 7 | AC127: =+AC128+AC129+AC130 -> 0 | AD127: =+AD128+AD129+AD130 -> 0 | AE127: =+AE128+AE129+AE130 -> 19 | AF127: 35
L128: PT1 | M128: Relación con el ciudadano | Z128: PT1 | AA128: =+VLOOKUP($Z128&AA$109,'rangos nal'!$S$355:$AE$429,$Z$109,FALSE) -> 2 | AB128: =+VLOOKUP($Z128&AB$109,'rangos nal'!$S$355:$AE$429,$Z$109,FALSE) -> 4 | AC128: =+VLOOKUP($Z128&AC$109,'rangos nal'!$S$355:$AE$429,$Z$109,FALSE) -> 0 | AD128: =+VLOOKUP($Z128&AD$109,'rangos nal'!$S$355:$AE$429,$Z$109,FALSE) -> 0 | AE128: =+VLOOKUP($Z128&AE$109,'rangos nal'!$S$355:$AE$429,$Z$109,FALSE) -> 3 | AF128: 9
L129: PT2 | M129: Mejora e Innovación | Z129: PT2 | AA129: =+VLOOKUP($Z129&AA$109,'rangos nal'!$S$355:$AE$429,$Z$109,FALSE) -> 2 | AB129: =+VLOOKUP($Z129&AB$109,'rangos nal'!$S$355:$AE$429,$Z$109,FALSE) -> 3 | AC129: =+VLOOKUP($Z129&AC$109,'rangos nal'!$S$355:$AE$429,$Z$109,FALSE) -> 0 | AD129: =+VLOOKUP($Z129&AD$109,'rangos nal'!$S$355:$AE$429,$Z$109,FALSE) -> 0 | AE129: =+VLOOKUP($Z129&AE$109,'rangos nal'!$S$355:$AE$429,$Z$109,FALSE) -> 14 | AF129: 19
L130: PT3 | M130: Gestión de la tecnología e información | Z130: PT3 | AA130: =+VLOOKUP($Z130&AA$109,'rangos nal'!$S$355:$AE$429,$Z$109,FALSE) -> 5 | AB130: =+VLOOKUP($Z130&AB$109,'rangos nal'!$S$355:$AE$429,$Z$109,FALSE) -> 0 | AC130: =+VLOOKUP($Z130&AC$109,'rangos nal'!$S$355:$AE$429,$Z$109,FALSE) -> 0 | AD130: =+VLOOKUP($Z130&AD$109,'rangos nal'!$S$355:$AE$429,$Z$109,FALSE) -> 0 | AE130: =+VLOOKUP($Z130&AE$109,'rangos nal'!$S$355:$AE$429,$Z$109,FALSE) -> 2 | AF130: 7
Y131: Total | AA131: =+AA111+AA114+AA120+AA124+AA127 -> 44 | AB131: =+AB111+AB114+AB120+AB124+AB127 -> 20 | AC131: =+AC111+AC114+AC120+AC124+AC127 -> 3 | AD131: =+AD111+AD114+AD120+AD124+AD127 -> 9 | AE131: =+AE111+AE114+AE120+AE124+AE127 -> 79 | AF131: 155
AA132: =+AA131/$AF$131 -> 0.2838709677 | AB132: =+AB131/$AF$131 -> 0.1290322581 | AC132: =+AC131/$AF$131 -> 0.01935483871 | AD132: =+AD131/$AF$131 -> 0.05806451613 | AE132: =+AE131/$AF$131 -> 0.5096774194
Y133: =+"Corte "&$C$5 -> Corte Marzo
B143: Áreas del CIBF
X146: Comportamiento agregado de indicadores directos | AG146: Comportamiento agregado de indicadores transversales | AO146: Total Indicadores por área
O147: =+VLOOKUP(C5,referencias!$A$1:$D$12,4,FALSE) -> 29 | Y147: =+VLOOKUP(C5,referencias!$I$1:$P$12,8,FALSE) -> 4 | Z147: optimo | AA147: adecuado | AB147: en riesgo | AC147: critico | AD147: NA | AG147: =+VLOOKUP(C5,referencias!$I$1:$P$12,8,FALSE) -> 4 | AH147: optimo | AI147: adecuado | AJ147: en riesgo | AK147: critico | AL147: NA | AQ147: optimo | AR147: adecuado | AS147: en riesgo | AT147: critico | AU147: NA
O148: =+"Calificación corte "&C5 -> Calificación corte Marzo | AE148: Total | AM148: Total | AV148: Total
O149: Calif. Total | Q149: Ind. Directos | R149: Transversales | Y149: Misionales | Z149: =+Z150+Z151+Z152+Z153+Z154 -> 15 | AA149: =+AA150+AA151+AA152+AA153+AA154 -> 9 | AB149: =+AB150+AB151+AB152+AB153+AB154 -> 0 | AC149: =+AC150+AC151+AC152+AC153+AC154 -> 1 | AD149: =+AD150+AD151+AD152+AD153+AD154 -> 44 | AE149: =+SUM(Z149:AD149) -> 69 | AG149: Misionales | AP149: Misionales
L150: M1 | M150: Primera Infancia | O150: =+VLOOKUP(L150,'td areas'!$B$54:$AM$75,$O$147,FALSE) -> 0.8465983535 | Q150: =+VLOOKUP(L150,'td areas'!$B$2:$AM$24,$O$147,FALSE) -> 1 | R150: =+VLOOKUP(L150,'td areas'!$B$27:$AM$50,$O$147,FALSE) -> 0.757732342 | Y150: M1 | Z150: =+VLOOKUP($Y150&Z$147,'rangos nal'!$AH$355:$AT$464,$Y$147,FALSE) -> 5 | AA150: =+VLOOKUP($Y150&AA$147,'rangos nal'!$AH$355:$AT$464,$Y$147,FALSE) -> 0 | AB150: =+VLOOKUP($Y150&AB$147,'rangos nal'!$AH$355:$AT$464,$Y$147,FALSE) -> 0 | AC150: =+VLOOKUP($Y150&AC$147,'rangos nal'!$AH$355:$AT$464,$Y$147,FALSE) -> 0 | AD150: =+VLOOKUP($Y150&AD$147,'rangos nal'!$AH$355:$AT$464,$Y$147,FALSE) -> 13 | AE150: 18 | AG150: M1 | AH150: =+VLOOKUP($Y150&AH$147,'rangos nal'!$AX$464:$BJ$573,$Y$147,FALSE) -> 2 | AI150: =+VLOOKUP($Y150&AI$147,'rangos nal'!$AX$464:$BJ$573,$Y$147,FALSE) -> 3 | AJ150: =+VLOOKUP($Y150&AJ$147,'rangos nal'!$AX$464:$BJ$573,$Y$147,FALSE) -> 1 | AK150: =+VLOOKUP($Y150&AK$147,'rangos nal'!$AX$464:$BJ$573,$Y$147,FALSE) -> 2 | AL150: =+VLOOKUP($Y150&AL$147,'rangos nal'!$AX$464:$BJ$573,$Y$147,FALSE) -> 4 | AM150: =+SUM(AH150:AL150) -> 12 | AP150: M1 | AQ150: =+Z150+AH150 -> 7 | AR150: 3 | AS150: 1 | AT150: 2 | AU150: 17 | AV150: =+SUM(AQ150:AU150) -> 30
L151: M2 | M151: Niñez y Adolescencia | O151: =+VLOOKUP(L151,'td areas'!$B$54:$AM$75,$O$147,FALSE) -> 0.35456942 | Q151: =+VLOOKUP(L151,'td areas'!$B$2:$AM$24,$O$147,FALSE) ->  | R151: =+VLOOKUP(L151,'td areas'!$B$27:$AM$50,$O$147,FALSE) -> 0.35456942 | Y151: M2 | Z151: =+VLOOKUP($Y151&Z$147,'rangos nal'!$AH$355:$AT$464,$Y$147,FALSE) -> 0 | AA151: =+VLOOKUP($Y151&AA$147,'rangos nal'!$AH$355:$AT$464,$Y$147,FALSE) -> 0 | AB151: =+VLOOKUP($Y151&AB$147,'rangos nal'!$AH$355:$AT$464,$Y$147,FALSE) -> 0 | AC151: =+VLOOKUP($Y151&AC$147,'rangos nal'!$AH$355:$AT$464,$Y$147,FALSE) -> 0 | AD151: =+VLOOKUP($Y151&AD$147,'rangos nal'!$AH$355:$AT$464,$Y$147,FALSE) -> 11 | AE151: 11 | AG151: M2 | AH151: =+VLOOKUP($Y151&AH$147,'rangos nal'!$AX$464:$BJ$573,$Y$147,FALSE) -> 0 | AI151: =+VLOOKUP($Y151&AI$147,'rangos nal'!$AX$464:$BJ$573,$Y$147,FALSE) -> 0 | AJ151: =+VLOOKUP($Y151&AJ$147,'rangos nal'!$AX$464:$BJ$573,$Y$147,FALSE) -> 1 | AK151: =+VLOOKUP($Y151&AK$147,'rangos nal'!$AX$464:$BJ$573,$Y$147,FALSE) -> 6 | AL151: =+VLOOKUP($Y151&AL$147,'rangos nal'!$AX$464:$BJ$573,$Y$147,FALSE) -> 5 | AM151: 12 | AP151: M2 | AQ151: 0 | AR151: 0 | AS151: 1 | AT151: 6 | AU151: 16 | AV151: =+SUM(AQ151:AU151) -> 23
L152: M3 | M152: Familias y comunidades | O152: =+VLOOKUP(L152,'td areas'!$B$54:$AM$75,$O$147,FALSE) -> 0.6434841957 | Q152: =+VLOOKUP(L152,'td areas'!$B$2:$AM$24,$O$147,FALSE) -> 1 | R152: =+VLOOKUP(L152,'td areas'!$B$27:$AM$50,$O$147,FALSE) -> 0.493273628 | Y152: M3 | Z152: =+VLOOKUP($Y152&Z$147,'rangos nal'!$AH$355:$AT$464,$Y$147,FALSE) -> 1 | AA152: =+VLOOKUP($Y152&AA$147,'rangos nal'!$AH$355:$AT$464,$Y$147,FALSE) -> 0 | AB152: =+VLOOKUP($Y152&AB$147,'rangos nal'!$AH$355:$AT$464,$Y$147,FALSE) -> 0 | AC152: =+VLOOKUP($Y152&AC$147,'rangos nal'!$AH$355:$AT$464,$Y$147,FALSE) -> 0 | AD152: =+VLOOKUP($Y152&AD$147,'rangos nal'!$AH$355:$AT$464,$Y$147,FALSE) -> 5 | AE152: 6 | AG152: M3 | AH152: =+VLOOKUP($Y152&AH$147,'rangos nal'!$AX$464:$BJ$573,$Y$147,FALSE) -> 1 | AI152: =+VLOOKUP($Y152&AI$147,'rangos nal'!$AX$464:$BJ$573,$Y$147,FALSE) -> 0 | AJ152: =+VLOOKUP($Y152&AJ$147,'rangos nal'!$AX$464:$BJ$573,$Y$147,FALSE) -> 0 | AK152: =+VLOOKUP($Y152&AK$147,'rangos nal'!$AX$464:$BJ$573,$Y$147,FALSE) -> 4 | AL152: =+VLOOKUP($Y152&AL$147,'rangos nal'!$AX$464:$BJ$573,$Y$147,FALSE) -> 7 | AM152: 12 | AP152: M3 | AQ152: 2 | AR152: 0 | AS152: 0 | AT152: 4 | AU152: 12 | AV152: =+SUM(AQ152:AU152) -> 18
L153: M4 | M153: Nutrición | O153: =+VLOOKUP(L153,'td areas'!$B$54:$AM$75,$O$147,FALSE) -> 0.7053637167 | Q153: =+VLOOKUP(L153,'td areas'!$B$2:$AM$24,$O$147,FALSE) -> 0.9695464363 | R153: =+VLOOKUP(L153,'td areas'!$B$27:$AM$50,$O$147,FALSE) -> 0.5884386617 | Y153: M4 | Z153: =+VLOOKUP($Y153&Z$147,'rangos nal'!$AH$355:$AT$464,$Y$147,FALSE) -> 2 | AA153: =+VLOOKUP($Y153&AA$147,'rangos nal'!$AH$355:$AT$464,$Y$147,FALSE) -> 1 | AB153: =+VLOOKUP($Y153&AB$147,'rangos nal'!$AH$355:$AT$464,$Y$147,FALSE) -> 0 | AC153: =+VLOOKUP($Y153&AC$147,'rangos nal'!$AH$355:$AT$464,$Y$147,FALSE) -> 0 | AD153: =+VLOOKUP($Y153&AD$147,'rangos nal'!$AH$355:$AT$464,$Y$147,FALSE) -> 10 | AE153: 13 | AG153: M4 | AH153: =+VLOOKUP($Y153&AH$147,'rangos nal'!$AX$464:$BJ$573,$Y$147,FALSE) -> 3 | AI153: =+VLOOKUP($Y153&AI$147,'rangos nal'!$AX$464:$BJ$573,$Y$147,FALSE) -> 0 | AJ153: =+VLOOKUP($Y153&AJ$147,'rangos nal'!$AX$464:$BJ$573,$Y$147,FALSE) -> 1 | AK153: =+VLOOKUP($Y153&AK$147,'rangos nal'!$AX$464:$BJ$573,$Y$147,FALSE) -> 4 | AL153: =+VLOOKUP($Y153&AL$147,'rangos nal'!$AX$464:$BJ$573,$Y$147,FALSE) -> 4 | AM153: 12 | AP153: M4 | AQ153: 5 | AR153: 1 | AS153: 1 | AT153: 4 | AU153: 14 | AV153: =+SUM(AQ153:AU153) -> 25
L154: M5 | M154: Protección | O154: =+VLOOKUP(L154,'td areas'!$B$54:$AM$75,$O$147,FALSE) -> 0.8556068828 | Q154: =+VLOOKUP(L154,'td areas'!$B$2:$AM$24,$O$147,FALSE) -> 0.8982603398 | R154: =+VLOOKUP(L154,'td areas'!$B$27:$AM$50,$O$147,FALSE) -> 0.686618127 | Y154: M5 | Z154: =+VLOOKUP($Y154&Z$147,'rangos nal'!$AH$355:$AT$464,$Y$147,FALSE) -> 7 | AA154: =+VLOOKUP($Y154&AA$147,'rangos nal'!$AH$355:$AT$464,$Y$147,FALSE) -> 8 | AB154: =+VLOOKUP($Y154&AB$147,'rangos nal'!$AH$355:$AT$464,$Y$147,FALSE) -> 0 | AC154: =+VLOOKUP($Y154&AC$147,'rangos nal'!$AH$355:$AT$464,$Y$147,FALSE) -> 1 | AD154: =+VLOOKUP($Y154&AD$147,'rangos nal'!$AH$355:$AT$464,$Y$147,FALSE) -> 5 | AE154: 21 | AG154: M5 | AH154: =+VLOOKUP($Y154&AH$147,'rangos nal'!$AX$464:$BJ$573,$Y$147,FALSE) -> 1 | AI154: =+VLOOKUP($Y154&AI$147,'rangos nal'!$AX$464:$BJ$573,$Y$147,FALSE) -> 2 | AJ154: =+VLOOKUP($Y154&AJ$147,'rangos nal'!$AX$464:$BJ$573,$Y$147,FALSE) -> 1 | AK154: =+VLOOKUP($Y154&AK$147,'rangos nal'!$AX$464:$BJ$573,$Y$147,FALSE) -> 3 | AL154: =+VLOOKUP($Y154&AL$147,'rangos nal'!$AX$464:$BJ$573,$Y$147,FALSE) -> 5 | AM154: 12 | AP154: M5 | AQ154: 8 | AR154: 10 | AS154: 1 | AT154: 4 | AU154: 10 | AV154: =+SUM(AQ154:AU154) -> 33
L155: A1 | M155: Gestión Humana | O155: =+VLOOKUP(L155,'td areas'!$B$54:$AM$75,$O$147,FALSE) -> 0.5577702571 | Q155: =+VLOOKUP(L155,'td areas'!$B$2:$AM$24,$O$147,FALSE) -> 0.5364548495 | R155: =+VLOOKUP(L155,'td areas'!$B$27:$AM$50,$O$147,FALSE) -> 0.5655549655 | Y155: Apoyo | Z155: =+SUM(Z156:Z172) -> 29 | AA155: =+SUM(AA156:AA172) -> 11 | AB155: =+SUM(AB156:AB172) -> 3 | AC155: =+SUM(AC156:AC172) -> 8 | AD155: =+SUM(AD156:AD172) -> 35 | AE155: 86 | AG155: Apoyo | AP155: Apoyo
L156: A2 | M156: Financiera | O156: =+VLOOKUP(L156,'td areas'!$B$54:$AM$75,$O$147,FALSE) -> 0.7598937865 | Q156: =+VLOOKUP(L156,'td areas'!$B$2:$AM$24,$O$147,FALSE) -> 0.7369942197 | R156: =+VLOOKUP(L156,'td areas'!$B$27:$AM$50,$O$147,FALSE) -> 0.7766556291 | Y156: A1 | Z156: =+VLOOKUP($Y156&Z$147,'rangos nal'!$AH$355:$AT$464,$Y$147,FALSE) -> 1 | AA156: =+VLOOKUP($Y156&AA$147,'rangos nal'!$AH$355:$AT$464,$Y$147,FALSE) -> 0 | AB156: =+VLOOKUP($Y156&AB$147,'rangos nal'!$AH$355:$AT$464,$Y$147,FALSE) -> 1 | AC156: =+VLOOKUP($Y156&AC$147,'rangos nal'!$AH$355:$AT$464,$Y$147,FALSE) -> 1 | AD156: =+VLOOKUP($Y156&AD$147,'rangos nal'!$AH$355:$AT$464,$Y$147,FALSE) -> 2 | AE156: 5 | AG156: A1 | AH156: =+VLOOKUP($Y156&AH$147,'rangos nal'!$AX$464:$BJ$573,$Y$147,FALSE) -> 0 | AI156: =+VLOOKUP($Y156&AI$147,'rangos nal'!$AX$464:$BJ$573,$Y$147,FALSE) -> 2 | AJ156: =+VLOOKUP($Y156&AJ$147,'rangos nal'!$AX$464:$BJ$573,$Y$147,FALSE) -> 2 | AK156: =+VLOOKUP($Y156&AK$147,'rangos nal'!$AX$464:$BJ$573,$Y$147,FALSE) -> 4 | AL156: =+VLOOKUP($Y156&AL$147,'rangos nal'!$AX$464:$BJ$573,$Y$147,FALSE) -> 4 | AM156: 12 | AP156: A1 | AQ156: =+Z156+AH156 -> 1 | AR156: =+AA156+AI156 -> 2 | AS156: =+AB156+AJ156 -> 3 | AT156: =+AC156+AK156 -> 5 | AU156: =+AD156+AL156 -> 6 | AV156: =+SUM(AQ156:AU156) -> 17
L157: A3 | M157: Control Interno Disciplinario | O157: =+VLOOKUP(L157,'td areas'!$B$54:$AM$75,$O$147,FALSE) -> 0.8895579268 | Q157: =+VLOOKUP(L157,'td areas'!$B$2:$AM$24,$O$147,FALSE) -> 1 | R157: =+VLOOKUP(L157,'td areas'!$B$27:$AM$50,$O$147,FALSE) -> 0.7867549669 | Y157: A2 | Z157: =+VLOOKUP($Y157&Z$147,'rangos nal'!$AH$355:$AT$464,$Y$147,FALSE) -> 0 | AA157: =+VLOOKUP($Y157&AA$147,'rangos nal'!$AH$355:$AT$464,$Y$147,FALSE) -> 2 | AB157: =+VLOOKUP($Y157&AB$147,'rangos nal'!$AH$355:$AT$464,$Y$147,FALSE) -> 0 | AC157: =+VLOOKUP($Y157&AC$147,'rangos nal'!$AH$355:$AT$464,$Y$147,FALSE) -> 2 | AD157: =+VLOOKUP($Y157&AD$147,'rangos nal'!$AH$355:$AT$464,$Y$147,FALSE) -> 0 | AE157: 4 | AG157: A2 | AH157: =+VLOOKUP($Y157&AH$147,'rangos nal'!$AX$464:$BJ$573,$Y$147,FALSE) -> 1 | AI157: =+VLOOKUP($Y157&AI$147,'rangos nal'!$AX$464:$BJ$573,$Y$147,FALSE) -> 1 | AJ157: =+VLOOKUP($Y157&AJ$147,'rangos nal'!$AX$464:$BJ$573,$Y$147,FALSE) -> 2 | AK157: =+VLOOKUP($Y157&AK$147,'rangos nal'!$AX$464:$BJ$573,$Y$147,FALSE) -> 0 | AL157: =+VLOOKUP($Y157&AL$147,'rangos nal'!$AX$464:$BJ$573,$Y$147,FALSE) -> 8 | AM157: 12 | AP157: A2 | AQ157: 1 | AR157: 3 | AS157: 2 | AT157: 2 | AU157: 8 | AV157: 16
L158: A4 | M158: Abastecimiento | O158: =+VLOOKUP(L158,'td areas'!$B$54:$AM$75,$O$147,FALSE) -> 0.5965526605 | Q158: =+VLOOKUP(L158,'td areas'!$B$2:$AM$24,$O$147,FALSE) -> 0.6337192239 | R158: =+VLOOKUP(L158,'td areas'!$B$27:$AM$50,$O$147,FALSE) -> 0.5338246907 | Y158: A3 | Z158: =+VLOOKUP($Y158&Z$147,'rangos nal'!$AH$355:$AT$464,$Y$147,FALSE) -> 3 | AA158: =+VLOOKUP($Y158&AA$147,'rangos nal'!$AH$355:$AT$464,$Y$147,FALSE) -> 0 | AB158: =+VLOOKUP($Y158&AB$147,'rangos nal'!$AH$355:$AT$464,$Y$147,FALSE) -> 0 | AC158: =+VLOOKUP($Y158&AC$147,'rangos nal'!$AH$355:$AT$464,$Y$147,FALSE) -> 0 | AD158: =+VLOOKUP($Y158&AD$147,'rangos nal'!$AH$355:$AT$464,$Y$147,FALSE) -> 0 | AE158: 3 | AG158: A3 | AH158: =+VLOOKUP($Y158&AH$147,'rangos nal'!$AX$464:$BJ$573,$Y$147,FALSE) -> 1 | AI158: =+VLOOKUP($Y158&AI$147,'rangos nal'!$AX$464:$BJ$573,$Y$147,FALSE) -> 0 | AJ158: =+VLOOKUP($Y158&AJ$147,'rangos nal'!$AX$464:$BJ$573,$Y$147,FALSE) -> 1 | AK158: =+VLOOKUP($Y158&AK$147,'rangos nal'!$AX$464:$BJ$573,$Y$147,FALSE) -> 0 | AL158: =+VLOOKUP($Y158&AL$147,'rangos nal'!$AX$464:$BJ$573,$Y$147,FALSE) -> 10 | AM158: 12 | AP158: A3 | AQ158: 4 | AR158: 0 | AS158: 1 | AT158: 0 | AU158: 10 | AV158: 15
L159: A5 | M159: Administrativa | O159: =+VLOOKUP(L159,'td areas'!$B$54:$AM$75,$O$147,FALSE) -> 0.5369352809 | Q159: =+VLOOKUP(L159,'td areas'!$B$2:$AM$24,$O$147,FALSE) -> 0.7667227699 | R159: =+VLOOKUP(L159,'td areas'!$B$27:$AM$50,$O$147,FALSE) -> 0.4115114236 | Y159: A4 | Z159: =+VLOOKUP($Y159&Z$147,'rangos nal'!$AH$355:$AT$464,$Y$147,FALSE) -> 1 | AA159: =+VLOOKUP($Y159&AA$147,'rangos nal'!$AH$355:$AT$464,$Y$147,FALSE) -> 1 | AB159: =+VLOOKUP($Y159&AB$147,'rangos nal'!$AH$355:$AT$464,$Y$147,FALSE) -> 1 | AC159: =+VLOOKUP($Y159&AC$147,'rangos nal'!$AH$355:$AT$464,$Y$147,FALSE) -> 1 | AD159: =+VLOOKUP($Y159&AD$147,'rangos nal'!$AH$355:$AT$464,$Y$147,FALSE) -> 0 | AE159: 4 | AG159: A4 | AH159: =+VLOOKUP($Y159&AH$147,'rangos nal'!$AX$464:$BJ$573,$Y$147,FALSE) -> 1 | AI159: =+VLOOKUP($Y159&AI$147,'rangos nal'!$AX$464:$BJ$573,$Y$147,FALSE) -> 0 | AJ159: =+VLOOKUP($Y159&AJ$147,'rangos nal'!$AX$464:$BJ$573,$Y$147,FALSE) -> 0 | AK159: =+VLOOKUP($Y159&AK$147,'rangos nal'!$AX$464:$BJ$573,$Y$147,FALSE) -> 3 | AL159: =+VLOOKUP($Y159&AL$147,'rangos nal'!$AX$464:$BJ$573,$Y$147,FALSE) -> 8 | AM159: 12 | AP159: A4 | AQ159: 2 | AR159: 1 | AS159: 1 | AT159: 4 | AU159: 8 | AV159: 16
L160: A6 | M160: Contratación | O160: =+VLOOKUP(L160,'td areas'!$B$54:$AM$75,$O$147,FALSE) -> 0.5180586907 | Q160: =+VLOOKUP(L160,'td areas'!$B$2:$AM$24,$O$147,FALSE) ->  | R160: =+VLOOKUP(L160,'td areas'!$B$27:$AM$50,$O$147,FALSE) -> 0.5180586907 | Y160: A5 | Z160: =+VLOOKUP($Y160&Z$147,'rangos nal'!$AH$355:$AT$464,$Y$147,FALSE) -> 2 | AA160: =+VLOOKUP($Y160&AA$147,'rangos nal'!$AH$355:$AT$464,$Y$147,FALSE) -> 0 | AB160: =+VLOOKUP($Y160&AB$147,'rangos nal'!$AH$355:$AT$464,$Y$147,FALSE) -> 0 | AC160: =+VLOOKUP($Y160&AC$147,'rangos nal'!$AH$355:$AT$464,$Y$147,FALSE) -> 1 | AD160: =+VLOOKUP($Y160&AD$147,'rangos nal'!$AH$355:$AT$464,$Y$147,FALSE) -> 7 | AE160: 10 | AG160: A5 | AH160: =+VLOOKUP($Y160&AH$147,'rangos nal'!$AX$464:$BJ$573,$Y$147,FALSE) -> 1 | AI160: =+VLOOKUP($Y160&AI$147,'rangos nal'!$AX$464:$BJ$573,$Y$147,FALSE) -> 0 | AJ160: =+VLOOKUP($Y160&AJ$147,'rangos nal'!$AX$464:$BJ$573,$Y$147,FALSE) -> 0 | AK160: =+VLOOKUP($Y160&AK$147,'rangos nal'!$AX$464:$BJ$573,$Y$147,FALSE) -> 6 | AL160: =+VLOOKUP($Y160&AL$147,'rangos nal'!$AX$464:$BJ$573,$Y$147,FALSE) -> 5 | AM160: 12 | AP160: A5 | AQ160: 3 | AR160: 0 | AS160: 0 | AT160: 7 | AU160: 12 | AV160: 22
L161: A7 | M161: Jurídica | O161: =+VLOOKUP(L161,'td areas'!$B$54:$AM$75,$O$147,FALSE) -> 0.9004080021 | Q161: =+VLOOKUP(L161,'td areas'!$B$2:$AM$24,$O$147,FALSE) -> 1 | R161: =+VLOOKUP(L161,'td areas'!$B$27:$AM$50,$O$147,FALSE) -> 0.8838882922 | Y161: A6 | Z161: =+VLOOKUP($Y161&Z$147,'rangos nal'!$AH$355:$AT$464,$Y$147,FALSE) -> 0 | AA161: =+VLOOKUP($Y161&AA$147,'rangos nal'!$AH$355:$AT$464,$Y$147,FALSE) -> 0 | AB161: =+VLOOKUP($Y161&AB$147,'rangos nal'!$AH$355:$AT$464,$Y$147,FALSE) -> 0 | AC161: =+VLOOKUP($Y161&AC$147,'rangos nal'!$AH$355:$AT$464,$Y$147,FALSE) -> 0 | AD161: =+VLOOKUP($Y161&AD$147,'rangos nal'!$AH$355:$AT$464,$Y$147,FALSE) -> 2 | AE161: 2 | AG161: A6 | AH161: =+VLOOKUP($Y161&AH$147,'rangos nal'!$AX$464:$BJ$573,$Y$147,FALSE) -> 0 | AI161: =+VLOOKUP($Y161&AI$147,'rangos nal'!$AX$464:$BJ$573,$Y$147,FALSE) -> 1 | AJ161: =+VLOOKUP($Y161&AJ$147,'rangos nal'!$AX$464:$BJ$573,$Y$147,FALSE) -> 0 | AK161: =+VLOOKUP($Y161&AK$147,'rangos nal'!$AX$464:$BJ$573,$Y$147,FALSE) -> 2 | AL161: =+VLOOKUP($Y161&AL$147,'rangos nal'!$AX$464:$BJ$573,$Y$147,FALSE) -> 9 | AM161: 12 | AP161: A6 | AQ161: 0 | AR161: 1 | AS161: 0 | AT161: 2 | AU161: 11 | AV161: 14
L162: A8 | M162: Gestión Regional | O162: =+VLOOKUP(L162,'td areas'!$B$54:$AM$75,$O$147,FALSE) -> 0.3 | Q162: =+VLOOKUP(L162,'td areas'!$B$2:$AM$24,$O$147,FALSE) ->  | R162: =+VLOOKUP(L162,'td areas'!$B$27:$AM$50,$O$147,FALSE) -> 0.3 | Y162: A7 | Z162: =+VLOOKUP($Y162&Z$147,'rangos nal'!$AH$355:$AT$464,$Y$147,FALSE) -> 2 | AA162: =+VLOOKUP($Y162&AA$147,'rangos nal'!$AH$355:$AT$464,$Y$147,FALSE) -> 0 | AB162: =+VLOOKUP($Y162&AB$147,'rangos nal'!$AH$355:$AT$464,$Y$147,FALSE) -> 0 | AC162: =+VLOOKUP($Y162&AC$147,'rangos nal'!$AH$355:$AT$464,$Y$147,FALSE) -> 0 | AD162: =+VLOOKUP($Y162&AD$147,'rangos nal'!$AH$355:$AT$464,$Y$147,FALSE) -> 2 | AE162: 4 | AG162: A7 | AH162: =+VLOOKUP($Y162&AH$147,'rangos nal'!$AX$464:$BJ$573,$Y$147,FALSE) -> 4 | AI162: =+VLOOKUP($Y162&AI$147,'rangos nal'!$AX$464:$BJ$573,$Y$147,FALSE) -> 0 | AJ162: =+VLOOKUP($Y162&AJ$147,'rangos nal'!$AX$464:$BJ$573,$Y$147,FALSE) -> 0 | AK162: =+VLOOKUP($Y162&AK$147,'rangos nal'!$AX$464:$BJ$573,$Y$147,FALSE) -> 2 | AL162: =+VLOOKUP($Y162&AL$147,'rangos nal'!$AX$464:$BJ$573,$Y$147,FALSE) -> 6 | AM162: 12 | AP162: A7 | AQ162: 6 | AR162: 0 | AS162: 0 | AT162: 2 | AU162: 8 | AV162: 16
L163: A9 | M163: Cooperación y Convenios | O163: =+VLOOKUP(L163,'td areas'!$B$54:$AM$75,$O$147,FALSE) -> 1 | Q163: =+VLOOKUP(L163,'td areas'!$B$2:$AM$24,$O$147,FALSE) -> 1 | R163: =+VLOOKUP(L163,'td areas'!$B$27:$AM$50,$O$147,FALSE) -> 1 | Y163: A8 | Z163: =+VLOOKUP($Y163&Z$147,'rangos nal'!$AH$355:$AT$464,$Y$147,FALSE) -> 0 | AA163: =+VLOOKUP($Y163&AA$147,'rangos nal'!$AH$355:$AT$464,$Y$147,FALSE) -> 0 | AB163: =+VLOOKUP($Y163&AB$147,'rangos nal'!$AH$355:$AT$464,$Y$147,FALSE) -> 0 | AC163: =+VLOOKUP($Y163&AC$147,'rangos nal'!$AH$355:$AT$464,$Y$147,FALSE) -> 0 | AD163: =+VLOOKUP($Y163&AD$147,'rangos nal'!$AH$355:$AT$464,$Y$147,FALSE) -> 2 | AE163: 2 | AG163: A8 | AH163: =+VLOOKUP($Y163&AH$147,'rangos nal'!$AX$464:$BJ$573,$Y$147,FALSE) -> 0 | AI163: =+VLOOKUP($Y163&AI$147,'rangos nal'!$AX$464:$BJ$573,$Y$147,FALSE) -> 0 | AJ163: =+VLOOKUP($Y163&AJ$147,'rangos nal'!$AX$464:$BJ$573,$Y$147,FALSE) -> 0 | AK163: =+VLOOKUP($Y163&AK$147,'rangos nal'!$AX$464:$BJ$573,$Y$147,FALSE) -> 1 | AL163: =+VLOOKUP($Y163&AL$147,'rangos nal'!$AX$464:$BJ$573,$Y$147,FALSE) -> 11 | AM163: 12 | AP163: A8 | AQ163: 0 | AR163: 0 | AS163: 0 | AT163: 1 | AU163: 13 | AV163: 14
L164: A10 | M164: Servicios y Atención | O164: =+VLOOKUP(L164,'td areas'!$B$54:$AM$75,$O$147,FALSE) -> 0.8801018505 | Q164: =+VLOOKUP(L164,'td areas'!$B$2:$AM$24,$O$147,FALSE) -> 0.9243652989 | R164: =+VLOOKUP(L164,'td areas'!$B$27:$AM$50,$O$147,FALSE) -> 0.8174637957 | Y164: A9 | Z164: =+VLOOKUP($Y164&Z$147,'rangos nal'!$AH$355:$AT$464,$Y$147,FALSE) -> 3 | AA164: =+VLOOKUP($Y164&AA$147,'rangos nal'!$AH$355:$AT$464,$Y$147,FALSE) -> 0 | AB164: =+VLOOKUP($Y164&AB$147,'rangos nal'!$AH$355:$AT$464,$Y$147,FALSE) -> 0 | AC164: =+VLOOKUP($Y164&AC$147,'rangos nal'!$AH$355:$AT$464,$Y$147,FALSE) -> 0 | AD164: =+VLOOKUP($Y164&AD$147,'rangos nal'!$AH$355:$AT$464,$Y$147,FALSE) -> 1 | AE164: 4 | AG164: A9 | AH164: =+VLOOKUP($Y164&AH$147,'rangos nal'!$AX$464:$BJ$573,$Y$147,FALSE) -> 1 | AI164: =+VLOOKUP($Y164&AI$147,'rangos nal'!$AX$464:$BJ$573,$Y$147,FALSE) -> 0 | AJ164: =+VLOOKUP($Y164&AJ$147,'rangos nal'!$AX$464:$BJ$573,$Y$147,FALSE) -> 0 | AK164: =+VLOOKUP($Y164&AK$147,'rangos nal'!$AX$464:$BJ$573,$Y$147,FALSE) -> 0 | AL164: =+VLOOKUP($Y164&AL$147,'rangos nal'!$AX$464:$BJ$573,$Y$147,FALSE) -> 11 | AM164: 12 | AP164: A9 | AQ164: 4 | AR164: 0 | AS164: 0 | AT164: 0 | AU164: 12 | AV164: 16
L165: A11 | M165: Información y Tecnología | O165: =+VLOOKUP(L165,'td areas'!$B$54:$AM$75,$O$147,FALSE) -> 0.7872097329 | Q165: =+VLOOKUP(L165,'td areas'!$B$2:$AM$24,$O$147,FALSE) -> 1 | R165: =+VLOOKUP(L165,'td areas'!$B$27:$AM$50,$O$147,FALSE) -> 0.5163655368 | Y165: A10 | Z165: =+VLOOKUP($Y165&Z$147,'rangos nal'!$AH$355:$AT$464,$Y$147,FALSE) -> 2 | AA165: =+VLOOKUP($Y165&AA$147,'rangos nal'!$AH$355:$AT$464,$Y$147,FALSE) -> 4 | AB165: =+VLOOKUP($Y165&AB$147,'rangos nal'!$AH$355:$AT$464,$Y$147,FALSE) -> 0 | AC165: =+VLOOKUP($Y165&AC$147,'rangos nal'!$AH$355:$AT$464,$Y$147,FALSE) -> 0 | AD165: =+VLOOKUP($Y165&AD$147,'rangos nal'!$AH$355:$AT$464,$Y$147,FALSE) -> 2 | AE165: 8 | AG165: A10 | AH165: =+VLOOKUP($Y165&AH$147,'rangos nal'!$AX$464:$BJ$573,$Y$147,FALSE) -> 3 | AI165: =+VLOOKUP($Y165&AI$147,'rangos nal'!$AX$464:$BJ$573,$Y$147,FALSE) -> 0 | AJ165: =+VLOOKUP($Y165&AJ$147,'rangos nal'!$AX$464:$BJ$573,$Y$147,FALSE) -> 1 | AK165: =+VLOOKUP($Y165&AK$147,'rangos nal'!$AX$464:$BJ$573,$Y$147,FALSE) -> 1 | AL165: =+VLOOKUP($Y165&AL$147,'rangos nal'!$AX$464:$BJ$573,$Y$147,FALSE) -> 7 | AM165: 12 | AP165: A10 | AQ165: 5 | AR165: 4 | AS165: 1 | AT165: 1 | AU165: 9 | AV165: 20
L166: A12 | M166: Comunicaciones | O166: =+VLOOKUP(L166,'td areas'!$B$54:$AM$75,$O$147,FALSE) -> 0.6295163189 | Q166: =+VLOOKUP(L166,'td areas'!$B$2:$AM$24,$O$147,FALSE) -> 0.5259615385 | R166: =+VLOOKUP(L166,'td areas'!$B$27:$AM$50,$O$147,FALSE) -> 0.7453696646 | Y166: A11 | Z166: =+VLOOKUP($Y166&Z$147,'rangos nal'!$AH$355:$AT$464,$Y$147,FALSE) -> 5 | AA166: =+VLOOKUP($Y166&AA$147,'rangos nal'!$AH$355:$AT$464,$Y$147,FALSE) -> 0 | AB166: =+VLOOKUP($Y166&AB$147,'rangos nal'!$AH$355:$AT$464,$Y$147,FALSE) -> 0 | AC166: =+VLOOKUP($Y166&AC$147,'rangos nal'!$AH$355:$AT$464,$Y$147,FALSE) -> 0 | AD166: =+VLOOKUP($Y166&AD$147,'rangos nal'!$AH$355:$AT$464,$Y$147,FALSE) -> 0 | AE166: 5 | AG166: A11 | AH166: =+VLOOKUP($Y166&AH$147,'rangos nal'!$AX$464:$BJ$573,$Y$147,FALSE) -> 1 | AI166: =+VLOOKUP($Y166&AI$147,'rangos nal'!$AX$464:$BJ$573,$Y$147,FALSE) -> 0 | AJ166: =+VLOOKUP($Y166&AJ$147,'rangos nal'!$AX$464:$BJ$573,$Y$147,FALSE) -> 1 | AK166: =+VLOOKUP($Y166&AK$147,'rangos nal'!$AX$464:$BJ$573,$Y$147,FALSE) -> 4 | AL166: =+VLOOKUP($Y166&AL$147,'rangos nal'!$AX$464:$BJ$573,$Y$147,FALSE) -> 6 | AM166: 12 | AP166: A11 | AQ166: 6 | AR166: 0 | AS166: 1 | AT166: 4 | AU166: 6 | AV166: 17
L167: A13 | M167: Planeación y Control de Gestión | O167: =+VLOOKUP(L167,'td areas'!$B$54:$AM$75,$O$147,FALSE) -> 0.8112286015 | Q167: =+VLOOKUP(L167,'td areas'!$B$2:$AM$24,$O$147,FALSE) -> 0.9709918382 | R167: =+VLOOKUP(L167,'td areas'!$B$27:$AM$50,$O$147,FALSE) -> 0.4692644817 | Y167: A12 | Z167: =+VLOOKUP($Y167&Z$147,'rangos nal'!$AH$355:$AT$464,$Y$147,FALSE) -> 0 | AA167: =+VLOOKUP($Y167&AA$147,'rangos nal'!$AH$355:$AT$464,$Y$147,FALSE) -> 1 | AB167: =+VLOOKUP($Y167&AB$147,'rangos nal'!$AH$355:$AT$464,$Y$147,FALSE) -> 0 | AC167: =+VLOOKUP($Y167&AC$147,'rangos nal'!$AH$355:$AT$464,$Y$147,FALSE) -> 2 | AD167: =+VLOOKUP($Y167&AD$147,'rangos nal'!$AH$355:$AT$464,$Y$147,FALSE) -> 0 | AE167: 3 | AG167: A12 | AH167: =+VLOOKUP($Y167&AH$147,'rangos nal'!$AX$464:$BJ$573,$Y$147,FALSE) -> 2 | AI167: =+VLOOKUP($Y167&AI$147,'rangos nal'!$AX$464:$BJ$573,$Y$147,FALSE) -> 0 | AJ167: =+VLOOKUP($Y167&AJ$147,'rangos nal'!$AX$464:$BJ$573,$Y$147,FALSE) -> 1 | AK167: =+VLOOKUP($Y167&AK$147,'rangos nal'!$AX$464:$BJ$573,$Y$147,FALSE) -> 2 | AL167: =+VLOOKUP($Y167&AL$147,'rangos nal'!$AX$464:$BJ$573,$Y$147,FALSE) -> 7 | AM167: 12 | AP167: A12 | AQ167: 2 | AR167: 1 | AS167: 1 | AT167: 4 | AU167: 7 | AV167: 15
L168: A14 | M168: SNBF | O168: =+VLOOKUP(L168,'td areas'!$B$54:$AM$75,$O$147,FALSE) -> 0.6385325132 | Q168: =+VLOOKUP(L168,'td areas'!$B$2:$AM$24,$O$147,FALSE) -> 1 | R168: =+VLOOKUP(L168,'td areas'!$B$27:$AM$50,$O$147,FALSE) -> 0.5581632653 | Y168: A13 | Z168: =+VLOOKUP($Y168&Z$147,'rangos nal'!$AH$355:$AT$464,$Y$147,FALSE) -> 5 | AA168: =+VLOOKUP($Y168&AA$147,'rangos nal'!$AH$355:$AT$464,$Y$147,FALSE) -> 3 | AB168: =+VLOOKUP($Y168&AB$147,'rangos nal'!$AH$355:$AT$464,$Y$147,FALSE) -> 0 | AC168: =+VLOOKUP($Y168&AC$147,'rangos nal'!$AH$355:$AT$464,$Y$147,FALSE) -> 0 | AD168: =+VLOOKUP($Y168&AD$147,'rangos nal'!$AH$355:$AT$464,$Y$147,FALSE) -> 10 | AE168: 18 | AG168: A13 | AH168: =+VLOOKUP($Y168&AH$147,'rangos nal'!$AX$464:$BJ$573,$Y$147,FALSE) -> 1 | AI168: =+VLOOKUP($Y168&AI$147,'rangos nal'!$AX$464:$BJ$573,$Y$147,FALSE) -> 0 | AJ168: =+VLOOKUP($Y168&AJ$147,'rangos nal'!$AX$464:$BJ$573,$Y$147,FALSE) -> 0 | AK168: =+VLOOKUP($Y168&AK$147,'rangos nal'!$AX$464:$BJ$573,$Y$147,FALSE) -> 4 | AL168: =+VLOOKUP($Y168&AL$147,'rangos nal'!$AX$464:$BJ$573,$Y$147,FALSE) -> 7 | AM168: 12 | AP168: A13 | AQ168: 6 | AR168: 3 | AS168: 0 | AT168: 4 | AU168: 17 | AV168: 30
L169: A15 | M169: Control Interno | O169: =+VLOOKUP(L169,'td areas'!$B$54:$AM$75,$O$147,FALSE) -> 0.8666666667 | Q169: =+VLOOKUP(L169,'td areas'!$B$2:$AM$24,$O$147,FALSE) -> 0.8666666667 | R169: =+VLOOKUP(L169,'td areas'!$B$27:$AM$50,$O$147,FALSE) ->  | Y169: A14 | Z169: =+VLOOKUP($Y169&Z$147,'rangos nal'!$AH$355:$AT$464,$Y$147,FALSE) -> 1 | AA169: =+VLOOKUP($Y169&AA$147,'rangos nal'!$AH$355:$AT$464,$Y$147,FALSE) -> 0 | AB169: =+VLOOKUP($Y169&AB$147,'rangos nal'!$AH$355:$AT$464,$Y$147,FALSE) -> 0 | AC169: =+VLOOKUP($Y169&AC$147,'rangos nal'!$AH$355:$AT$464,$Y$147,FALSE) -> 0 | AD169: =+VLOOKUP($Y169&AD$147,'rangos nal'!$AH$355:$AT$464,$Y$147,FALSE) -> 5 | AE169: 6 | AG169: A14 | AH169: =+VLOOKUP($Y169&AH$147,'rangos nal'!$AX$464:$BJ$573,$Y$147,FALSE) -> 1 | AI169: =+VLOOKUP($Y169&AI$147,'rangos nal'!$AX$464:$BJ$573,$Y$147,FALSE) -> 1 | AJ169: =+VLOOKUP($Y169&AJ$147,'rangos nal'!$AX$464:$BJ$573,$Y$147,FALSE) -> 1 | AK169: =+VLOOKUP($Y169&AK$147,'rangos nal'!$AX$464:$BJ$573,$Y$147,FALSE) -> 3 | AL169: =+VLOOKUP($Y169&AL$147,'rangos nal'!$AX$464:$BJ$573,$Y$147,FALSE) -> 6 | AM169: 12 | AP169: A14 | AQ169: 2 | AR169: 1 | AS169: 1 | AT169: 3 | AU169: 11 | AV169: 18
L170: A16 | M170: Aseguramiento a la Calidad | O170: =+VLOOKUP(L170,'td areas'!$B$54:$AM$75,$O$147,FALSE) -> 0.9774038462 | Q170: =+VLOOKUP(L170,'td areas'!$B$2:$AM$24,$O$147,FALSE) -> 1 | R170: =+VLOOKUP(L170,'td areas'!$B$27:$AM$50,$O$147,FALSE) -> 0.9533112583 | Y170: A15 | Z170: =+VLOOKUP($Y170&Z$147,'rangos nal'!$AH$355:$AT$464,$Y$147,FALSE) -> 2 | AA170: =+VLOOKUP($Y170&AA$147,'rangos nal'!$AH$355:$AT$464,$Y$147,FALSE) -> 0 | AB170: =+VLOOKUP($Y170&AB$147,'rangos nal'!$AH$355:$AT$464,$Y$147,FALSE) -> 1 | AC170: =+VLOOKUP($Y170&AC$147,'rangos nal'!$AH$355:$AT$464,$Y$147,FALSE) -> 0 | AD170: =+VLOOKUP($Y170&AD$147,'rangos nal'!$AH$355:$AT$464,$Y$147,FALSE) -> 1 | AE170: 4 | AG170: A15 | AH170: =+VLOOKUP($Y170&AH$147,'rangos nal'!$AX$464:$BJ$573,$Y$147,FALSE) -> 0 | AI170: =+VLOOKUP($Y170&AI$147,'rangos nal'!$AX$464:$BJ$573,$Y$147,FALSE) -> 0 | AJ170: =+VLOOKUP($Y170&AJ$147,'rangos nal'!$AX$464:$BJ$573,$Y$147,FALSE) -> 0 | AK170: =+VLOOKUP($Y170&AK$147,'rangos nal'!$AX$464:$BJ$573,$Y$147,FALSE) -> 0 | AL170: =+VLOOKUP($Y170&AL$147,'rangos nal'!$AX$464:$BJ$573,$Y$147,FALSE) -> 12 | AM170: 12 | AP170: A15 | AQ170: 2 | AR170: 0 | AS170: 1 | AT170: 0 | AU170: 13 | AV170: 16
L171: A17 | M171: Subdirección General | O171: =+VLOOKUP(L171,'td areas'!$B$54:$AM$75,$O$147,FALSE) -> 0.3 | Q171: =+VLOOKUP(L171,'td areas'!$B$2:$AM$24,$O$147,FALSE) -> 0.3 | R171: =+VLOOKUP(L171,'td areas'!$B$27:$AM$50,$O$147,FALSE) -> 0.3 | Y171: A16 | Z171: =+VLOOKUP($Y171&Z$147,'rangos nal'!$AH$355:$AT$464,$Y$147,FALSE) -> 2 | AA171: =+VLOOKUP($Y171&AA$147,'rangos nal'!$AH$355:$AT$464,$Y$147,FALSE) -> 0 | AB171: =+VLOOKUP($Y171&AB$147,'rangos nal'!$AH$355:$AT$464,$Y$147,FALSE) -> 0 | AC171: =+VLOOKUP($Y171&AC$147,'rangos nal'!$AH$355:$AT$464,$Y$147,FALSE) -> 0 | AD171: =+VLOOKUP($Y171&AD$147,'rangos nal'!$AH$355:$AT$464,$Y$147,FALSE) -> 1 | AE171: 3 | AG171: A16 | AH171: =+VLOOKUP($Y171&AH$147,'rangos nal'!$AX$464:$BJ$573,$Y$147,FALSE) -> 1 | AI171: =+VLOOKUP($Y171&AI$147,'rangos nal'!$AX$464:$BJ$573,$Y$147,FALSE) -> 1 | AJ171: =+VLOOKUP($Y171&AJ$147,'rangos nal'!$AX$464:$BJ$573,$Y$147,FALSE) -> 0 | AK171: =+VLOOKUP($Y171&AK$147,'rangos nal'!$AX$464:$BJ$573,$Y$147,FALSE) -> 0 | AL171: =+VLOOKUP($Y171&AL$147,'rangos nal'!$AX$464:$BJ$573,$Y$147,FALSE) -> 10 | AM171: 12 | AP171: A16 | AQ171: 3 | AR171: 1 | AS171: 0 | AT171: 0 | AU171: 11 | AV171: 15
Y172: A17 | Z172: =+VLOOKUP($Y172&Z$147,'rangos nal'!$AH$355:$AT$464,$Y$147,FALSE) -> 0 | AA172: =+VLOOKUP($Y172&AA$147,'rangos nal'!$AH$355:$AT$464,$Y$147,FALSE) -> 0 | AB172: =+VLOOKUP($Y172&AB$147,'rangos nal'!$AH$355:$AT$464,$Y$147,FALSE) -> 0 | AC172: =+VLOOKUP($Y172&AC$147,'rangos nal'!$AH$355:$AT$464,$Y$147,FALSE) -> 1 | AD172: =+VLOOKUP($Y172&AD$147,'rangos nal'!$AH$355:$AT$464,$Y$147,FALSE) -> 0 | AE172: 1 | AG172: A17 | AH172: =+VLOOKUP($Y172&AH$147,'rangos nal'!$AX$464:$BJ$573,$Y$147,FALSE) -> 0 | AI172: =+VLOOKUP($Y172&AI$147,'rangos nal'!$AX$464:$BJ$573,$Y$147,FALSE) -> 0 | AJ172: =+VLOOKUP($Y172&AJ$147,'rangos nal'!$AX$464:$BJ$573,$Y$147,FALSE) -> 0 | AK172: =+VLOOKUP($Y172&AK$147,'rangos nal'!$AX$464:$BJ$573,$Y$147,FALSE) -> 1 | AL172: =+VLOOKUP($Y172&AL$147,'rangos nal'!$AX$464:$BJ$573,$Y$147,FALSE) -> 11 | AM172: 12 | AP172: A17 | AQ172: 0 | AR172: 0 | AS172: 0 | AT172: 2 | AU172: 11 | AV172: 13
X173: Total | Y173: Total | Z173: =+Z149+Z155 -> 44 | AA173: =+AA149+AA155 -> 20 | AB173: =+AB149+AB155 -> 3 | AC173: =+AC149+AC155 -> 9 | AD173: =+AD149+AD155 -> 79 | AE173: 155
Z174: =+Z173/$AE$173 -> 0.2838709677 | AA174: =+AA173/$AE$173 -> 0.1290322581 | AB174: =+AB173/$AE$173 -> 0.01935483871 | AC174: =+AC173/$AE$173 -> 0.05806451613 | AD174: =+AD173/$AE$173 -> 0.5096774194
X175: =+"Corte "&$C$5 -> Corte Marzo
B181: Sistema Integrado de Gestión - Objetivos SIGE
O182: SIGE1 | Q182: Ampliar cobertura y mejorar calidad en la atención integral a la Primera Infancia.
O183: SIGE2 | Q183: Promover los derechos de los NNA y prevenir los riesgos o amenazas de vulneración de los mismos
O184: SIGE3 | Q184: Fortalecer en las familias y comunidades, capacidades que promuevan su desarrollo, fortalezcan sus vínculos de cuidado mutuo y prevengan la violencia intrafamiliar y de género.
O186: SIGE4 | Q186: Promover la seguridad alimentaria y nutricional en el desarrollo de la primera infancia, los NNA y la familia.
O187: SIGE5 | Q187: Garantizar la protección integral de los NNA en coordinación con las instancias del SNBF.
O188: SIGE6 | Q188: Lograr una adecuada y eficiente gestión institucional a través de la articulación entre servidores, áreas y niveles territoriales; el apoyo administrativo a los procesos misionales, la apropiación de una cultura de la evaluación y la optimización del uso de los recursos
O190: SIGE7 | Q190: Promover condiciones laborales que hagan del ICBF el mejor lugar para trabajar.
O191: SIGE8 | Q191: Reducir los impactos ambientales generados por nuestra actividad.
O192: SIGE9 | Q192: Impulsar una cultura de gestión de la calidad y el mejoramiento continuo.
O193: SIGE10 | Q193: Gestionar el conocimiento institucional, con sistemas de información confiables, integrados y disponibles.
T195: Objetivos SIGE

Sheet plan de acción
V1: Nal | W1: Reg
B2: TABLERO DE CONTROL 2016 INSTITUTO COLOMBIANO DE BIENESTAR FAMILIAR ICBF SEGUIMIENTO PLAN DE ACCIÓN - ANÁLISIS GENERAL | V2: =+VLOOKUP($D5,referencias!$A$1:$C$12,3,FALSE) -> 30 | W2: =+VLOOKUP($D5,referencias!$A$1:$C$12,2,FALSE) -> 31
B5: Mes de analisis | D5: =+Menu!C7 -> Marzo | Q5: Volver al menú
X6: Comportamiento regional Plan de Acción
X7: Enero | Y7: Febrero | Z7: Marzo | AA7: Abril | AB7: Mayo | AC7: Junio | AD7: Julio | AE7: Agosto | AF7: Septiembre | AG7: Octubre | AH7: Noviembre | AI7: Diciembre
C8: Plan de Acción | I8: Gestión misional y de gobierno | L8: Transparencia, participación y servicio al ciudadano | P8: Ranking regional | V8: Pacífico | W8: Cauca | X8: =+'info graficas'!C28 -> 0.9043743642 | Y8: =+'info graficas'!D28 -> 0.9326366803 | Z8: =+'info graficas'!E28 -> 0.9615767911 | AA8: =+'info graficas'!F28 ->  | AB8: =+'info graficas'!G28 ->  | AC8: =+'info graficas'!H28 ->  | AD8: =+'info graficas'!I28 ->  | AE8: =+'info graficas'!J28 ->  | AF8: =+'info graficas'!K28 ->  | AG8: =+'info graficas'!L28 ->  | AH8: =+'info graficas'!M28 ->  | AI8: =+'info graficas'!N28 -> 
W9: Choco | X9: =+'info graficas'!C29 -> 1 | Y9: =+'info graficas'!D29 -> 0.8775252094 | Z9: =+'info graficas'!E29 -> 0.8505239852 | AA9: =+'info graficas'!F29 ->  | AB9: =+'info graficas'!G29 ->  | AC9: =+'info graficas'!H29 ->  | AD9: =+'info graficas'!I29 ->  | AE9: =+'info graficas'!J29 ->  | AF9: =+'info graficas'!K29 ->  | AG9: =+'info graficas'!L29 ->  | AH9: =+'info graficas'!M29 ->  | AI9: =+'info graficas'!N29 -> 
W10: Nariño | X10: =+'info graficas'!C30 -> 0.9821885362 | Y10: =+'info graficas'!D30 -> 0.9396334999 | Z10: =+'info graficas'!E30 -> 0.8841324327 | AA10: =+'info graficas'!F30 ->  | AB10: =+'info graficas'!G30 ->  | AC10: =+'info graficas'!H30 ->  | AD10: =+'info graficas'!I30 ->  | AE10: =+'info graficas'!J30 ->  | AF10: =+'info graficas'!K30 ->  | AG10: =+'info graficas'!L30 ->  | AH10: =+'info graficas'!M30 ->  | AI10: =+'info graficas'!N30 -> 
W11: Valle | X11: =+'info graficas'!C31 -> 0.9465656087 | Y11: =+'info graficas'!D31 -> 0.914251098 | Z11: =+'info graficas'!E31 -> 0.951345366 | AA11: =+'info graficas'!F31 ->  | AB11: =+'info graficas'!G31 ->  | AC11: =+'info graficas'!H31 ->  | AD11: =+'info graficas'!I31 ->  | AE11: =+'info graficas'!J31 ->  | AF11: =+'info graficas'!K31 ->  | AG11: =+'info graficas'!L31 ->  | AH11: =+'info graficas'!M31 ->  | AI11: =+'info graficas'!N31 -> 
V12: Centro Sur | W12: Caquetá | X12: =+'info graficas'!C33 -> 1 | Y12: =+'info graficas'!D33 -> 0.9930031804 | Z12: =+'info graficas'!E33 -> 0.9666925036 | AA12: =+'info graficas'!F33 ->  | AB12: =+'info graficas'!G33 ->  | AC12: =+'info graficas'!H33 ->  | AD12: =+'info graficas'!I33 ->  | AE12: =+'info graficas'!J33 ->  | AF12: =+'info graficas'!K33 ->  | AG12: =+'info graficas'!L33 ->  | AH12: =+'info graficas'!M33 ->  | AI12: =+'info graficas'!N33 -> 
W13: Huila | X13: =+'info graficas'!C34 -> 0.9783285303 | Y13: =+'info graficas'!D34 -> 0.9536271392 | Z13: =+'info graficas'!E34 -> 0.9161333186 | AA13: =+'info graficas'!F34 ->  | AB13: =+'info graficas'!G34 ->  | AC13: =+'info graficas'!H34 ->  | AD13: =+'info graficas'!I34 ->  | AE13: =+'info graficas'!J34 ->  | AF13: =+'info graficas'!K34 ->  | AG13: =+'info graficas'!L34 ->  | AH13: =+'info graficas'!M34 ->  | AI13: =+'info graficas'!N34 -> 
W14: Tolima | X14: =+'info graficas'!C35 -> 0.885249237 | Y14: =+'info graficas'!D35 -> 0.9080720884 | Z14: =+'info graficas'!E35 -> 0.8457092238 | AA14: =+'info graficas'!F35 ->  | AB14: =+'info graficas'!G35 ->  | AC14: =+'info graficas'!H35 ->  | AD14: =+'info graficas'!I35 ->  | AE14: =+'info graficas'!J35 ->  | AF14: =+'info graficas'!K35 ->  | AG14: =+'info graficas'!L35 ->  | AH14: =+'info graficas'!M35 ->  | AI14: =+'info graficas'!N35 -> 
W15: Putumayo | X15: =+'info graficas'!C36 -> 1 | Y15: =+'info graficas'!D36 -> 0.9930031804 | Z15: =+'info graficas'!E36 -> 0.9308370576 | AA15: =+'info graficas'!F36 ->  | AB15: =+'info graficas'!G36 ->  | AC15: =+'info graficas'!H36 ->  | AD15: =+'info graficas'!I36 ->  | AE15: =+'info graficas'!J36 ->  | AF15: =+'info graficas'!K36 ->  | AG15: =+'info graficas'!L36 ->  | AH15: =+'info graficas'!M36 ->  | AI15: =+'info graficas'!N36 -> 
W16: Amazonas | X16: =+'info graficas'!C37 -> 0.6956585725 | Y16: =+'info graficas'!D37 -> 0.7954537686 | Z16: =+'info graficas'!E37 -> 0.8076433121 | AA16: =+'info graficas'!F37 ->  | AB16: =+'info graficas'!G37 ->  | AC16: =+'info graficas'!H37 ->  | AD16: =+'info graficas'!I37 ->  | AE16: =+'info graficas'!J37 ->  | AF16: =+'info graficas'!K37 ->  | AG16: =+'info graficas'!L37 ->  | AH16: =+'info graficas'!M37 ->  | AI16: =+'info graficas'!N37 -> 
V17: Llanos | W17: Meta | X17: =+'info graficas'!C39 -> 1 | Y17: =+'info graficas'!D39 -> 0.9746175981 | Z17: =+'info graficas'!E39 -> 0.9365620259 | AA17: =+'info graficas'!F39 ->  | AB17: =+'info graficas'!G39 ->  | AC17: =+'info graficas'!H39 ->  | AD17: =+'info graficas'!I39 ->  | AE17: =+'info graficas'!J39 ->  | AF17: =+'info graficas'!K39 ->  | AG17: =+'info graficas'!L39 ->  | AH17: =+'info graficas'!M39 ->  | AI17: =+'info graficas'!N39 -> 
W18: Arauca | X18: =+'info graficas'!C40 -> 0.7896236012 | Y18: =+'info graficas'!D40 -> 0.9091095539 | Z18: =+'info graficas'!E40 -> 0.8320583344 | AA18: =+'info graficas'!F40 ->  | AB18: =+'info graficas'!G40 ->  | AC18: =+'info graficas'!H40 ->  | AD18: =+'info graficas'!I40 ->  | AE18: =+'info graficas'!J40 ->  | AF18: =+'info graficas'!K40 ->  | AG18: =+'info graficas'!L40 ->  | AH18: =+'info graficas'!M40 ->  | AI18: =+'info graficas'!N40 -> 
W19: Casanare | X19: =+'info graficas'!C41 -> 0.9783285303 | Y19: =+'info graficas'!D41 -> 0.8340112801 | Z19: =+'info graficas'!E41 -> 0.8793941809 | AA19: =+'info graficas'!F41 ->  | AB19: =+'info graficas'!G41 ->  | AC19: =+'info graficas'!H41 ->  | AD19: =+'info graficas'!I41 ->  | AE19: =+'info graficas'!J41 ->  | AF19: =+'info graficas'!K41 ->  | AG19: =+'info graficas'!L41 ->  | AH19: =+'info graficas'!M41 ->  | AI19: =+'info graficas'!N41 -> 
W20: Guainía | X20: =+'info graficas'!C42 -> 0.7322482197 | Y20: =+'info graficas'!D42 -> 0.6975422917 | Z20: =+'info graficas'!E42 -> 0.7019754627 | AA20: =+'info graficas'!F42 ->  | AB20: =+'info graficas'!G42 ->  | AC20: =+'info graficas'!H42 ->  | AD20: =+'info graficas'!I42 ->  | AE20: =+'info graficas'!J42 ->  | AF20: =+'info graficas'!K42 ->  | AG20: =+'info graficas'!L42 ->  | AH20: =+'info graficas'!M42 ->  | AI20: =+'info graficas'!N42 -> 
W21: Guaviare | X21: =+'info graficas'!C43 -> 0.8482997118 | Y21: =+'info graficas'!D43 -> 0.7253119125 | Z21: =+'info graficas'!E43 -> 0.7403746513 | AA21: =+'info graficas'!F43 ->  | AB21: =+'info graficas'!G43 ->  | AC21: =+'info graficas'!H43 ->  | AD21: =+'info graficas'!I43 ->  | AE21: =+'info graficas'!J43 ->  | AF21: =+'info graficas'!K43 ->  | AG21: =+'info graficas'!L43 ->  | AH21: =+'info graficas'!M43 ->  | AI21: =+'info graficas'!N43 -> 
I22: =+"Corte "&$D$5 -> Corte Marzo | L22: =+"Corte "&$D$5 -> Corte Marzo | W22: Vaupés | X22: =+'info graficas'!C44 -> 1 | Y22: =+'info graficas'!D44 -> 0.7599165508 | Z22: =+'info graficas'!E44 -> 0.9211155378 | AA22: =+'info graficas'!F44 ->  | AB22: =+'info graficas'!G44 ->  | AC22: =+'info graficas'!H44 ->  | AD22: =+'info graficas'!I44 ->  | AE22: =+'info graficas'!J44 ->  | AF22: =+'info graficas'!K44 ->  | AG22: =+'info graficas'!L44 ->  | AH22: =+'info graficas'!M44 ->  | AI22: =+'info graficas'!N44 -> 
W23: Vichada | X23: =+'info graficas'!C45 -> 0.3 | Y23: =+'info graficas'!D45 -> 0.4262939959 | Z23: =+'info graficas'!E45 -> 0.4898939488 | AA23: =+'info graficas'!F45 ->  | AB23: =+'info graficas'!G45 ->  | AC23: =+'info graficas'!H45 ->  | AD23: =+'info graficas'!I45 ->  | AE23: =+'info graficas'!J45 ->  | AF23: =+'info graficas'!K45 ->  | AG23: =+'info graficas'!L45 ->  | AH23: =+'info graficas'!M45 ->  | AI23: =+'info graficas'!N45 -> 
I24: Gestión del talento humano | L24: Gestión financiera | V24: Eje Cafetero | W24: Antioquia | X24: =+'info graficas'!C47 -> 0.9839453459 | Y24: =+'info graficas'!D47 -> 0.9345146146 | Z24: =+'info graficas'!E47 -> 0.8650426309 | AA24: =+'info graficas'!F47 ->  | AB24: =+'info graficas'!G47 ->  | AC24: =+'info graficas'!H47 ->  | AD24: =+'info graficas'!I47 ->  | AE24: =+'info graficas'!J47 ->  | AF24: =+'info graficas'!K47 ->  | AG24: =+'info graficas'!L47 ->  | AH24: =+'info graficas'!M47 ->  | AI24: =+'info graficas'!N47 -> 
W25: Caldas | X25: =+'info graficas'!C48 -> 0.9808748728 | Y25: =+'info graficas'!D48 -> 0.9816144177 | Z25: =+'info graficas'!E48 -> 0.90436043 | AA25: =+'info graficas'!F48 ->  | AB25: =+'info graficas'!G48 ->  | AC25: =+'info graficas'!H48 ->  | AD25: =+'info graficas'!I48 ->  | AE25: =+'info graficas'!J48 ->  | AF25: =+'info graficas'!K48 ->  | AG25: =+'info graficas'!L48 ->  | AH25: =+'info graficas'!M48 ->  | AI25: =+'info graficas'!N48 -> 
W26: Quindío | X26: =+'info graficas'!C49 -> 0.9678906917 | Y26: =+'info graficas'!D49 -> 0.9492351961 | Z26: =+'info graficas'!E49 -> 0.8847686919 | AA26: =+'info graficas'!F49 ->  | AB26: =+'info graficas'!G49 ->  | AC26: =+'info graficas'!H49 ->  | AD26: =+'info graficas'!I49 ->  | AE26: =+'info graficas'!J49 ->  | AF26: =+'info graficas'!K49 ->  | AG26: =+'info graficas'!L49 ->  | AH26: =+'info graficas'!M49 ->  | AI26: =+'info graficas'!N49 -> 
W27: Risaralda | X27: =+'info graficas'!C50 -> 0.9839453459 | Y27: =+'info graficas'!D50 -> 0.9536271392 | Z27: =+'info graficas'!E50 -> 0.8866349242 | AA27: =+'info graficas'!F50 ->  | AB27: =+'info graficas'!G50 ->  | AC27: =+'info graficas'!H50 ->  | AD27: =+'info graficas'!I50 ->  | AE27: =+'info graficas'!J50 ->  | AF27: =+'info graficas'!K50 ->  | AG27: =+'info graficas'!L50 ->  | AH27: =+'info graficas'!M50 ->  | AI27: =+'info graficas'!N50 -> 
V28: Caribe | W28: Atlántico | X28: =+'info graficas'!C52 -> 0.8916426513 | Y28: =+'info graficas'!D52 -> 0.8052469663 | Z28: =+'info graficas'!E52 -> 0.8680275396 | AA28: =+'info graficas'!F52 ->  | AB28: =+'info graficas'!G52 ->  | AC28: =+'info graficas'!H52 ->  | AD28: =+'info graficas'!I52 ->  | AE28: =+'info graficas'!J52 ->  | AF28: =+'info graficas'!K52 ->  | AG28: =+'info graficas'!L52 ->  | AH28: =+'info graficas'!M52 ->  | AI28: =+'info graficas'!N52 -> 
W29: Bolivar | X29: =+'info graficas'!C53 -> 0.9678906917 | Y29: =+'info graficas'!D53 -> 0.7961229744 | Z29: =+'info graficas'!E53 -> 0.85855387 | AA29: =+'info graficas'!F53 ->  | AB29: =+'info graficas'!G53 ->  | AC29: =+'info graficas'!H53 ->  | AD29: =+'info graficas'!I53 ->  | AE29: =+'info graficas'!J53 ->  | AF29: =+'info graficas'!K53 ->  | AG29: =+'info graficas'!L53 ->  | AH29: =+'info graficas'!M53 ->  | AI29: =+'info graficas'!N53 -> 
W30: Cesar | X30: =+'info graficas'!C54 -> 0.9566570605 | Y30: =+'info graficas'!D54 -> 0.9772224746 | Z30: =+'info graficas'!E54 -> 0.8978892158 | AA30: =+'info graficas'!F54 ->  | AB30: =+'info graficas'!G54 ->  | AC30: =+'info graficas'!H54 ->  | AD30: =+'info graficas'!I54 ->  | AE30: =+'info graficas'!J54 ->  | AF30: =+'info graficas'!K54 ->  | AG30: =+'info graficas'!L54 ->  | AH30: =+'info graficas'!M54 ->  | AI30: =+'info graficas'!N54 -> 
W31: Cordoba | X31: =+'info graficas'!C55 -> 0.9808748728 | Y31: =+'info graficas'!D55 -> 0.8785865494 | Z31: =+'info graficas'!E55 -> 0.8736079237 | AA31: =+'info graficas'!F55 ->  | AB31: =+'info graficas'!G55 ->  | AC31: =+'info graficas'!H55 ->  | AD31: =+'info graficas'!I55 ->  | AE31: =+'info graficas'!J55 ->  | AF31: =+'info graficas'!K55 ->  | AG31: =+'info graficas'!L55 ->  | AH31: =+'info graficas'!M55 ->  | AI31: =+'info graficas'!N55 -> 
W32: Guajira | X32: =+'info graficas'!C56 -> 0.8266282421 | Y32: =+'info graficas'!D56 -> 0.7787386771 | Z32: =+'info graficas'!E56 -> 0.7611808118 | AA32: =+'info graficas'!F56 ->  | AB32: =+'info graficas'!G56 ->  | AC32: =+'info graficas'!H56 ->  | AD32: =+'info graficas'!I56 ->  | AE32: =+'info graficas'!J56 ->  | AF32: =+'info graficas'!K56 ->  | AG32: =+'info graficas'!L56 ->  | AH32: =+'info graficas'!M56 ->  | AI32: =+'info graficas'!N56 -> 
W33: Magdalena | X33: =+'info graficas'!C57 -> 0.9783285303 | Y33: =+'info graficas'!D57 -> 0.923978807 | Z33: =+'info graficas'!E57 -> 0.9454762854 | AA33: =+'info graficas'!F57 ->  | AB33: =+'info graficas'!G57 ->  | AC33: =+'info graficas'!H57 ->  | AD33: =+'info graficas'!I57 ->  | AE33: =+'info graficas'!J57 ->  | AF33: =+'info graficas'!K57 ->  | AG33: =+'info graficas'!L57 ->  | AH33: =+'info graficas'!M57 ->  | AI33: =+'info graficas'!N57 -> 
W34: Sucre | X34: =+'info graficas'!C58 -> 1 | Y34: =+'info graficas'!D58 -> 0.9326366803 | Z34: =+'info graficas'!E58 -> 0.8809618706 | AA34: =+'info graficas'!F58 ->  | AB34: =+'info graficas'!G58 ->  | AC34: =+'info graficas'!H58 ->  | AD34: =+'info graficas'!I58 ->  | AE34: =+'info graficas'!J58 ->  | AF34: =+'info graficas'!K58 ->  | AG34: =+'info graficas'!L58 ->  | AH34: =+'info graficas'!M58 ->  | AI34: =+'info graficas'!N58 -> 
C35: Avance Plan de Acción | W35: San Andrés | X35: =+'info graficas'!C59 -> 1 | Y35: =+'info graficas'!D59 -> 0.9787439614 | Z35: =+'info graficas'!E59 -> 0.8332764181 | AA35: =+'info graficas'!F59 ->  | AB35: =+'info graficas'!G59 ->  | AC35: =+'info graficas'!H59 ->  | AD35: =+'info graficas'!I59 ->  | AE35: =+'info graficas'!J59 ->  | AF35: =+'info graficas'!K59 ->  | AG35: =+'info graficas'!L59 ->  | AH35: =+'info graficas'!M59 ->  | AI35: =+'info graficas'!N59 -> 
C36: =+VLOOKUP("Total PA",td!$E$15:$AQ$22,$V$2,FALSE) -> 0.860511883 | V36: Centro Oriente | W36: Bogotá | X36: =+'info graficas'!C61 -> 0.8715627669 | Y36: =+'info graficas'!D61 -> 0.9054672119 | Z36: =+'info graficas'!E61 -> 0.8527294873 | AA36: =+'info graficas'!F61 ->  | AB36: =+'info graficas'!G61 ->  | AC36: =+'info graficas'!H61 ->  | AD36: =+'info graficas'!I61 ->  | AE36: =+'info graficas'!J61 ->  | AF36: =+'info graficas'!K61 ->  | AG36: =+'info graficas'!L61 ->  | AH36: =+'info graficas'!M61 ->  | AI36: =+'info graficas'!N61 -> 
C37: =+"Corte "&D5 -> Corte Marzo | W37: Boyacá | X37: =+'info graficas'!C62 -> 0.8916426513 | Y37: =+'info graficas'!D62 -> 0.812339771 | Z37: =+'info graficas'!E62 -> 0.8694528325 | AA37: =+'info graficas'!F62 ->  | AB37: =+'info graficas'!G62 ->  | AC37: =+'info graficas'!H62 ->  | AD37: =+'info graficas'!I62 ->  | AE37: =+'info graficas'!J62 ->  | AF37: =+'info graficas'!K62 ->  | AG37: =+'info graficas'!L62 ->  | AH37: =+'info graficas'!M62 ->  | AI37: =+'info graficas'!N62 -> 
I38: =+"Corte "&$D$5 -> Corte Marzo | L38: =+"Corte "&$D$5 -> Corte Marzo | P38: =+"Corte "&$D$5 -> Corte Marzo | W38: Cundinamarca | X38: =+'info graficas'!C63 -> 0.9839453459 | Y38: =+'info graficas'!D63 -> 0.8870816296 | Z38: =+'info graficas'!E63 -> 0.8812658534 | AA38: =+'info graficas'!F63 ->  | AB38: =+'info graficas'!G63 ->  | AC38: =+'info graficas'!H63 ->  | AD38: =+'info graficas'!I63 ->  | AE38: =+'info graficas'!J63 ->  | AF38: =+'info graficas'!K63 ->  | AG38: =+'info graficas'!L63 ->  | AH38: =+'info graficas'!M63 ->  | AI38: =+'info graficas'!N63 -> 
W39: N Santander | X39: =+'info graficas'!C64 -> 0.9678906917 | Y39: =+'info graficas'!D64 -> 0.9150689081 | Z39: =+'info graficas'!E64 -> 0.8801586286 | AA39: =+'info graficas'!F64 ->  | AB39: =+'info graficas'!G64 ->  | AC39: =+'info graficas'!H64 ->  | AD39: =+'info graficas'!I64 ->  | AE39: =+'info graficas'!J64 ->  | AF39: =+'info graficas'!K64 ->  | AG39: =+'info graficas'!L64 ->  | AH39: =+'info graficas'!M64 ->  | AI39: =+'info graficas'!N64 -> 
W40: Santander | X40: =+'info graficas'!C65 -> 0.9678906917 | Y40: =+'info graficas'!D65 -> 0.8870816296 | Z40: =+'info graficas'!E65 -> 0.8994795704 | AA40: =+'info graficas'!F65 ->  | AB40: =+'info graficas'!G65 ->  | AC40: =+'info graficas'!H65 ->  | AD40: =+'info graficas'!I65 ->  | AE40: =+'info graficas'!J65 ->  | AF40: =+'info graficas'!K65 ->  | AG40: =+'info graficas'!L65 ->  | AH40: =+'info graficas'!M65 ->  | AI40: =+'info graficas'!N65 -> 
H44: Lineas | K44: Componentes
B45: LP1 | C45: Gestión misional y de gobierno | AK45: Comportamiento Áreas Plan de Acción
C46: LP1-C1 | D46: Indicadores y metas de Gobierno | W46: M1 | X46: Dirección de Primera Infancia | AK46: Enero | AL46: Febrero | AM46: Marzo | AN46: Abril | AO46: Mayo | AP46: Junio | AQ46: Julio | AR46: Agosto | AS46: Septiembre | AT46: Octubre | AU46: Noviembre | AV46: Diciembre
B47: LP2 | C47: Transparencia, participación y servicio al ciudadano | W47: M2 | X47: Dirección de Niñez y Adolescencia | AG47: Misionales | AH47: Primera Infancia | AK47: =+td!AF159 ->  | AL47: =+td!AG159 -> 1 | AM47: =+td!AH159 -> 1 | AN47: =+td!AI159 ->  | AO47: =+td!AJ159 ->  | AP47: =+td!AK159 ->  | AQ47: =+td!AL159 ->  | AR47: =+td!AM159 ->  | AS47: =+td!AN159 ->  | AT47: =+td!AO159 ->  | AU47: =+td!AP159 ->  | AV47: =+td!AQ159 -> 
C48: LP2-C2 | D48: Participación Ciudadana en la Gestión | W48: M3 | X48: Dirección de Familias y comunidades | AH48: Niñez y Adolescencia | AK48: =+td!AF160 ->  | AL48: =+td!AG160 ->  | AM48: =+td!AH160 ->  | AN48: =+td!AI160 ->  | AO48: =+td!AJ160 ->  | AP48: =+td!AK160 ->  | AQ48: =+td!AL160 ->  | AR48: =+td!AM160 ->  | AS48: =+td!AN160 ->  | AT48: =+td!AO160 ->  | AU48: =+td!AP160 ->  | AV48: =+td!AQ160 -> 
C49: LP2-C3 | D49: Rendición de Cuentas a la ciudadania | O49: Comportamiento mensual lineas de política | W49: M4 | X49: Dirección de Nutrición | AH49: Familias y comunidades | AK49: =+td!AF161 ->  | AL49: =+td!AG161 ->  | AM49: =+td!AH161 -> 1 | AN49: =+td!AI161 ->  | AO49: =+td!AJ161 ->  | AP49: =+td!AK161 ->  | AQ49: =+td!AL161 ->  | AR49: =+td!AM161 ->  | AS49: =+td!AN161 ->  | AT49: =+td!AO161 ->  | AU49: =+td!AP161 ->  | AV49: =+td!AQ161 -> 
C50: LP2-C4 | D50: Servicio al Ciudadano | O50: Mes a mes | P50: PA | Q50: LP1 | R50: LP2 | S50: LP3 | T50: LP4 | U50: LP5 | W50: M5 | X50: Dirección de Protección | AH50: Nutrición | AK50: =+td!AF162 ->  | AL50: =+td!AG162 -> 0.9 | AM50: =+td!AH162 -> 1 | AN50: =+td!AI162 ->  | AO50: =+td!AJ162 ->  | AP50: =+td!AK162 ->  | AQ50: =+td!AL162 ->  | AR50: =+td!AM162 ->  | AS50: =+td!AN162 ->  | AT50: =+td!AO162 ->  | AU50: =+td!AP162 ->  | AV50: =+td!AQ162 -> 
C51: LP2-C5 | D51: Plan Anticorrupción y de Atención al Ciudadano | N51: 28 | O51: Enero | P51: =+VLOOKUP("Total PA",td!$E$2:$AQ$153,$N51,FALSE) -> 0.9228336079 | Q51: =+VLOOKUP(Q$50,td!$E$2:$AQ$153,$N51,FALSE) -> 0.9783285303 | R51: =+VLOOKUP(R$50,td!$E$2:$AQ$153,$N51,FALSE) -> 0.6 | S51: =+VLOOKUP(S$50,td!$E$2:$AQ$153,$N51,FALSE) ->  | T51: =+VLOOKUP(T$50,td!$E$2:$AQ$153,$N51,FALSE) ->  | U51: =+VLOOKUP(U$50,td!$E$2:$AQ$153,$N51,FALSE) -> 0.95 | W51: A1 | X51: Dirección de Gestión Humana | AH51: Protección | AK51: =+td!AF163 -> 0.975 | AL51: =+td!AG163 -> 0.96 | AM51: =+td!AH163 -> 0.8909090909 | AN51: =+td!AI163 ->  | AO51: =+td!AJ163 ->  | AP51: =+td!AK163 ->  | AQ51: =+td!AL163 ->  | AR51: =+td!AM163 ->  | AS51: =+td!AN163 ->  | AT51: =+td!AO163 ->  | AU51: =+td!AP163 ->  | AV51: =+td!AQ163 -> 
B52: LP3 | C52: Gestión del talento humano | N52: 29 | O52: Febrero | P52: =+VLOOKUP("Total PA",td!$E$2:$AQ$153,$N52,FALSE) -> 0.9021204981 | Q52: =+VLOOKUP(Q$50,td!$E$2:$AQ$153,$N52,FALSE) -> 0.9103120545 | R52: =+VLOOKUP(R$50,td!$E$2:$AQ$153,$N52,FALSE) -> 0.9 | S52: =+VLOOKUP(S$50,td!$E$2:$AQ$153,$N52,FALSE) ->  | T52: =+VLOOKUP(T$50,td!$E$2:$AQ$153,$N52,FALSE) ->  | U52: =+VLOOKUP(U$50,td!$E$2:$AQ$153,$N52,FALSE) -> 0.875 | W52: A2 | X52: Dirección Financiera | AG52: Apoyo | AH52: Gestión Humana | AK52: =+td!AF164 ->  | AL52: =+td!AG164 ->  | AM52: =+td!AH164 -> 0.45 | AN52: =+td!AI164 ->  | AO52: =+td!AJ164 ->  | AP52: =+td!AK164 ->  | AQ52: =+td!AL164 ->  | AR52: =+td!AM164 ->  | AS52: =+td!AN164 ->  | AT52: =+td!AO164 ->  | AU52: =+td!AP164 ->  | AV52: =+td!AQ164 -> 
C53: LP3-C1 | D53: Plan Estratégico de Recursos Humanos | N53: 30 | O53: Marzo | P53: =+VLOOKUP("Total PA",td!$E$2:$AQ$153,$N53,FALSE) -> 0.860511883 | Q53: =+VLOOKUP(Q$50,td!$E$2:$AQ$153,$N53,FALSE) -> 0.8435906272 | R53: =+VLOOKUP(R$50,td!$E$2:$AQ$153,$N53,FALSE) -> 0.8567820393 | S53: =+VLOOKUP(S$50,td!$E$2:$AQ$153,$N53,FALSE) -> 0.45 | T53: =+VLOOKUP(T$50,td!$E$2:$AQ$153,$N53,FALSE) -> 1 | U53: =+VLOOKUP(U$50,td!$E$2:$AQ$153,$N53,FALSE) -> 0.909470934 | W53: A3 | X53: Oficina de Control Interno Disciplinario | AH53: Dirección Financiera | AK53: =+td!AF165 -> 0.95 | AL53: =+td!AG165 -> 0.75 | AM53: =+td!AH165 -> 0.9 | AN53: =+td!AI165 ->  | AO53: =+td!AJ165 ->  | AP53: =+td!AK165 ->  | AQ53: =+td!AL165 ->  | AR53: =+td!AM165 ->  | AS53: =+td!AN165 ->  | AT53: =+td!AO165 ->  | AU53: =+td!AP165 ->  | AV53: =+td!AQ165 -> 
C54: LP3-C2 | D54: Plan Anual de Vacantes | N54: 31 | O54: Abril | P54: =+VLOOKUP("Total PA",td!$E$2:$AQ$153,$N54,FALSE) ->  | Q54: =+VLOOKUP(Q$50,td!$E$2:$AQ$153,$N54,FALSE) ->  | R54: =+VLOOKUP(R$50,td!$E$2:$AQ$153,$N54,FALSE) ->  | S54: =+VLOOKUP(S$50,td!$E$2:$AQ$153,$N54,FALSE) ->  | T54: =+VLOOKUP(T$50,td!$E$2:$AQ$153,$N54,FALSE) ->  | U54: =+VLOOKUP(U$50,td!$E$2:$AQ$153,$N54,FALSE) ->  | W54: A4 | X54: Dirección de Abastecimiento | AH54: Control Interno Disciplinario | AK54: =+td!AF166 ->  | AL54: =+td!AG166 ->  | AM54: =+td!AH166 -> 1 | AN54: =+td!AI166 ->  | AO54: =+td!AJ166 ->  | AP54: =+td!AK166 ->  | AQ54: =+td!AL166 ->  | AR54: =+td!AM166 ->  | AS54: =+td!AN166 ->  | AT54: =+td!AO166 ->  | AU54: =+td!AP166 ->  | AV54: =+td!AQ166 -> 
C55: LP3-C3 | D55: Capacitación | N55: 32 | O55: Mayo | P55: =+VLOOKUP("Total PA",td!$E$2:$AQ$153,$N55,FALSE) ->  | Q55: =+VLOOKUP(Q$50,td!$E$2:$AQ$153,$N55,FALSE) ->  | R55: =+VLOOKUP(R$50,td!$E$2:$AQ$153,$N55,FALSE) ->  | S55: =+VLOOKUP(S$50,td!$E$2:$AQ$153,$N55,FALSE) ->  | T55: =+VLOOKUP(T$50,td!$E$2:$AQ$153,$N55,FALSE) ->  | U55: =+VLOOKUP(U$50,td!$E$2:$AQ$153,$N55,FALSE) ->  | W55: A5 | X55: Dirección Administrativa | AH55: Abastecimiento | AK55: =+td!AF167 ->  | AL55: =+td!AG167 ->  | AM55: =+td!AH167 -> 0.6 | AN55: =+td!AI167 ->  | AO55: =+td!AJ167 ->  | AP55: =+td!AK167 ->  | AQ55: =+td!AL167 ->  | AR55: =+td!AM167 ->  | AS55: =+td!AN167 ->  | AT55: =+td!AO167 ->  | AU55: =+td!AP167 ->  | AV55: =+td!AQ167 -> 
C56: LP3-C4 | D56: Bienestar e Incentivos | N56: 33 | O56: Junio | P56: =+VLOOKUP("Total PA",td!$E$2:$AQ$153,$N56,FALSE) ->  | Q56: =+VLOOKUP(Q$50,td!$E$2:$AQ$153,$N56,FALSE) ->  | R56: =+VLOOKUP(R$50,td!$E$2:$AQ$153,$N56,FALSE) ->  | S56: =+VLOOKUP(S$50,td!$E$2:$AQ$153,$N56,FALSE) ->  | T56: =+VLOOKUP(T$50,td!$E$2:$AQ$153,$N56,FALSE) ->  | U56: =+VLOOKUP(U$50,td!$E$2:$AQ$153,$N56,FALSE) ->  | W56: A6 | X56: Dirección de Contratación | AH56: Administrativa | AK56: =+td!AF168 ->  | AL56: =+td!AG168 ->  | AM56: =+td!AH168 -> 0.7336079077 | AN56: =+td!AI168 ->  | AO56: =+td!AJ168 ->  | AP56: =+td!AK168 ->  | AQ56: =+td!AL168 ->  | AR56: =+td!AM168 ->  | AS56: =+td!AN168 ->  | AT56: =+td!AO168 ->  | AU56: =+td!AP168 ->  | AV56: =+td!AQ168 -> 
B57: LP4 | C57: Eficiencia administrativa | N57: 34 | O57: Julio | P57: =+VLOOKUP("Total PA",td!$E$2:$AQ$153,$N57,FALSE) ->  | Q57: =+VLOOKUP(Q$50,td!$E$2:$AQ$153,$N57,FALSE) ->  | R57: =+VLOOKUP(R$50,td!$E$2:$AQ$153,$N57,FALSE) ->  | S57: =+VLOOKUP(S$50,td!$E$2:$AQ$153,$N57,FALSE) ->  | T57: =+VLOOKUP(T$50,td!$E$2:$AQ$153,$N57,FALSE) ->  | U57: =+VLOOKUP(U$50,td!$E$2:$AQ$153,$N57,FALSE) ->  | W57: A7 | X57: Oficina Asesora Jurídica | AH57: Contratación | AK57: =+td!AF169 ->  | AL57: =+td!AG169 -> 0.3 | AM57: =+td!AH169 ->  | AN57: =+td!AI169 ->  | AO57: =+td!AJ169 ->  | AP57: =+td!AK169 ->  | AQ57: =+td!AL169 ->  | AR57: =+td!AM169 ->  | AS57: =+td!AN169 ->  | AT57: =+td!AO169 ->  | AU57: =+td!AP169 ->  | AV57: =+td!AQ169 -> 
C58: LP4-C1 | D58: Gestión de la Calidad | N58: 35 | O58: Agosto | P58: =+VLOOKUP("Total PA",td!$E$2:$AQ$153,$N58,FALSE) ->  | Q58: =+VLOOKUP(Q$50,td!$E$2:$AQ$153,$N58,FALSE) ->  | R58: =+VLOOKUP(R$50,td!$E$2:$AQ$153,$N58,FALSE) ->  | S58: =+VLOOKUP(S$50,td!$E$2:$AQ$153,$N58,FALSE) ->  | T58: =+VLOOKUP(T$50,td!$E$2:$AQ$153,$N58,FALSE) ->  | U58: =+VLOOKUP(U$50,td!$E$2:$AQ$153,$N58,FALSE) ->  | W58: A8 | X58: Oficina de Gestión Regional | AH58: Jurídica | AK58: =+td!AF170 ->  | AL58: =+td!AG170 ->  | AM58: =+td!AH170 ->  | AN58: =+td!AI170 ->  | AO58: =+td!AJ170 ->  | AP58: =+td!AK170 ->  | AQ58: =+td!AL170 ->  | AR58: =+td!AM170 ->  | AS58: =+td!AN170 ->  | AT58: =+td!AO170 ->  | AU58: =+td!AP170 ->  | AV58: =+td!AQ170 -> 
C59: LP4-C2 | D59: Eficiencia Administrativa y Cero Papel | N59: 36 | O59: Septiembre | P59: =+VLOOKUP("Total PA",td!$E$2:$AQ$153,$N59,FALSE) ->  | Q59: =+VLOOKUP(Q$50,td!$E$2:$AQ$153,$N59,FALSE) ->  | R59: =+VLOOKUP(R$50,td!$E$2:$AQ$153,$N59,FALSE) ->  | S59: =+VLOOKUP(S$50,td!$E$2:$AQ$153,$N59,FALSE) ->  | T59: =+VLOOKUP(T$50,td!$E$2:$AQ$153,$N59,FALSE) ->  | U59: =+VLOOKUP(U$50,td!$E$2:$AQ$153,$N59,FALSE) ->  | W59: A9 | X59: Oficina de Cooperación y Convenios | AH59: Gestión Regional | AK59: =+td!AF171 ->  | AL59: =+td!AG171 ->  | AM59: =+td!AH171 ->  | AN59: =+td!AI171 ->  | AO59: =+td!AJ171 ->  | AP59: =+td!AK171 ->  | AQ59: =+td!AL171 ->  | AR59: =+td!AM171 ->  | AS59: =+td!AN171 ->  | AT59: =+td!AO171 ->  | AU59: =+td!AP171 ->  | AV59: =+td!AQ171 -> 
C60: LP4-C3 | D60: Racionalización de Trámites | N60: 37 | O60: Octubre | P60: =+VLOOKUP("Total PA",td!$E$2:$AQ$153,$N60,FALSE) ->  | Q60: =+VLOOKUP(Q$50,td!$E$2:$AQ$153,$N60,FALSE) ->  | R60: =+VLOOKUP(R$50,td!$E$2:$AQ$153,$N60,FALSE) ->  | S60: =+VLOOKUP(S$50,td!$E$2:$AQ$153,$N60,FALSE) ->  | T60: =+VLOOKUP(T$50,td!$E$2:$AQ$153,$N60,FALSE) ->  | U60: =+VLOOKUP(U$50,td!$E$2:$AQ$153,$N60,FALSE) ->  | W60: A10 | X60: Dirección de Servicios y Atención | AH60: Cooperación y Convenios | AK60: =+td!AF172 -> 1 | AL60: =+td!AG172 -> 1 | AM60: =+td!AH172 -> 1 | AN60: =+td!AI172 ->  | AO60: =+td!AJ172 ->  | AP60: =+td!AK172 ->  | AQ60: =+td!AL172 ->  | AR60: =+td!AM172 ->  | AS60: =+td!AN172 ->  | AT60: =+td!AO172 ->  | AU60: =+td!AP172 ->  | AV60: =+td!AQ172 -> 
C61: LP4-C4 | D61: Modernización Institucional | N61: 38 | O61: Noviembre | P61: =+VLOOKUP("Total PA",td!$E$2:$AQ$153,$N61,FALSE) ->  | Q61: =+VLOOKUP(Q$50,td!$E$2:$AQ$153,$N61,FALSE) ->  | R61: =+VLOOKUP(R$50,td!$E$2:$AQ$153,$N61,FALSE) ->  | S61: =+VLOOKUP(S$50,td!$E$2:$AQ$153,$N61,FALSE) ->  | T61: =+VLOOKUP(T$50,td!$E$2:$AQ$153,$N61,FALSE) ->  | U61: =+VLOOKUP(U$50,td!$E$2:$AQ$153,$N61,FALSE) ->  | W61: A11 | X61: Dirección de Información y Tecnología | AH61: Servicios y Atención | AK61: =+td!AF173 -> 0.6 | AL61: =+td!AG173 -> 0.9 | AM61: =+td!AH173 -> 0.9 | AN61: =+td!AI173 ->  | AO61: =+td!AJ173 ->  | AP61: =+td!AK173 ->  | AQ61: =+td!AL173 ->  | AR61: =+td!AM173 ->  | AS61: =+td!AN173 ->  | AT61: =+td!AO173 ->  | AU61: =+td!AP173 ->  | AV61: =+td!AQ173 -> 
C62: LP4-C5 | D62: Gestión de Tecnologías de información | N62: 39 | O62: Diciembre | P62: =+VLOOKUP("Total PA",td!$E$2:$AQ$153,$N62,FALSE) ->  | Q62: =+VLOOKUP(Q$50,td!$E$2:$AQ$153,$N62,FALSE) ->  | R62: =+VLOOKUP(R$50,td!$E$2:$AQ$153,$N62,FALSE) ->  | S62: =+VLOOKUP(S$50,td!$E$2:$AQ$153,$N62,FALSE) ->  | T62: =+VLOOKUP(T$50,td!$E$2:$AQ$153,$N62,FALSE) ->  | U62: =+VLOOKUP(U$50,td!$E$2:$AQ$153,$N62,FALSE) ->  | W62: A12 | X62: Oficina Asesora de Comunicaciones | AH62: Información y Tecnología | AK62: =+td!AF174 ->  | AL62: =+td!AG174 ->  | AM62: =+td!AH174 -> 1 | AN62: =+td!AI174 ->  | AO62: =+td!AJ174 ->  | AP62: =+td!AK174 ->  | AQ62: =+td!AL174 ->  | AR62: =+td!AM174 ->  | AS62: =+td!AN174 ->  | AT62: =+td!AO174 ->  | AU62: =+td!AP174 ->  | AV62: =+td!AQ174 -> 
C63: LP4-C6 | D63: Gestión Documental | W63: A13 | X63: Dirección de Planeación y Control de Gestión | AH63: Comunicaciones | AK63: =+td!AF175 ->  | AL63: =+td!AG175 ->  | AM63: =+td!AH175 -> 0.5259615385 | AN63: =+td!AI175 ->  | AO63: =+td!AJ175 ->  | AP63: =+td!AK175 ->  | AQ63: =+td!AL175 ->  | AR63: =+td!AM175 ->  | AS63: =+td!AN175 ->  | AT63: =+td!AO175 ->  | AU63: =+td!AP175 ->  | AV63: =+td!AQ175 -> 
B64: LP5 | C64: Gestión financiera | W64: A14 | X64: Dirección del SNBF | AH64: Planeación y Control de Gestión | AK64: =+td!AF176 -> 0.95 | AL64: =+td!AG176 -> 1 | AM64: =+td!AH176 -> 0.9822307692 | AN64: =+td!AI176 ->  | AO64: =+td!AJ176 ->  | AP64: =+td!AK176 ->  | AQ64: =+td!AL176 ->  | AR64: =+td!AM176 ->  | AS64: =+td!AN176 ->  | AT64: =+td!AO176 ->  | AU64: =+td!AP176 ->  | AV64: =+td!AQ176 -> 
C65: LP5-C1 | D65: Programación y Ejecución Presupuestal | W65: A15 | X65: Oficina de Control Interno | AH65: Dirección del SNBF | AK65: =+td!AF177 ->  | AL65: =+td!AG177 ->  | AM65: =+td!AH177 -> 1 | AN65: =+td!AI177 ->  | AO65: =+td!AJ177 ->  | AP65: =+td!AK177 ->  | AQ65: =+td!AL177 ->  | AR65: =+td!AM177 ->  | AS65: =+td!AN177 ->  | AT65: =+td!AO177 ->  | AU65: =+td!AP177 ->  | AV65: =+td!AQ177 -> 
C66: LP5-C2 | D66: Programa Anual Mensualizado de Caja – PAC | W66: A16 | X66: Oficina de Aseguramiento a la Calidad | AH66: Control Interno | AK66: =+td!AF178 ->  | AL66: =+td!AG178 ->  | AM66: =+td!AH178 -> 0.8666666667 | AN66: =+td!AI178 ->  | AO66: =+td!AJ178 ->  | AP66: =+td!AK178 ->  | AQ66: =+td!AL178 ->  | AR66: =+td!AM178 ->  | AS66: =+td!AN178 ->  | AT66: =+td!AO178 ->  | AU66: =+td!AP178 ->  | AV66: =+td!AQ178 -> 
C67: LP5-C3 | D67: Formulación y seguimiento a proyectos de inversión | AH67: Aseguramiento a la Calidad | AK67: =+td!AF179 ->  | AL67: =+td!AG179 ->  | AM67: =+td!AH179 -> 1 | AN67: =+td!AI179 ->  | AO67: =+td!AJ179 ->  | AP67: =+td!AK179 ->  | AQ67: =+td!AL179 ->  | AR67: =+td!AM179 ->  | AS67: =+td!AN179 ->  | AT67: =+td!AO179 ->  | AU67: =+td!AP179 ->  | AV67: =+td!AQ179 -> 
C68: LP5-C4 | D68: Plan Anual de Adquisiciones (PAA)
C71: =+VLOOKUP(D73,referencias!$F$1:$G$6,2,FALSE) -> PA | D71: Ene | E71: Feb | F71: Mar | G71: Abr | H71: May | I71: Jun | J71: Jul | K71: Agt | L71: Sep | M71: Oct | N71: Nov | O71: Dic
D72: =+IF(HLOOKUP($C$71,$P$50:$U$62,2,FALSE)="",NA(),HLOOKUP($C$71,$P$50:$U$62,2,FALSE)) -> 0.9228336079 | E72: =+IF(HLOOKUP($C$71,$P$50:$U$62,3,FALSE)="",NA(),HLOOKUP($C$71,$P$50:$U$62,3,FALSE)) -> 0.9021204981 | F72: =+IF(HLOOKUP($C$71,$P$50:$U$62,4,FALSE)="",NA(),HLOOKUP($C$71,$P$50:$U$62,4,FALSE)) -> 0.860511883 | G72: =+IF(HLOOKUP($C$71,$P$50:$U$62,5,FALSE)="",NA(),HLOOKUP($C$71,$P$50:$U$62,5,FALSE)) ->  | H72: =+IF(HLOOKUP($C$71,$P$50:$U$62,6,FALSE)="",NA(),HLOOKUP($C$71,$P$50:$U$62,6,FALSE)) ->  | I72: =+IF(HLOOKUP($C$71,$P$50:$U$62,7,FALSE)="",NA(),HLOOKUP($C$71,$P$50:$U$62,7,FALSE)) ->  | J72: =+IF(HLOOKUP($C$71,$P$50:$U$62,8,FALSE)="",NA(),HLOOKUP($C$71,$P$50:$U$62,8,FALSE)) ->  | K72: =+IF(HLOOKUP($C$71,$P$50:$U$62,9,FALSE)="",NA(),HLOOKUP($C$71,$P$50:$U$62,9,FALSE)) ->  | L72: =+IF(HLOOKUP($C$71,$P$50:$U$62,10,FALSE)="",NA(),HLOOKUP($C$71,$P$50:$U$62,10,FALSE)) ->  | M72: =+IF(HLOOKUP($C$71,$P$50:$U$62,11,FALSE)="",NA(),HLOOKUP($C$71,$P$50:$U$62,11,FALSE)) ->  | N72: =+IF(HLOOKUP($C$71,$P$50:$U$62,12,FALSE)="",NA(),HLOOKUP($C$71,$P$50:$U$62,12,FALSE)) ->  | O72: =+IF(HLOOKUP($C$71,$P$50:$U$62,13,FALSE)="",NA(),HLOOKUP($C$71,$P$50:$U$62,13,FALSE)) -> 
C73: Gráfico | D73: Plan de Acción | G73: Seleccione la linea de política
O74: Comportamiento agregado de indicadores
P75: 2 | Q75: 3 | R75: 4 | S75: 5 | T75: 6
U76: Total
N77: Ene | O77: Enero | P77: =+HLOOKUP($N77,'rangos nal'!$A$13:$M$19,P$75,FALSE) -> 6 | Q77: =+HLOOKUP($N77,'rangos nal'!$A$13:$M$19,Q$75,FALSE) -> 3 | R77: =+HLOOKUP($N77,'rangos nal'!$A$13:$M$19,R$75,FALSE) -> 1 | S77: =+HLOOKUP($N77,'rangos nal'!$A$13:$M$19,S$75,FALSE) -> 0 | T77: =+HLOOKUP($N77,'rangos nal'!$A$13:$M$19,T$75,FALSE) -> 92 | U77: =SUM(P77:T77) -> 102
N78: Feb | O78: Febrero | P78: =+HLOOKUP($N78,'rangos nal'!$A$13:$M$19,P$75,FALSE) -> 7 | Q78: =+HLOOKUP($N78,'rangos nal'!$A$13:$M$19,Q$75,FALSE) -> 6 | R78: =+HLOOKUP($N78,'rangos nal'!$A$13:$M$19,R$75,FALSE) -> 1 | S78: =+HLOOKUP($N78,'rangos nal'!$A$13:$M$19,S$75,FALSE) -> 1 | T78: =+HLOOKUP($N78,'rangos nal'!$A$13:$M$19,T$75,FALSE) -> 87 | U78: =SUM(P78:T78) -> 102
N79: Mar | O79: Marzo | P79: =+HLOOKUP($N79,'rangos nal'!$A$13:$M$19,P$75,FALSE) -> 25 | Q79: =+HLOOKUP($N79,'rangos nal'!$A$13:$M$19,Q$75,FALSE) -> 12 | R79: =+HLOOKUP($N79,'rangos nal'!$A$13:$M$19,R$75,FALSE) -> 3 | S79: =+HLOOKUP($N79,'rangos nal'!$A$13:$M$19,S$75,FALSE) -> 6 | T79: =+HLOOKUP($N79,'rangos nal'!$A$13:$M$19,T$75,FALSE) -> 56 | U79: 102
N80: Abr | O80: Abril | P80: =+HLOOKUP($N80,'rangos nal'!$A$13:$M$19,P$75,FALSE) -> 0 | Q80: =+HLOOKUP($N80,'rangos nal'!$A$13:$M$19,Q$75,FALSE) -> 0 | R80: =+HLOOKUP($N80,'rangos nal'!$A$13:$M$19,R$75,FALSE) -> 0 | S80: =+HLOOKUP($N80,'rangos nal'!$A$13:$M$19,S$75,FALSE) -> 0 | T80: =+HLOOKUP($N80,'rangos nal'!$A$13:$M$19,T$75,FALSE) -> 0 | U80: 0
N81: May | O81: Mayo | P81: =+HLOOKUP($N81,'rangos nal'!$A$13:$M$19,P$75,FALSE) -> 0 | Q81: =+HLOOKUP($N81,'rangos nal'!$A$13:$M$19,Q$75,FALSE) -> 0 | R81: =+HLOOKUP($N81,'rangos nal'!$A$13:$M$19,R$75,FALSE) -> 0 | S81: =+HLOOKUP($N81,'rangos nal'!$A$13:$M$19,S$75,FALSE) -> 0 | T81: =+HLOOKUP($N81,'rangos nal'!$A$13:$M$19,T$75,FALSE) -> 0 | U81: 0
N82: Jun | O82: Junio | P82: =+HLOOKUP($N82,'rangos nal'!$A$13:$M$19,P$75,FALSE) -> 0 | Q82: =+HLOOKUP($N82,'rangos nal'!$A$13:$M$19,Q$75,FALSE) -> 0 | R82: =+HLOOKUP($N82,'rangos nal'!$A$13:$M$19,R$75,FALSE) -> 0 | S82: =+HLOOKUP($N82,'rangos nal'!$A$13:$M$19,S$75,FALSE) -> 0 | T82: =+HLOOKUP($N82,'rangos nal'!$A$13:$M$19,T$75,FALSE) -> 0 | U82: 0
N83: Jul | O83: Julio | P83: =+HLOOKUP($N83,'rangos nal'!$A$13:$M$19,P$75,FALSE) -> 0 | Q83: =+HLOOKUP($N83,'rangos nal'!$A$13:$M$19,Q$75,FALSE) -> 0 | R83: =+HLOOKUP($N83,'rangos nal'!$A$13:$M$19,R$75,FALSE) -> 0 | S83: =+HLOOKUP($N83,'rangos nal'!$A$13:$M$19,S$75,FALSE) -> 0 | T83: =+HLOOKUP($N83,'rangos nal'!$A$13:$M$19,T$75,FALSE) -> 0 | U83: 0
N84: Agt | O84: Agosto | P84: =+HLOOKUP($N84,'rangos nal'!$A$13:$M$19,P$75,FALSE) -> 0 | Q84: =+HLOOKUP($N84,'rangos nal'!$A$13:$M$19,Q$75,FALSE) -> 0 | R84: =+HLOOKUP($N84,'rangos nal'!$A$13:$M$19,R$75,FALSE) -> 0 | S84: =+HLOOKUP($N84,'rangos nal'!$A$13:$M$19,S$75,FALSE) -> 0 | T84: =+HLOOKUP($N84,'rangos nal'!$A$13:$M$19,T$75,FALSE) -> 0 | U84: 0
N85: Sep | O85: Septiembre | P85: =+HLOOKUP($N85,'rangos nal'!$A$13:$M$19,P$75,FALSE) -> 0 | Q85: =+HLOOKUP($N85,'rangos nal'!$A$13:$M$19,Q$75,FALSE) -> 0 | R85: =+HLOOKUP($N85,'rangos nal'!$A$13:$M$19,R$75,FALSE) -> 0 | S85: =+HLOOKUP($N85,'rangos nal'!$A$13:$M$19,S$75,FALSE) -> 0 | T85: =+HLOOKUP($N85,'rangos nal'!$A$13:$M$19,T$75,FALSE) -> 0 | U85: 0
N86: Oct | O86: Octubre | P86: =+HLOOKUP($N86,'rangos nal'!$A$13:$M$19,P$75,FALSE) -> 0 | Q86: =+HLOOKUP($N86,'rangos nal'!$A$13:$M$19,Q$75,FALSE) -> 0 | R86: =+HLOOKUP($N86,'rangos nal'!$A$13:$M$19,R$75,FALSE) -> 0 | S86: =+HLOOKUP($N86,'rangos nal'!$A$13:$M$19,S$75,FALSE) -> 0 | T86: =+HLOOKUP($N86,'rangos nal'!$A$13:$M$19,T$75,FALSE) -> 0 | U86: 0
N87: Nov | O87: Noviembre | P87: =+HLOOKUP($N87,'rangos nal'!$A$13:$M$19,P$75,FALSE) -> 0 | Q87: =+HLOOKUP($N87,'rangos nal'!$A$13:$M$19,Q$75,FALSE) -> 0 | R87: =+HLOOKUP($N87,'rangos nal'!$A$13:$M$19,R$75,FALSE) -> 0 | S87: =+HLOOKUP($N87,'rangos nal'!$A$13:$M$19,S$75,FALSE) -> 0 | T87: =+HLOOKUP($N87,'rangos nal'!$A$13:$M$19,T$75,FALSE) -> 0 | U87: 0
N88: Dic | O88: Diciembre | P88: =+HLOOKUP($N88,'rangos nal'!$A$13:$M$19,P$75,FALSE) -> 0 | Q88: =+HLOOKUP($N88,'rangos nal'!$A$13:$M$19,Q$75,FALSE) -> 0 | R88: =+HLOOKUP($N88,'rangos nal'!$A$13:$M$19,R$75,FALSE) -> 0 | S88: =+HLOOKUP($N88,'rangos nal'!$A$13:$M$19,S$75,FALSE) -> 0 | T88: =+HLOOKUP($N88,'rangos nal'!$A$13:$M$19,T$75,FALSE) -> 0 | U88: 0
D97: Indicadores | P97: 7 | Q97: 8 | R97: =+P97+5 -> 12 | S97: =+Q97+5 -> 13 | T97: 17 | U97: 18 | V97: 22 | W97: 23 | X97: 27 | Y97: 28 | Z97: 32 | AA97: 33 | AB97: 37 | AC97: 38 | AD97: 42 | AE97: 43 | AF97: 47 | AG97: 48 | AH97: 52 | AI97: 53 | AJ97: 57 | AK97: 58 | AL97: 62 | AM97: 63
D98: =+C71 -> PA | E98: =+VLOOKUP(D98,referencias!$E$1:$F$6,2,FALSE) -> Plan de Acción | P98: Historico
J99: 3 | K99: =+VLOOKUP($D$5,referencias!$I$1:$N$12,4,FALSE) -> 16 | L99: =+VLOOKUP($D$5,referencias!$I$1:$N$12,5,FALSE) -> 17 | M99: =+VLOOKUP($D$5,referencias!$I$1:$N$12,6,FALSE) -> 18 | P99: Enero | R99: Febrero | T99: Marzo | V99: Abril | X99: Mayo | Z99: Junio | AB99: Julio | AD99: Agosto | AF99: Septiembre | AH99: Octubre | AJ99: Noviembre | AL99: Diciembre
C100: Área | D100: Cod | E100: Nombre | J100: Meta | K100: Resultado | L100: % avance | M100: rango | P100: % avance | Q100: rango | R100: % avance | S100: rango | T100: % avance | U100: rango | V100: % avance | W100: rango | X100: % avance | Y100: rango | Z100: % avance | AA100: rango | AB100: % avance | AC100: rango | AD100: % avance | AE100: rango | AF100: % avance | AG100: rango | AH100: % avance | AI100: rango | AJ100: % avance | AK100: rango | AL100: % avance | AM100: rango
B101: 2 | C101: =+IFERROR(VLOOKUP(D101,'tablero nal'!$W$9:$EM$163,121,FALSE),"") -> Primera Infancia | D101: =+IF(HLOOKUP($D$98,'listado indicadores'!$B$3:$AZ$158,$B101,FALSE)="","",HLOOKUP($D$98,'listado indicadores'!$B$3:$AZ$158,$B101,FALSE)) -> PA-01 | E101: =+IFERROR(VLOOKUP(D101,'tablero nal'!$W$9:$X$163,2,FALSE),"") -> Número de niños y niñas atendidos en el marco de la Atención Integral. | J101: =+IFERROR(IF(VLOOKUP($D101&"_"&1,base!$E$4:$BO$7238,J$99,FALSE)>1,IF(VLOOKUP($D101&"_"&1,base!$E$4:$BO$7238,J$99,FALSE)>=1000,TEXT(VLOOKUP($D101&"_"&1,base!$E$4:$BO$7238,J$99,FALSE),"0.000"),TEXT(VLOOKUP($D101&"_"&1,base!$E$4:$BO$7238,J$99,FALSE),"0")),TEXT(VLOOKUP($D101&"_"&1,base!$E$4:$BO$7238,J$99,FALSE),"0.0%")),"") -> 1.150.000 | K101: =+IFERROR(IF(VLOOKUP($D101&"_"&1,base!$E$4:$BO$7238,K$99,FALSE)>1,IF(VLOOKUP($D101&"_"&1,base!$E$4:$BO$7238,K$99,FALSE)>=1000,TEXT(VLOOKUP($D101&"_"&1,base!$E$4:$BO$7238,K$99,FALSE),"0.000"),TEXT(VLOOKUP($D101&"_"&1,base!$E$4:$BO$7238,K$99,FALSE),"0")),TEXT(VLOOKUP($D101&"_"&1,base!$E$4:$BO$7238,K$99,FALSE),"0.0%")),"") -> 925.435 | L101: =+IFERROR(VLOOKUP($D101&"_"&1,base!$E$4:$BO$7238,L$99,FALSE),"") -> 0.858 | M101: =+IFERROR(VLOOKUP($D101&"_"&1,base!$E$4:$BO$7238,M$99,FALSE),"") -> OPTIMO | P101: =+IFERROR(VLOOKUP($D101&"_"&1,base!$E$4:$BO$7238,P$97,FALSE),"") -> NA | Q101: =+IFERROR(VLOOKUP($D101&"_"&1,base!$E$4:$BO$7238,Q$97,FALSE),"") -> NA | R101: =+IFERROR(VLOOKUP($D101&"_"&1,base!$E$4:$BO$7238,R$97,FALSE),"") -> 0.8424109142 | S101: =+IFERROR(VLOOKUP($D101&"_"&1,base!$E$4:$BO$7238,S$97,FALSE),"") -> OPTIMO | T101: =+IFERROR(VLOOKUP($D101&"_"&1,base!$E$4:$BO$7238,T$97,FALSE),"") -> 0.858 | U101: =+IFERROR(VLOOKUP($D101&"_"&1,base!$E$4:$BO$7238,U$97,FALSE),"") -> OPTIMO | V101: =+IFERROR(VLOOKUP($D101&"_"&1,base!$E$4:$BO$7238,V$97,FALSE),"") -> 0 | W101: =+IFERROR(VLOOKUP($D101&"_"&1,base!$E$4:$BO$7238,W$97,FALSE),"") -> 0 | X101: =+IFERROR(VLOOKUP($D101&"_"&1,base!$E$4:$BO$7238,X$97,FALSE),"") -> 0 | Y101: =+IFERROR(VLOOKUP($D101&"_"&1,base!$E$4:$BO$7238,Y$97,FALSE),"") -> 0 | Z101: =+IFERROR(VLOOKUP($D101&"_"&1,base!$E$4:$BO$7238,Z$97,FALSE),"") -> 0 | AA101: =+IFERROR(VLOOKUP($D101&"_"&1,base!$E$4:$BO$7238,AA$97,FALSE),"") -> 0 | AB101: =+IFERROR(VLOOKUP($D101&"_"&1,base!$E$4:$BO$7238,AB$97,FALSE),"") -> 0 | AC101: =+IFERROR(VLOOKUP($D101&"_"&1,base!$E$4:$BO$7238,AC$97,FALSE),"") -> 0 | AD101: =+IFERROR(VLOOKUP($D101&"_"&1,base!$E$4:$BO$7238,AD$97,FALSE),"") -> 0 | AE101: =+IFERROR(VLOOKUP($D101&"_"&1,base!$E$4:$BO$7238,AE$97,FALSE),"") -> 0 | AF101: =+IFERROR(VLOOKUP($D101&"_"&1,base!$E$4:$BO$7238,AF$97,FALSE),"") -> 0 | AG101: =+IFERROR(VLOOKUP($D101&"_"&1,base!$E$4:$BO$7238,AG$97,FALSE),"") -> 0 | AH101: =+IFERROR(VLOOKUP($D101&"_"&1,base!$E$4:$BO$7238,AH$97,FALSE),"") -> 0 | AI101: =+IFERROR(VLOOKUP($D101&"_"&1,base!$E$4:$BO$7238,AI$97,FALSE),"") -> 0 | AJ101: =+IFERROR(VLOOKUP($D101&"_"&1,base!$E$4:$BO$7238,AJ$97,FALSE),"") -> 0 | AK101: =+IFERROR(VLOOKUP($D101&"_"&1,base!$E$4:$BO$7238,AK$97,FALSE),"") -> 0 | AL101: =+IFERROR(VLOOKUP($D101&"_"&1,base!$E$4:$BO$7238,AL$97,FALSE),"") -> 0 | AM101: =+IFERROR(VLOOKUP($D101&"_"&1,base!$E$4:$BO$7238,AM$97,FALSE),"") -> 0
B102: 3 | C102: =+IFERROR(VLOOKUP(D102,'tablero nal'!$W$9:$EM$163,121,FALSE),"") -> Primera Infancia | D102: =+IF(HLOOKUP($D$98,'listado indicadores'!$B$3:$AZ$158,$B102,FALSE)="","",HLOOKUP($D$98,'listado indicadores'!$B$3:$AZ$158,$B102,FALSE)) -> PA-02 | E102: =+IFERROR(VLOOKUP(D102,'tablero nal'!$W$9:$X$163,2,FALSE),"") -> Porcentaje de niños y niñas atendidos en Hogares Comunitarios transitados a las Modalidades de Atención Integral | J102: =+IFERROR(IF(VLOOKUP($D102&"_"&1,base!$E$4:$BO$7238,J$99,FALSE)>1,IF(VLOOKUP($D102&"_"&1,base!$E$4:$BO$7238,J$99,FALSE)>=1000,TEXT(VLOOKUP($D102&"_"&1,base!$E$4:$BO$7238,J$99,FALSE),"0.000"),TEXT(VLOOKUP($D102&"_"&1,base!$E$4:$BO$7238,J$99,FALSE),"0")),TEXT(VLOOKUP($D102&"_"&1,base!$E$4:$BO$7238,J$99,FALSE),"0.0%")),"") -> 13% | K102: =+IFERROR(IF(VLOOKUP($D102&"_"&1,base!$E$4:$BO$7238,K$99,FALSE)>1,IF(VLOOKUP($D102&"_"&1,base!$E$4:$BO$7238,K$99,FALSE)>=1000,TEXT(VLOOKUP($D102&"_"&1,base!$E$4:$BO$7238,K$99,FALSE),"0.000"),TEXT(VLOOKUP($D102&"_"&1,base!$E$4:$BO$7238,K$99,FALSE),"0")),TEXT(VLOOKUP($D102&"_"&1,base!$E$4:$BO$7238,K$99,FALSE),"0.0%")),"") -> NA | L102: =+IFERROR(VLOOKUP($D102&"_"&1,base!$E$4:$BO$7238,L$99,FALSE),"") -> NA | M102: =+IFERROR(VLOOKUP($D102&"_"&1,base!$E$4:$BO$7238,M$99,FALSE),"") -> NA | P102: =+IFERROR(VLOOKUP($D102&"_"&1,base!$E$4:$BO$7238,P$97,FALSE),"") -> NA | Q102: =+IFERROR(VLOOKUP($D102&"_"&1,base!$E$4:$BO$7238,Q$97,FALSE),"") -> NA | R102: =+IFERROR(VLOOKUP($D102&"_"&1,base!$E$4:$BO$7238,R$97,FALSE),"") -> NA | S102: =+IFERROR(VLOOKUP($D102&"_"&1,base!$E$4:$BO$7238,S$97,FALSE),"") -> NA | T102: =+IFERROR(VLOOKUP($D102&"_"&1,base!$E$4:$BO$7238,T$97,FALSE),"") -> NA | U102: =+IFERROR(VLOOKUP($D102&"_"&1,base!$E$4:$BO$7238,U$97,FALSE),"") -> NA | V102: =+IFERROR(VLOOKUP($D102&"_"&1,base!$E$4:$BO$7238,V$97,FALSE),"") -> 0 | W102: =+IFERROR(VLOOKUP($D102&"_"&1,base!$E$4:$BO$7238,W$97,FALSE),"") -> 0 | X102: =+IFERROR(VLOOKUP($D102&"_"&1,base!$E$4:$BO$7238,X$97,FALSE),"") -> 0 | Y102: =+IFERROR(VLOOKUP($D102&"_"&1,base!$E$4:$BO$7238,Y$97,FALSE),"") -> 0 | Z102: =+IFERROR(VLOOKUP($D102&"_"&1,base!$E$4:$BO$7238,Z$97,FALSE),"") -> 0 | AA102: =+IFERROR(VLOOKUP($D102&"_"&1,base!$E$4:$BO$7238,AA$97,FALSE),"") -> 0 | AB102: =+IFERROR(VLOOKUP($D102&"_"&1,base!$E$4:$BO$7238,AB$97,FALSE),"") -> 0 | AC102: =+IFERROR(VLOOKUP($D102&"_"&1,base!$E$4:$BO$7238,AC$97,FALSE),"") -> 0 | AD102: =+IFERROR(VLOOKUP($D102&"_"&1,base!$E$4:$BO$7238,AD$97,FALSE),"") -> 0 | AE102: =+IFERROR(VLOOKUP($D102&"_"&1,base!$E$4:$BO$7238,AE$97,FALSE),"") -> 0 | AF102: =+IFERROR(VLOOKUP($D102&"_"&1,base!$E$4:$BO$7238,AF$97,FALSE),"") -> 0 | AG102: =+IFERROR(VLOOKUP($D102&"_"&1,base!$E$4:$BO$7238,AG$97,FALSE),"") -> 0 | AH102: =+IFERROR(VLOOKUP($D102&"_"&1,base!$E$4:$BO$7238,AH$97,FALSE),"") -> 0 | AI102: =+IFERROR(VLOOKUP($D102&"_"&1,base!$E$4:$BO$7238,AI$97,FALSE),"") -> 0 | AJ102: =+IFERROR(VLOOKUP($D102&"_"&1,base!$E$4:$BO$7238,AJ$97,FALSE),"") -> 0 | AK102: =+IFERROR(VLOOKUP($D102&"_"&1,base!$E$4:$BO$7238,AK$97,FALSE),"") -> 0 | AL102: =+IFERROR(VLOOKUP($D102&"_"&1,base!$E$4:$BO$7238,AL$97,FALSE),"") -> 0 | AM102: =+IFERROR(VLOOKUP($D102&"_"&1,base!$E$4:$BO$7238,AM$97,FALSE),"") -> 0
B103: 4 | C103: =+IFERROR(VLOOKUP(D103,'tablero nal'!$W$9:$EM$163,121,FALSE),"") -> Primera Infancia | D103: =+IF(HLOOKUP($D$98,'listado indicadores'!$B$3:$AZ$158,$B103,FALSE)="","",HLOOKUP($D$98,'listado indicadores'!$B$3:$AZ$158,$B103,FALSE)) -> PA-03 | E103: =+IFERROR(VLOOKUP(D103,'tablero nal'!$W$9:$X$163,2,FALSE),"") -> Porcentaje de niños y niñas de las modalidades de Primera Infancia, reportados al Ministerio de Educación para la matricula al sistema educativo. | J103: =+IFERROR(IF(VLOOKUP($D103&"_"&1,base!$E$4:$BO$7238,J$99,FALSE)>1,IF(VLOOKUP($D103&"_"&1,base!$E$4:$BO$7238,J$99,FALSE)>=1000,TEXT(VLOOKUP($D103&"_"&1,base!$E$4:$BO$7238,J$99,FALSE),"0.000"),TEXT(VLOOKUP($D103&"_"&1,base!$E$4:$BO$7238,J$99,FALSE),"0")),TEXT(VLOOKUP($D103&"_"&1,base!$E$4:$BO$7238,J$99,FALSE),"0.0%")),"") -> 80% | K103: =+IFERROR(IF(VLOOKUP($D103&"_"&1,base!$E$4:$BO$7238,K$99,FALSE)>1,IF(VLOOKUP($D103&"_"&1,base!$E$4:$BO$7238,K$99,FALSE)>=1000,TEXT(VLOOKUP($D103&"_"&1,base!$E$4:$BO$7238,K$99,FALSE),"0.000"),TEXT(VLOOKUP($D103&"_"&1,base!$E$4:$BO$7238,K$99,FALSE),"0")),TEXT(VLOOKUP($D103&"_"&1,base!$E$4:$BO$7238,K$99,FALSE),"0.0%")),"") -> NA | L103: =+IFERROR(VLOOKUP($D103&"_"&1,base!$E$4:$BO$7238,L$99,FALSE),"") -> NA | M103: =+IFERROR(VLOOKUP($D103&"_"&1,base!$E$4:$BO$7238,M$99,FALSE),"") -> NA | P103: =+IFERROR(VLOOKUP($D103&"_"&1,base!$E$4:$BO$7238,P$97,FALSE),"") -> NA | Q103: =+IFERROR(VLOOKUP($D103&"_"&1,base!$E$4:$BO$7238,Q$97,FALSE),"") -> NA | R103: =+IFERROR(VLOOKUP($D103&"_"&1,base!$E$4:$BO$7238,R$97,FALSE),"") -> NA | S103: =+IFERROR(VLOOKUP($D103&"_"&1,base!$E$4:$BO$7238,S$97,FALSE),"") -> NA | T103: =+IFERROR(VLOOKUP($D103&"_"&1,base!$E$4:$BO$7238,T$97,FALSE),"") -> NA | U103: =+IFERROR(VLOOKUP($D103&"_"&1,base!$E$4:$BO$7238,U$97,FALSE),"") -> NA | V103: =+IFERROR(VLOOKUP($D103&"_"&1,base!$E$4:$BO$7238,V$97,FALSE),"") -> 0 | W103: =+IFERROR(VLOOKUP($D103&"_"&1,base!$E$4:$BO$7238,W$97,FALSE),"") -> 0 | X103: =+IFERROR(VLOOKUP($D103&"_"&1,base!$E$4:$BO$7238,X$97,FALSE),"") -> 0 | Y103: =+IFERROR(VLOOKUP($D103&"_"&1,base!$E$4:$BO$7238,Y$97,FALSE),"") -> 0 | Z103: =+IFERROR(VLOOKUP($D103&"_"&1,base!$E$4:$BO$7238,Z$97,FALSE),"") -> 0 | AA103: =+IFERROR(VLOOKUP($D103&"_"&1,base!$E$4:$BO$7238,AA$97,FALSE),"") -> 0 | AB103: =+IFERROR(VLOOKUP($D103&"_"&1,base!$E$4:$BO$7238,AB$97,FALSE),"") -> 0 | AC103: =+IFERROR(VLOOKUP($D103&"_"&1,base!$E$4:$BO$7238,AC$97,FALSE),"") -> 0 | AD103: =+IFERROR(VLOOKUP($D103&"_"&1,base!$E$4:$BO$7238,AD$97,FALSE),"") -> 0 | AE103: =+IFERROR(VLOOKUP($D103&"_"&1,base!$E$4:$BO$7238,AE$97,FALSE),"") -> 0 | AF103: =+IFERROR(VLOOKUP($D103&"_"&1,base!$E$4:$BO$7238,AF$97,FALSE),"") -> 0 | AG103: =+IFERROR(VLOOKUP($D103&"_"&1,base!$E$4:$BO$7238,AG$97,FALSE),"") -> 0 | AH103: =+IFERROR(VLOOKUP($D103&"_"&1,base!$E$4:$BO$7238,AH$97,FALSE),"") -> 0 | AI103: =+IFERROR(VLOOKUP($D103&"_"&1,base!$E$4:$BO$7238,AI$97,FALSE),"") -> 0 | AJ103: =+IFERROR(VLOOKUP($D103&"_"&1,base!$E$4:$BO$7238,AJ$97,FALSE),"") -> 0 | AK103: =+IFERROR(VLOOKUP($D103&"_"&1,base!$E$4:$BO$7238,AK$97,FALSE),"") -> 0 | AL103: =+IFERROR(VLOOKUP($D103&"_"&1,base!$E$4:$BO$7238,AL$97,FALSE),"") -> 0 | AM103: =+IFERROR(VLOOKUP($D103&"_"&1,base!$E$4:$BO$7238,AM$97,FALSE),"") -> 0
B104: 5 | C104: =+IFERROR(VLOOKUP(D104,'tablero nal'!$W$9:$EM$163,121,FALSE),"") -> Primera Infancia | D104: =+IF(HLOOKUP($D$98,'listado indicadores'!$B$3:$AZ$158,$B104,FALSE)="","",HLOOKUP($D$98,'listado indicadores'!$B$3:$AZ$158,$B104,FALSE)) -> PA-04 | E104: =+IFERROR(VLOOKUP(D104,'tablero nal'!$W$9:$X$163,2,FALSE),"") -> Porcentaje de Hogares Comunitarios que cumplen los estándares de la estrategia de Cero a Siempre. | J104: =+IFERROR(IF(VLOOKUP($D104&"_"&1,base!$E$4:$BO$7238,J$99,FALSE)>1,IF(VLOOKUP($D104&"_"&1,base!$E$4:$BO$7238,J$99,FALSE)>=1000,TEXT(VLOOKUP($D104&"_"&1,base!$E$4:$BO$7238,J$99,FALSE),"0.000"),TEXT(VLOOKUP($D104&"_"&1,base!$E$4:$BO$7238,J$99,FALSE),"0")),TEXT(VLOOKUP($D104&"_"&1,base!$E$4:$BO$7238,J$99,FALSE),"0.0%")),"") -> 30% | K104: =+IFERROR(IF(VLOOKUP($D104&"_"&1,base!$E$4:$BO$7238,K$99,FALSE)>1,IF(VLOOKUP($D104&"_"&1,base!$E$4:$BO$7238,K$99,FALSE)>=1000,TEXT(VLOOKUP($D104&"_"&1,base!$E$4:$BO$7238,K$99,FALSE),"0.000"),TEXT(VLOOKUP($D104&"_"&1,base!$E$4:$BO$7238,K$99,FALSE),"0")),TEXT(VLOOKUP($D104&"_"&1,base!$E$4:$BO$7238,K$99,FALSE),"0.0%")),"") -> NA | L104: =+IFERROR(VLOOKUP($D104&"_"&1,base!$E$4:$BO$7238,L$99,FALSE),"") -> NA | M104: =+IFERROR(VLOOKUP($D104&"_"&1,base!$E$4:$BO$7238,M$99,FALSE),"") -> NA | P104: =+IFERROR(VLOOKUP($D104&"_"&1,base!$E$4:$BO$7238,P$97,FALSE),"") -> NA | Q104: =+IFERROR(VLOOKUP($D104&"_"&1,base!$E$4:$BO$7238,Q$97,FALSE),"") -> NA | R104: =+IFERROR(VLOOKUP($D104&"_"&1,base!$E$4:$BO$7238,R$97,FALSE),"") -> NA | S104: =+IFERROR(VLOOKUP($D104&"_"&1,base!$E$4:$BO$7238,S$97,FALSE),"") -> NA | T104: =+IFERROR(VLOOKUP($D104&"_"&1,base!$E$4:$BO$7238,T$97,FALSE),"") -> NA | U104: =+IFERROR(VLOOKUP($D104&"_"&1,base!$E$4:$BO$7238,U$97,FALSE),"") -> NA | V104: =+IFERROR(VLOOKUP($D104&"_"&1,base!$E$4:$BO$7238,V$97,FALSE),"") -> 0 | W104: =+IFERROR(VLOOKUP($D104&"_"&1,base!$E$4:$BO$7238,W$97,FALSE),"") -> 0 | X104: =+IFERROR(VLOOKUP($D104&"_"&1,base!$E$4:$BO$7238,X$97,FALSE),"") -> 0 | Y104: =+IFERROR(VLOOKUP($D104&"_"&1,base!$E$4:$BO$7238,Y$97,FALSE),"") -> 0 | Z104: =+IFERROR(VLOOKUP($D104&"_"&1,base!$E$4:$BO$7238,Z$97,FALSE),"") -> 0 | AA104: =+IFERROR(VLOOKUP($D104&"_"&1,base!$E$4:$BO$7238,AA$97,FALSE),"") -> 0 | AB104: =+IFERROR(VLOOKUP($D104&"_"&1,base!$E$4:$BO$7238,AB$97,FALSE),"") -> 0 | AC104: =+IFERROR(VLOOKUP($D104&"_"&1,base!$E$4:$BO$7238,AC$97,FALSE),"") -> 0 | AD104: =+IFERROR(VLOOKUP($D104&"_"&1,base!$E$4:$BO$7238,AD$97,FALSE),"") -> 0 | AE104: =+IFERROR(VLOOKUP($D104&"_"&1,base!$E$4:$BO$7238,AE$97,FALSE),"") -> 0 | AF104: =+IFERROR(VLOOKUP($D104&"_"&1,base!$E$4:$BO$7238,AF$97,FALSE),"") -> 0 | AG104: =+IFERROR(VLOOKUP($D104&"_"&1,base!$E$4:$BO$7238,AG$97,FALSE),"") -> 0 | AH104: =+IFERROR(VLOOKUP($D104&"_"&1,base!$E$4:$BO$7238,AH$97,FALSE),"") -> 0 | AI104: =+IFERROR(VLOOKUP($D104&"_"&1,base!$E$4:$BO$7238,AI$97,FALSE),"") -> 0 | AJ104: =+IFERROR(VLOOKUP($D104&"_"&1,base!$E$4:$BO$7238,AJ$97,FALSE),"") -> 0 | AK104: =+IFERROR(VLOOKUP($D104&"_"&1,base!$E$4:$BO$7238,AK$97,FALSE),"") -> 0 | AL104: =+IFERROR(VLOOKUP($D104&"_"&1,base!$E$4:$BO$7238,AL$97,FALSE),"") -> 0 | AM104: =+IFERROR(VLOOKUP($D104&"_"&1,base!$E$4:$BO$7238,AM$97,FALSE),"") -> 0
B105: 6 | C105: =+IFERROR(VLOOKUP(D105,'tablero nal'!$W$9:$EM$163,121,FALSE),"") -> Primera Infancia | D105: =+IF(HLOOKUP($D$98,'listado indicadores'!$B$3:$AZ$158,$B105,FALSE)="","",HLOOKUP($D$98,'listado indicadores'!$B$3:$AZ$158,$B105,FALSE)) -> PA-05 | E105: =+IFERROR(VLOOKUP(D105,'tablero nal'!$W$9:$X$163,2,FALSE),"") -> Número de agentes educativos en proceso de formación y/o cualificación en Atención Integral a la Primera Infancia. | J105: =+IFERROR(IF(VLOOKUP($D105&"_"&1,base!$E$4:$BO$7238,J$99,FALSE)>1,IF(VLOOKUP($D105&"_"&1,base!$E$4:$BO$7238,J$99,FALSE)>=1000,TEXT(VLOOKUP($D105&"_"&1,base!$E$4:$BO$7238,J$99,FALSE),"0.000"),TEXT(VLOOKUP($D105&"_"&1,base!$E$4:$BO$7238,J$99,FALSE),"0")),TEXT(VLOOKUP($D105&"_"&1,base!$E$4:$BO$7238,J$99,FALSE),"0.0%")),"") -> 30.000 | K105: =+IFERROR(IF(VLOOKUP($D105&"_"&1,base!$E$4:$BO$7238,K$99,FALSE)>1,IF(VLOOKUP($D105&"_"&1,base!$E$4:$BO$7238,K$99,FALSE)>=1000,TEXT(VLOOKUP($D105&"_"&1,base!$E$4:$BO$7238,K$99,FALSE),"0.000"),TEXT(VLOOKUP($D105&"_"&1,base!$E$4:$BO$7238,K$99,FALSE),"0")),TEXT(VLOOKUP($D105&"_"&1,base!$E$4:$BO$7238,K$99,FALSE),"0.0%")),"") -> NA | L105: =+IFERROR(VLOOKUP($D105&"_"&1,base!$E$4:$BO$7238,L$99,FALSE),"") -> NA | M105: =+IFERROR(VLOOKUP($D105&"_"&1,base!$E$4:$BO$7238,M$99,FALSE),"") -> NA | P105: =+IFERROR(VLOOKUP($D105&"_"&1,base!$E$4:$BO$7238,P$97,FALSE),"") -> NA | Q105: =+IFERROR(VLOOKUP($D105&"_"&1,base!$E$4:$BO$7238,Q$97,FALSE),"") -> NA | R105: =+IFERROR(VLOOKUP($D105&"_"&1,base!$E$4:$BO$7238,R$97,FALSE),"") -> NA | S105: =+IFERROR(VLOOKUP($D105&"_"&1,base!$E$4:$BO$7238,S$97,FALSE),"") -> NA | T105: =+IFERROR(VLOOKUP($D105&"_"&1,base!$E$4:$BO$7238,T$97,FALSE),"") -> NA | U105: =+IFERROR(VLOOKUP($D105&"_"&1,base!$E$4:$BO$7238,U$97,FALSE),"") -> NA | V105: =+IFERROR(VLOOKUP($D105&"_"&1,base!$E$4:$BO$7238,V$97,FALSE),"") -> 0 | W105: =+IFERROR(VLOOKUP($D105&"_"&1,base!$E$4:$BO$7238,W$97,FALSE),"") -> 0 | X105: =+IFERROR(VLOOKUP($D105&"_"&1,base!$E$4:$BO$7238,X$97,FALSE),"") -> 0 | Y105: =+IFERROR(VLOOKUP($D105&"_"&1,base!$E$4:$BO$7238,Y$97,FALSE),"") -> 0 | Z105: =+IFERROR(VLOOKUP($D105&"_"&1,base!$E$4:$BO$7238,Z$97,FALSE),"") -> 0 | AA105: =+IFERROR(VLOOKUP($D105&"_"&1,base!$E$4:$BO$7238,AA$97,FALSE),"") -> 0 | AB105: =+IFERROR(VLOOKUP($D105&"_"&1,base!$E$4:$BO$7238,AB$97,FALSE),"") -> 0 | AC105: =+IFERROR(VLOOKUP($D105&"_"&1,base!$E$4:$BO$7238,AC$97,FALSE),"") -> 0 | AD105: =+IFERROR(VLOOKUP($D105&"_"&1,base!$E$4:$BO$7238,AD$97,FALSE),"") -> 0 | AE105: =+IFERROR(VLOOKUP($D105&"_"&1,base!$E$4:$BO$7238,AE$97,FALSE),"") -> 0 | AF105: =+IFERROR(VLOOKUP($D105&"_"&1,base!$E$4:$BO$7238,AF$97,FALSE),"") -> 0 | AG105: =+IFERROR(VLOOKUP($D105&"_"&1,base!$E$4:$BO$7238,AG$97,FALSE),"") -> 0 | AH105: =+IFERROR(VLOOKUP($D105&"_"&1,base!$E$4:$BO$7238,AH$97,FALSE),"") -> 0 | AI105: =+IFERROR(VLOOKUP($D105&"_"&1,base!$E$4:$BO$7238,AI$97,FALSE),"") -> 0 | AJ105: =+IFERROR(VLOOKUP($D105&"_"&1,base!$E$4:$BO$7238,AJ$97,FALSE),"") -> 0 | AK105: =+IFERROR(VLOOKUP($D105&"_"&1,base!$E$4:$BO$7238,AK$97,FALSE),"") -> 0 | AL105: =+IFERROR(VLOOKUP($D105&"_"&1,base!$E$4:$BO$7238,AL$97,FALSE),"") -> 0 | AM105: =+IFERROR(VLOOKUP($D105&"_"&1,base!$E$4:$BO$7238,AM$97,FALSE),"") -> 0
B106: 7 | C106: =+IFERROR(VLOOKUP(D106,'tablero nal'!$W$9:$EM$163,121,FALSE),"") -> Primera Infancia | D106: =+IF(HLOOKUP($D$98,'listado indicadores'!$B$3:$AZ$158,$B106,FALSE)="","",HLOOKUP($D$98,'listado indicadores'!$B$3:$AZ$158,$B106,FALSE)) -> PA-06 | E106: =+IFERROR(VLOOKUP(D106,'tablero nal'!$W$9:$X$163,2,FALSE),"") -> Número de CDIs entregados para operación de la modalidades de Atención Integral a la Primera Infancia | J106: =+IFERROR(IF(VLOOKUP($D106&"_"&1,base!$E$4:$BO$7238,J$99,FALSE)>1,IF(VLOOKUP($D106&"_"&1,base!$E$4:$BO$7238,J$99,FALSE)>=1000,TEXT(VLOOKUP($D106&"_"&1,base!$E$4:$BO$7238,J$99,FALSE),"0.000"),TEXT(VLOOKUP($D106&"_"&1,base!$E$4:$BO$7238,J$99,FALSE),"0")),TEXT(VLOOKUP($D106&"_"&1,base!$E$4:$BO$7238,J$99,FALSE),"0.0%")),"") -> 80 | K106: =+IFERROR(IF(VLOOKUP($D106&"_"&1,base!$E$4:$BO$7238,K$99,FALSE)>1,IF(VLOOKUP($D106&"_"&1,base!$E$4:$BO$7238,K$99,FALSE)>=1000,TEXT(VLOOKUP($D106&"_"&1,base!$E$4:$BO$7238,K$99,FALSE),"0.000"),TEXT(VLOOKUP($D106&"_"&1,base!$E$4:$BO$7238,K$99,FALSE),"0")),TEXT(VLOOKUP($D106&"_"&1,base!$E$4:$BO$7238,K$99,FALSE),"0.0%")),"") -> NA | L106: =+IFERROR(VLOOKUP($D106&"_"&1,base!$E$4:$BO$7238,L$99,FALSE),"") -> NA | M106: =+IFERROR(VLOOKUP($D106&"_"&1,base!$E$4:$BO$7238,M$99,FALSE),"") -> NA | P106: =+IFERROR(VLOOKUP($D106&"_"&1,base!$E$4:$BO$7238,P$97,FALSE),"") -> NA | Q106: =+IFERROR(VLOOKUP($D106&"_"&1,base!$E$4:$BO$7238,Q$97,FALSE),"") -> NA | R106: =+IFERROR(VLOOKUP($D106&"_"&1,base!$E$4:$BO$7238,R$97,FALSE),"") -> NA | S106: =+IFERROR(VLOOKUP($D106&"_"&1,base!$E$4:$BO$7238,S$97,FALSE),"") -> NA | T106: =+IFERROR(VLOOKUP($D106&"_"&1,base!$E$4:$BO$7238,T$97,FALSE),"") -> NA | U106: =+IFERROR(VLOOKUP($D106&"_"&1,base!$E$4:$BO$7238,U$97,FALSE),"") -> NA | V106: =+IFERROR(VLOOKUP($D106&"_"&1,base!$E$4:$BO$7238,V$97,FALSE),"") -> 0 | W106: =+IFERROR(VLOOKUP($D106&"_"&1,base!$E$4:$BO$7238,W$97,FALSE),"") -> 0 | X106: =+IFERROR(VLOOKUP($D106&"_"&1,base!$E$4:$BO$7238,X$97,FALSE),"") -> 0 | Y106: =+IFERROR(VLOOKUP($D106&"_"&1,base!$E$4:$BO$7238,Y$97,FALSE),"") -> 0 | Z106: =+IFERROR(VLOOKUP($D106&"_"&1,base!$E$4:$BO$7238,Z$97,FALSE),"") -> 0 | AA106: =+IFERROR(VLOOKUP($D106&"_"&1,base!$E$4:$BO$7238,AA$97,FALSE),"") -> 0 | AB106: =+IFERROR(VLOOKUP($D106&"_"&1,base!$E$4:$BO$7238,AB$97,FALSE),"") -> 0 | AC106: =+IFERROR(VLOOKUP($D106&"_"&1,base!$E$4:$BO$7238,AC$97,FALSE),"") -> 0 | AD106: =+IFERROR(VLOOKUP($D106&"_"&1,base!$E$4:$BO$7238,AD$97,FALSE),"") -> 0 | AE106: =+IFERROR(VLOOKUP($D106&"_"&1,base!$E$4:$BO$7238,AE$97,FALSE),"") -> 0 | AF106: =+IFERROR(VLOOKUP($D106&"_"&1,base!$E$4:$BO$7238,AF$97,FALSE),"") -> 0 | AG106: =+IFERROR(VLOOKUP($D106&"_"&1,base!$E$4:$BO$7238,AG$97,FALSE),"") -> 0 | AH106: =+IFERROR(VLOOKUP($D106&"_"&1,base!$E$4:$BO$7238,AH$97,FALSE),"") -> 0 | AI106: =+IFERROR(VLOOKUP($D106&"_"&1,base!$E$4:$BO$7238,AI$97,FALSE),"") -> 0 | AJ106: =+IFERROR(VLOOKUP($D106&"_"&1,base!$E$4:$BO$7238,AJ$97,FALSE),"") -> 0 | AK106: =+IFERROR(VLOOKUP($D106&"_"&1,base!$E$4:$BO$7238,AK$97,FALSE),"") -> 0 | AL106: =+IFERROR(VLOOKUP($D106&"_"&1,base!$E$4:$BO$7238,AL$97,FALSE),"") -> 0 | AM106: =+IFERROR(VLOOKUP($D106&"_"&1,base!$E$4:$BO$7238,AM$97,FALSE),"") -> 0
B107: 8 | C107: =+IFERROR(VLOOKUP(D107,'tablero nal'!$W$9:$EM$163,121,FALSE),"") -> Primera Infancia | D107: =+IF(HLOOKUP($D$98,'listado indicadores'!$B$3:$AZ$158,$B107,FALSE)="","",HLOOKUP($D$98,'listado indicadores'!$B$3:$AZ$158,$B107,FALSE)) -> PA-07 | E107: =+IFERROR(VLOOKUP(D107,'tablero nal'!$W$9:$X$163,2,FALSE),"") -> Número de Unidades de servicio con planes de implementación para salas de lectura. | J107: =+IFERROR(IF(VLOOKUP($D107&"_"&1,base!$E$4:$BO$7238,J$99,FALSE)>1,IF(VLOOKUP($D107&"_"&1,base!$E$4:$BO$7238,J$99,FALSE)>=1000,TEXT(VLOOKUP($D107&"_"&1,base!$E$4:$BO$7238,J$99,FALSE),"0.000"),TEXT(VLOOKUP($D107&"_"&1,base!$E$4:$BO$7238,J$99,FALSE),"0")),TEXT(VLOOKUP($D107&"_"&1,base!$E$4:$BO$7238,J$99,FALSE),"0.0%")),"") -> 110 | K107: =+IFERROR(IF(VLOOKUP($D107&"_"&1,base!$E$4:$BO$7238,K$99,FALSE)>1,IF(VLOOKUP($D107&"_"&1,base!$E$4:$BO$7238,K$99,FALSE)>=1000,TEXT(VLOOKUP($D107&"_"&1,base!$E$4:$BO$7238,K$99,FALSE),"0.000"),TEXT(VLOOKUP($D107&"_"&1,base!$E$4:$BO$7238,K$99,FALSE),"0")),TEXT(VLOOKUP($D107&"_"&1,base!$E$4:$BO$7238,K$99,FALSE),"0.0%")),"") -> NA | L107: =+IFERROR(VLOOKUP($D107&"_"&1,base!$E$4:$BO$7238,L$99,FALSE),"") -> NA | M107: =+IFERROR(VLOOKUP($D107&"_"&1,base!$E$4:$BO$7238,M$99,FALSE),"") -> NA | P107: =+IFERROR(VLOOKUP($D107&"_"&1,base!$E$4:$BO$7238,P$97,FALSE),"") -> NA | Q107: =+IFERROR(VLOOKUP($D107&"_"&1,base!$E$4:$BO$7238,Q$97,FALSE),"") -> NA | R107: =+IFERROR(VLOOKUP($D107&"_"&1,base!$E$4:$BO$7238,R$97,FALSE),"") -> NA | S107: =+IFERROR(VLOOKUP($D107&"_"&1,base!$E$4:$BO$7238,S$97,FALSE),"") -> NA | T107: =+IFERROR(VLOOKUP($D107&"_"&1,base!$E$4:$BO$7238,T$97,FALSE),"") -> NA | U107: =+IFERROR(VLOOKUP($D107&"_"&1,base!$E$4:$BO$7238,U$97,FALSE),"") -> NA | V107: =+IFERROR(VLOOKUP($D107&"_"&1,base!$E$4:$BO$7238,V$97,FALSE),"") -> 0 | W107: =+IFERROR(VLOOKUP($D107&"_"&1,base!$E$4:$BO$7238,W$97,FALSE),"") -> 0 | X107: =+IFERROR(VLOOKUP($D107&"_"&1,base!$E$4:$BO$7238,X$97,FALSE),"") -> 0 | Y107: =+IFERROR(VLOOKUP($D107&"_"&1,base!$E$4:$BO$7238,Y$97,FALSE),"") -> 0 | Z107: =+IFERROR(VLOOKUP($D107&"_"&1,base!$E$4:$BO$7238,Z$97,FALSE),"") -> 0 | AA107: =+IFERROR(VLOOKUP($D107&"_"&1,base!$E$4:$BO$7238,AA$97,FALSE),"") -> 0 | AB107: =+IFERROR(VLOOKUP($D107&"_"&1,base!$E$4:$BO$7238,AB$97,FALSE),"") -> 0 | AC107: =+IFERROR(VLOOKUP($D107&"_"&1,base!$E$4:$BO$7238,AC$97,FALSE),"") -> 0 | AD107: =+IFERROR(VLOOKUP($D107&"_"&1,base!$E$4:$BO$7238,AD$97,FALSE),"") -> 0 | AE107: =+IFERROR(VLOOKUP($D107&"_"&1,base!$E$4:$BO$7238,AE$97,FALSE),"") -> 0 | AF107: =+IFERROR(VLOOKUP($D107&"_"&1,base!$E$4:$BO$7238,AF$97,FALSE),"") -> 0 | AG107: =+IFERROR(VLOOKUP($D107&"_"&1,base!$E$4:$BO$7238,AG$97,FALSE),"") -> 0 | AH107: =+IFERROR(VLOOKUP($D107&"_"&1,base!$E$4:$BO$7238,AH$97,FALSE),"") -> 0 | AI107: =+IFERROR(VLOOKUP($D107&"_"&1,base!$E$4:$BO$7238,AI$97,FALSE),"") -> 0 | AJ107: =+IFERROR(VLOOKUP($D107&"_"&1,base!$E$4:$BO$7238,AJ$97,FALSE),"") -> 0 | AK107: =+IFERROR(VLOOKUP($D107&"_"&1,base!$E$4:$BO$7238,AK$97,FALSE),"") -> 0 | AL107: =+IFERROR(VLOOKUP($D107&"_"&1,base!$E$4:$BO$7238,AL$97,FALSE),"") -> 0 | AM107: =+IFERROR(VLOOKUP($D107&"_"&1,base!$E$4:$BO$7238,AM$97,FALSE),"") -> 0
B108: 9 | C108: =+IFERROR(VLOOKUP(D108,'tablero nal'!$W$9:$EM$163,121,FALSE),"") -> Primera Infancia | D108: =+IF(HLOOKUP($D$98,'listado indicadores'!$B$3:$AZ$158,$B108,FALSE)="","",HLOOKUP($D$98,'listado indicadores'!$B$3:$AZ$158,$B108,FALSE)) -> PA-08 | E108: =+IFERROR(VLOOKUP(D108,'tablero nal'!$W$9:$X$163,2,FALSE),"") -> Porcentaje de EAS de atención a la primera infancia con esquemas de fortalecimiento que generen capacidades para gestionar procesos de calidad. | J108: =+IFERROR(IF(VLOOKUP($D108&"_"&1,base!$E$4:$BO$7238,J$99,FALSE)>1,IF(VLOOKUP($D108&"_"&1,base!$E$4:$BO$7238,J$99,FALSE)>=1000,TEXT(VLOOKUP($D108&"_"&1,base!$E$4:$BO$7238,J$99,FALSE),"0.000"),TEXT(VLOOKUP($D108&"_"&1,base!$E$4:$BO$7238,J$99,FALSE),"0")),TEXT(VLOOKUP($D108&"_"&1,base!$E$4:$BO$7238,J$99,FALSE),"0.0%")),"") -> 90% | K108: =+IFERROR(IF(VLOOKUP($D108&"_"&1,base!$E$4:$BO$7238,K$99,FALSE)>1,IF(VLOOKUP($D108&"_"&1,base!$E$4:$BO$7238,K$99,FALSE)>=1000,TEXT(VLOOKUP($D108&"_"&1,base!$E$4:$BO$7238,K$99,FALSE),"0.000"),TEXT(VLOOKUP($D108&"_"&1,base!$E$4:$BO$7238,K$99,FALSE),"0")),TEXT(VLOOKUP($D108&"_"&1,base!$E$4:$BO$7238,K$99,FALSE),"0.0%")),"") -> NA | L108: =+IFERROR(VLOOKUP($D108&"_"&1,base!$E$4:$BO$7238,L$99,FALSE),"") -> NA | M108: =+IFERROR(VLOOKUP($D108&"_"&1,base!$E$4:$BO$7238,M$99,FALSE),"") -> NA | P108: =+IFERROR(VLOOKUP($D108&"_"&1,base!$E$4:$BO$7238,P$97,FALSE),"") -> NA | Q108: =+IFERROR(VLOOKUP($D108&"_"&1,base!$E$4:$BO$7238,Q$97,FALSE),"") -> NA | R108: =+IFERROR(VLOOKUP($D108&"_"&1,base!$E$4:$BO$7238,R$97,FALSE),"") -> NA | S108: =+IFERROR(VLOOKUP($D108&"_"&1,base!$E$4:$BO$7238,S$97,FALSE),"") -> NA | T108: =+IFERROR(VLOOKUP($D108&"_"&1,base!$E$4:$BO$7238,T$97,FALSE),"") -> NA | U108: =+IFERROR(VLOOKUP($D108&"_"&1,base!$E$4:$BO$7238,U$97,FALSE),"") -> NA | V108: =+IFERROR(VLOOKUP($D108&"_"&1,base!$E$4:$BO$7238,V$97,FALSE),"") -> 0 | W108: =+IFERROR(VLOOKUP($D108&"_"&1,base!$E$4:$BO$7238,W$97,FALSE),"") -> 0 | X108: =+IFERROR(VLOOKUP($D108&"_"&1,base!$E$4:$BO$7238,X$97,FALSE),"") -> 0 | Y108: =+IFERROR(VLOOKUP($D108&"_"&1,base!$E$4:$BO$7238,Y$97,FALSE),"") -> 0 | Z108: =+IFERROR(VLOOKUP($D108&"_"&1,base!$E$4:$BO$7238,Z$97,FALSE),"") -> 0 | AA108: =+IFERROR(VLOOKUP($D108&"_"&1,base!$E$4:$BO$7238,AA$97,FALSE),"") -> 0 | AB108: =+IFERROR(VLOOKUP($D108&"_"&1,base!$E$4:$BO$7238,AB$97,FALSE),"") -> 0 | AC108: =+IFERROR(VLOOKUP($D108&"_"&1,base!$E$4:$BO$7238,AC$97,FALSE),"") -> 0 | AD108: =+IFERROR(VLOOKUP($D108&"_"&1,base!$E$4:$BO$7238,AD$97,FALSE),"") -> 0 | AE108: =+IFERROR(VLOOKUP($D108&"_"&1,base!$E$4:$BO$7238,AE$97,FALSE),"") -> 0 | AF108: =+IFERROR(VLOOKUP($D108&"_"&1,base!$E$4:$BO$7238,AF$97,FALSE),"") -> 0 | AG108: =+IFERROR(VLOOKUP($D108&"_"&1,base!$E$4:$BO$7238,AG$97,FALSE),"") -> 0 | AH108: =+IFERROR(VLOOKUP($D108&"_"&1,base!$E$4:$BO$7238,AH$97,FALSE),"") -> 0 | AI108: =+IFERROR(VLOOKUP($D108&"_"&1,base!$E$4:$BO$7238,AI$97,FALSE),"") -> 0 | AJ108: =+IFERROR(VLOOKUP($D108&"_"&1,base!$E$4:$BO$7238,AJ$97,FALSE),"") -> 0 | AK108: =+IFERROR(VLOOKUP($D108&"_"&1,base!$E$4:$BO$7238,AK$97,FALSE),"") -> 0 | AL108: =+IFERROR(VLOOKUP($D108&"_"&1,base!$E$4:$BO$7238,AL$97,FALSE),"") -> 0 | AM108: =+IFERROR(VLOOKUP($D108&"_"&1,base!$E$4:$BO$7238,AM$97,FALSE),"") -> 0
B109: 10 | C109: =+IFERROR(VLOOKUP(D109,'tablero nal'!$W$9:$EM$163,121,FALSE),"") -> Primera Infancia | D109: =+IF(HLOOKUP($D$98,'listado indicadores'!$B$3:$AZ$158,$B109,FALSE)="","",HLOOKUP($D$98,'listado indicadores'!$B$3:$AZ$158,$B109,FALSE)) -> PA-10 | E109: =+IFERROR(VLOOKUP(D109,'tablero nal'!$W$9:$X$163,2,FALSE),"") -> Número de visitas de supervisión realizadas a las modalidades de Primera Infancia. | J109: =+IFERROR(IF(VLOOKUP($D109&"_"&1,base!$E$4:$BO$7238,J$99,FALSE)>1,IF(VLOOKUP($D109&"_"&1,base!$E$4:$BO$7238,J$99,FALSE)>=1000,TEXT(VLOOKUP($D109&"_"&1,base!$E$4:$BO$7238,J$99,FALSE),"0.000"),TEXT(VLOOKUP($D109&"_"&1,base!$E$4:$BO$7238,J$99,FALSE),"0")),TEXT(VLOOKUP($D109&"_"&1,base!$E$4:$BO$7238,J$99,FALSE),"0.0%")),"") -> 50.000 | K109: =+IFERROR(IF(VLOOKUP($D109&"_"&1,base!$E$4:$BO$7238,K$99,FALSE)>1,IF(VLOOKUP($D109&"_"&1,base!$E$4:$BO$7238,K$99,FALSE)>=1000,TEXT(VLOOKUP($D109&"_"&1,base!$E$4:$BO$7238,K$99,FALSE),"0.000"),TEXT(VLOOKUP($D109&"_"&1,base!$E$4:$BO$7238,K$99,FALSE),"0")),TEXT(VLOOKUP($D109&"_"&1,base!$E$4:$BO$7238,K$99,FALSE),"0.0%")),"") -> NA | L109: =+IFERROR(VLOOKUP($D109&"_"&1,base!$E$4:$BO$7238,L$99,FALSE),"") -> NA | M109: =+IFERROR(VLOOKUP($D109&"_"&1,base!$E$4:$BO$7238,M$99,FALSE),"") -> NA | P109: =+IFERROR(VLOOKUP($D109&"_"&1,base!$E$4:$BO$7238,P$97,FALSE),"") -> NA | Q109: =+IFERROR(VLOOKUP($D109&"_"&1,base!$E$4:$BO$7238,Q$97,FALSE),"") -> NA | R109: =+IFERROR(VLOOKUP($D109&"_"&1,base!$E$4:$BO$7238,R$97,FALSE),"") -> NA | S109: =+IFERROR(VLOOKUP($D109&"_"&1,base!$E$4:$BO$7238,S$97,FALSE),"") -> NA | T109: =+IFERROR(VLOOKUP($D109&"_"&1,base!$E$4:$BO$7238,T$97,FALSE),"") -> NA | U109: =+IFERROR(VLOOKUP($D109&"_"&1,base!$E$4:$BO$7238,U$97,FALSE),"") -> NA | V109: =+IFERROR(VLOOKUP($D109&"_"&1,base!$E$4:$BO$7238,V$97,FALSE),"") -> 0 | W109: =+IFERROR(VLOOKUP($D109&"_"&1,base!$E$4:$BO$7238,W$97,FALSE),"") -> 0 | X109: =+IFERROR(VLOOKUP($D109&"_"&1,base!$E$4:$BO$7238,X$97,FALSE),"") -> 0 | Y109: =+IFERROR(VLOOKUP($D109&"_"&1,base!$E$4:$BO$7238,Y$97,FALSE),"") -> 0 | Z109: =+IFERROR(VLOOKUP($D109&"_"&1,base!$E$4:$BO$7238,Z$97,FALSE),"") -> 0 | AA109: =+IFERROR(VLOOKUP($D109&"_"&1,base!$E$4:$BO$7238,AA$97,FALSE),"") -> 0 | AB109: =+IFERROR(VLOOKUP($D109&"_"&1,base!$E$4:$BO$7238,AB$97,FALSE),"") -> 0 | AC109: =+IFERROR(VLOOKUP($D109&"_"&1,base!$E$4:$BO$7238,AC$97,FALSE),"") -> 0 | AD109: =+IFERROR(VLOOKUP($D109&"_"&1,base!$E$4:$BO$7238,AD$97,FALSE),"") -> 0 | AE109: =+IFERROR(VLOOKUP($D109&"_"&1,base!$E$4:$BO$7238,AE$97,FALSE),"") -> 0 | AF109: =+IFERROR(VLOOKUP($D109&"_"&1,base!$E$4:$BO$7238,AF$97,FALSE),"") -> 0 | AG109: =+IFERROR(VLOOKUP($D109&"_"&1,base!$E$4:$BO$7238,AG$97,FALSE),"") -> 0 | AH109: =+IFERROR(VLOOKUP($D109&"_"&1,base!$E$4:$BO$7238,AH$97,FALSE),"") -> 0 | AI109: =+IFERROR(VLOOKUP($D109&"_"&1,base!$E$4:$BO$7238,AI$97,FALSE),"") -> 0 | AJ109: =+IFERROR(VLOOKUP($D109&"_"&1,base!$E$4:$BO$7238,AJ$97,FALSE),"") -> 0 | AK109: =+IFERROR(VLOOKUP($D109&"_"&1,base!$E$4:$BO$7238,AK$97,FALSE),"") -> 0 | AL109: =+IFERROR(VLOOKUP($D109&"_"&1,base!$E$4:$BO$7238,AL$97,FALSE),"") -> 0 | AM109: =+IFERROR(VLOOKUP($D109&"_"&1,base!$E$4:$BO$7238,AM$97,FALSE),"") -> 0
B110: 11 | C110: =+IFERROR(VLOOKUP(D110,'tablero nal'!$W$9:$EM$163,121,FALSE),"") -> Niñez y Adolescencia | D110: =+IF(HLOOKUP($D$98,'listado indicadores'!$B$3:$AZ$158,$B110,FALSE)="","",HLOOKUP($D$98,'listado indicadores'!$B$3:$AZ$158,$B110,FALSE)) -> PA-11 | E110: =+IFERROR(VLOOKUP(D110,'tablero nal'!$W$9:$X$163,2,FALSE),"") -> Porcentaje del diseño e implementación de la ruta integral de atenciones para la infancia y la adolescencia. | J110: =+IFERROR(IF(VLOOKUP($D110&"_"&1,base!$E$4:$BO$7238,J$99,FALSE)>1,IF(VLOOKUP($D110&"_"&1,base!$E$4:$BO$7238,J$99,FALSE)>=1000,TEXT(VLOOKUP($D110&"_"&1,base!$E$4:$BO$7238,J$99,FALSE),"0.000"),TEXT(VLOOKUP($D110&"_"&1,base!$E$4:$BO$7238,J$99,FALSE),"0")),TEXT(VLOOKUP($D110&"_"&1,base!$E$4:$BO$7238,J$99,FALSE),"0.0%")),"") -> 50% | K110: =+IFERROR(IF(VLOOKUP($D110&"_"&1,base!$E$4:$BO$7238,K$99,FALSE)>1,IF(VLOOKUP($D110&"_"&1,base!$E$4:$BO$7238,K$99,FALSE)>=1000,TEXT(VLOOKUP($D110&"_"&1,base!$E$4:$BO$7238,K$99,FALSE),"0.000"),TEXT(VLOOKUP($D110&"_"&1,base!$E$4:$BO$7238,K$99,FALSE),"0")),TEXT(VLOOKUP($D110&"_"&1,base!$E$4:$BO$7238,K$99,FALSE),"0.0%")),"") -> NA | L110: =+IFERROR(VLOOKUP($D110&"_"&1,base!$E$4:$BO$7238,L$99,FALSE),"") -> NA | M110: =+IFERROR(VLOOKUP($D110&"_"&1,base!$E$4:$BO$7238,M$99,FALSE),"") -> NA | P110: =+IFERROR(VLOOKUP($D110&"_"&1,base!$E$4:$BO$7238,P$97,FALSE),"") -> NA | Q110: =+IFERROR(VLOOKUP($D110&"_"&1,base!$E$4:$BO$7238,Q$97,FALSE),"") -> NA | R110: =+IFERROR(VLOOKUP($D110&"_"&1,base!$E$4:$BO$7238,R$97,FALSE),"") -> NA | S110: =+IFERROR(VLOOKUP($D110&"_"&1,base!$E$4:$BO$7238,S$97,FALSE),"") -> NA | T110: =+IFERROR(VLOOKUP($D110&"_"&1,base!$E$4:$BO$7238,T$97,FALSE),"") -> NA | U110: =+IFERROR(VLOOKUP($D110&"_"&1,base!$E$4:$BO$7238,U$97,FALSE),"") -> NA | V110: =+IFERROR(VLOOKUP($D110&"_"&1,base!$E$4:$BO$7238,V$97,FALSE),"") -> 0 | W110: =+IFERROR(VLOOKUP($D110&"_"&1,base!$E$4:$BO$7238,W$97,FALSE),"") -> 0 | X110: =+IFERROR(VLOOKUP($D110&"_"&1,base!$E$4:$BO$7238,X$97,FALSE),"") -> 0 | Y110: =+IFERROR(VLOOKUP($D110&"_"&1,base!$E$4:$BO$7238,Y$97,FALSE),"") -> 0 | Z110: =+IFERROR(VLOOKUP($D110&"_"&1,base!$E$4:$BO$7238,Z$97,FALSE),"") -> 0 | AA110: =+IFERROR(VLOOKUP($D110&"_"&1,base!$E$4:$BO$7238,AA$97,FALSE),"") -> 0 | AB110: =+IFERROR(VLOOKUP($D110&"_"&1,base!$E$4:$BO$7238,AB$97,FALSE),"") -> 0 | AC110: =+IFERROR(VLOOKUP($D110&"_"&1,base!$E$4:$BO$7238,AC$97,FALSE),"") -> 0 | AD110: =+IFERROR(VLOOKUP($D110&"_"&1,base!$E$4:$BO$7238,AD$97,FALSE),"") -> 0 | AE110: =+IFERROR(VLOOKUP($D110&"_"&1,base!$E$4:$BO$7238,AE$97,FALSE),"") -> 0 | AF110: =+IFERROR(VLOOKUP($D110&"_"&1,base!$E$4:$BO$7238,AF$97,FALSE),"") -> 0 | AG110: =+IFERROR(VLOOKUP($D110&"_"&1,base!$E$4:$BO$7238,AG$97,FALSE),"") -> 0 | AH110: =+IFERROR(VLOOKUP($D110&"_"&1,base!$E$4:$BO$7238,AH$97,FALSE),"") -> 0 | AI110: =+IFERROR(VLOOKUP($D110&"_"&1,base!$E$4:$BO$7238,AI$97,FALSE),"") -> 0 | AJ110: =+IFERROR(VLOOKUP($D110&"_"&1,base!$E$4:$BO$7238,AJ$97,FALSE),"") -> 0 | AK110: =+IFERROR(VLOOKUP($D110&"_"&1,base!$E$4:$BO$7238,AK$97,FALSE),"") -> 0 | AL110: =+IFERROR(VLOOKUP($D110&"_"&1,base!$E$4:$BO$7238,AL$97,FALSE),"") -> 0 | AM110: =+IFERROR(VLOOKUP($D110&"_"&1,base!$E$4:$BO$7238,AM$97,FALSE),"") -> 0
B111: 12 | C111: =+IFERROR(VLOOKUP(D111,'tablero nal'!$W$9:$EM$163,121,FALSE),"") -> Niñez y Adolescencia | D111: =+IF(HLOOKUP($D$98,'listado indicadores'!$B$3:$AZ$158,$B111,FALSE)="","",HLOOKUP($D$98,'listado indicadores'!$B$3:$AZ$158,$B111,FALSE)) -> PA-12 | E111: =+IFERROR(VLOOKUP(D111,'tablero nal'!$W$9:$X$163,2,FALSE),"") -> Porcentaje del diseño e implementación de la política Nacional para la infancia y la adolescencia. | J111: =+IFERROR(IF(VLOOKUP($D111&"_"&1,base!$E$4:$BO$7238,J$99,FALSE)>1,IF(VLOOKUP($D111&"_"&1,base!$E$4:$BO$7238,J$99,FALSE)>=1000,TEXT(VLOOKUP($D111&"_"&1,base!$E$4:$BO$7238,J$99,FALSE),"0.000"),TEXT(VLOOKUP($D111&"_"&1,base!$E$4:$BO$7238,J$99,FALSE),"0")),TEXT(VLOOKUP($D111&"_"&1,base!$E$4:$BO$7238,J$99,FALSE),"0.0%")),"") -> 50% | K111: =+IFERROR(IF(VLOOKUP($D111&"_"&1,base!$E$4:$BO$7238,K$99,FALSE)>1,IF(VLOOKUP($D111&"_"&1,base!$E$4:$BO$7238,K$99,FALSE)>=1000,TEXT(VLOOKUP($D111&"_"&1,base!$E$4:$BO$7238,K$99,FALSE),"0.000"),TEXT(VLOOKUP($D111&"_"&1,base!$E$4:$BO$7238,K$99,FALSE),"0")),TEXT(VLOOKUP($D111&"_"&1,base!$E$4:$BO$7238,K$99,FALSE),"0.0%")),"") -> NA | L111: =+IFERROR(VLOOKUP($D111&"_"&1,base!$E$4:$BO$7238,L$99,FALSE),"") -> NA | M111: =+IFERROR(VLOOKUP($D111&"_"&1,base!$E$4:$BO$7238,M$99,FALSE),"") -> NA | P111: =+IFERROR(VLOOKUP($D111&"_"&1,base!$E$4:$BO$7238,P$97,FALSE),"") -> NA | Q111: =+IFERROR(VLOOKUP($D111&"_"&1,base!$E$4:$BO$7238,Q$97,FALSE),"") -> NA | R111: =+IFERROR(VLOOKUP($D111&"_"&1,base!$E$4:$BO$7238,R$97,FALSE),"") -> NA | S111: =+IFERROR(VLOOKUP($D111&"_"&1,base!$E$4:$BO$7238,S$97,FALSE),"") -> NA | T111: =+IFERROR(VLOOKUP($D111&"_"&1,base!$E$4:$BO$7238,T$97,FALSE),"") -> NA | U111: =+IFERROR(VLOOKUP($D111&"_"&1,base!$E$4:$BO$7238,U$97,FALSE),"") -> NA | V111: =+IFERROR(VLOOKUP($D111&"_"&1,base!$E$4:$BO$7238,V$97,FALSE),"") -> 0 | W111: =+IFERROR(VLOOKUP($D111&"_"&1,base!$E$4:$BO$7238,W$97,FALSE),"") -> 0 | X111: =+IFERROR(VLOOKUP($D111&"_"&1,base!$E$4:$BO$7238,X$97,FALSE),"") -> 0 | Y111: =+IFERROR(VLOOKUP($D111&"_"&1,base!$E$4:$BO$7238,Y$97,FALSE),"") -> 0 | Z111: =+IFERROR(VLOOKUP($D111&"_"&1,base!$E$4:$BO$7238,Z$97,FALSE),"") -> 0 | AA111: =+IFERROR(VLOOKUP($D111&"_"&1,base!$E$4:$BO$7238,AA$97,FALSE),"") -> 0 | AB111: =+IFERROR(VLOOKUP($D111&"_"&1,base!$E$4:$BO$7238,AB$97,FALSE),"") -> 0 | AC111: =+IFERROR(VLOOKUP($D111&"_"&1,base!$E$4:$BO$7238,AC$97,FALSE),"") -> 0 | AD111: =+IFERROR(VLOOKUP($D111&"_"&1,base!$E$4:$BO$7238,AD$97,FALSE),"") -> 0 | AE111: =+IFERROR(VLOOKUP($D111&"_"&1,base!$E$4:$BO$7238,AE$97,FALSE),"") -> 0 | AF111: =+IFERROR(VLOOKUP($D111&"_"&1,base!$E$4:$BO$7238,AF$97,FALSE),"") -> 0 | AG111: =+IFERROR(VLOOKUP($D111&"_"&1,base!$E$4:$BO$7238,AG$97,FALSE),"") -> 0 | AH111: =+IFERROR(VLOOKUP($D111&"_"&1,base!$E$4:$BO$7238,AH$97,FALSE),"") -> 0 | AI111: =+IFERROR(VLOOKUP($D111&"_"&1,base!$E$4:$BO$7238,AI$97,FALSE),"") -> 0 | AJ111: =+IFERROR(VLOOKUP($D111&"_"&1,base!$E$4:$BO$7238,AJ$97,FALSE),"") -> 0 | AK111: =+IFERROR(VLOOKUP($D111&"_"&1,base!$E$4:$BO$7238,AK$97,FALSE),"") -> 0 | AL111: =+IFERROR(VLOOKUP($D111&"_"&1,base!$E$4:$BO$7238,AL$97,FALSE),"") -> 0 | AM111: =+IFERROR(VLOOKUP($D111&"_"&1,base!$E$4:$BO$7238,AM$97,FALSE),"") -> 0
B112: 13 | C112: =+IFERROR(VLOOKUP(D112,'tablero nal'!$W$9:$EM$163,121,FALSE),"") -> Niñez y Adolescencia | D112: =+IF(HLOOKUP($D$98,'listado indicadores'!$B$3:$AZ$158,$B112,FALSE)="","",HLOOKUP($D$98,'listado indicadores'!$B$3:$AZ$158,$B112,FALSE)) -> PA-13 | E112: =+IFERROR(VLOOKUP(D112,'tablero nal'!$W$9:$X$163,2,FALSE),"") -> Número de departamentos con la estrategia de prevención de embarazo en la adolescencia implementada | J112: =+IFERROR(IF(VLOOKUP($D112&"_"&1,base!$E$4:$BO$7238,J$99,FALSE)>1,IF(VLOOKUP($D112&"_"&1,base!$E$4:$BO$7238,J$99,FALSE)>=1000,TEXT(VLOOKUP($D112&"_"&1,base!$E$4:$BO$7238,J$99,FALSE),"0.000"),TEXT(VLOOKUP($D112&"_"&1,base!$E$4:$BO$7238,J$99,FALSE),"0")),TEXT(VLOOKUP($D112&"_"&1,base!$E$4:$BO$7238,J$99,FALSE),"0.0%")),"") -> 15 | K112: =+IFERROR(IF(VLOOKUP($D112&"_"&1,base!$E$4:$BO$7238,K$99,FALSE)>1,IF(VLOOKUP($D112&"_"&1,base!$E$4:$BO$7238,K$99,FALSE)>=1000,TEXT(VLOOKUP($D112&"_"&1,base!$E$4:$BO$7238,K$99,FALSE),"0.000"),TEXT(VLOOKUP($D112&"_"&1,base!$E$4:$BO$7238,K$99,FALSE),"0")),TEXT(VLOOKUP($D112&"_"&1,base!$E$4:$BO$7238,K$99,FALSE),"0.0%")),"") -> NA | L112: =+IFERROR(VLOOKUP($D112&"_"&1,base!$E$4:$BO$7238,L$99,FALSE),"") -> NA | M112: =+IFERROR(VLOOKUP($D112&"_"&1,base!$E$4:$BO$7238,M$99,FALSE),"") -> NA | P112: =+IFERROR(VLOOKUP($D112&"_"&1,base!$E$4:$BO$7238,P$97,FALSE),"") -> NA | Q112: =+IFERROR(VLOOKUP($D112&"_"&1,base!$E$4:$BO$7238,Q$97,FALSE),"") -> NA | R112: =+IFERROR(VLOOKUP($D112&"_"&1,base!$E$4:$BO$7238,R$97,FALSE),"") -> NA | S112: =+IFERROR(VLOOKUP($D112&"_"&1,base!$E$4:$BO$7238,S$97,FALSE),"") -> NA | T112: =+IFERROR(VLOOKUP($D112&"_"&1,base!$E$4:$BO$7238,T$97,FALSE),"") -> NA | U112: =+IFERROR(VLOOKUP($D112&"_"&1,base!$E$4:$BO$7238,U$97,FALSE),"") -> NA | V112: =+IFERROR(VLOOKUP($D112&"_"&1,base!$E$4:$BO$7238,V$97,FALSE),"") -> 0 | W112: =+IFERROR(VLOOKUP($D112&"_"&1,base!$E$4:$BO$7238,W$97,FALSE),"") -> 0 | X112: =+IFERROR(VLOOKUP($D112&"_"&1,base!$E$4:$BO$7238,X$97,FALSE),"") -> 0 | Y112: =+IFERROR(VLOOKUP($D112&"_"&1,base!$E$4:$BO$7238,Y$97,FALSE),"") -> 0 | Z112: =+IFERROR(VLOOKUP($D112&"_"&1,base!$E$4:$BO$7238,Z$97,FALSE),"") -> 0 | AA112: =+IFERROR(VLOOKUP($D112&"_"&1,base!$E$4:$BO$7238,AA$97,FALSE),"") -> 0 | AB112: =+IFERROR(VLOOKUP($D112&"_"&1,base!$E$4:$BO$7238,AB$97,FALSE),"") -> 0 | AC112: =+IFERROR(VLOOKUP($D112&"_"&1,base!$E$4:$BO$7238,AC$97,FALSE),"") -> 0 | AD112: =+IFERROR(VLOOKUP($D112&"_"&1,base!$E$4:$BO$7238,AD$97,FALSE),"") -> 0 | AE112: =+IFERROR(VLOOKUP($D112&"_"&1,base!$E$4:$BO$7238,AE$97,FALSE),"") -> 0 | AF112: =+IFERROR(VLOOKUP($D112&"_"&1,base!$E$4:$BO$7238,AF$97,FALSE),"") -> 0 | AG112: =+IFERROR(VLOOKUP($D112&"_"&1,base!$E$4:$BO$7238,AG$97,FALSE),"") -> 0 | AH112: =+IFERROR(VLOOKUP($D112&"_"&1,base!$E$4:$BO$7238,AH$97,FALSE),"") -> 0 | AI112: =+IFERROR(VLOOKUP($D112&"_"&1,base!$E$4:$BO$7238,AI$97,FALSE),"") -> 0 | AJ112: =+IFERROR(VLOOKUP($D112&"_"&1,base!$E$4:$BO$7238,AJ$97,FALSE),"") -> 0 | AK112: =+IFERROR(VLOOKUP($D112&"_"&1,base!$E$4:$BO$7238,AK$97,FALSE),"") -> 0 | AL112: =+IFERROR(VLOOKUP($D112&"_"&1,base!$E$4:$BO$7238,AL$97,FALSE),"") -> 0 | AM112: =+IFERROR(VLOOKUP($D112&"_"&1,base!$E$4:$BO$7238,AM$97,FALSE),"") -> 0
B113: 14 | C113: =+IFERROR(VLOOKUP(D113,'tablero nal'!$W$9:$EM$163,121,FALSE),"") -> Niñez y Adolescencia | D113: =+IF(HLOOKUP($D$98,'listado indicadores'!$B$3:$AZ$158,$B113,FALSE)="","",HLOOKUP($D$98,'listado indicadores'!$B$3:$AZ$158,$B113,FALSE)) -> PA-14 | E113: =+IFERROR(VLOOKUP(D113,'tablero nal'!$W$9:$X$163,2,FALSE),"") -> Número de Municipios priorizados con la implementación de la estrategia de prevención de embarazo en la adolescencia | J113: =+IFERROR(IF(VLOOKUP($D113&"_"&1,base!$E$4:$BO$7238,J$99,FALSE)>1,IF(VLOOKUP($D113&"_"&1,base!$E$4:$BO$7238,J$99,FALSE)>=1000,TEXT(VLOOKUP($D113&"_"&1,base!$E$4:$BO$7238,J$99,FALSE),"0.000"),TEXT(VLOOKUP($D113&"_"&1,base!$E$4:$BO$7238,J$99,FALSE),"0")),TEXT(VLOOKUP($D113&"_"&1,base!$E$4:$BO$7238,J$99,FALSE),"0.0%")),"") -> 205 | K113: =+IFERROR(IF(VLOOKUP($D113&"_"&1,base!$E$4:$BO$7238,K$99,FALSE)>1,IF(VLOOKUP($D113&"_"&1,base!$E$4:$BO$7238,K$99,FALSE)>=1000,TEXT(VLOOKUP($D113&"_"&1,base!$E$4:$BO$7238,K$99,FALSE),"0.000"),TEXT(VLOOKUP($D113&"_"&1,base!$E$4:$BO$7238,K$99,FALSE),"0")),TEXT(VLOOKUP($D113&"_"&1,base!$E$4:$BO$7238,K$99,FALSE),"0.0%")),"") -> NA | L113: =+IFERROR(VLOOKUP($D113&"_"&1,base!$E$4:$BO$7238,L$99,FALSE),"") -> NA | M113: =+IFERROR(VLOOKUP($D113&"_"&1,base!$E$4:$BO$7238,M$99,FALSE),"") -> NA | P113: =+IFERROR(VLOOKUP($D113&"_"&1,base!$E$4:$BO$7238,P$97,FALSE),"") -> NA | Q113: =+IFERROR(VLOOKUP($D113&"_"&1,base!$E$4:$BO$7238,Q$97,FALSE),"") -> NA | R113: =+IFERROR(VLOOKUP($D113&"_"&1,base!$E$4:$BO$7238,R$97,FALSE),"") -> NA | S113: =+IFERROR(VLOOKUP($D113&"_"&1,base!$E$4:$BO$7238,S$97,FALSE),"") -> NA | T113: =+IFERROR(VLOOKUP($D113&"_"&1,base!$E$4:$BO$7238,T$97,FALSE),"") -> NA | U113: =+IFERROR(VLOOKUP($D113&"_"&1,base!$E$4:$BO$7238,U$97,FALSE),"") -> NA | V113: =+IFERROR(VLOOKUP($D113&"_"&1,base!$E$4:$BO$7238,V$97,FALSE),"") -> 0 | W113: =+IFERROR(VLOOKUP($D113&"_"&1,base!$E$4:$BO$7238,W$97,FALSE),"") -> 0 | X113: =+IFERROR(VLOOKUP($D113&"_"&1,base!$E$4:$BO$7238,X$97,FALSE),"") -> 0 | Y113: =+IFERROR(VLOOKUP($D113&"_"&1,base!$E$4:$BO$7238,Y$97,FALSE),"") -> 0 | Z113: =+IFERROR(VLOOKUP($D113&"_"&1,base!$E$4:$BO$7238,Z$97,FALSE),"") -> 0 | AA113: =+IFERROR(VLOOKUP($D113&"_"&1,base!$E$4:$BO$7238,AA$97,FALSE),"") -> 0 | AB113: =+IFERROR(VLOOKUP($D113&"_"&1,base!$E$4:$BO$7238,AB$97,FALSE),"") -> 0 | AC113: =+IFERROR(VLOOKUP($D113&"_"&1,base!$E$4:$BO$7238,AC$97,FALSE),"") -> 0 | AD113: =+IFERROR(VLOOKUP($D113&"_"&1,base!$E$4:$BO$7238,AD$97,FALSE),"") -> 0 | AE113: =+IFERROR(VLOOKUP($D113&"_"&1,base!$E$4:$BO$7238,AE$97,FALSE),"") -> 0 | AF113: =+IFERROR(VLOOKUP($D113&"_"&1,base!$E$4:$BO$7238,AF$97,FALSE),"") -> 0 | AG113: =+IFERROR(VLOOKUP($D113&"_"&1,base!$E$4:$BO$7238,AG$97,FALSE),"") -> 0 | AH113: =+IFERROR(VLOOKUP($D113&"_"&1,base!$E$4:$BO$7238,AH$97,FALSE),"") -> 0 | AI113: =+IFERROR(VLOOKUP($D113&"_"&1,base!$E$4:$BO$7238,AI$97,FALSE),"") -> 0 | AJ113: =+IFERROR(VLOOKUP($D113&"_"&1,base!$E$4:$BO$7238,AJ$97,FALSE),"") -> 0 | AK113: =+IFERROR(VLOOKUP($D113&"_"&1,base!$E$4:$BO$7238,AK$97,FALSE),"") -> 0 | AL113: =+IFERROR(VLOOKUP($D113&"_"&1,base!$E$4:$BO$7238,AL$97,FALSE),"") -> 0 | AM113: =+IFERROR(VLOOKUP($D113&"_"&1,base!$E$4:$BO$7238,AM$97,FALSE),"") -> 0
B114: 15 | C114: =+IFERROR(VLOOKUP(D114,'tablero nal'!$W$9:$EM$163,121,FALSE),"") -> Niñez y Adolescencia | D114: =+IF(HLOOKUP($D$98,'listado indicadores'!$B$3:$AZ$158,$B114,FALSE)="","",HLOOKUP($D$98,'listado indicadores'!$B$3:$AZ$158,$B114,FALSE)) -> PA-15 | E114: =+IFERROR(VLOOKUP(D114,'tablero nal'!$W$9:$X$163,2,FALSE),"") -> Número de Agentes educativos, institucionales y comunitarios de Programas del ICBF formados en derechos sexuales y reproductivos y prevención del embarazo en la adolescencia | J114: =+IFERROR(IF(VLOOKUP($D114&"_"&1,base!$E$4:$BO$7238,J$99,FALSE)>1,IF(VLOOKUP($D114&"_"&1,base!$E$4:$BO$7238,J$99,FALSE)>=1000,TEXT(VLOOKUP($D114&"_"&1,base!$E$4:$BO$7238,J$99,FALSE),"0.000"),TEXT(VLOOKUP($D114&"_"&1,base!$E$4:$BO$7238,J$99,FALSE),"0")),TEXT(VLOOKUP($D114&"_"&1,base!$E$4:$BO$7238,J$99,FALSE),"0.0%")),"") -> 5.800 | K114: =+IFERROR(IF(VLOOKUP($D114&"_"&1,base!$E$4:$BO$7238,K$99,FALSE)>1,IF(VLOOKUP($D114&"_"&1,base!$E$4:$BO$7238,K$99,FALSE)>=1000,TEXT(VLOOKUP($D114&"_"&1,base!$E$4:$BO$7238,K$99,FALSE),"0.000"),TEXT(VLOOKUP($D114&"_"&1,base!$E$4:$BO$7238,K$99,FALSE),"0")),TEXT(VLOOKUP($D114&"_"&1,base!$E$4:$BO$7238,K$99,FALSE),"0.0%")),"") -> NA | L114: =+IFERROR(VLOOKUP($D114&"_"&1,base!$E$4:$BO$7238,L$99,FALSE),"") -> NA | M114: =+IFERROR(VLOOKUP($D114&"_"&1,base!$E$4:$BO$7238,M$99,FALSE),"") -> NA | P114: =+IFERROR(VLOOKUP($D114&"_"&1,base!$E$4:$BO$7238,P$97,FALSE),"") -> NA | Q114: =+IFERROR(VLOOKUP($D114&"_"&1,base!$E$4:$BO$7238,Q$97,FALSE),"") -> NA | R114: =+IFERROR(VLOOKUP($D114&"_"&1,base!$E$4:$BO$7238,R$97,FALSE),"") -> NA | S114: =+IFERROR(VLOOKUP($D114&"_"&1,base!$E$4:$BO$7238,S$97,FALSE),"") -> NA | T114: =+IFERROR(VLOOKUP($D114&"_"&1,base!$E$4:$BO$7238,T$97,FALSE),"") -> NA | U114: =+IFERROR(VLOOKUP($D114&"_"&1,base!$E$4:$BO$7238,U$97,FALSE),"") -> NA | V114: =+IFERROR(VLOOKUP($D114&"_"&1,base!$E$4:$BO$7238,V$97,FALSE),"") -> 0 | W114: =+IFERROR(VLOOKUP($D114&"_"&1,base!$E$4:$BO$7238,W$97,FALSE),"") -> 0 | X114: =+IFERROR(VLOOKUP($D114&"_"&1,base!$E$4:$BO$7238,X$97,FALSE),"") -> 0 | Y114: =+IFERROR(VLOOKUP($D114&"_"&1,base!$E$4:$BO$7238,Y$97,FALSE),"") -> 0 | Z114: =+IFERROR(VLOOKUP($D114&"_"&1,base!$E$4:$BO$7238,Z$97,FALSE),"") -> 0 | AA114: =+IFERROR(VLOOKUP($D114&"_"&1,base!$E$4:$BO$7238,AA$97,FALSE),"") -> 0 | AB114: =+IFERROR(VLOOKUP($D114&"_"&1,base!$E$4:$BO$7238,AB$97,FALSE),"") -> 0 | AC114: =+IFERROR(VLOOKUP($D114&"_"&1,base!$E$4:$BO$7238,AC$97,FALSE),"") -> 0 | AD114: =+IFERROR(VLOOKUP($D114&"_"&1,base!$E$4:$BO$7238,AD$97,FALSE),"") -> 0 | AE114: =+IFERROR(VLOOKUP($D114&"_"&1,base!$E$4:$BO$7238,AE$97,FALSE),"") -> 0 | AF114: =+IFERROR(VLOOKUP($D114&"_"&1,base!$E$4:$BO$7238,AF$97,FALSE),"") -> 0 | AG114: =+IFERROR(VLOOKUP($D114&"_"&1,base!$E$4:$BO$7238,AG$97,FALSE),"") -> 0 | AH114: =+IFERROR(VLOOKUP($D114&"_"&1,base!$E$4:$BO$7238,AH$97,FALSE),"") -> 0 | AI114: =+IFERROR(VLOOKUP($D114&"_"&1,base!$E$4:$BO$7238,AI$97,FALSE),"") -> 0 | AJ114: =+IFERROR(VLOOKUP($D114&"_"&1,base!$E$4:$BO$7238,AJ$97,FALSE),"") -> 0 | AK114: =+IFERROR(VLOOKUP($D114&"_"&1,base!$E$4:$BO$7238,AK$97,FALSE),"") -> 0 | AL114: =+IFERROR(VLOOKUP($D114&"_"&1,base!$E$4:$BO$7238,AL$97,FALSE),"") -> 0 | AM114: =+IFERROR(VLOOKUP($D114&"_"&1,base!$E$4:$BO$7238,AM$97,FALSE),"") -> 0
B115: 16 | C115: =+IFERROR(VLOOKUP(D115,'tablero nal'!$W$9:$EM$163,121,FALSE),"") -> Niñez y Adolescencia | D115: =+IF(HLOOKUP($D$98,'listado indicadores'!$B$3:$AZ$158,$B115,FALSE)="","",HLOOKUP($D$98,'listado indicadores'!$B$3:$AZ$158,$B115,FALSE)) -> PA-16 | E115: =+IFERROR(VLOOKUP(D115,'tablero nal'!$W$9:$X$163,2,FALSE),"") -> Número de niños, niñas y adolescentes participantes en programas, acciones y estrategias de prevención | J115: =+IFERROR(IF(VLOOKUP($D115&"_"&1,base!$E$4:$BO$7238,J$99,FALSE)>1,IF(VLOOKUP($D115&"_"&1,base!$E$4:$BO$7238,J$99,FALSE)>=1000,TEXT(VLOOKUP($D115&"_"&1,base!$E$4:$BO$7238,J$99,FALSE),"0.000"),TEXT(VLOOKUP($D115&"_"&1,base!$E$4:$BO$7238,J$99,FALSE),"0")),TEXT(VLOOKUP($D115&"_"&1,base!$E$4:$BO$7238,J$99,FALSE),"0.0%")),"") -> 133.075 | K115: =+IFERROR(IF(VLOOKUP($D115&"_"&1,base!$E$4:$BO$7238,K$99,FALSE)>1,IF(VLOOKUP($D115&"_"&1,base!$E$4:$BO$7238,K$99,FALSE)>=1000,TEXT(VLOOKUP($D115&"_"&1,base!$E$4:$BO$7238,K$99,FALSE),"0.000"),TEXT(VLOOKUP($D115&"_"&1,base!$E$4:$BO$7238,K$99,FALSE),"0")),TEXT(VLOOKUP($D115&"_"&1,base!$E$4:$BO$7238,K$99,FALSE),"0.0%")),"") -> NA | L115: =+IFERROR(VLOOKUP($D115&"_"&1,base!$E$4:$BO$7238,L$99,FALSE),"") -> NA | M115: =+IFERROR(VLOOKUP($D115&"_"&1,base!$E$4:$BO$7238,M$99,FALSE),"") -> NA | P115: =+IFERROR(VLOOKUP($D115&"_"&1,base!$E$4:$BO$7238,P$97,FALSE),"") -> NA | Q115: =+IFERROR(VLOOKUP($D115&"_"&1,base!$E$4:$BO$7238,Q$97,FALSE),"") -> NA | R115: =+IFERROR(VLOOKUP($D115&"_"&1,base!$E$4:$BO$7238,R$97,FALSE),"") -> NA | S115: =+IFERROR(VLOOKUP($D115&"_"&1,base!$E$4:$BO$7238,S$97,FALSE),"") -> NA | T115: =+IFERROR(VLOOKUP($D115&"_"&1,base!$E$4:$BO$7238,T$97,FALSE),"") -> NA | U115: =+IFERROR(VLOOKUP($D115&"_"&1,base!$E$4:$BO$7238,U$97,FALSE),"") -> NA | V115: =+IFERROR(VLOOKUP($D115&"_"&1,base!$E$4:$BO$7238,V$97,FALSE),"") -> 0 | W115: =+IFERROR(VLOOKUP($D115&"_"&1,base!$E$4:$BO$7238,W$97,FALSE),"") -> 0 | X115: =+IFERROR(VLOOKUP($D115&"_"&1,base!$E$4:$BO$7238,X$97,FALSE),"") -> 0 | Y115: =+IFERROR(VLOOKUP($D115&"_"&1,base!$E$4:$BO$7238,Y$97,FALSE),"") -> 0 | Z115: =+IFERROR(VLOOKUP($D115&"_"&1,base!$E$4:$BO$7238,Z$97,FALSE),"") -> 0 | AA115: =+IFERROR(VLOOKUP($D115&"_"&1,base!$E$4:$BO$7238,AA$97,FALSE),"") -> 0 | AB115: =+IFERROR(VLOOKUP($D115&"_"&1,base!$E$4:$BO$7238,AB$97,FALSE),"") -> 0 | AC115: =+IFERROR(VLOOKUP($D115&"_"&1,base!$E$4:$BO$7238,AC$97,FALSE),"") -> 0 | AD115: =+IFERROR(VLOOKUP($D115&"_"&1,base!$E$4:$BO$7238,AD$97,FALSE),"") -> 0 | AE115: =+IFERROR(VLOOKUP($D115&"_"&1,base!$E$4:$BO$7238,AE$97,FALSE),"") -> 0 | AF115: =+IFERROR(VLOOKUP($D115&"_"&1,base!$E$4:$BO$7238,AF$97,FALSE),"") -> 0 | AG115: =+IFERROR(VLOOKUP($D115&"_"&1,base!$E$4:$BO$7238,AG$97,FALSE),"") -> 0 | AH115: =+IFERROR(VLOOKUP($D115&"_"&1,base!$E$4:$BO$7238,AH$97,FALSE),"") -> 0 | AI115: =+IFERROR(VLOOKUP($D115&"_"&1,base!$E$4:$BO$7238,AI$97,FALSE),"") -> 0 | AJ115: =+IFERROR(VLOOKUP($D115&"_"&1,base!$E$4:$BO$7238,AJ$97,FALSE),"") -> 0 | AK115: =+IFERROR(VLOOKUP($D115&"_"&1,base!$E$4:$BO$7238,AK$97,FALSE),"") -> 0 | AL115: =+IFERROR(VLOOKUP($D115&"_"&1,base!$E$4:$BO$7238,AL$97,FALSE),"") -> 0 | AM115: =+IFERROR(VLOOKUP($D115&"_"&1,base!$E$4:$BO$7238,AM$97,FALSE),"") -> 0
B116: 17 | C116: =+IFERROR(VLOOKUP(D116,'tablero nal'!$W$9:$EM$163,121,FALSE),"") -> Niñez y Adolescencia | D116: =+IF(HLOOKUP($D$98,'listado indicadores'!$B$3:$AZ$158,$B116,FALSE)="","",HLOOKUP($D$98,'listado indicadores'!$B$3:$AZ$158,$B116,FALSE)) -> PA-17 | E116: =+IFERROR(VLOOKUP(D116,'tablero nal'!$W$9:$X$163,2,FALSE),"") -> Número de ejercicios de promoción de la participación significativa de niños, niñas y adolescentes en políticas, programas, proyectos y estrategias desarrollados en los territorios. | J116: =+IFERROR(IF(VLOOKUP($D116&"_"&1,base!$E$4:$BO$7238,J$99,FALSE)>1,IF(VLOOKUP($D116&"_"&1,base!$E$4:$BO$7238,J$99,FALSE)>=1000,TEXT(VLOOKUP($D116&"_"&1,base!$E$4:$BO$7238,J$99,FALSE),"0.000"),TEXT(VLOOKUP($D116&"_"&1,base!$E$4:$BO$7238,J$99,FALSE),"0")),TEXT(VLOOKUP($D116&"_"&1,base!$E$4:$BO$7238,J$99,FALSE),"0.0%")),"") -> 1.452 | K116: =+IFERROR(IF(VLOOKUP($D116&"_"&1,base!$E$4:$BO$7238,K$99,FALSE)>1,IF(VLOOKUP($D116&"_"&1,base!$E$4:$BO$7238,K$99,FALSE)>=1000,TEXT(VLOOKUP($D116&"_"&1,base!$E$4:$BO$7238,K$99,FALSE),"0.000"),TEXT(VLOOKUP($D116&"_"&1,base!$E$4:$BO$7238,K$99,FALSE),"0")),TEXT(VLOOKUP($D116&"_"&1,base!$E$4:$BO$7238,K$99,FALSE),"0.0%")),"") -> NA | L116: =+IFERROR(VLOOKUP($D116&"_"&1,base!$E$4:$BO$7238,L$99,FALSE),"") -> NA | M116: =+IFERROR(VLOOKUP($D116&"_"&1,base!$E$4:$BO$7238,M$99,FALSE),"") -> NA | P116: =+IFERROR(VLOOKUP($D116&"_"&1,base!$E$4:$BO$7238,P$97,FALSE),"") -> NA | Q116: =+IFERROR(VLOOKUP($D116&"_"&1,base!$E$4:$BO$7238,Q$97,FALSE),"") -> NA | R116: =+IFERROR(VLOOKUP($D116&"_"&1,base!$E$4:$BO$7238,R$97,FALSE),"") -> NA | S116: =+IFERROR(VLOOKUP($D116&"_"&1,base!$E$4:$BO$7238,S$97,FALSE),"") -> NA | T116: =+IFERROR(VLOOKUP($D116&"_"&1,base!$E$4:$BO$7238,T$97,FALSE),"") -> NA | U116: =+IFERROR(VLOOKUP($D116&"_"&1,base!$E$4:$BO$7238,U$97,FALSE),"") -> NA | V116: =+IFERROR(VLOOKUP($D116&"_"&1,base!$E$4:$BO$7238,V$97,FALSE),"") -> 0 | W116: =+IFERROR(VLOOKUP($D116&"_"&1,base!$E$4:$BO$7238,W$97,FALSE),"") -> 0 | X116: =+IFERROR(VLOOKUP($D116&"_"&1,base!$E$4:$BO$7238,X$97,FALSE),"") -> 0 | Y116: =+IFERROR(VLOOKUP($D116&"_"&1,base!$E$4:$BO$7238,Y$97,FALSE),"") -> 0 | Z116: =+IFERROR(VLOOKUP($D116&"_"&1,base!$E$4:$BO$7238,Z$97,FALSE),"") -> 0 | AA116: =+IFERROR(VLOOKUP($D116&"_"&1,base!$E$4:$BO$7238,AA$97,FALSE),"") -> 0 | AB116: =+IFERROR(VLOOKUP($D116&"_"&1,base!$E$4:$BO$7238,AB$97,FALSE),"") -> 0 | AC116: =+IFERROR(VLOOKUP($D116&"_"&1,base!$E$4:$BO$7238,AC$97,FALSE),"") -> 0 | AD116: =+IFERROR(VLOOKUP($D116&"_"&1,base!$E$4:$BO$7238,AD$97,FALSE),"") -> 0 | AE116: =+IFERROR(VLOOKUP($D116&"_"&1,base!$E$4:$BO$7238,AE$97,FALSE),"") -> 0 | AF116: =+IFERROR(VLOOKUP($D116&"_"&1,base!$E$4:$BO$7238,AF$97,FALSE),"") -> 0 | AG116: =+IFERROR(VLOOKUP($D116&"_"&1,base!$E$4:$BO$7238,AG$97,FALSE),"") -> 0 | AH116: =+IFERROR(VLOOKUP($D116&"_"&1,base!$E$4:$BO$7238,AH$97,FALSE),"") -> 0 | AI116: =+IFERROR(VLOOKUP($D116&"_"&1,base!$E$4:$BO$7238,AI$97,FALSE),"") -> 0 | AJ116: =+IFERROR(VLOOKUP($D116&"_"&1,base!$E$4:$BO$7238,AJ$97,FALSE),"") -> 0 | AK116: =+IFERROR(VLOOKUP($D116&"_"&1,base!$E$4:$BO$7238,AK$97,FALSE),"") -> 0 | AL116: =+IFERROR(VLOOKUP($D116&"_"&1,base!$E$4:$BO$7238,AL$97,FALSE),"") -> 0 | AM116: =+IFERROR(VLOOKUP($D116&"_"&1,base!$E$4:$BO$7238,AM$97,FALSE),"") -> 0
B117: 18 | C117: =+IFERROR(VLOOKUP(D117,'tablero nal'!$W$9:$EM$163,121,FALSE),"") -> Familias y comunidades | D117: =+IF(HLOOKUP($D$98,'listado indicadores'!$B$3:$AZ$158,$B117,FALSE)="","",HLOOKUP($D$98,'listado indicadores'!$B$3:$AZ$158,$B117,FALSE)) -> PA-18 | E117: =+IFERROR(VLOOKUP(D117,'tablero nal'!$W$9:$X$163,2,FALSE),"") -> Familias en situación de vulnerabilidad afectadas en su estructura y dinámica relacional atendidas mediante "Familias para la Paz" | J117: =+IFERROR(IF(VLOOKUP($D117&"_"&1,base!$E$4:$BO$7238,J$99,FALSE)>1,IF(VLOOKUP($D117&"_"&1,base!$E$4:$BO$7238,J$99,FALSE)>=1000,TEXT(VLOOKUP($D117&"_"&1,base!$E$4:$BO$7238,J$99,FALSE),"0.000"),TEXT(VLOOKUP($D117&"_"&1,base!$E$4:$BO$7238,J$99,FALSE),"0")),TEXT(VLOOKUP($D117&"_"&1,base!$E$4:$BO$7238,J$99,FALSE),"0.0%")),"") -> 274.202 | K117: =+IFERROR(IF(VLOOKUP($D117&"_"&1,base!$E$4:$BO$7238,K$99,FALSE)>1,IF(VLOOKUP($D117&"_"&1,base!$E$4:$BO$7238,K$99,FALSE)>=1000,TEXT(VLOOKUP($D117&"_"&1,base!$E$4:$BO$7238,K$99,FALSE),"0.000"),TEXT(VLOOKUP($D117&"_"&1,base!$E$4:$BO$7238,K$99,FALSE),"0")),TEXT(VLOOKUP($D117&"_"&1,base!$E$4:$BO$7238,K$99,FALSE),"0.0%")),"") -> NA | L117: =+IFERROR(VLOOKUP($D117&"_"&1,base!$E$4:$BO$7238,L$99,FALSE),"") -> NA | M117: =+IFERROR(VLOOKUP($D117&"_"&1,base!$E$4:$BO$7238,M$99,FALSE),"") -> NA | P117: =+IFERROR(VLOOKUP($D117&"_"&1,base!$E$4:$BO$7238,P$97,FALSE),"") -> NA | Q117: =+IFERROR(VLOOKUP($D117&"_"&1,base!$E$4:$BO$7238,Q$97,FALSE),"") -> NA | R117: =+IFERROR(VLOOKUP($D117&"_"&1,base!$E$4:$BO$7238,R$97,FALSE),"") -> NA | S117: =+IFERROR(VLOOKUP($D117&"_"&1,base!$E$4:$BO$7238,S$97,FALSE),"") -> NA | T117: =+IFERROR(VLOOKUP($D117&"_"&1,base!$E$4:$BO$7238,T$97,FALSE),"") -> NA | U117: =+IFERROR(VLOOKUP($D117&"_"&1,base!$E$4:$BO$7238,U$97,FALSE),"") -> NA | V117: =+IFERROR(VLOOKUP($D117&"_"&1,base!$E$4:$BO$7238,V$97,FALSE),"") -> 0 | W117: =+IFERROR(VLOOKUP($D117&"_"&1,base!$E$4:$BO$7238,W$97,FALSE),"") -> 0 | X117: =+IFERROR(VLOOKUP($D117&"_"&1,base!$E$4:$BO$7238,X$97,FALSE),"") -> 0 | Y117: =+IFERROR(VLOOKUP($D117&"_"&1,base!$E$4:$BO$7238,Y$97,FALSE),"") -> 0 | Z117: =+IFERROR(VLOOKUP($D117&"_"&1,base!$E$4:$BO$7238,Z$97,FALSE),"") -> 0 | AA117: =+IFERROR(VLOOKUP($D117&"_"&1,base!$E$4:$BO$7238,AA$97,FALSE),"") -> 0 | AB117: =+IFERROR(VLOOKUP($D117&"_"&1,base!$E$4:$BO$7238,AB$97,FALSE),"") -> 0 | AC117: =+IFERROR(VLOOKUP($D117&"_"&1,base!$E$4:$BO$7238,AC$97,FALSE),"") -> 0 | AD117: =+IFERROR(VLOOKUP($D117&"_"&1,base!$E$4:$BO$7238,AD$97,FALSE),"") -> 0 | AE117: =+IFERROR(VLOOKUP($D117&"_"&1,base!$E$4:$BO$7238,AE$97,FALSE),"") -> 0 | AF117: =+IFERROR(VLOOKUP($D117&"_"&1,base!$E$4:$BO$7238,AF$97,FALSE),"") -> 0 | AG117: =+IFERROR(VLOOKUP($D117&"_"&1,base!$E$4:$BO$7238,AG$97,FALSE),"") -> 0 | AH117: =+IFERROR(VLOOKUP($D117&"_"&1,base!$E$4:$BO$7238,AH$97,FALSE),"") -> 0 | AI117: =+IFERROR(VLOOKUP($D117&"_"&1,base!$E$4:$BO$7238,AI$97,FALSE),"") -> 0 | AJ117: =+IFERROR(VLOOKUP($D117&"_"&1,base!$E$4:$BO$7238,AJ$97,FALSE),"") -> 0 | AK117: =+IFERROR(VLOOKUP($D117&"_"&1,base!$E$4:$BO$7238,AK$97,FALSE),"") -> 0 | AL117: =+IFERROR(VLOOKUP($D117&"_"&1,base!$E$4:$BO$7238,AL$97,FALSE),"") -> 0 | AM117: =+IFERROR(VLOOKUP($D117&"_"&1,base!$E$4:$BO$7238,AM$97,FALSE),"") -> 0
B118: 19 | C118: =+IFERROR(VLOOKUP(D118,'tablero nal'!$W$9:$EM$163,121,FALSE),"") -> Familias y comunidades | D118: =+IF(HLOOKUP($D$98,'listado indicadores'!$B$3:$AZ$158,$B118,FALSE)="","",HLOOKUP($D$98,'listado indicadores'!$B$3:$AZ$158,$B118,FALSE)) -> PA-19 | E118: =+IFERROR(VLOOKUP(D118,'tablero nal'!$W$9:$X$163,2,FALSE),"") -> Número de Familias de grupos étnicos atendidas por la modalidad "Territorios Étnicos con Bienestar". | J118: =+IFERROR(IF(VLOOKUP($D118&"_"&1,base!$E$4:$BO$7238,J$99,FALSE)>1,IF(VLOOKUP($D118&"_"&1,base!$E$4:$BO$7238,J$99,FALSE)>=1000,TEXT(VLOOKUP($D118&"_"&1,base!$E$4:$BO$7238,J$99,FALSE),"0.000"),TEXT(VLOOKUP($D118&"_"&1,base!$E$4:$BO$7238,J$99,FALSE),"0")),TEXT(VLOOKUP($D118&"_"&1,base!$E$4:$BO$7238,J$99,FALSE),"0.0%")),"") -> 18.862 | K118: =+IFERROR(IF(VLOOKUP($D118&"_"&1,base!$E$4:$BO$7238,K$99,FALSE)>1,IF(VLOOKUP($D118&"_"&1,base!$E$4:$BO$7238,K$99,FALSE)>=1000,TEXT(VLOOKUP($D118&"_"&1,base!$E$4:$BO$7238,K$99,FALSE),"0.000"),TEXT(VLOOKUP($D118&"_"&1,base!$E$4:$BO$7238,K$99,FALSE),"0")),TEXT(VLOOKUP($D118&"_"&1,base!$E$4:$BO$7238,K$99,FALSE),"0.0%")),"") -> NA | L118: =+IFERROR(VLOOKUP($D118&"_"&1,base!$E$4:$BO$7238,L$99,FALSE),"") -> NA | M118: =+IFERROR(VLOOKUP($D118&"_"&1,base!$E$4:$BO$7238,M$99,FALSE),"") -> NA | P118: =+IFERROR(VLOOKUP($D118&"_"&1,base!$E$4:$BO$7238,P$97,FALSE),"") -> NA | Q118: =+IFERROR(VLOOKUP($D118&"_"&1,base!$E$4:$BO$7238,Q$97,FALSE),"") -> NA | R118: =+IFERROR(VLOOKUP($D118&"_"&1,base!$E$4:$BO$7238,R$97,FALSE),"") -> NA | S118: =+IFERROR(VLOOKUP($D118&"_"&1,base!$E$4:$BO$7238,S$97,FALSE),"") -> NA | T118: =+IFERROR(VLOOKUP($D118&"_"&1,base!$E$4:$BO$7238,T$97,FALSE),"") -> NA | U118: =+IFERROR(VLOOKUP($D118&"_"&1,base!$E$4:$BO$7238,U$97,FALSE),"") -> NA | V118: =+IFERROR(VLOOKUP($D118&"_"&1,base!$E$4:$BO$7238,V$97,FALSE),"") -> 0 | W118: =+IFERROR(VLOOKUP($D118&"_"&1,base!$E$4:$BO$7238,W$97,FALSE),"") -> 0 | X118: =+IFERROR(VLOOKUP($D118&"_"&1,base!$E$4:$BO$7238,X$97,FALSE),"") -> 0 | Y118: =+IFERROR(VLOOKUP($D118&"_"&1,base!$E$4:$BO$7238,Y$97,FALSE),"") -> 0 | Z118: =+IFERROR(VLOOKUP($D118&"_"&1,base!$E$4:$BO$7238,Z$97,FALSE),"") -> 0 | AA118: =+IFERROR(VLOOKUP($D118&"_"&1,base!$E$4:$BO$7238,AA$97,FALSE),"") -> 0 | AB118: =+IFERROR(VLOOKUP($D118&"_"&1,base!$E$4:$BO$7238,AB$97,FALSE),"") -> 0 | AC118: =+IFERROR(VLOOKUP($D118&"_"&1,base!$E$4:$BO$7238,AC$97,FALSE),"") -> 0 | AD118: =+IFERROR(VLOOKUP($D118&"_"&1,base!$E$4:$BO$7238,AD$97,FALSE),"") -> 0 | AE118: =+IFERROR(VLOOKUP($D118&"_"&1,base!$E$4:$BO$7238,AE$97,FALSE),"") -> 0 | AF118: =+IFERROR(VLOOKUP($D118&"_"&1,base!$E$4:$BO$7238,AF$97,FALSE),"") -> 0 | AG118: =+IFERROR(VLOOKUP($D118&"_"&1,base!$E$4:$BO$7238,AG$97,FALSE),"") -> 0 | AH118: =+IFERROR(VLOOKUP($D118&"_"&1,base!$E$4:$BO$7238,AH$97,FALSE),"") -> 0 | AI118: =+IFERROR(VLOOKUP($D118&"_"&1,base!$E$4:$BO$7238,AI$97,FALSE),"") -> 0 | AJ118: =+IFERROR(VLOOKUP($D118&"_"&1,base!$E$4:$BO$7238,AJ$97,FALSE),"") -> 0 | AK118: =+IFERROR(VLOOKUP($D118&"_"&1,base!$E$4:$BO$7238,AK$97,FALSE),"") -> 0 | AL118: =+IFERROR(VLOOKUP($D118&"_"&1,base!$E$4:$BO$7238,AL$97,FALSE),"") -> 0 | AM118: =+IFERROR(VLOOKUP($D118&"_"&1,base!$E$4:$BO$7238,AM$97,FALSE),"") -> 0
B119: 20 | C119: =+IFERROR(VLOOKUP(D119,'tablero nal'!$W$9:$EM$163,121,FALSE),"") -> Familias y comunidades | D119: =+IF(HLOOKUP($D$98,'listado indicadores'!$B$3:$AZ$158,$B119,FALSE)="","",HLOOKUP($D$98,'listado indicadores'!$B$3:$AZ$158,$B119,FALSE)) -> PA-20 | E119: =+IFERROR(VLOOKUP(D119,'tablero nal'!$W$9:$X$163,2,FALSE),"") -> Porcentaje de avance en el diseño e implementación de un modelo de enfoque conceptual de inclusión y atención a las familias con las áreas misionales | J119: =+IFERROR(IF(VLOOKUP($D119&"_"&1,base!$E$4:$BO$7238,J$99,FALSE)>1,IF(VLOOKUP($D119&"_"&1,base!$E$4:$BO$7238,J$99,FALSE)>=1000,TEXT(VLOOKUP($D119&"_"&1,base!$E$4:$BO$7238,J$99,FALSE),"0.000"),TEXT(VLOOKUP($D119&"_"&1,base!$E$4:$BO$7238,J$99,FALSE),"0")),TEXT(VLOOKUP($D119&"_"&1,base!$E$4:$BO$7238,J$99,FALSE),"0.0%")),"") -> 50% | K119: =+IFERROR(IF(VLOOKUP($D119&"_"&1,base!$E$4:$BO$7238,K$99,FALSE)>1,IF(VLOOKUP($D119&"_"&1,base!$E$4:$BO$7238,K$99,FALSE)>=1000,TEXT(VLOOKUP($D119&"_"&1,base!$E$4:$BO$7238,K$99,FALSE),"0.000"),TEXT(VLOOKUP($D119&"_"&1,base!$E$4:$BO$7238,K$99,FALSE),"0")),TEXT(VLOOKUP($D119&"_"&1,base!$E$4:$BO$7238,K$99,FALSE),"0.0%")),"") -> 27% | L119: =+IFERROR(VLOOKUP($D119&"_"&1,base!$E$4:$BO$7238,L$99,FALSE),"") -> 0.267 | M119: =+IFERROR(VLOOKUP($D119&"_"&1,base!$E$4:$BO$7238,M$99,FALSE),"") -> OPTIMO | P119: =+IFERROR(VLOOKUP($D119&"_"&1,base!$E$4:$BO$7238,P$97,FALSE),"") -> NA | Q119: =+IFERROR(VLOOKUP($D119&"_"&1,base!$E$4:$BO$7238,Q$97,FALSE),"") -> NA | R119: =+IFERROR(VLOOKUP($D119&"_"&1,base!$E$4:$BO$7238,R$97,FALSE),"") -> NA | S119: =+IFERROR(VLOOKUP($D119&"_"&1,base!$E$4:$BO$7238,S$97,FALSE),"") -> NA | T119: =+IFERROR(VLOOKUP($D119&"_"&1,base!$E$4:$BO$7238,T$97,FALSE),"") -> 0.267 | U119: =+IFERROR(VLOOKUP($D119&"_"&1,base!$E$4:$BO$7238,U$97,FALSE),"") -> OPTIMO | V119: =+IFERROR(VLOOKUP($D119&"_"&1,base!$E$4:$BO$7238,V$97,FALSE),"") -> 0 | W119: =+IFERROR(VLOOKUP($D119&"_"&1,base!$E$4:$BO$7238,W$97,FALSE),"") -> 0 | X119: =+IFERROR(VLOOKUP($D119&"_"&1,base!$E$4:$BO$7238,X$97,FALSE),"") -> 0 | Y119: =+IFERROR(VLOOKUP($D119&"_"&1,base!$E$4:$BO$7238,Y$97,FALSE),"") -> 0 | Z119: =+IFERROR(VLOOKUP($D119&"_"&1,base!$E$4:$BO$7238,Z$97,FALSE),"") -> 0 | AA119: =+IFERROR(VLOOKUP($D119&"_"&1,base!$E$4:$BO$7238,AA$97,FALSE),"") -> 0 | AB119: =+IFERROR(VLOOKUP($D119&"_"&1,base!$E$4:$BO$7238,AB$97,FALSE),"") -> 0 | AC119: =+IFERROR(VLOOKUP($D119&"_"&1,base!$E$4:$BO$7238,AC$97,FALSE),"") -> 0 | AD119: =+IFERROR(VLOOKUP($D119&"_"&1,base!$E$4:$BO$7238,AD$97,FALSE),"") -> 0 | AE119: =+IFERROR(VLOOKUP($D119&"_"&1,base!$E$4:$BO$7238,AE$97,FALSE),"") -> 0 | AF119: =+IFERROR(VLOOKUP($D119&"_"&1,base!$E$4:$BO$7238,AF$97,FALSE),"") -> 0 | AG119: =+IFERROR(VLOOKUP($D119&"_"&1,base!$E$4:$BO$7238,AG$97,FALSE),"") -> 0 | AH119: =+IFERROR(VLOOKUP($D119&"_"&1,base!$E$4:$BO$7238,AH$97,FALSE),"") -> 0 | AI119: =+IFERROR(VLOOKUP($D119&"_"&1,base!$E$4:$BO$7238,AI$97,FALSE),"") -> 0 | AJ119: =+IFERROR(VLOOKUP($D119&"_"&1,base!$E$4:$BO$7238,AJ$97,FALSE),"") -> 0 | AK119: =+IFERROR(VLOOKUP($D119&"_"&1,base!$E$4:$BO$7238,AK$97,FALSE),"") -> 0 | AL119: =+IFERROR(VLOOKUP($D119&"_"&1,base!$E$4:$BO$7238,AL$97,FALSE),"") -> 0 | AM119: =+IFERROR(VLOOKUP($D119&"_"&1,base!$E$4:$BO$7238,AM$97,FALSE),"") -> 0
B120: 21 | C120: =+IFERROR(VLOOKUP(D120,'tablero nal'!$W$9:$EM$163,121,FALSE),"") -> Familias y comunidades | D120: =+IF(HLOOKUP($D$98,'listado indicadores'!$B$3:$AZ$158,$B120,FALSE)="","",HLOOKUP($D$98,'listado indicadores'!$B$3:$AZ$158,$B120,FALSE)) -> PA-21 | E120: =+IFERROR(VLOOKUP(D120,'tablero nal'!$W$9:$X$163,2,FALSE),"") -> Número de Familias atendidas mediante formas innovadoras de intervención | J120: =+IFERROR(IF(VLOOKUP($D120&"_"&1,base!$E$4:$BO$7238,J$99,FALSE)>1,IF(VLOOKUP($D120&"_"&1,base!$E$4:$BO$7238,J$99,FALSE)>=1000,TEXT(VLOOKUP($D120&"_"&1,base!$E$4:$BO$7238,J$99,FALSE),"0.000"),TEXT(VLOOKUP($D120&"_"&1,base!$E$4:$BO$7238,J$99,FALSE),"0")),TEXT(VLOOKUP($D120&"_"&1,base!$E$4:$BO$7238,J$99,FALSE),"0.0%")),"") -> 824 | K120: =+IFERROR(IF(VLOOKUP($D120&"_"&1,base!$E$4:$BO$7238,K$99,FALSE)>1,IF(VLOOKUP($D120&"_"&1,base!$E$4:$BO$7238,K$99,FALSE)>=1000,TEXT(VLOOKUP($D120&"_"&1,base!$E$4:$BO$7238,K$99,FALSE),"0.000"),TEXT(VLOOKUP($D120&"_"&1,base!$E$4:$BO$7238,K$99,FALSE),"0")),TEXT(VLOOKUP($D120&"_"&1,base!$E$4:$BO$7238,K$99,FALSE),"0.0%")),"") -> NA | L120: =+IFERROR(VLOOKUP($D120&"_"&1,base!$E$4:$BO$7238,L$99,FALSE),"") -> NA | M120: =+IFERROR(VLOOKUP($D120&"_"&1,base!$E$4:$BO$7238,M$99,FALSE),"") -> NA | P120: =+IFERROR(VLOOKUP($D120&"_"&1,base!$E$4:$BO$7238,P$97,FALSE),"") -> NA | Q120: =+IFERROR(VLOOKUP($D120&"_"&1,base!$E$4:$BO$7238,Q$97,FALSE),"") -> NA | R120: =+IFERROR(VLOOKUP($D120&"_"&1,base!$E$4:$BO$7238,R$97,FALSE),"") -> NA | S120: =+IFERROR(VLOOKUP($D120&"_"&1,base!$E$4:$BO$7238,S$97,FALSE),"") -> NA | T120: =+IFERROR(VLOOKUP($D120&"_"&1,base!$E$4:$BO$7238,T$97,FALSE),"") -> NA | U120: =+IFERROR(VLOOKUP($D120&"_"&1,base!$E$4:$BO$7238,U$97,FALSE),"") -> NA | V120: =+IFERROR(VLOOKUP($D120&"_"&1,base!$E$4:$BO$7238,V$97,FALSE),"") -> 0 | W120: =+IFERROR(VLOOKUP($D120&"_"&1,base!$E$4:$BO$7238,W$97,FALSE),"") -> 0 | X120: =+IFERROR(VLOOKUP($D120&"_"&1,base!$E$4:$BO$7238,X$97,FALSE),"") -> 0 | Y120: =+IFERROR(VLOOKUP($D120&"_"&1,base!$E$4:$BO$7238,Y$97,FALSE),"") -> 0 | Z120: =+IFERROR(VLOOKUP($D120&"_"&1,base!$E$4:$BO$7238,Z$97,FALSE),"") -> 0 | AA120: =+IFERROR(VLOOKUP($D120&"_"&1,base!$E$4:$BO$7238,AA$97,FALSE),"") -> 0 | AB120: =+IFERROR(VLOOKUP($D120&"_"&1,base!$E$4:$BO$7238,AB$97,FALSE),"") -> 0 | AC120: =+IFERROR(VLOOKUP($D120&"_"&1,base!$E$4:$BO$7238,AC$97,FALSE),"") -> 0 | AD120: =+IFERROR(VLOOKUP($D120&"_"&1,base!$E$4:$BO$7238,AD$97,FALSE),"") -> 0 | AE120: =+IFERROR(VLOOKUP($D120&"_"&1,base!$E$4:$BO$7238,AE$97,FALSE),"") -> 0 | AF120: =+IFERROR(VLOOKUP($D120&"_"&1,base!$E$4:$BO$7238,AF$97,FALSE),"") -> 0 | AG120: =+IFERROR(VLOOKUP($D120&"_"&1,base!$E$4:$BO$7238,AG$97,FALSE),"") -> 0 | AH120: =+IFERROR(VLOOKUP($D120&"_"&1,base!$E$4:$BO$7238,AH$97,FALSE),"") -> 0 | AI120: =+IFERROR(VLOOKUP($D120&"_"&1,base!$E$4:$BO$7238,AI$97,FALSE),"") -> 0 | AJ120: =+IFERROR(VLOOKUP($D120&"_"&1,base!$E$4:$BO$7238,AJ$97,FALSE),"") -> 0 | AK120: =+IFERROR(VLOOKUP($D120&"_"&1,base!$E$4:$BO$7238,AK$97,FALSE),"") -> 0 | AL120: =+IFERROR(VLOOKUP($D120&"_"&1,base!$E$4:$BO$7238,AL$97,FALSE),"") -> 0 | AM120: =+IFERROR(VLOOKUP($D120&"_"&1,base!$E$4:$BO$7238,AM$97,FALSE),"") -> 0
B121: 22 | C121: =+IFERROR(VLOOKUP(D121,'tablero nal'!$W$9:$EM$163,121,FALSE),"") -> Nutrición | D121: =+IF(HLOOKUP($D$98,'listado indicadores'!$B$3:$AZ$158,$B121,FALSE)="","",HLOOKUP($D$98,'listado indicadores'!$B$3:$AZ$158,$B121,FALSE)) -> PA-22 | E121: =+IFERROR(VLOOKUP(D121,'tablero nal'!$W$9:$X$163,2,FALSE),"") -> Porcentaje de niños y niñas entre 6 y 59 meses reportados al Sistema de Seguimiento Nutricional (excluyendo FAMI, RN) con desnutrición aguda que mejoraron su estado Nutricional. | J121: =+IFERROR(IF(VLOOKUP($D121&"_"&1,base!$E$4:$BO$7238,J$99,FALSE)>1,IF(VLOOKUP($D121&"_"&1,base!$E$4:$BO$7238,J$99,FALSE)>=1000,TEXT(VLOOKUP($D121&"_"&1,base!$E$4:$BO$7238,J$99,FALSE),"0.000"),TEXT(VLOOKUP($D121&"_"&1,base!$E$4:$BO$7238,J$99,FALSE),"0")),TEXT(VLOOKUP($D121&"_"&1,base!$E$4:$BO$7238,J$99,FALSE),"0.0%")),"") -> 80% | K121: =+IFERROR(IF(VLOOKUP($D121&"_"&1,base!$E$4:$BO$7238,K$99,FALSE)>1,IF(VLOOKUP($D121&"_"&1,base!$E$4:$BO$7238,K$99,FALSE)>=1000,TEXT(VLOOKUP($D121&"_"&1,base!$E$4:$BO$7238,K$99,FALSE),"0.000"),TEXT(VLOOKUP($D121&"_"&1,base!$E$4:$BO$7238,K$99,FALSE),"0")),TEXT(VLOOKUP($D121&"_"&1,base!$E$4:$BO$7238,K$99,FALSE),"0.0%")),"") -> NA | L121: =+IFERROR(VLOOKUP($D121&"_"&1,base!$E$4:$BO$7238,L$99,FALSE),"") -> NA | M121: =+IFERROR(VLOOKUP($D121&"_"&1,base!$E$4:$BO$7238,M$99,FALSE),"") -> NA | P121: =+IFERROR(VLOOKUP($D121&"_"&1,base!$E$4:$BO$7238,P$97,FALSE),"") -> NA | Q121: =+IFERROR(VLOOKUP($D121&"_"&1,base!$E$4:$BO$7238,Q$97,FALSE),"") -> NA | R121: =+IFERROR(VLOOKUP($D121&"_"&1,base!$E$4:$BO$7238,R$97,FALSE),"") -> NA | S121: =+IFERROR(VLOOKUP($D121&"_"&1,base!$E$4:$BO$7238,S$97,FALSE),"") -> NA | T121: =+IFERROR(VLOOKUP($D121&"_"&1,base!$E$4:$BO$7238,T$97,FALSE),"") -> NA | U121: =+IFERROR(VLOOKUP($D121&"_"&1,base!$E$4:$BO$7238,U$97,FALSE),"") -> NA | V121: =+IFERROR(VLOOKUP($D121&"_"&1,base!$E$4:$BO$7238,V$97,FALSE),"") -> 0 | W121: =+IFERROR(VLOOKUP($D121&"_"&1,base!$E$4:$BO$7238,W$97,FALSE),"") -> 0 | X121: =+IFERROR(VLOOKUP($D121&"_"&1,base!$E$4:$BO$7238,X$97,FALSE),"") -> 0 | Y121: =+IFERROR(VLOOKUP($D121&"_"&1,base!$E$4:$BO$7238,Y$97,FALSE),"") -> 0 | Z121: =+IFERROR(VLOOKUP($D121&"_"&1,base!$E$4:$BO$7238,Z$97,FALSE),"") -> 0 | AA121: =+IFERROR(VLOOKUP($D121&"_"&1,base!$E$4:$BO$7238,AA$97,FALSE),"") -> 0 | AB121: =+IFERROR(VLOOKUP($D121&"_"&1,base!$E$4:$BO$7238,AB$97,FALSE),"") -> 0 | AC121: =+IFERROR(VLOOKUP($D121&"_"&1,base!$E$4:$BO$7238,AC$97,FALSE),"") -> 0 | AD121: =+IFERROR(VLOOKUP($D121&"_"&1,base!$E$4:$BO$7238,AD$97,FALSE),"") -> 0 | AE121: =+IFERROR(VLOOKUP($D121&"_"&1,base!$E$4:$BO$7238,AE$97,FALSE),"") -> 0 | AF121: =+IFERROR(VLOOKUP($D121&"_"&1,base!$E$4:$BO$7238,AF$97,FALSE),"") -> 0 | AG121: =+IFERROR(VLOOKUP($D121&"_"&1,base!$E$4:$BO$7238,AG$97,FALSE),"") -> 0 | AH121: =+IFERROR(VLOOKUP($D121&"_"&1,base!$E$4:$BO$7238,AH$97,FALSE),"") -> 0 | AI121: =+IFERROR(VLOOKUP($D121&"_"&1,base!$E$4:$BO$7238,AI$97,FALSE),"") -> 0 | AJ121: =+IFERROR(VLOOKUP($D121&"_"&1,base!$E$4:$BO$7238,AJ$97,FALSE),"") -> 0 | AK121: =+IFERROR(VLOOKUP($D121&"_"&1,base!$E$4:$BO$7238,AK$97,FALSE),"") -> 0 | AL121: =+IFERROR(VLOOKUP($D121&"_"&1,base!$E$4:$BO$7238,AL$97,FALSE),"") -> 0 | AM121: =+IFERROR(VLOOKUP($D121&"_"&1,base!$E$4:$BO$7238,AM$97,FALSE),"") -> 0
B122: 23 | C122: =+IFERROR(VLOOKUP(D122,'tablero nal'!$W$9:$EM$163,121,FALSE),"") -> Nutrición | D122: =+IF(HLOOKUP($D$98,'listado indicadores'!$B$3:$AZ$158,$B122,FALSE)="","",HLOOKUP($D$98,'listado indicadores'!$B$3:$AZ$158,$B122,FALSE)) -> PA-23 | E122: =+IFERROR(VLOOKUP(D122,'tablero nal'!$W$9:$X$163,2,FALSE),"") -> Porcentaje de niños y niñas que mejoraron su estado Nutricional que se encuentran en la modalidad Recuperación Nutricional con Enfoque Comunitario - RNEC | J122: =+IFERROR(IF(VLOOKUP($D122&"_"&1,base!$E$4:$BO$7238,J$99,FALSE)>1,IF(VLOOKUP($D122&"_"&1,base!$E$4:$BO$7238,J$99,FALSE)>=1000,TEXT(VLOOKUP($D122&"_"&1,base!$E$4:$BO$7238,J$99,FALSE),"0.000"),TEXT(VLOOKUP($D122&"_"&1,base!$E$4:$BO$7238,J$99,FALSE),"0")),TEXT(VLOOKUP($D122&"_"&1,base!$E$4:$BO$7238,J$99,FALSE),"0.0%")),"") -> 80% | K122: =+IFERROR(IF(VLOOKUP($D122&"_"&1,base!$E$4:$BO$7238,K$99,FALSE)>1,IF(VLOOKUP($D122&"_"&1,base!$E$4:$BO$7238,K$99,FALSE)>=1000,TEXT(VLOOKUP($D122&"_"&1,base!$E$4:$BO$7238,K$99,FALSE),"0.000"),TEXT(VLOOKUP($D122&"_"&1,base!$E$4:$BO$7238,K$99,FALSE),"0")),TEXT(VLOOKUP($D122&"_"&1,base!$E$4:$BO$7238,K$99,FALSE),"0.0%")),"") -> NA | L122: =+IFERROR(VLOOKUP($D122&"_"&1,base!$E$4:$BO$7238,L$99,FALSE),"") -> NA | M122: =+IFERROR(VLOOKUP($D122&"_"&1,base!$E$4:$BO$7238,M$99,FALSE),"") -> NA | P122: =+IFERROR(VLOOKUP($D122&"_"&1,base!$E$4:$BO$7238,P$97,FALSE),"") -> NA | Q122: =+IFERROR(VLOOKUP($D122&"_"&1,base!$E$4:$BO$7238,Q$97,FALSE),"") -> NA | R122: =+IFERROR(VLOOKUP($D122&"_"&1,base!$E$4:$BO$7238,R$97,FALSE),"") -> NA | S122: =+IFERROR(VLOOKUP($D122&"_"&1,base!$E$4:$BO$7238,S$97,FALSE),"") -> NA | T122: =+IFERROR(VLOOKUP($D122&"_"&1,base!$E$4:$BO$7238,T$97,FALSE),"") -> NA | U122: =+IFERROR(VLOOKUP($D122&"_"&1,base!$E$4:$BO$7238,U$97,FALSE),"") -> NA | V122: =+IFERROR(VLOOKUP($D122&"_"&1,base!$E$4:$BO$7238,V$97,FALSE),"") -> 0 | W122: =+IFERROR(VLOOKUP($D122&"_"&1,base!$E$4:$BO$7238,W$97,FALSE),"") -> 0 | X122: =+IFERROR(VLOOKUP($D122&"_"&1,base!$E$4:$BO$7238,X$97,FALSE),"") -> 0 | Y122: =+IFERROR(VLOOKUP($D122&"_"&1,base!$E$4:$BO$7238,Y$97,FALSE),"") -> 0 | Z122: =+IFERROR(VLOOKUP($D122&"_"&1,base!$E$4:$BO$7238,Z$97,FALSE),"") -> 0 | AA122: =+IFERROR(VLOOKUP($D122&"_"&1,base!$E$4:$BO$7238,AA$97,FALSE),"") -> 0 | AB122: =+IFERROR(VLOOKUP($D122&"_"&1,base!$E$4:$BO$7238,AB$97,FALSE),"") -> 0 | AC122: =+IFERROR(VLOOKUP($D122&"_"&1,base!$E$4:$BO$7238,AC$97,FALSE),"") -> 0 | AD122: =+IFERROR(VLOOKUP($D122&"_"&1,base!$E$4:$BO$7238,AD$97,FALSE),"") -> 0 | AE122: =+IFERROR(VLOOKUP($D122&"_"&1,base!$E$4:$BO$7238,AE$97,FALSE),"") -> 0 | AF122: =+IFERROR(VLOOKUP($D122&"_"&1,base!$E$4:$BO$7238,AF$97,FALSE),"") -> 0 | AG122: =+IFERROR(VLOOKUP($D122&"_"&1,base!$E$4:$BO$7238,AG$97,FALSE),"") -> 0 | AH122: =+IFERROR(VLOOKUP($D122&"_"&1,base!$E$4:$BO$7238,AH$97,FALSE),"") -> 0 | AI122: =+IFERROR(VLOOKUP($D122&"_"&1,base!$E$4:$BO$7238,AI$97,FALSE),"") -> 0 | AJ122: =+IFERROR(VLOOKUP($D122&"_"&1,base!$E$4:$BO$7238,AJ$97,FALSE),"") -> 0 | AK122: =+IFERROR(VLOOKUP($D122&"_"&1,base!$E$4:$BO$7238,AK$97,FALSE),"") -> 0 | AL122: =+IFERROR(VLOOKUP($D122&"_"&1,base!$E$4:$BO$7238,AL$97,FALSE),"") -> 0 | AM122: =+IFERROR(VLOOKUP($D122&"_"&1,base!$E$4:$BO$7238,AM$97,FALSE),"") -> 0
B123: 24 | C123: =+IFERROR(VLOOKUP(D123,'tablero nal'!$W$9:$EM$163,121,FALSE),"") -> Nutrición | D123: =+IF(HLOOKUP($D$98,'listado indicadores'!$B$3:$AZ$158,$B123,FALSE)="","",HLOOKUP($D$98,'listado indicadores'!$B$3:$AZ$158,$B123,FALSE)) -> PA-24 | E123: =+IFERROR(VLOOKUP(D123,'tablero nal'!$W$9:$X$163,2,FALSE),"") -> Numero de Toneladas distribuidas de Alimentos de Alto Valor Nutricional | J123: =+IFERROR(IF(VLOOKUP($D123&"_"&1,base!$E$4:$BO$7238,J$99,FALSE)>1,IF(VLOOKUP($D123&"_"&1,base!$E$4:$BO$7238,J$99,FALSE)>=1000,TEXT(VLOOKUP($D123&"_"&1,base!$E$4:$BO$7238,J$99,FALSE),"0.000"),TEXT(VLOOKUP($D123&"_"&1,base!$E$4:$BO$7238,J$99,FALSE),"0")),TEXT(VLOOKUP($D123&"_"&1,base!$E$4:$BO$7238,J$99,FALSE),"0.0%")),"") -> 44.000 | K123: =+IFERROR(IF(VLOOKUP($D123&"_"&1,base!$E$4:$BO$7238,K$99,FALSE)>1,IF(VLOOKUP($D123&"_"&1,base!$E$4:$BO$7238,K$99,FALSE)>=1000,TEXT(VLOOKUP($D123&"_"&1,base!$E$4:$BO$7238,K$99,FALSE),"0.000"),TEXT(VLOOKUP($D123&"_"&1,base!$E$4:$BO$7238,K$99,FALSE),"0")),TEXT(VLOOKUP($D123&"_"&1,base!$E$4:$BO$7238,K$99,FALSE),"0.0%")),"") -> 31.390 | L123: =+IFERROR(VLOOKUP($D123&"_"&1,base!$E$4:$BO$7238,L$99,FALSE),"") -> 0.713 | M123: =+IFERROR(VLOOKUP($D123&"_"&1,base!$E$4:$BO$7238,M$99,FALSE),"") -> OPTIMO | P123: =+IFERROR(VLOOKUP($D123&"_"&1,base!$E$4:$BO$7238,P$97,FALSE),"") -> NA | Q123: =+IFERROR(VLOOKUP($D123&"_"&1,base!$E$4:$BO$7238,Q$97,FALSE),"") -> NA | R123: =+IFERROR(VLOOKUP($D123&"_"&1,base!$E$4:$BO$7238,R$97,FALSE),"") -> 0.660725 | S123: =+IFERROR(VLOOKUP($D123&"_"&1,base!$E$4:$BO$7238,S$97,FALSE),"") -> ADECUADO | T123: =+IFERROR(VLOOKUP($D123&"_"&1,base!$E$4:$BO$7238,T$97,FALSE),"") -> 0.713 | U123: =+IFERROR(VLOOKUP($D123&"_"&1,base!$E$4:$BO$7238,U$97,FALSE),"") -> OPTIMO | V123: =+IFERROR(VLOOKUP($D123&"_"&1,base!$E$4:$BO$7238,V$97,FALSE),"") -> 0 | W123: =+IFERROR(VLOOKUP($D123&"_"&1,base!$E$4:$BO$7238,W$97,FALSE),"") -> 0 | X123: =+IFERROR(VLOOKUP($D123&"_"&1,base!$E$4:$BO$7238,X$97,FALSE),"") -> 0 | Y123: =+IFERROR(VLOOKUP($D123&"_"&1,base!$E$4:$BO$7238,Y$97,FALSE),"") -> 0 | Z123: =+IFERROR(VLOOKUP($D123&"_"&1,base!$E$4:$BO$7238,Z$97,FALSE),"") -> 0 | AA123: =+IFERROR(VLOOKUP($D123&"_"&1,base!$E$4:$BO$7238,AA$97,FALSE),"") -> 0 | AB123: =+IFERROR(VLOOKUP($D123&"_"&1,base!$E$4:$BO$7238,AB$97,FALSE),"") -> 0 | AC123: =+IFERROR(VLOOKUP($D123&"_"&1,base!$E$4:$BO$7238,AC$97,FALSE),"") -> 0 | AD123: =+IFERROR(VLOOKUP($D123&"_"&1,base!$E$4:$BO$7238,AD$97,FALSE),"") -> 0 | AE123: =+IFERROR(VLOOKUP($D123&"_"&1,base!$E$4:$BO$7238,AE$97,FALSE),"") -> 0 | AF123: =+IFERROR(VLOOKUP($D123&"_"&1,base!$E$4:$BO$7238,AF$97,FALSE),"") -> 0 | AG123: =+IFERROR(VLOOKUP($D123&"_"&1,base!$E$4:$BO$7238,AG$97,FALSE),"") -> 0 | AH123: =+IFERROR(VLOOKUP($D123&"_"&1,base!$E$4:$BO$7238,AH$97,FALSE),"") -> 0 | AI123: =+IFERROR(VLOOKUP($D123&"_"&1,base!$E$4:$BO$7238,AI$97,FALSE),"") -> 0 | AJ123: =+IFERROR(VLOOKUP($D123&"_"&1,base!$E$4:$BO$7238,AJ$97,FALSE),"") -> 0 | AK123: =+IFERROR(VLOOKUP($D123&"_"&1,base!$E$4:$BO$7238,AK$97,FALSE),"") -> 0 | AL123: =+IFERROR(VLOOKUP($D123&"_"&1,base!$E$4:$BO$7238,AL$97,FALSE),"") -> 0 | AM123: =+IFERROR(VLOOKUP($D123&"_"&1,base!$E$4:$BO$7238,AM$97,FALSE),"") -> 0
B124: 25 | C124: =+IFERROR(VLOOKUP(D124,'tablero nal'!$W$9:$EM$163,121,FALSE),"") -> Nutrición | D124: =+IF(HLOOKUP($D$98,'listado indicadores'!$B$3:$AZ$158,$B124,FALSE)="","",HLOOKUP($D$98,'listado indicadores'!$B$3:$AZ$158,$B124,FALSE)) -> PA-25 | E124: =+IFERROR(VLOOKUP(D124,'tablero nal'!$W$9:$X$163,2,FALSE),"") -> Numero de Toneladas producidas de Alimentos de Alto Valor Nutricional | J124: =+IFERROR(IF(VLOOKUP($D124&"_"&1,base!$E$4:$BO$7238,J$99,FALSE)>1,IF(VLOOKUP($D124&"_"&1,base!$E$4:$BO$7238,J$99,FALSE)>=1000,TEXT(VLOOKUP($D124&"_"&1,base!$E$4:$BO$7238,J$99,FALSE),"0.000"),TEXT(VLOOKUP($D124&"_"&1,base!$E$4:$BO$7238,J$99,FALSE),"0")),TEXT(VLOOKUP($D124&"_"&1,base!$E$4:$BO$7238,J$99,FALSE),"0.0%")),"") -> 44.000 | K124: =+IFERROR(IF(VLOOKUP($D124&"_"&1,base!$E$4:$BO$7238,K$99,FALSE)>1,IF(VLOOKUP($D124&"_"&1,base!$E$4:$BO$7238,K$99,FALSE)>=1000,TEXT(VLOOKUP($D124&"_"&1,base!$E$4:$BO$7238,K$99,FALSE),"0.000"),TEXT(VLOOKUP($D124&"_"&1,base!$E$4:$BO$7238,K$99,FALSE),"0")),TEXT(VLOOKUP($D124&"_"&1,base!$E$4:$BO$7238,K$99,FALSE),"0.0%")),"") -> 30.203 | L124: =+IFERROR(VLOOKUP($D124&"_"&1,base!$E$4:$BO$7238,L$99,FALSE),"") -> 0.686 | M124: =+IFERROR(VLOOKUP($D124&"_"&1,base!$E$4:$BO$7238,M$99,FALSE),"") -> OPTIMO | P124: =+IFERROR(VLOOKUP($D124&"_"&1,base!$E$4:$BO$7238,P$97,FALSE),"") -> NA | Q124: =+IFERROR(VLOOKUP($D124&"_"&1,base!$E$4:$BO$7238,Q$97,FALSE),"") -> NA | R124: =+IFERROR(VLOOKUP($D124&"_"&1,base!$E$4:$BO$7238,R$97,FALSE),"") -> 0.6347920455 | S124: =+IFERROR(VLOOKUP($D124&"_"&1,base!$E$4:$BO$7238,S$97,FALSE),"") -> ADECUADO | T124: =+IFERROR(VLOOKUP($D124&"_"&1,base!$E$4:$BO$7238,T$97,FALSE),"") -> 0.686 | U124: =+IFERROR(VLOOKUP($D124&"_"&1,base!$E$4:$BO$7238,U$97,FALSE),"") -> OPTIMO | V124: =+IFERROR(VLOOKUP($D124&"_"&1,base!$E$4:$BO$7238,V$97,FALSE),"") -> 0 | W124: =+IFERROR(VLOOKUP($D124&"_"&1,base!$E$4:$BO$7238,W$97,FALSE),"") -> 0 | X124: =+IFERROR(VLOOKUP($D124&"_"&1,base!$E$4:$BO$7238,X$97,FALSE),"") -> 0 | Y124: =+IFERROR(VLOOKUP($D124&"_"&1,base!$E$4:$BO$7238,Y$97,FALSE),"") -> 0 | Z124: =+IFERROR(VLOOKUP($D124&"_"&1,base!$E$4:$BO$7238,Z$97,FALSE),"") -> 0 | AA124: =+IFERROR(VLOOKUP($D124&"_"&1,base!$E$4:$BO$7238,AA$97,FALSE),"") -> 0 | AB124: =+IFERROR(VLOOKUP($D124&"_"&1,base!$E$4:$BO$7238,AB$97,FALSE),"") -> 0 | AC124: =+IFERROR(VLOOKUP($D124&"_"&1,base!$E$4:$BO$7238,AC$97,FALSE),"") -> 0 | AD124: =+IFERROR(VLOOKUP($D124&"_"&1,base!$E$4:$BO$7238,AD$97,FALSE),"") -> 0 | AE124: =+IFERROR(VLOOKUP($D124&"_"&1,base!$E$4:$BO$7238,AE$97,FALSE),"") -> 0 | AF124: =+IFERROR(VLOOKUP($D124&"_"&1,base!$E$4:$BO$7238,AF$97,FALSE),"") -> 0 | AG124: =+IFERROR(VLOOKUP($D124&"_"&1,base!$E$4:$BO$7238,AG$97,FALSE),"") -> 0 | AH124: =+IFERROR(VLOOKUP($D124&"_"&1,base!$E$4:$BO$7238,AH$97,FALSE),"") -> 0 | AI124: =+IFERROR(VLOOKUP($D124&"_"&1,base!$E$4:$BO$7238,AI$97,FALSE),"") -> 0 | AJ124: =+IFERROR(VLOOKUP($D124&"_"&1,base!$E$4:$BO$7238,AJ$97,FALSE),"") -> 0 | AK124: =+IFERROR(VLOOKUP($D124&"_"&1,base!$E$4:$BO$7238,AK$97,FALSE),"") -> 0 | AL124: =+IFERROR(VLOOKUP($D124&"_"&1,base!$E$4:$BO$7238,AL$97,FALSE),"") -> 0 | AM124: =+IFERROR(VLOOKUP($D124&"_"&1,base!$E$4:$BO$7238,AM$97,FALSE),"") -> 0
B125: 26 | C125: =+IFERROR(VLOOKUP(D125,'tablero nal'!$W$9:$EM$163,121,FALSE),"") -> Nutrición | D125: =+IF(HLOOKUP($D$98,'listado indicadores'!$B$3:$AZ$158,$B125,FALSE)="","",HLOOKUP($D$98,'listado indicadores'!$B$3:$AZ$158,$B125,FALSE)) -> PA-26 | E125: =+IFERROR(VLOOKUP(D125,'tablero nal'!$W$9:$X$163,2,FALSE),"") -> Porcentaje de Mujeres en periodo de Gestación y Madres en periodo de Lactancia atendidas en la modalidad de Recuperación Nutricional con Énfasis en los Primeros 1.000 días que mejoran su estado nutricional. | J125: =+IFERROR(IF(VLOOKUP($D125&"_"&1,base!$E$4:$BO$7238,J$99,FALSE)>1,IF(VLOOKUP($D125&"_"&1,base!$E$4:$BO$7238,J$99,FALSE)>=1000,TEXT(VLOOKUP($D125&"_"&1,base!$E$4:$BO$7238,J$99,FALSE),"0.000"),TEXT(VLOOKUP($D125&"_"&1,base!$E$4:$BO$7238,J$99,FALSE),"0")),TEXT(VLOOKUP($D125&"_"&1,base!$E$4:$BO$7238,J$99,FALSE),"0.0%")),"") -> 70% | K125: =+IFERROR(IF(VLOOKUP($D125&"_"&1,base!$E$4:$BO$7238,K$99,FALSE)>1,IF(VLOOKUP($D125&"_"&1,base!$E$4:$BO$7238,K$99,FALSE)>=1000,TEXT(VLOOKUP($D125&"_"&1,base!$E$4:$BO$7238,K$99,FALSE),"0.000"),TEXT(VLOOKUP($D125&"_"&1,base!$E$4:$BO$7238,K$99,FALSE),"0")),TEXT(VLOOKUP($D125&"_"&1,base!$E$4:$BO$7238,K$99,FALSE),"0.0%")),"") -> NA | L125: =+IFERROR(VLOOKUP($D125&"_"&1,base!$E$4:$BO$7238,L$99,FALSE),"") -> NA | M125: =+IFERROR(VLOOKUP($D125&"_"&1,base!$E$4:$BO$7238,M$99,FALSE),"") -> NA | P125: =+IFERROR(VLOOKUP($D125&"_"&1,base!$E$4:$BO$7238,P$97,FALSE),"") -> NA | Q125: =+IFERROR(VLOOKUP($D125&"_"&1,base!$E$4:$BO$7238,Q$97,FALSE),"") -> NA | R125: =+IFERROR(VLOOKUP($D125&"_"&1,base!$E$4:$BO$7238,R$97,FALSE),"") -> NA | S125: =+IFERROR(VLOOKUP($D125&"_"&1,base!$E$4:$BO$7238,S$97,FALSE),"") -> NA | T125: =+IFERROR(VLOOKUP($D125&"_"&1,base!$E$4:$BO$7238,T$97,FALSE),"") -> NA | U125: =+IFERROR(VLOOKUP($D125&"_"&1,base!$E$4:$BO$7238,U$97,FALSE),"") -> NA | V125: =+IFERROR(VLOOKUP($D125&"_"&1,base!$E$4:$BO$7238,V$97,FALSE),"") -> 0 | W125: =+IFERROR(VLOOKUP($D125&"_"&1,base!$E$4:$BO$7238,W$97,FALSE),"") -> 0 | X125: =+IFERROR(VLOOKUP($D125&"_"&1,base!$E$4:$BO$7238,X$97,FALSE),"") -> 0 | Y125: =+IFERROR(VLOOKUP($D125&"_"&1,base!$E$4:$BO$7238,Y$97,FALSE),"") -> 0 | Z125: =+IFERROR(VLOOKUP($D125&"_"&1,base!$E$4:$BO$7238,Z$97,FALSE),"") -> 0 | AA125: =+IFERROR(VLOOKUP($D125&"_"&1,base!$E$4:$BO$7238,AA$97,FALSE),"") -> 0 | AB125: =+IFERROR(VLOOKUP($D125&"_"&1,base!$E$4:$BO$7238,AB$97,FALSE),"") -> 0 | AC125: =+IFERROR(VLOOKUP($D125&"_"&1,base!$E$4:$BO$7238,AC$97,FALSE),"") -> 0 | AD125: =+IFERROR(VLOOKUP($D125&"_"&1,base!$E$4:$BO$7238,AD$97,FALSE),"") -> 0 | AE125: =+IFERROR(VLOOKUP($D125&"_"&1,base!$E$4:$BO$7238,AE$97,FALSE),"") -> 0 | AF125: =+IFERROR(VLOOKUP($D125&"_"&1,base!$E$4:$BO$7238,AF$97,FALSE),"") -> 0 | AG125: =+IFERROR(VLOOKUP($D125&"_"&1,base!$E$4:$BO$7238,AG$97,FALSE),"") -> 0 | AH125: =+IFERROR(VLOOKUP($D125&"_"&1,base!$E$4:$BO$7238,AH$97,FALSE),"") -> 0 | AI125: =+IFERROR(VLOOKUP($D125&"_"&1,base!$E$4:$BO$7238,AI$97,FALSE),"") -> 0 | AJ125: =+IFERROR(VLOOKUP($D125&"_"&1,base!$E$4:$BO$7238,AJ$97,FALSE),"") -> 0 | AK125: =+IFERROR(VLOOKUP($D125&"_"&1,base!$E$4:$BO$7238,AK$97,FALSE),"") -> 0 | AL125: =+IFERROR(VLOOKUP($D125&"_"&1,base!$E$4:$BO$7238,AL$97,FALSE),"") -> 0 | AM125: =+IFERROR(VLOOKUP($D125&"_"&1,base!$E$4:$BO$7238,AM$97,FALSE),"") -> 0
B126: 27 | C126: =+IFERROR(VLOOKUP(D126,'tablero nal'!$W$9:$EM$163,121,FALSE),"") -> Nutrición | D126: =+IF(HLOOKUP($D$98,'listado indicadores'!$B$3:$AZ$158,$B126,FALSE)="","",HLOOKUP($D$98,'listado indicadores'!$B$3:$AZ$158,$B126,FALSE)) -> PA-27 | E126: =+IFERROR(VLOOKUP(D126,'tablero nal'!$W$9:$X$163,2,FALSE),"") -> Porcentaje de niños y niñas de las modalidades de la Estrategia de Recuperación Nutricional que mejoraron su estado nutricional | J126: =+IFERROR(IF(VLOOKUP($D126&"_"&1,base!$E$4:$BO$7238,J$99,FALSE)>1,IF(VLOOKUP($D126&"_"&1,base!$E$4:$BO$7238,J$99,FALSE)>=1000,TEXT(VLOOKUP($D126&"_"&1,base!$E$4:$BO$7238,J$99,FALSE),"0.000"),TEXT(VLOOKUP($D126&"_"&1,base!$E$4:$BO$7238,J$99,FALSE),"0")),TEXT(VLOOKUP($D126&"_"&1,base!$E$4:$BO$7238,J$99,FALSE),"0.0%")),"") -> 80% | K126: =+IFERROR(IF(VLOOKUP($D126&"_"&1,base!$E$4:$BO$7238,K$99,FALSE)>1,IF(VLOOKUP($D126&"_"&1,base!$E$4:$BO$7238,K$99,FALSE)>=1000,TEXT(VLOOKUP($D126&"_"&1,base!$E$4:$BO$7238,K$99,FALSE),"0.000"),TEXT(VLOOKUP($D126&"_"&1,base!$E$4:$BO$7238,K$99,FALSE),"0")),TEXT(VLOOKUP($D126&"_"&1,base!$E$4:$BO$7238,K$99,FALSE),"0.0%")),"") -> NA | L126: =+IFERROR(VLOOKUP($D126&"_"&1,base!$E$4:$BO$7238,L$99,FALSE),"") -> NA | M126: =+IFERROR(VLOOKUP($D126&"_"&1,base!$E$4:$BO$7238,M$99,FALSE),"") -> NA | P126: =+IFERROR(VLOOKUP($D126&"_"&1,base!$E$4:$BO$7238,P$97,FALSE),"") -> NA | Q126: =+IFERROR(VLOOKUP($D126&"_"&1,base!$E$4:$BO$7238,Q$97,FALSE),"") -> NA | R126: =+IFERROR(VLOOKUP($D126&"_"&1,base!$E$4:$BO$7238,R$97,FALSE),"") -> NA | S126: =+IFERROR(VLOOKUP($D126&"_"&1,base!$E$4:$BO$7238,S$97,FALSE),"") -> NA | T126: =+IFERROR(VLOOKUP($D126&"_"&1,base!$E$4:$BO$7238,T$97,FALSE),"") -> NA | U126: =+IFERROR(VLOOKUP($D126&"_"&1,base!$E$4:$BO$7238,U$97,FALSE),"") -> NA | V126: =+IFERROR(VLOOKUP($D126&"_"&1,base!$E$4:$BO$7238,V$97,FALSE),"") -> 0 | W126: =+IFERROR(VLOOKUP($D126&"_"&1,base!$E$4:$BO$7238,W$97,FALSE),"") -> 0 | X126: =+IFERROR(VLOOKUP($D126&"_"&1,base!$E$4:$BO$7238,X$97,FALSE),"") -> 0 | Y126: =+IFERROR(VLOOKUP($D126&"_"&1,base!$E$4:$BO$7238,Y$97,FALSE),"") -> 0 | Z126: =+IFERROR(VLOOKUP($D126&"_"&1,base!$E$4:$BO$7238,Z$97,FALSE),"") -> 0 | AA126: =+IFERROR(VLOOKUP($D126&"_"&1,base!$E$4:$BO$7238,AA$97,FALSE),"") -> 0 | AB126: =+IFERROR(VLOOKUP($D126&"_"&1,base!$E$4:$BO$7238,AB$97,FALSE),"") -> 0 | AC126: =+IFERROR(VLOOKUP($D126&"_"&1,base!$E$4:$BO$7238,AC$97,FALSE),"") -> 0 | AD126: =+IFERROR(VLOOKUP($D126&"_"&1,base!$E$4:$BO$7238,AD$97,FALSE),"") -> 0 | AE126: =+IFERROR(VLOOKUP($D126&"_"&1,base!$E$4:$BO$7238,AE$97,FALSE),"") -> 0 | AF126: =+IFERROR(VLOOKUP($D126&"_"&1,base!$E$4:$BO$7238,AF$97,FALSE),"") -> 0 | AG126: =+IFERROR(VLOOKUP($D126&"_"&1,base!$E$4:$BO$7238,AG$97,FALSE),"") -> 0 | AH126: =+IFERROR(VLOOKUP($D126&"_"&1,base!$E$4:$BO$7238,AH$97,FALSE),"") -> 0 | AI126: =+IFERROR(VLOOKUP($D126&"_"&1,base!$E$4:$BO$7238,AI$97,FALSE),"") -> 0 | AJ126: =+IFERROR(VLOOKUP($D126&"_"&1,base!$E$4:$BO$7238,AJ$97,FALSE),"") -> 0 | AK126: =+IFERROR(VLOOKUP($D126&"_"&1,base!$E$4:$BO$7238,AK$97,FALSE),"") -> 0 | AL126: =+IFERROR(VLOOKUP($D126&"_"&1,base!$E$4:$BO$7238,AL$97,FALSE),"") -> 0 | AM126: =+IFERROR(VLOOKUP($D126&"_"&1,base!$E$4:$BO$7238,AM$97,FALSE),"") -> 0
B127: 28 | C127: =+IFERROR(VLOOKUP(D127,'tablero nal'!$W$9:$EM$163,121,FALSE),"") -> Nutrición | D127: =+IF(HLOOKUP($D$98,'listado indicadores'!$B$3:$AZ$158,$B127,FALSE)="","",HLOOKUP($D$98,'listado indicadores'!$B$3:$AZ$158,$B127,FALSE)) -> PA-28 | E127: =+IFERROR(VLOOKUP(D127,'tablero nal'!$W$9:$X$163,2,FALSE),"") -> Numero de Entes Territoriales asesorados en las acciones propias de la Política de Seguridad Alimentaria y Nutricional | J127: =+IFERROR(IF(VLOOKUP($D127&"_"&1,base!$E$4:$BO$7238,J$99,FALSE)>1,IF(VLOOKUP($D127&"_"&1,base!$E$4:$BO$7238,J$99,FALSE)>=1000,TEXT(VLOOKUP($D127&"_"&1,base!$E$4:$BO$7238,J$99,FALSE),"0.000"),TEXT(VLOOKUP($D127&"_"&1,base!$E$4:$BO$7238,J$99,FALSE),"0")),TEXT(VLOOKUP($D127&"_"&1,base!$E$4:$BO$7238,J$99,FALSE),"0.0%")),"") -> 33 | K127: =+IFERROR(IF(VLOOKUP($D127&"_"&1,base!$E$4:$BO$7238,K$99,FALSE)>1,IF(VLOOKUP($D127&"_"&1,base!$E$4:$BO$7238,K$99,FALSE)>=1000,TEXT(VLOOKUP($D127&"_"&1,base!$E$4:$BO$7238,K$99,FALSE),"0.000"),TEXT(VLOOKUP($D127&"_"&1,base!$E$4:$BO$7238,K$99,FALSE),"0")),TEXT(VLOOKUP($D127&"_"&1,base!$E$4:$BO$7238,K$99,FALSE),"0.0%")),"") -> NA | L127: =+IFERROR(VLOOKUP($D127&"_"&1,base!$E$4:$BO$7238,L$99,FALSE),"") -> NA | M127: =+IFERROR(VLOOKUP($D127&"_"&1,base!$E$4:$BO$7238,M$99,FALSE),"") -> NA | P127: =+IFERROR(VLOOKUP($D127&"_"&1,base!$E$4:$BO$7238,P$97,FALSE),"") -> NA | Q127: =+IFERROR(VLOOKUP($D127&"_"&1,base!$E$4:$BO$7238,Q$97,FALSE),"") -> NA | R127: =+IFERROR(VLOOKUP($D127&"_"&1,base!$E$4:$BO$7238,R$97,FALSE),"") -> NA | S127: =+IFERROR(VLOOKUP($D127&"_"&1,base!$E$4:$BO$7238,S$97,FALSE),"") -> NA | T127: =+IFERROR(VLOOKUP($D127&"_"&1,base!$E$4:$BO$7238,T$97,FALSE),"") -> NA | U127: =+IFERROR(VLOOKUP($D127&"_"&1,base!$E$4:$BO$7238,U$97,FALSE),"") -> NA | V127: =+IFERROR(VLOOKUP($D127&"_"&1,base!$E$4:$BO$7238,V$97,FALSE),"") -> 0 | W127: =+IFERROR(VLOOKUP($D127&"_"&1,base!$E$4:$BO$7238,W$97,FALSE),"") -> 0 | X127: =+IFERROR(VLOOKUP($D127&"_"&1,base!$E$4:$BO$7238,X$97,FALSE),"") -> 0 | Y127: =+IFERROR(VLOOKUP($D127&"_"&1,base!$E$4:$BO$7238,Y$97,FALSE),"") -> 0 | Z127: =+IFERROR(VLOOKUP($D127&"_"&1,base!$E$4:$BO$7238,Z$97,FALSE),"") -> 0 | AA127: =+IFERROR(VLOOKUP($D127&"_"&1,base!$E$4:$BO$7238,AA$97,FALSE),"") -> 0 | AB127: =+IFERROR(VLOOKUP($D127&"_"&1,base!$E$4:$BO$7238,AB$97,FALSE),"") -> 0 | AC127: =+IFERROR(VLOOKUP($D127&"_"&1,base!$E$4:$BO$7238,AC$97,FALSE),"") -> 0 | AD127: =+IFERROR(VLOOKUP($D127&"_"&1,base!$E$4:$BO$7238,AD$97,FALSE),"") -> 0 | AE127: =+IFERROR(VLOOKUP($D127&"_"&1,base!$E$4:$BO$7238,AE$97,FALSE),"") -> 0 | AF127: =+IFERROR(VLOOKUP($D127&"_"&1,base!$E$4:$BO$7238,AF$97,FALSE),"") -> 0 | AG127: =+IFERROR(VLOOKUP($D127&"_"&1,base!$E$4:$BO$7238,AG$97,FALSE),"") -> 0 | AH127: =+IFERROR(VLOOKUP($D127&"_"&1,base!$E$4:$BO$7238,AH$97,FALSE),"") -> 0 | AI127: =+IFERROR(VLOOKUP($D127&"_"&1,base!$E$4:$BO$7238,AI$97,FALSE),"") -> 0 | AJ127: =+IFERROR(VLOOKUP($D127&"_"&1,base!$E$4:$BO$7238,AJ$97,FALSE),"") -> 0 | AK127: =+IFERROR(VLOOKUP($D127&"_"&1,base!$E$4:$BO$7238,AK$97,FALSE),"") -> 0 | AL127: =+IFERROR(VLOOKUP($D127&"_"&1,base!$E$4:$BO$7238,AL$97,FALSE),"") -> 0 | AM127: =+IFERROR(VLOOKUP($D127&"_"&1,base!$E$4:$BO$7238,AM$97,FALSE),"") -> 0
B128: 29 | C128: =+IFERROR(VLOOKUP(D128,'tablero nal'!$W$9:$EM$163,121,FALSE),"") -> Nutrición | D128: =+IF(HLOOKUP($D$98,'listado indicadores'!$B$3:$AZ$158,$B128,FALSE)="","",HLOOKUP($D$98,'listado indicadores'!$B$3:$AZ$158,$B128,FALSE)) -> PA-29 | E128: =+IFERROR(VLOOKUP(D128,'tablero nal'!$W$9:$X$163,2,FALSE),"") -> Numero de capacitaciones a Servidores Públicos, contratistas y Agentes del Sistema Nacional de Bienestar Familiar en las acciones propias de la Política de Seguridad Alimentaria y Nutricional | J128: =+IFERROR(IF(VLOOKUP($D128&"_"&1,base!$E$4:$BO$7238,J$99,FALSE)>1,IF(VLOOKUP($D128&"_"&1,base!$E$4:$BO$7238,J$99,FALSE)>=1000,TEXT(VLOOKUP($D128&"_"&1,base!$E$4:$BO$7238,J$99,FALSE),"0.000"),TEXT(VLOOKUP($D128&"_"&1,base!$E$4:$BO$7238,J$99,FALSE),"0")),TEXT(VLOOKUP($D128&"_"&1,base!$E$4:$BO$7238,J$99,FALSE),"0.0%")),"") -> 2.240 | K128: =+IFERROR(IF(VLOOKUP($D128&"_"&1,base!$E$4:$BO$7238,K$99,FALSE)>1,IF(VLOOKUP($D128&"_"&1,base!$E$4:$BO$7238,K$99,FALSE)>=1000,TEXT(VLOOKUP($D128&"_"&1,base!$E$4:$BO$7238,K$99,FALSE),"0.000"),TEXT(VLOOKUP($D128&"_"&1,base!$E$4:$BO$7238,K$99,FALSE),"0")),TEXT(VLOOKUP($D128&"_"&1,base!$E$4:$BO$7238,K$99,FALSE),"0.0%")),"") -> NA | L128: =+IFERROR(VLOOKUP($D128&"_"&1,base!$E$4:$BO$7238,L$99,FALSE),"") -> NA | M128: =+IFERROR(VLOOKUP($D128&"_"&1,base!$E$4:$BO$7238,M$99,FALSE),"") -> NA | P128: =+IFERROR(VLOOKUP($D128&"_"&1,base!$E$4:$BO$7238,P$97,FALSE),"") -> NA | Q128: =+IFERROR(VLOOKUP($D128&"_"&1,base!$E$4:$BO$7238,Q$97,FALSE),"") -> NA | R128: =+IFERROR(VLOOKUP($D128&"_"&1,base!$E$4:$BO$7238,R$97,FALSE),"") -> NA | S128: =+IFERROR(VLOOKUP($D128&"_"&1,base!$E$4:$BO$7238,S$97,FALSE),"") -> NA | T128: =+IFERROR(VLOOKUP($D128&"_"&1,base!$E$4:$BO$7238,T$97,FALSE),"") -> NA | U128: =+IFERROR(VLOOKUP($D128&"_"&1,base!$E$4:$BO$7238,U$97,FALSE),"") -> NA | V128: =+IFERROR(VLOOKUP($D128&"_"&1,base!$E$4:$BO$7238,V$97,FALSE),"") -> 0 | W128: =+IFERROR(VLOOKUP($D128&"_"&1,base!$E$4:$BO$7238,W$97,FALSE),"") -> 0 | X128: =+IFERROR(VLOOKUP($D128&"_"&1,base!$E$4:$BO$7238,X$97,FALSE),"") -> 0 | Y128: =+IFERROR(VLOOKUP($D128&"_"&1,base!$E$4:$BO$7238,Y$97,FALSE),"") -> 0 | Z128: =+IFERROR(VLOOKUP($D128&"_"&1,base!$E$4:$BO$7238,Z$97,FALSE),"") -> 0 | AA128: =+IFERROR(VLOOKUP($D128&"_"&1,base!$E$4:$BO$7238,AA$97,FALSE),"") -> 0 | AB128: =+IFERROR(VLOOKUP($D128&"_"&1,base!$E$4:$BO$7238,AB$97,FALSE),"") -> 0 | AC128: =+IFERROR(VLOOKUP($D128&"_"&1,base!$E$4:$BO$7238,AC$97,FALSE),"") -> 0 | AD128: =+IFERROR(VLOOKUP($D128&"_"&1,base!$E$4:$BO$7238,AD$97,FALSE),"") -> 0 | AE128: =+IFERROR(VLOOKUP($D128&"_"&1,base!$E$4:$BO$7238,AE$97,FALSE),"") -> 0 | AF128: =+IFERROR(VLOOKUP($D128&"_"&1,base!$E$4:$BO$7238,AF$97,FALSE),"") -> 0 | AG128: =+IFERROR(VLOOKUP($D128&"_"&1,base!$E$4:$BO$7238,AG$97,FALSE),"") -> 0 | AH128: =+IFERROR(VLOOKUP($D128&"_"&1,base!$E$4:$BO$7238,AH$97,FALSE),"") -> 0 | AI128: =+IFERROR(VLOOKUP($D128&"_"&1,base!$E$4:$BO$7238,AI$97,FALSE),"") -> 0 | AJ128: =+IFERROR(VLOOKUP($D128&"_"&1,base!$E$4:$BO$7238,AJ$97,FALSE),"") -> 0 | AK128: =+IFERROR(VLOOKUP($D128&"_"&1,base!$E$4:$BO$7238,AK$97,FALSE),"") -> 0 | AL128: =+IFERROR(VLOOKUP($D128&"_"&1,base!$E$4:$BO$7238,AL$97,FALSE),"") -> 0 | AM128: =+IFERROR(VLOOKUP($D128&"_"&1,base!$E$4:$BO$7238,AM$97,FALSE),"") -> 0
B129: 30 | C129: =+IFERROR(VLOOKUP(D129,'tablero nal'!$W$9:$EM$163,121,FALSE),"") -> Nutrición | D129: =+IF(HLOOKUP($D$98,'listado indicadores'!$B$3:$AZ$158,$B129,FALSE)="","",HLOOKUP($D$98,'listado indicadores'!$B$3:$AZ$158,$B129,FALSE)) -> PA-30 | E129: =+IFERROR(VLOOKUP(D129,'tablero nal'!$W$9:$X$163,2,FALSE),"") -> Niñas y niños menores de 5 años y mujeres gestantes microfocalizados en el marco de la prestación del servicio del ICBF. | J129: =+IFERROR(IF(VLOOKUP($D129&"_"&1,base!$E$4:$BO$7238,J$99,FALSE)>1,IF(VLOOKUP($D129&"_"&1,base!$E$4:$BO$7238,J$99,FALSE)>=1000,TEXT(VLOOKUP($D129&"_"&1,base!$E$4:$BO$7238,J$99,FALSE),"0.000"),TEXT(VLOOKUP($D129&"_"&1,base!$E$4:$BO$7238,J$99,FALSE),"0")),TEXT(VLOOKUP($D129&"_"&1,base!$E$4:$BO$7238,J$99,FALSE),"0.0%")),"") -> 130.000 | K129: =+IFERROR(IF(VLOOKUP($D129&"_"&1,base!$E$4:$BO$7238,K$99,FALSE)>1,IF(VLOOKUP($D129&"_"&1,base!$E$4:$BO$7238,K$99,FALSE)>=1000,TEXT(VLOOKUP($D129&"_"&1,base!$E$4:$BO$7238,K$99,FALSE),"0.000"),TEXT(VLOOKUP($D129&"_"&1,base!$E$4:$BO$7238,K$99,FALSE),"0")),TEXT(VLOOKUP($D129&"_"&1,base!$E$4:$BO$7238,K$99,FALSE),"0.0%")),"") -> NA | L129: =+IFERROR(VLOOKUP($D129&"_"&1,base!$E$4:$BO$7238,L$99,FALSE),"") -> NA | M129: =+IFERROR(VLOOKUP($D129&"_"&1,base!$E$4:$BO$7238,M$99,FALSE),"") -> NA | P129: =+IFERROR(VLOOKUP($D129&"_"&1,base!$E$4:$BO$7238,P$97,FALSE),"") -> NA | Q129: =+IFERROR(VLOOKUP($D129&"_"&1,base!$E$4:$BO$7238,Q$97,FALSE),"") -> NA | R129: =+IFERROR(VLOOKUP($D129&"_"&1,base!$E$4:$BO$7238,R$97,FALSE),"") -> NA | S129: =+IFERROR(VLOOKUP($D129&"_"&1,base!$E$4:$BO$7238,S$97,FALSE),"") -> NA | T129: =+IFERROR(VLOOKUP($D129&"_"&1,base!$E$4:$BO$7238,T$97,FALSE),"") -> NA | U129: =+IFERROR(VLOOKUP($D129&"_"&1,base!$E$4:$BO$7238,U$97,FALSE),"") -> NA | V129: =+IFERROR(VLOOKUP($D129&"_"&1,base!$E$4:$BO$7238,V$97,FALSE),"") -> 0 | W129: =+IFERROR(VLOOKUP($D129&"_"&1,base!$E$4:$BO$7238,W$97,FALSE),"") -> 0 | X129: =+IFERROR(VLOOKUP($D129&"_"&1,base!$E$4:$BO$7238,X$97,FALSE),"") -> 0 | Y129: =+IFERROR(VLOOKUP($D129&"_"&1,base!$E$4:$BO$7238,Y$97,FALSE),"") -> 0 | Z129: =+IFERROR(VLOOKUP($D129&"_"&1,base!$E$4:$BO$7238,Z$97,FALSE),"") -> 0 | AA129: =+IFERROR(VLOOKUP($D129&"_"&1,base!$E$4:$BO$7238,AA$97,FALSE),"") -> 0 | AB129: =+IFERROR(VLOOKUP($D129&"_"&1,base!$E$4:$BO$7238,AB$97,FALSE),"") -> 0 | AC129: =+IFERROR(VLOOKUP($D129&"_"&1,base!$E$4:$BO$7238,AC$97,FALSE),"") -> 0 | AD129: =+IFERROR(VLOOKUP($D129&"_"&1,base!$E$4:$BO$7238,AD$97,FALSE),"") -> 0 | AE129: =+IFERROR(VLOOKUP($D129&"_"&1,base!$E$4:$BO$7238,AE$97,FALSE),"") -> 0 | AF129: =+IFERROR(VLOOKUP($D129&"_"&1,base!$E$4:$BO$7238,AF$97,FALSE),"") -> 0 | AG129: =+IFERROR(VLOOKUP($D129&"_"&1,base!$E$4:$BO$7238,AG$97,FALSE),"") -> 0 | AH129: =+IFERROR(VLOOKUP($D129&"_"&1,base!$E$4:$BO$7238,AH$97,FALSE),"") -> 0 | AI129: =+IFERROR(VLOOKUP($D129&"_"&1,base!$E$4:$BO$7238,AI$97,FALSE),"") -> 0 | AJ129: =+IFERROR(VLOOKUP($D129&"_"&1,base!$E$4:$BO$7238,AJ$97,FALSE),"") -> 0 | AK129: =+IFERROR(VLOOKUP($D129&"_"&1,base!$E$4:$BO$7238,AK$97,FALSE),"") -> 0 | AL129: =+IFERROR(VLOOKUP($D129&"_"&1,base!$E$4:$BO$7238,AL$97,FALSE),"") -> 0 | AM129: =+IFERROR(VLOOKUP($D129&"_"&1,base!$E$4:$BO$7238,AM$97,FALSE),"") -> 0
B130: 31 | C130: =+IFERROR(VLOOKUP(D130,'tablero nal'!$W$9:$EM$163,121,FALSE),"") -> Protección | D130: =+IF(HLOOKUP($D$98,'listado indicadores'!$B$3:$AZ$158,$B130,FALSE)="","",HLOOKUP($D$98,'listado indicadores'!$B$3:$AZ$158,$B130,FALSE)) -> PA-31 | E130: =+IFERROR(VLOOKUP(D130,'tablero nal'!$W$9:$X$163,2,FALSE),"") -> Porcentaje de adolescentes y jóvenes declarados en adoptabilidad, que esten vinculados a procesos de formación y educación superior. | J130: =+IFERROR(IF(VLOOKUP($D130&"_"&1,base!$E$4:$BO$7238,J$99,FALSE)>1,IF(VLOOKUP($D130&"_"&1,base!$E$4:$BO$7238,J$99,FALSE)>=1000,TEXT(VLOOKUP($D130&"_"&1,base!$E$4:$BO$7238,J$99,FALSE),"0.000"),TEXT(VLOOKUP($D130&"_"&1,base!$E$4:$BO$7238,J$99,FALSE),"0")),TEXT(VLOOKUP($D130&"_"&1,base!$E$4:$BO$7238,J$99,FALSE),"0.0%")),"") -> 100% | K130: =+IFERROR(IF(VLOOKUP($D130&"_"&1,base!$E$4:$BO$7238,K$99,FALSE)>1,IF(VLOOKUP($D130&"_"&1,base!$E$4:$BO$7238,K$99,FALSE)>=1000,TEXT(VLOOKUP($D130&"_"&1,base!$E$4:$BO$7238,K$99,FALSE),"0.000"),TEXT(VLOOKUP($D130&"_"&1,base!$E$4:$BO$7238,K$99,FALSE),"0")),TEXT(VLOOKUP($D130&"_"&1,base!$E$4:$BO$7238,K$99,FALSE),"0.0%")),"") -> 97% | L130: =+IFERROR(VLOOKUP($D130&"_"&1,base!$E$4:$BO$7238,L$99,FALSE),"") -> 0.966 | M130: =+IFERROR(VLOOKUP($D130&"_"&1,base!$E$4:$BO$7238,M$99,FALSE),"") -> ADECUADO | P130: =+IFERROR(VLOOKUP($D130&"_"&1,base!$E$4:$BO$7238,P$97,FALSE),"") -> NA | Q130: =+IFERROR(VLOOKUP($D130&"_"&1,base!$E$4:$BO$7238,Q$97,FALSE),"") -> NA | R130: =+IFERROR(VLOOKUP($D130&"_"&1,base!$E$4:$BO$7238,R$97,FALSE),"") -> NA | S130: =+IFERROR(VLOOKUP($D130&"_"&1,base!$E$4:$BO$7238,S$97,FALSE),"") -> NA | T130: =+IFERROR(VLOOKUP($D130&"_"&1,base!$E$4:$BO$7238,T$97,FALSE),"") -> 0.966 | U130: =+IFERROR(VLOOKUP($D130&"_"&1,base!$E$4:$BO$7238,U$97,FALSE),"") -> ADECUADO | V130: =+IFERROR(VLOOKUP($D130&"_"&1,base!$E$4:$BO$7238,V$97,FALSE),"") -> 0 | W130: =+IFERROR(VLOOKUP($D130&"_"&1,base!$E$4:$BO$7238,W$97,FALSE),"") -> 0 | X130: =+IFERROR(VLOOKUP($D130&"_"&1,base!$E$4:$BO$7238,X$97,FALSE),"") -> 0 | Y130: =+IFERROR(VLOOKUP($D130&"_"&1,base!$E$4:$BO$7238,Y$97,FALSE),"") -> 0 | Z130: =+IFERROR(VLOOKUP($D130&"_"&1,base!$E$4:$BO$7238,Z$97,FALSE),"") -> 0 | AA130: =+IFERROR(VLOOKUP($D130&"_"&1,base!$E$4:$BO$7238,AA$97,FALSE),"") -> 0 | AB130: =+IFERROR(VLOOKUP($D130&"_"&1,base!$E$4:$BO$7238,AB$97,FALSE),"") -> 0 | AC130: =+IFERROR(VLOOKUP($D130&"_"&1,base!$E$4:$BO$7238,AC$97,FALSE),"") -> 0 | AD130: =+IFERROR(VLOOKUP($D130&"_"&1,base!$E$4:$BO$7238,AD$97,FALSE),"") -> 0 | AE130: =+IFERROR(VLOOKUP($D130&"_"&1,base!$E$4:$BO$7238,AE$97,FALSE),"") -> 0 | AF130: =+IFERROR(VLOOKUP($D130&"_"&1,base!$E$4:$BO$7238,AF$97,FALSE),"") -> 0 | AG130: =+IFERROR(VLOOKUP($D130&"_"&1,base!$E$4:$BO$7238,AG$97,FALSE),"") -> 0 | AH130: =+IFERROR(VLOOKUP($D130&"_"&1,base!$E$4:$BO$7238,AH$97,FALSE),"") -> 0 | AI130: =+IFERROR(VLOOKUP($D130&"_"&1,base!$E$4:$BO$7238,AI$97,FALSE),"") -> 0 | AJ130: =+IFERROR(VLOOKUP($D130&"_"&1,base!$E$4:$BO$7238,AJ$97,FALSE),"") -> 0 | AK130: =+IFERROR(VLOOKUP($D130&"_"&1,base!$E$4:$BO$7238,AK$97,FALSE),"") -> 0 | AL130: =+IFERROR(VLOOKUP($D130&"_"&1,base!$E$4:$BO$7238,AL$97,FALSE),"") -> 0 | AM130: =+IFERROR(VLOOKUP($D130&"_"&1,base!$E$4:$BO$7238,AM$97,FALSE),"") -> 0
B131: 32 | C131: =+IFERROR(VLOOKUP(D131,'tablero nal'!$W$9:$EM$163,121,FALSE),"") -> Protección | D131: =+IF(HLOOKUP($D$98,'listado indicadores'!$B$3:$AZ$158,$B131,FALSE)="","",HLOOKUP($D$98,'listado indicadores'!$B$3:$AZ$158,$B131,FALSE)) -> PA-32 | E131: =+IFERROR(VLOOKUP(D131,'tablero nal'!$W$9:$X$163,2,FALSE),"") -> Porcentaje de niños, niñas y adolescentes con situación legal dentro de los 4 meses definidos por la ley. | J131: =+IFERROR(IF(VLOOKUP($D131&"_"&1,base!$E$4:$BO$7238,J$99,FALSE)>1,IF(VLOOKUP($D131&"_"&1,base!$E$4:$BO$7238,J$99,FALSE)>=1000,TEXT(VLOOKUP($D131&"_"&1,base!$E$4:$BO$7238,J$99,FALSE),"0.000"),TEXT(VLOOKUP($D131&"_"&1,base!$E$4:$BO$7238,J$99,FALSE),"0")),TEXT(VLOOKUP($D131&"_"&1,base!$E$4:$BO$7238,J$99,FALSE),"0.0%")),"") -> 100% | K131: =+IFERROR(IF(VLOOKUP($D131&"_"&1,base!$E$4:$BO$7238,K$99,FALSE)>1,IF(VLOOKUP($D131&"_"&1,base!$E$4:$BO$7238,K$99,FALSE)>=1000,TEXT(VLOOKUP($D131&"_"&1,base!$E$4:$BO$7238,K$99,FALSE),"0.000"),TEXT(VLOOKUP($D131&"_"&1,base!$E$4:$BO$7238,K$99,FALSE),"0")),TEXT(VLOOKUP($D131&"_"&1,base!$E$4:$BO$7238,K$99,FALSE),"0.0%")),"") -> 91% | L131: =+IFERROR(VLOOKUP($D131&"_"&1,base!$E$4:$BO$7238,L$99,FALSE),"") -> 0.906 | M131: =+IFERROR(VLOOKUP($D131&"_"&1,base!$E$4:$BO$7238,M$99,FALSE),"") -> CRITICO | P131: =+IFERROR(VLOOKUP($D131&"_"&1,base!$E$4:$BO$7238,P$97,FALSE),"") -> NA | Q131: =+IFERROR(VLOOKUP($D131&"_"&1,base!$E$4:$BO$7238,Q$97,FALSE),"") -> NA | R131: =+IFERROR(VLOOKUP($D131&"_"&1,base!$E$4:$BO$7238,R$97,FALSE),"") -> 0.9963 | S131: =+IFERROR(VLOOKUP($D131&"_"&1,base!$E$4:$BO$7238,S$97,FALSE),"") -> ADECUADO | T131: =+IFERROR(VLOOKUP($D131&"_"&1,base!$E$4:$BO$7238,T$97,FALSE),"") -> 0.906 | U131: =+IFERROR(VLOOKUP($D131&"_"&1,base!$E$4:$BO$7238,U$97,FALSE),"") -> CRITICO | V131: =+IFERROR(VLOOKUP($D131&"_"&1,base!$E$4:$BO$7238,V$97,FALSE),"") -> 0 | W131: =+IFERROR(VLOOKUP($D131&"_"&1,base!$E$4:$BO$7238,W$97,FALSE),"") -> 0 | X131: =+IFERROR(VLOOKUP($D131&"_"&1,base!$E$4:$BO$7238,X$97,FALSE),"") -> 0 | Y131: =+IFERROR(VLOOKUP($D131&"_"&1,base!$E$4:$BO$7238,Y$97,FALSE),"") -> 0 | Z131: =+IFERROR(VLOOKUP($D131&"_"&1,base!$E$4:$BO$7238,Z$97,FALSE),"") -> 0 | AA131: =+IFERROR(VLOOKUP($D131&"_"&1,base!$E$4:$BO$7238,AA$97,FALSE),"") -> 0 | AB131: =+IFERROR(VLOOKUP($D131&"_"&1,base!$E$4:$BO$7238,AB$97,FALSE),"") -> 0 | AC131: =+IFERROR(VLOOKUP($D131&"_"&1,base!$E$4:$BO$7238,AC$97,FALSE),"") -> 0 | AD131: =+IFERROR(VLOOKUP($D131&"_"&1,base!$E$4:$BO$7238,AD$97,FALSE),"") -> 0 | AE131: =+IFERROR(VLOOKUP($D131&"_"&1,base!$E$4:$BO$7238,AE$97,FALSE),"") -> 0 | AF131: =+IFERROR(VLOOKUP($D131&"_"&1,base!$E$4:$BO$7238,AF$97,FALSE),"") -> 0 | AG131: =+IFERROR(VLOOKUP($D131&"_"&1,base!$E$4:$BO$7238,AG$97,FALSE),"") -> 0 | AH131: =+IFERROR(VLOOKUP($D131&"_"&1,base!$E$4:$BO$7238,AH$97,FALSE),"") -> 0 | AI131: =+IFERROR(VLOOKUP($D131&"_"&1,base!$E$4:$BO$7238,AI$97,FALSE),"") -> 0 | AJ131: =+IFERROR(VLOOKUP($D131&"_"&1,base!$E$4:$BO$7238,AJ$97,FALSE),"") -> 0 | AK131: =+IFERROR(VLOOKUP($D131&"_"&1,base!$E$4:$BO$7238,AK$97,FALSE),"") -> 0 | AL131: =+IFERROR(VLOOKUP($D131&"_"&1,base!$E$4:$BO$7238,AL$97,FALSE),"") -> 0 | AM131: =+IFERROR(VLOOKUP($D131&"_"&1,base!$E$4:$BO$7238,AM$97,FALSE),"") -> 0
B132: 33 | C132: =+IFERROR(VLOOKUP(D132,'tablero nal'!$W$9:$EM$163,121,FALSE),"") -> Protección | D132: =+IF(HLOOKUP($D$98,'listado indicadores'!$B$3:$AZ$158,$B132,FALSE)="","",HLOOKUP($D$98,'listado indicadores'!$B$3:$AZ$158,$B132,FALSE)) -> PA-33 | E132: =+IFERROR(VLOOKUP(D132,'tablero nal'!$W$9:$X$163,2,FALSE),"") -> Porcentaje de niños, niñas, adolescentes y jóvenes desvinculados de los grupos armados al margen de la ley, que egresan del programa cumpliendo sus objetivos. | J132: =+IFERROR(IF(VLOOKUP($D132&"_"&1,base!$E$4:$BO$7238,J$99,FALSE)>1,IF(VLOOKUP($D132&"_"&1,base!$E$4:$BO$7238,J$99,FALSE)>=1000,TEXT(VLOOKUP($D132&"_"&1,base!$E$4:$BO$7238,J$99,FALSE),"0.000"),TEXT(VLOOKUP($D132&"_"&1,base!$E$4:$BO$7238,J$99,FALSE),"0")),TEXT(VLOOKUP($D132&"_"&1,base!$E$4:$BO$7238,J$99,FALSE),"0.0%")),"") -> 75% | K132: =+IFERROR(IF(VLOOKUP($D132&"_"&1,base!$E$4:$BO$7238,K$99,FALSE)>1,IF(VLOOKUP($D132&"_"&1,base!$E$4:$BO$7238,K$99,FALSE)>=1000,TEXT(VLOOKUP($D132&"_"&1,base!$E$4:$BO$7238,K$99,FALSE),"0.000"),TEXT(VLOOKUP($D132&"_"&1,base!$E$4:$BO$7238,K$99,FALSE),"0")),TEXT(VLOOKUP($D132&"_"&1,base!$E$4:$BO$7238,K$99,FALSE),"0.0%")),"") -> 69% | L132: =+IFERROR(VLOOKUP($D132&"_"&1,base!$E$4:$BO$7238,L$99,FALSE),"") -> 0.691 | M132: =+IFERROR(VLOOKUP($D132&"_"&1,base!$E$4:$BO$7238,M$99,FALSE),"") -> ADECUADO | P132: =+IFERROR(VLOOKUP($D132&"_"&1,base!$E$4:$BO$7238,P$97,FALSE),"") -> NA | Q132: =+IFERROR(VLOOKUP($D132&"_"&1,base!$E$4:$BO$7238,Q$97,FALSE),"") -> NA | R132: =+IFERROR(VLOOKUP($D132&"_"&1,base!$E$4:$BO$7238,R$97,FALSE),"") -> NA | S132: =+IFERROR(VLOOKUP($D132&"_"&1,base!$E$4:$BO$7238,S$97,FALSE),"") -> NA | T132: =+IFERROR(VLOOKUP($D132&"_"&1,base!$E$4:$BO$7238,T$97,FALSE),"") -> 0.691 | U132: =+IFERROR(VLOOKUP($D132&"_"&1,base!$E$4:$BO$7238,U$97,FALSE),"") -> ADECUADO | V132: =+IFERROR(VLOOKUP($D132&"_"&1,base!$E$4:$BO$7238,V$97,FALSE),"") -> 0 | W132: =+IFERROR(VLOOKUP($D132&"_"&1,base!$E$4:$BO$7238,W$97,FALSE),"") -> 0 | X132: =+IFERROR(VLOOKUP($D132&"_"&1,base!$E$4:$BO$7238,X$97,FALSE),"") -> 0 | Y132: =+IFERROR(VLOOKUP($D132&"_"&1,base!$E$4:$BO$7238,Y$97,FALSE),"") -> 0 | Z132: =+IFERROR(VLOOKUP($D132&"_"&1,base!$E$4:$BO$7238,Z$97,FALSE),"") -> 0 | AA132: =+IFERROR(VLOOKUP($D132&"_"&1,base!$E$4:$BO$7238,AA$97,FALSE),"") -> 0 | AB132: =+IFERROR(VLOOKUP($D132&"_"&1,base!$E$4:$BO$7238,AB$97,FALSE),"") -> 0 | AC132: =+IFERROR(VLOOKUP($D132&"_"&1,base!$E$4:$BO$7238,AC$97,FALSE),"") -> 0 | AD132: =+IFERROR(VLOOKUP($D132&"_"&1,base!$E$4:$BO$7238,AD$97,FALSE),"") -> 0 | AE132: =+IFERROR(VLOOKUP($D132&"_"&1,base!$E$4:$BO$7238,AE$97,FALSE),"") -> 0 | AF132: =+IFERROR(VLOOKUP($D132&"_"&1,base!$E$4:$BO$7238,AF$97,FALSE),"") -> 0 | AG132: =+IFERROR(VLOOKUP($D132&"_"&1,base!$E$4:$BO$7238,AG$97,FALSE),"") -> 0 | AH132: =+IFERROR(VLOOKUP($D132&"_"&1,base!$E$4:$BO$7238,AH$97,FALSE),"") -> 0 | AI132: =+IFERROR(VLOOKUP($D132&"_"&1,base!$E$4:$BO$7238,AI$97,FALSE),"") -> 0 | AJ132: =+IFERROR(VLOOKUP($D132&"_"&1,base!$E$4:$BO$7238,AJ$97,FALSE),"") -> 0 | AK132: =+IFERROR(VLOOKUP($D132&"_"&1,base!$E$4:$BO$7238,AK$97,FALSE),"") -> 0 | AL132: =+IFERROR(VLOOKUP($D132&"_"&1,base!$E$4:$BO$7238,AL$97,FALSE),"") -> 0 | AM132: =+IFERROR(VLOOKUP($D132&"_"&1,base!$E$4:$BO$7238,AM$97,FALSE),"") -> 0
B133: 34 | C133: =+IFERROR(VLOOKUP(D133,'tablero nal'!$W$9:$EM$163,121,FALSE),"") -> Protección | D133: =+IF(HLOOKUP($D$98,'listado indicadores'!$B$3:$AZ$158,$B133,FALSE)="","",HLOOKUP($D$98,'listado indicadores'!$B$3:$AZ$158,$B133,FALSE)) -> PA-34 | E133: =+IFERROR(VLOOKUP(D133,'tablero nal'!$W$9:$X$163,2,FALSE),"") -> Porcentaje de niños, niñas y adolescente víctimas del desplazamiento forzado con proceso de acompañamiento en medio familiar por las unidades móviles. | J133: =+IFERROR(IF(VLOOKUP($D133&"_"&1,base!$E$4:$BO$7238,J$99,FALSE)>1,IF(VLOOKUP($D133&"_"&1,base!$E$4:$BO$7238,J$99,FALSE)>=1000,TEXT(VLOOKUP($D133&"_"&1,base!$E$4:$BO$7238,J$99,FALSE),"0.000"),TEXT(VLOOKUP($D133&"_"&1,base!$E$4:$BO$7238,J$99,FALSE),"0")),TEXT(VLOOKUP($D133&"_"&1,base!$E$4:$BO$7238,J$99,FALSE),"0.0%")),"") -> 100% | K133: =+IFERROR(IF(VLOOKUP($D133&"_"&1,base!$E$4:$BO$7238,K$99,FALSE)>1,IF(VLOOKUP($D133&"_"&1,base!$E$4:$BO$7238,K$99,FALSE)>=1000,TEXT(VLOOKUP($D133&"_"&1,base!$E$4:$BO$7238,K$99,FALSE),"0.000"),TEXT(VLOOKUP($D133&"_"&1,base!$E$4:$BO$7238,K$99,FALSE),"0")),TEXT(VLOOKUP($D133&"_"&1,base!$E$4:$BO$7238,K$99,FALSE),"0.0%")),"") -> 2 | L133: =+IFERROR(VLOOKUP($D133&"_"&1,base!$E$4:$BO$7238,L$99,FALSE),"") -> 1.503 | M133: =+IFERROR(VLOOKUP($D133&"_"&1,base!$E$4:$BO$7238,M$99,FALSE),"") -> OPTIMO | P133: =+IFERROR(VLOOKUP($D133&"_"&1,base!$E$4:$BO$7238,P$97,FALSE),"") -> 1.2481 | Q133: =+IFERROR(VLOOKUP($D133&"_"&1,base!$E$4:$BO$7238,Q$97,FALSE),"") -> OPTIMO | R133: =+IFERROR(VLOOKUP($D133&"_"&1,base!$E$4:$BO$7238,R$97,FALSE),"") -> 1.3487 | S133: =+IFERROR(VLOOKUP($D133&"_"&1,base!$E$4:$BO$7238,S$97,FALSE),"") -> OPTIMO | T133: =+IFERROR(VLOOKUP($D133&"_"&1,base!$E$4:$BO$7238,T$97,FALSE),"") -> 1.503 | U133: =+IFERROR(VLOOKUP($D133&"_"&1,base!$E$4:$BO$7238,U$97,FALSE),"") -> OPTIMO | V133: =+IFERROR(VLOOKUP($D133&"_"&1,base!$E$4:$BO$7238,V$97,FALSE),"") -> 0 | W133: =+IFERROR(VLOOKUP($D133&"_"&1,base!$E$4:$BO$7238,W$97,FALSE),"") -> 0 | X133: =+IFERROR(VLOOKUP($D133&"_"&1,base!$E$4:$BO$7238,X$97,FALSE),"") -> 0 | Y133: =+IFERROR(VLOOKUP($D133&"_"&1,base!$E$4:$BO$7238,Y$97,FALSE),"") -> 0 | Z133: =+IFERROR(VLOOKUP($D133&"_"&1,base!$E$4:$BO$7238,Z$97,FALSE),"") -> 0 | AA133: =+IFERROR(VLOOKUP($D133&"_"&1,base!$E$4:$BO$7238,AA$97,FALSE),"") -> 0 | AB133: =+IFERROR(VLOOKUP($D133&"_"&1,base!$E$4:$BO$7238,AB$97,FALSE),"") -> 0 | AC133: =+IFERROR(VLOOKUP($D133&"_"&1,base!$E$4:$BO$7238,AC$97,FALSE),"") -> 0 | AD133: =+IFERROR(VLOOKUP($D133&"_"&1,base!$E$4:$BO$7238,AD$97,FALSE),"") -> 0 | AE133: =+IFERROR(VLOOKUP($D133&"_"&1,base!$E$4:$BO$7238,AE$97,FALSE),"") -> 0 | AF133: =+IFERROR(VLOOKUP($D133&"_"&1,base!$E$4:$BO$7238,AF$97,FALSE),"") -> 0 | AG133: =+IFERROR(VLOOKUP($D133&"_"&1,base!$E$4:$BO$7238,AG$97,FALSE),"") -> 0 | AH133: =+IFERROR(VLOOKUP($D133&"_"&1,base!$E$4:$BO$7238,AH$97,FALSE),"") -> 0 | AI133: =+IFERROR(VLOOKUP($D133&"_"&1,base!$E$4:$BO$7238,AI$97,FALSE),"") -> 0 | AJ133: =+IFERROR(VLOOKUP($D133&"_"&1,base!$E$4:$BO$7238,AJ$97,FALSE),"") -> 0 | AK133: =+IFERROR(VLOOKUP($D133&"_"&1,base!$E$4:$BO$7238,AK$97,FALSE),"") -> 0 | AL133: =+IFERROR(VLOOKUP($D133&"_"&1,base!$E$4:$BO$7238,AL$97,FALSE),"") -> 0 | AM133: =+IFERROR(VLOOKUP($D133&"_"&1,base!$E$4:$BO$7238,AM$97,FALSE),"") -> 0
B134: 35 | C134: =+IFERROR(VLOOKUP(D134,'tablero nal'!$W$9:$EM$163,121,FALSE),"") -> Protección | D134: =+IF(HLOOKUP($D$98,'listado indicadores'!$B$3:$AZ$158,$B134,FALSE)="","",HLOOKUP($D$98,'listado indicadores'!$B$3:$AZ$158,$B134,FALSE)) -> PA-36 | E134: =+IFERROR(VLOOKUP(D134,'tablero nal'!$W$9:$X$163,2,FALSE),"") -> Porcentaje de Autoridades Administrativas y Equipos Técnicos Interdisciplinarios, capacitados en el proceso Administrativo de Restablecimiento de Derechos y temáticas afines. | J134: =+IFERROR(IF(VLOOKUP($D134&"_"&1,base!$E$4:$BO$7238,J$99,FALSE)>1,IF(VLOOKUP($D134&"_"&1,base!$E$4:$BO$7238,J$99,FALSE)>=1000,TEXT(VLOOKUP($D134&"_"&1,base!$E$4:$BO$7238,J$99,FALSE),"0.000"),TEXT(VLOOKUP($D134&"_"&1,base!$E$4:$BO$7238,J$99,FALSE),"0")),TEXT(VLOOKUP($D134&"_"&1,base!$E$4:$BO$7238,J$99,FALSE),"0.0%")),"") -> 62% | K134: =+IFERROR(IF(VLOOKUP($D134&"_"&1,base!$E$4:$BO$7238,K$99,FALSE)>1,IF(VLOOKUP($D134&"_"&1,base!$E$4:$BO$7238,K$99,FALSE)>=1000,TEXT(VLOOKUP($D134&"_"&1,base!$E$4:$BO$7238,K$99,FALSE),"0.000"),TEXT(VLOOKUP($D134&"_"&1,base!$E$4:$BO$7238,K$99,FALSE),"0")),TEXT(VLOOKUP($D134&"_"&1,base!$E$4:$BO$7238,K$99,FALSE),"0.0%")),"") -> NA | L134: =+IFERROR(VLOOKUP($D134&"_"&1,base!$E$4:$BO$7238,L$99,FALSE),"") -> NA | M134: =+IFERROR(VLOOKUP($D134&"_"&1,base!$E$4:$BO$7238,M$99,FALSE),"") -> NA | P134: =+IFERROR(VLOOKUP($D134&"_"&1,base!$E$4:$BO$7238,P$97,FALSE),"") -> NA | Q134: =+IFERROR(VLOOKUP($D134&"_"&1,base!$E$4:$BO$7238,Q$97,FALSE),"") -> NA | R134: =+IFERROR(VLOOKUP($D134&"_"&1,base!$E$4:$BO$7238,R$97,FALSE),"") -> NA | S134: =+IFERROR(VLOOKUP($D134&"_"&1,base!$E$4:$BO$7238,S$97,FALSE),"") -> NA | T134: =+IFERROR(VLOOKUP($D134&"_"&1,base!$E$4:$BO$7238,T$97,FALSE),"") -> NA | U134: =+IFERROR(VLOOKUP($D134&"_"&1,base!$E$4:$BO$7238,U$97,FALSE),"") -> NA | V134: =+IFERROR(VLOOKUP($D134&"_"&1,base!$E$4:$BO$7238,V$97,FALSE),"") -> 0 | W134: =+IFERROR(VLOOKUP($D134&"_"&1,base!$E$4:$BO$7238,W$97,FALSE),"") -> 0 | X134: =+IFERROR(VLOOKUP($D134&"_"&1,base!$E$4:$BO$7238,X$97,FALSE),"") -> 0 | Y134: =+IFERROR(VLOOKUP($D134&"_"&1,base!$E$4:$BO$7238,Y$97,FALSE),"") -> 0 | Z134: =+IFERROR(VLOOKUP($D134&"_"&1,base!$E$4:$BO$7238,Z$97,FALSE),"") -> 0 | AA134: =+IFERROR(VLOOKUP($D134&"_"&1,base!$E$4:$BO$7238,AA$97,FALSE),"") -> 0 | AB134: =+IFERROR(VLOOKUP($D134&"_"&1,base!$E$4:$BO$7238,AB$97,FALSE),"") -> 0 | AC134: =+IFERROR(VLOOKUP($D134&"_"&1,base!$E$4:$BO$7238,AC$97,FALSE),"") -> 0 | AD134: =+IFERROR(VLOOKUP($D134&"_"&1,base!$E$4:$BO$7238,AD$97,FALSE),"") -> 0 | AE134: =+IFERROR(VLOOKUP($D134&"_"&1,base!$E$4:$BO$7238,AE$97,FALSE),"") -> 0 | AF134: =+IFERROR(VLOOKUP($D134&"_"&1,base!$E$4:$BO$7238,AF$97,FALSE),"") -> 0 | AG134: =+IFERROR(VLOOKUP($D134&"_"&1,base!$E$4:$BO$7238,AG$97,FALSE),"") -> 0 | AH134: =+IFERROR(VLOOKUP($D134&"_"&1,base!$E$4:$BO$7238,AH$97,FALSE),"") -> 0 | AI134: =+IFERROR(VLOOKUP($D134&"_"&1,base!$E$4:$BO$7238,AI$97,FALSE),"") -> 0 | AJ134: =+IFERROR(VLOOKUP($D134&"_"&1,base!$E$4:$BO$7238,AJ$97,FALSE),"") -> 0 | AK134: =+IFERROR(VLOOKUP($D134&"_"&1,base!$E$4:$BO$7238,AK$97,FALSE),"") -> 0 | AL134: =+IFERROR(VLOOKUP($D134&"_"&1,base!$E$4:$BO$7238,AL$97,FALSE),"") -> 0 | AM134: =+IFERROR(VLOOKUP($D134&"_"&1,base!$E$4:$BO$7238,AM$97,FALSE),"") -> 0
B135: 36 | C135: =+IFERROR(VLOOKUP(D135,'tablero nal'!$W$9:$EM$163,121,FALSE),"") -> Protección | D135: =+IF(HLOOKUP($D$98,'listado indicadores'!$B$3:$AZ$158,$B135,FALSE)="","",HLOOKUP($D$98,'listado indicadores'!$B$3:$AZ$158,$B135,FALSE)) -> PA-37 | E135: =+IFERROR(VLOOKUP(D135,'tablero nal'!$W$9:$X$163,2,FALSE),"") -> Porcentaje de Autoridades Administrativas, Equipos Técnicos, capacitados en la Ruta de Restablecimiento de Derechos con Enfoque Diferencial Étnico. | J135: =+IFERROR(IF(VLOOKUP($D135&"_"&1,base!$E$4:$BO$7238,J$99,FALSE)>1,IF(VLOOKUP($D135&"_"&1,base!$E$4:$BO$7238,J$99,FALSE)>=1000,TEXT(VLOOKUP($D135&"_"&1,base!$E$4:$BO$7238,J$99,FALSE),"0.000"),TEXT(VLOOKUP($D135&"_"&1,base!$E$4:$BO$7238,J$99,FALSE),"0")),TEXT(VLOOKUP($D135&"_"&1,base!$E$4:$BO$7238,J$99,FALSE),"0.0%")),"") -> 56% | K135: =+IFERROR(IF(VLOOKUP($D135&"_"&1,base!$E$4:$BO$7238,K$99,FALSE)>1,IF(VLOOKUP($D135&"_"&1,base!$E$4:$BO$7238,K$99,FALSE)>=1000,TEXT(VLOOKUP($D135&"_"&1,base!$E$4:$BO$7238,K$99,FALSE),"0.000"),TEXT(VLOOKUP($D135&"_"&1,base!$E$4:$BO$7238,K$99,FALSE),"0")),TEXT(VLOOKUP($D135&"_"&1,base!$E$4:$BO$7238,K$99,FALSE),"0.0%")),"") -> NA | L135: =+IFERROR(VLOOKUP($D135&"_"&1,base!$E$4:$BO$7238,L$99,FALSE),"") -> NA | M135: =+IFERROR(VLOOKUP($D135&"_"&1,base!$E$4:$BO$7238,M$99,FALSE),"") -> NA | P135: =+IFERROR(VLOOKUP($D135&"_"&1,base!$E$4:$BO$7238,P$97,FALSE),"") -> NA | Q135: =+IFERROR(VLOOKUP($D135&"_"&1,base!$E$4:$BO$7238,Q$97,FALSE),"") -> NA | R135: =+IFERROR(VLOOKUP($D135&"_"&1,base!$E$4:$BO$7238,R$97,FALSE),"") -> NA | S135: =+IFERROR(VLOOKUP($D135&"_"&1,base!$E$4:$BO$7238,S$97,FALSE),"") -> NA | T135: =+IFERROR(VLOOKUP($D135&"_"&1,base!$E$4:$BO$7238,T$97,FALSE),"") -> NA | U135: =+IFERROR(VLOOKUP($D135&"_"&1,base!$E$4:$BO$7238,U$97,FALSE),"") -> NA | V135: =+IFERROR(VLOOKUP($D135&"_"&1,base!$E$4:$BO$7238,V$97,FALSE),"") -> 0 | W135: =+IFERROR(VLOOKUP($D135&"_"&1,base!$E$4:$BO$7238,W$97,FALSE),"") -> 0 | X135: =+IFERROR(VLOOKUP($D135&"_"&1,base!$E$4:$BO$7238,X$97,FALSE),"") -> 0 | Y135: =+IFERROR(VLOOKUP($D135&"_"&1,base!$E$4:$BO$7238,Y$97,FALSE),"") -> 0 | Z135: =+IFERROR(VLOOKUP($D135&"_"&1,base!$E$4:$BO$7238,Z$97,FALSE),"") -> 0 | AA135: =+IFERROR(VLOOKUP($D135&"_"&1,base!$E$4:$BO$7238,AA$97,FALSE),"") -> 0 | AB135: =+IFERROR(VLOOKUP($D135&"_"&1,base!$E$4:$BO$7238,AB$97,FALSE),"") -> 0 | AC135: =+IFERROR(VLOOKUP($D135&"_"&1,base!$E$4:$BO$7238,AC$97,FALSE),"") -> 0 | AD135: =+IFERROR(VLOOKUP($D135&"_"&1,base!$E$4:$BO$7238,AD$97,FALSE),"") -> 0 | AE135: =+IFERROR(VLOOKUP($D135&"_"&1,base!$E$4:$BO$7238,AE$97,FALSE),"") -> 0 | AF135: =+IFERROR(VLOOKUP($D135&"_"&1,base!$E$4:$BO$7238,AF$97,FALSE),"") -> 0 | AG135: =+IFERROR(VLOOKUP($D135&"_"&1,base!$E$4:$BO$7238,AG$97,FALSE),"") -> 0 | AH135: =+IFERROR(VLOOKUP($D135&"_"&1,base!$E$4:$BO$7238,AH$97,FALSE),"") -> 0 | AI135: =+IFERROR(VLOOKUP($D135&"_"&1,base!$E$4:$BO$7238,AI$97,FALSE),"") -> 0 | AJ135: =+IFERROR(VLOOKUP($D135&"_"&1,base!$E$4:$BO$7238,AJ$97,FALSE),"") -> 0 | AK135: =+IFERROR(VLOOKUP($D135&"_"&1,base!$E$4:$BO$7238,AK$97,FALSE),"") -> 0 | AL135: =+IFERROR(VLOOKUP($D135&"_"&1,base!$E$4:$BO$7238,AL$97,FALSE),"") -> 0 | AM135: =+IFERROR(VLOOKUP($D135&"_"&1,base!$E$4:$BO$7238,AM$97,FALSE),"") -> 0
B136: 37 | C136: =+IFERROR(VLOOKUP(D136,'tablero nal'!$W$9:$EM$163,121,FALSE),"") -> Protección | D136: =+IF(HLOOKUP($D$98,'listado indicadores'!$B$3:$AZ$158,$B136,FALSE)="","",HLOOKUP($D$98,'listado indicadores'!$B$3:$AZ$158,$B136,FALSE)) -> PA-38 | E136: =+IFERROR(VLOOKUP(D136,'tablero nal'!$W$9:$X$163,2,FALSE),"") -> Número de municipios con asistencia técnica para la implementación de las rutas de atención integral para el Restablecimiento de Derechos de la menor de 14 años embarazada. | J136: =+IFERROR(IF(VLOOKUP($D136&"_"&1,base!$E$4:$BO$7238,J$99,FALSE)>1,IF(VLOOKUP($D136&"_"&1,base!$E$4:$BO$7238,J$99,FALSE)>=1000,TEXT(VLOOKUP($D136&"_"&1,base!$E$4:$BO$7238,J$99,FALSE),"0.000"),TEXT(VLOOKUP($D136&"_"&1,base!$E$4:$BO$7238,J$99,FALSE),"0")),TEXT(VLOOKUP($D136&"_"&1,base!$E$4:$BO$7238,J$99,FALSE),"0.0%")),"") -> 350 | K136: =+IFERROR(IF(VLOOKUP($D136&"_"&1,base!$E$4:$BO$7238,K$99,FALSE)>1,IF(VLOOKUP($D136&"_"&1,base!$E$4:$BO$7238,K$99,FALSE)>=1000,TEXT(VLOOKUP($D136&"_"&1,base!$E$4:$BO$7238,K$99,FALSE),"0.000"),TEXT(VLOOKUP($D136&"_"&1,base!$E$4:$BO$7238,K$99,FALSE),"0")),TEXT(VLOOKUP($D136&"_"&1,base!$E$4:$BO$7238,K$99,FALSE),"0.0%")),"") -> NA | L136: =+IFERROR(VLOOKUP($D136&"_"&1,base!$E$4:$BO$7238,L$99,FALSE),"") -> NA | M136: =+IFERROR(VLOOKUP($D136&"_"&1,base!$E$4:$BO$7238,M$99,FALSE),"") -> NA | P136: =+IFERROR(VLOOKUP($D136&"_"&1,base!$E$4:$BO$7238,P$97,FALSE),"") -> NA | Q136: =+IFERROR(VLOOKUP($D136&"_"&1,base!$E$4:$BO$7238,Q$97,FALSE),"") -> NA | R136: =+IFERROR(VLOOKUP($D136&"_"&1,base!$E$4:$BO$7238,R$97,FALSE),"") -> NA | S136: =+IFERROR(VLOOKUP($D136&"_"&1,base!$E$4:$BO$7238,S$97,FALSE),"") -> NA | T136: =+IFERROR(VLOOKUP($D136&"_"&1,base!$E$4:$BO$7238,T$97,FALSE),"") -> NA | U136: =+IFERROR(VLOOKUP($D136&"_"&1,base!$E$4:$BO$7238,U$97,FALSE),"") -> NA | V136: =+IFERROR(VLOOKUP($D136&"_"&1,base!$E$4:$BO$7238,V$97,FALSE),"") -> 0 | W136: =+IFERROR(VLOOKUP($D136&"_"&1,base!$E$4:$BO$7238,W$97,FALSE),"") -> 0 | X136: =+IFERROR(VLOOKUP($D136&"_"&1,base!$E$4:$BO$7238,X$97,FALSE),"") -> 0 | Y136: =+IFERROR(VLOOKUP($D136&"_"&1,base!$E$4:$BO$7238,Y$97,FALSE),"") -> 0 | Z136: =+IFERROR(VLOOKUP($D136&"_"&1,base!$E$4:$BO$7238,Z$97,FALSE),"") -> 0 | AA136: =+IFERROR(VLOOKUP($D136&"_"&1,base!$E$4:$BO$7238,AA$97,FALSE),"") -> 0 | AB136: =+IFERROR(VLOOKUP($D136&"_"&1,base!$E$4:$BO$7238,AB$97,FALSE),"") -> 0 | AC136: =+IFERROR(VLOOKUP($D136&"_"&1,base!$E$4:$BO$7238,AC$97,FALSE),"") -> 0 | AD136: =+IFERROR(VLOOKUP($D136&"_"&1,base!$E$4:$BO$7238,AD$97,FALSE),"") -> 0 | AE136: =+IFERROR(VLOOKUP($D136&"_"&1,base!$E$4:$BO$7238,AE$97,FALSE),"") -> 0 | AF136: =+IFERROR(VLOOKUP($D136&"_"&1,base!$E$4:$BO$7238,AF$97,FALSE),"") -> 0 | AG136: =+IFERROR(VLOOKUP($D136&"_"&1,base!$E$4:$BO$7238,AG$97,FALSE),"") -> 0 | AH136: =+IFERROR(VLOOKUP($D136&"_"&1,base!$E$4:$BO$7238,AH$97,FALSE),"") -> 0 | AI136: =+IFERROR(VLOOKUP($D136&"_"&1,base!$E$4:$BO$7238,AI$97,FALSE),"") -> 0 | AJ136: =+IFERROR(VLOOKUP($D136&"_"&1,base!$E$4:$BO$7238,AJ$97,FALSE),"") -> 0 | AK136: =+IFERROR(VLOOKUP($D136&"_"&1,base!$E$4:$BO$7238,AK$97,FALSE),"") -> 0 | AL136: =+IFERROR(VLOOKUP($D136&"_"&1,base!$E$4:$BO$7238,AL$97,FALSE),"") -> 0 | AM136: =+IFERROR(VLOOKUP($D136&"_"&1,base!$E$4:$BO$7238,AM$97,FALSE),"") -> 0
B137: 38 | C137: =+IFERROR(VLOOKUP(D137,'tablero nal'!$W$9:$EM$163,121,FALSE),"") -> Protección | D137: =+IF(HLOOKUP($D$98,'listado indicadores'!$B$3:$AZ$158,$B137,FALSE)="","",HLOOKUP($D$98,'listado indicadores'!$B$3:$AZ$158,$B137,FALSE)) -> PA-39 | E137: =+IFERROR(VLOOKUP(D137,'tablero nal'!$W$9:$X$163,2,FALSE),"") -> Porcentaje de Niños, niñas y adolescentes SIN características especiales con familia asignada. | J137: =+IFERROR(IF(VLOOKUP($D137&"_"&1,base!$E$4:$BO$7238,J$99,FALSE)>1,IF(VLOOKUP($D137&"_"&1,base!$E$4:$BO$7238,J$99,FALSE)>=1000,TEXT(VLOOKUP($D137&"_"&1,base!$E$4:$BO$7238,J$99,FALSE),"0.000"),TEXT(VLOOKUP($D137&"_"&1,base!$E$4:$BO$7238,J$99,FALSE),"0")),TEXT(VLOOKUP($D137&"_"&1,base!$E$4:$BO$7238,J$99,FALSE),"0.0%")),"") -> 100% | K137: =+IFERROR(IF(VLOOKUP($D137&"_"&1,base!$E$4:$BO$7238,K$99,FALSE)>1,IF(VLOOKUP($D137&"_"&1,base!$E$4:$BO$7238,K$99,FALSE)>=1000,TEXT(VLOOKUP($D137&"_"&1,base!$E$4:$BO$7238,K$99,FALSE),"0.000"),TEXT(VLOOKUP($D137&"_"&1,base!$E$4:$BO$7238,K$99,FALSE),"0")),TEXT(VLOOKUP($D137&"_"&1,base!$E$4:$BO$7238,K$99,FALSE),"0.0%")),"") -> 100% | L137: =+IFERROR(VLOOKUP($D137&"_"&1,base!$E$4:$BO$7238,L$99,FALSE),"") -> 1 | M137: =+IFERROR(VLOOKUP($D137&"_"&1,base!$E$4:$BO$7238,M$99,FALSE),"") -> OPTIMO | P137: =+IFERROR(VLOOKUP($D137&"_"&1,base!$E$4:$BO$7238,P$97,FALSE),"") -> 1 | Q137: =+IFERROR(VLOOKUP($D137&"_"&1,base!$E$4:$BO$7238,Q$97,FALSE),"") -> OPTIMO | R137: =+IFERROR(VLOOKUP($D137&"_"&1,base!$E$4:$BO$7238,R$97,FALSE),"") -> 1 | S137: =+IFERROR(VLOOKUP($D137&"_"&1,base!$E$4:$BO$7238,S$97,FALSE),"") -> OPTIMO | T137: =+IFERROR(VLOOKUP($D137&"_"&1,base!$E$4:$BO$7238,T$97,FALSE),"") -> 1 | U137: =+IFERROR(VLOOKUP($D137&"_"&1,base!$E$4:$BO$7238,U$97,FALSE),"") -> OPTIMO | V137: =+IFERROR(VLOOKUP($D137&"_"&1,base!$E$4:$BO$7238,V$97,FALSE),"") -> 0 | W137: =+IFERROR(VLOOKUP($D137&"_"&1,base!$E$4:$BO$7238,W$97,FALSE),"") -> 0 | X137: =+IFERROR(VLOOKUP($D137&"_"&1,base!$E$4:$BO$7238,X$97,FALSE),"") -> 0 | Y137: =+IFERROR(VLOOKUP($D137&"_"&1,base!$E$4:$BO$7238,Y$97,FALSE),"") -> 0 | Z137: =+IFERROR(VLOOKUP($D137&"_"&1,base!$E$4:$BO$7238,Z$97,FALSE),"") -> 0 | AA137: =+IFERROR(VLOOKUP($D137&"_"&1,base!$E$4:$BO$7238,AA$97,FALSE),"") -> 0 | AB137: =+IFERROR(VLOOKUP($D137&"_"&1,base!$E$4:$BO$7238,AB$97,FALSE),"") -> 0 | AC137: =+IFERROR(VLOOKUP($D137&"_"&1,base!$E$4:$BO$7238,AC$97,FALSE),"") -> 0 | AD137: =+IFERROR(VLOOKUP($D137&"_"&1,base!$E$4:$BO$7238,AD$97,FALSE),"") -> 0 | AE137: =+IFERROR(VLOOKUP($D137&"_"&1,base!$E$4:$BO$7238,AE$97,FALSE),"") -> 0 | AF137: =+IFERROR(VLOOKUP($D137&"_"&1,base!$E$4:$BO$7238,AF$97,FALSE),"") -> 0 | AG137: =+IFERROR(VLOOKUP($D137&"_"&1,base!$E$4:$BO$7238,AG$97,FALSE),"") -> 0 | AH137: =+IFERROR(VLOOKUP($D137&"_"&1,base!$E$4:$BO$7238,AH$97,FALSE),"") -> 0 | AI137: =+IFERROR(VLOOKUP($D137&"_"&1,base!$E$4:$BO$7238,AI$97,FALSE),"") -> 0 | AJ137: =+IFERROR(VLOOKUP($D137&"_"&1,base!$E$4:$BO$7238,AJ$97,FALSE),"") -> 0 | AK137: =+IFERROR(VLOOKUP($D137&"_"&1,base!$E$4:$BO$7238,AK$97,FALSE),"") -> 0 | AL137: =+IFERROR(VLOOKUP($D137&"_"&1,base!$E$4:$BO$7238,AL$97,FALSE),"") -> 0 | AM137: =+IFERROR(VLOOKUP($D137&"_"&1,base!$E$4:$BO$7238,AM$97,FALSE),"") -> 0
B138: 39 | C138: =+IFERROR(VLOOKUP(D138,'tablero nal'!$W$9:$EM$163,121,FALSE),"") -> Protección | D138: =+IF(HLOOKUP($D$98,'listado indicadores'!$B$3:$AZ$158,$B138,FALSE)="","",HLOOKUP($D$98,'listado indicadores'!$B$3:$AZ$158,$B138,FALSE)) -> PA-40 | E138: =+IFERROR(VLOOKUP(D138,'tablero nal'!$W$9:$X$163,2,FALSE),"") -> Porcentaje de Niños, niñas y adolescentes CON características y necesidades especiales, con familia asignada. | J138: =+IFERROR(IF(VLOOKUP($D138&"_"&1,base!$E$4:$BO$7238,J$99,FALSE)>1,IF(VLOOKUP($D138&"_"&1,base!$E$4:$BO$7238,J$99,FALSE)>=1000,TEXT(VLOOKUP($D138&"_"&1,base!$E$4:$BO$7238,J$99,FALSE),"0.000"),TEXT(VLOOKUP($D138&"_"&1,base!$E$4:$BO$7238,J$99,FALSE),"0")),TEXT(VLOOKUP($D138&"_"&1,base!$E$4:$BO$7238,J$99,FALSE),"0.0%")),"") -> 65% | K138: =+IFERROR(IF(VLOOKUP($D138&"_"&1,base!$E$4:$BO$7238,K$99,FALSE)>1,IF(VLOOKUP($D138&"_"&1,base!$E$4:$BO$7238,K$99,FALSE)>=1000,TEXT(VLOOKUP($D138&"_"&1,base!$E$4:$BO$7238,K$99,FALSE),"0.000"),TEXT(VLOOKUP($D138&"_"&1,base!$E$4:$BO$7238,K$99,FALSE),"0")),TEXT(VLOOKUP($D138&"_"&1,base!$E$4:$BO$7238,K$99,FALSE),"0.0%")),"") -> 76% | L138: =+IFERROR(VLOOKUP($D138&"_"&1,base!$E$4:$BO$7238,L$99,FALSE),"") -> 0.759 | M138: =+IFERROR(VLOOKUP($D138&"_"&1,base!$E$4:$BO$7238,M$99,FALSE),"") -> OPTIMO | P138: =+IFERROR(VLOOKUP($D138&"_"&1,base!$E$4:$BO$7238,P$97,FALSE),"") -> 0.7347 | Q138: =+IFERROR(VLOOKUP($D138&"_"&1,base!$E$4:$BO$7238,Q$97,FALSE),"") -> OPTIMO | R138: =+IFERROR(VLOOKUP($D138&"_"&1,base!$E$4:$BO$7238,R$97,FALSE),"") -> 0.7431 | S138: =+IFERROR(VLOOKUP($D138&"_"&1,base!$E$4:$BO$7238,S$97,FALSE),"") -> OPTIMO | T138: =+IFERROR(VLOOKUP($D138&"_"&1,base!$E$4:$BO$7238,T$97,FALSE),"") -> 0.759 | U138: =+IFERROR(VLOOKUP($D138&"_"&1,base!$E$4:$BO$7238,U$97,FALSE),"") -> OPTIMO | V138: =+IFERROR(VLOOKUP($D138&"_"&1,base!$E$4:$BO$7238,V$97,FALSE),"") -> 0 | W138: =+IFERROR(VLOOKUP($D138&"_"&1,base!$E$4:$BO$7238,W$97,FALSE),"") -> 0 | X138: =+IFERROR(VLOOKUP($D138&"_"&1,base!$E$4:$BO$7238,X$97,FALSE),"") -> 0 | Y138: =+IFERROR(VLOOKUP($D138&"_"&1,base!$E$4:$BO$7238,Y$97,FALSE),"") -> 0 | Z138: =+IFERROR(VLOOKUP($D138&"_"&1,base!$E$4:$BO$7238,Z$97,FALSE),"") -> 0 | AA138: =+IFERROR(VLOOKUP($D138&"_"&1,base!$E$4:$BO$7238,AA$97,FALSE),"") -> 0 | AB138: =+IFERROR(VLOOKUP($D138&"_"&1,base!$E$4:$BO$7238,AB$97,FALSE),"") -> 0 | AC138: =+IFERROR(VLOOKUP($D138&"_"&1,base!$E$4:$BO$7238,AC$97,FALSE),"") -> 0 | AD138: =+IFERROR(VLOOKUP($D138&"_"&1,base!$E$4:$BO$7238,AD$97,FALSE),"") -> 0 | AE138: =+IFERROR(VLOOKUP($D138&"_"&1,base!$E$4:$BO$7238,AE$97,FALSE),"") -> 0 | AF138: =+IFERROR(VLOOKUP($D138&"_"&1,base!$E$4:$BO$7238,AF$97,FALSE),"") -> 0 | AG138: =+IFERROR(VLOOKUP($D138&"_"&1,base!$E$4:$BO$7238,AG$97,FALSE),"") -> 0 | AH138: =+IFERROR(VLOOKUP($D138&"_"&1,base!$E$4:$BO$7238,AH$97,FALSE),"") -> 0 | AI138: =+IFERROR(VLOOKUP($D138&"_"&1,base!$E$4:$BO$7238,AI$97,FALSE),"") -> 0 | AJ138: =+IFERROR(VLOOKUP($D138&"_"&1,base!$E$4:$BO$7238,AJ$97,FALSE),"") -> 0 | AK138: =+IFERROR(VLOOKUP($D138&"_"&1,base!$E$4:$BO$7238,AK$97,FALSE),"") -> 0 | AL138: =+IFERROR(VLOOKUP($D138&"_"&1,base!$E$4:$BO$7238,AL$97,FALSE),"") -> 0 | AM138: =+IFERROR(VLOOKUP($D138&"_"&1,base!$E$4:$BO$7238,AM$97,FALSE),"") -> 0
B139: 40 | C139: =+IFERROR(VLOOKUP(D139,'tablero nal'!$W$9:$EM$163,121,FALSE),"") -> Protección | D139: =+IF(HLOOKUP($D$98,'listado indicadores'!$B$3:$AZ$158,$B139,FALSE)="","",HLOOKUP($D$98,'listado indicadores'!$B$3:$AZ$158,$B139,FALSE)) -> PA-41 | E139: =+IFERROR(VLOOKUP(D139,'tablero nal'!$W$9:$X$163,2,FALSE),"") -> Porcentaje de niños, niñas y adolescentes que cumple con el número de informes de seguimientos post adopción | J139: =+IFERROR(IF(VLOOKUP($D139&"_"&1,base!$E$4:$BO$7238,J$99,FALSE)>1,IF(VLOOKUP($D139&"_"&1,base!$E$4:$BO$7238,J$99,FALSE)>=1000,TEXT(VLOOKUP($D139&"_"&1,base!$E$4:$BO$7238,J$99,FALSE),"0.000"),TEXT(VLOOKUP($D139&"_"&1,base!$E$4:$BO$7238,J$99,FALSE),"0")),TEXT(VLOOKUP($D139&"_"&1,base!$E$4:$BO$7238,J$99,FALSE),"0.0%")),"") -> 100% | K139: =+IFERROR(IF(VLOOKUP($D139&"_"&1,base!$E$4:$BO$7238,K$99,FALSE)>1,IF(VLOOKUP($D139&"_"&1,base!$E$4:$BO$7238,K$99,FALSE)>=1000,TEXT(VLOOKUP($D139&"_"&1,base!$E$4:$BO$7238,K$99,FALSE),"0.000"),TEXT(VLOOKUP($D139&"_"&1,base!$E$4:$BO$7238,K$99,FALSE),"0")),TEXT(VLOOKUP($D139&"_"&1,base!$E$4:$BO$7238,K$99,FALSE),"0.0%")),"") -> 96% | L139: =+IFERROR(VLOOKUP($D139&"_"&1,base!$E$4:$BO$7238,L$99,FALSE),"") -> 0.958 | M139: =+IFERROR(VLOOKUP($D139&"_"&1,base!$E$4:$BO$7238,M$99,FALSE),"") -> ADECUADO | P139: =+IFERROR(VLOOKUP($D139&"_"&1,base!$E$4:$BO$7238,P$97,FALSE),"") -> 0.9564 | Q139: =+IFERROR(VLOOKUP($D139&"_"&1,base!$E$4:$BO$7238,Q$97,FALSE),"") -> ADECUADO | R139: =+IFERROR(VLOOKUP($D139&"_"&1,base!$E$4:$BO$7238,R$97,FALSE),"") -> 0.9564 | S139: =+IFERROR(VLOOKUP($D139&"_"&1,base!$E$4:$BO$7238,S$97,FALSE),"") -> ADECUADO | T139: =+IFERROR(VLOOKUP($D139&"_"&1,base!$E$4:$BO$7238,T$97,FALSE),"") -> 0.958 | U139: =+IFERROR(VLOOKUP($D139&"_"&1,base!$E$4:$BO$7238,U$97,FALSE),"") -> ADECUADO | V139: =+IFERROR(VLOOKUP($D139&"_"&1,base!$E$4:$BO$7238,V$97,FALSE),"") -> 0 | W139: =+IFERROR(VLOOKUP($D139&"_"&1,base!$E$4:$BO$7238,W$97,FALSE),"") -> 0 | X139: =+IFERROR(VLOOKUP($D139&"_"&1,base!$E$4:$BO$7238,X$97,FALSE),"") -> 0 | Y139: =+IFERROR(VLOOKUP($D139&"_"&1,base!$E$4:$BO$7238,Y$97,FALSE),"") -> 0 | Z139: =+IFERROR(VLOOKUP($D139&"_"&1,base!$E$4:$BO$7238,Z$97,FALSE),"") -> 0 | AA139: =+IFERROR(VLOOKUP($D139&"_"&1,base!$E$4:$BO$7238,AA$97,FALSE),"") -> 0 | AB139: =+IFERROR(VLOOKUP($D139&"_"&1,base!$E$4:$BO$7238,AB$97,FALSE),"") -> 0 | AC139: =+IFERROR(VLOOKUP($D139&"_"&1,base!$E$4:$BO$7238,AC$97,FALSE),"") -> 0 | AD139: =+IFERROR(VLOOKUP($D139&"_"&1,base!$E$4:$BO$7238,AD$97,FALSE),"") -> 0 | AE139: =+IFERROR(VLOOKUP($D139&"_"&1,base!$E$4:$BO$7238,AE$97,FALSE),"") -> 0 | AF139: =+IFERROR(VLOOKUP($D139&"_"&1,base!$E$4:$BO$7238,AF$97,FALSE),"") -> 0 | AG139: =+IFERROR(VLOOKUP($D139&"_"&1,base!$E$4:$BO$7238,AG$97,FALSE),"") -> 0 | AH139: =+IFERROR(VLOOKUP($D139&"_"&1,base!$E$4:$BO$7238,AH$97,FALSE),"") -> 0 | AI139: =+IFERROR(VLOOKUP($D139&"_"&1,base!$E$4:$BO$7238,AI$97,FALSE),"") -> 0 | AJ139: =+IFERROR(VLOOKUP($D139&"_"&1,base!$E$4:$BO$7238,AJ$97,FALSE),"") -> 0 | AK139: =+IFERROR(VLOOKUP($D139&"_"&1,base!$E$4:$BO$7238,AK$97,FALSE),"") -> 0 | AL139: =+IFERROR(VLOOKUP($D139&"_"&1,base!$E$4:$BO$7238,AL$97,FALSE),"") -> 0 | AM139: =+IFERROR(VLOOKUP($D139&"_"&1,base!$E$4:$BO$7238,AM$97,FALSE),"") -> 0
B140: 41 | C140: =+IFERROR(VLOOKUP(D140,'tablero nal'!$W$9:$EM$163,121,FALSE),"") -> Protección | D140: =+IF(HLOOKUP($D$98,'listado indicadores'!$B$3:$AZ$158,$B140,FALSE)="","",HLOOKUP($D$98,'listado indicadores'!$B$3:$AZ$158,$B140,FALSE)) -> PA-42 | E140: =+IFERROR(VLOOKUP(D140,'tablero nal'!$W$9:$X$163,2,FALSE),"") -> Porcentaje de adolescentes y jóvenes del SRPA, con más de seis meses de permanencia en el Programa de Atención con la garantía de ejercicio de sus derechos (Identidad, Salud y Educación) | J140: =+IFERROR(IF(VLOOKUP($D140&"_"&1,base!$E$4:$BO$7238,J$99,FALSE)>1,IF(VLOOKUP($D140&"_"&1,base!$E$4:$BO$7238,J$99,FALSE)>=1000,TEXT(VLOOKUP($D140&"_"&1,base!$E$4:$BO$7238,J$99,FALSE),"0.000"),TEXT(VLOOKUP($D140&"_"&1,base!$E$4:$BO$7238,J$99,FALSE),"0")),TEXT(VLOOKUP($D140&"_"&1,base!$E$4:$BO$7238,J$99,FALSE),"0.0%")),"") -> 50% | K140: =+IFERROR(IF(VLOOKUP($D140&"_"&1,base!$E$4:$BO$7238,K$99,FALSE)>1,IF(VLOOKUP($D140&"_"&1,base!$E$4:$BO$7238,K$99,FALSE)>=1000,TEXT(VLOOKUP($D140&"_"&1,base!$E$4:$BO$7238,K$99,FALSE),"0.000"),TEXT(VLOOKUP($D140&"_"&1,base!$E$4:$BO$7238,K$99,FALSE),"0")),TEXT(VLOOKUP($D140&"_"&1,base!$E$4:$BO$7238,K$99,FALSE),"0.0%")),"") -> 97% | L140: =+IFERROR(VLOOKUP($D140&"_"&1,base!$E$4:$BO$7238,L$99,FALSE),"") -> 0.967 | M140: =+IFERROR(VLOOKUP($D140&"_"&1,base!$E$4:$BO$7238,M$99,FALSE),"") -> ADECUADO | P140: =+IFERROR(VLOOKUP($D140&"_"&1,base!$E$4:$BO$7238,P$97,FALSE),"") -> NA | Q140: =+IFERROR(VLOOKUP($D140&"_"&1,base!$E$4:$BO$7238,Q$97,FALSE),"") -> NA | R140: =+IFERROR(VLOOKUP($D140&"_"&1,base!$E$4:$BO$7238,R$97,FALSE),"") -> NA | S140: =+IFERROR(VLOOKUP($D140&"_"&1,base!$E$4:$BO$7238,S$97,FALSE),"") -> NA | T140: =+IFERROR(VLOOKUP($D140&"_"&1,base!$E$4:$BO$7238,T$97,FALSE),"") -> 0.967 | U140: =+IFERROR(VLOOKUP($D140&"_"&1,base!$E$4:$BO$7238,U$97,FALSE),"") -> ADECUADO | V140: =+IFERROR(VLOOKUP($D140&"_"&1,base!$E$4:$BO$7238,V$97,FALSE),"") -> 0 | W140: =+IFERROR(VLOOKUP($D140&"_"&1,base!$E$4:$BO$7238,W$97,FALSE),"") -> 0 | X140: =+IFERROR(VLOOKUP($D140&"_"&1,base!$E$4:$BO$7238,X$97,FALSE),"") -> 0 | Y140: =+IFERROR(VLOOKUP($D140&"_"&1,base!$E$4:$BO$7238,Y$97,FALSE),"") -> 0 | Z140: =+IFERROR(VLOOKUP($D140&"_"&1,base!$E$4:$BO$7238,Z$97,FALSE),"") -> 0 | AA140: =+IFERROR(VLOOKUP($D140&"_"&1,base!$E$4:$BO$7238,AA$97,FALSE),"") -> 0 | AB140: =+IFERROR(VLOOKUP($D140&"_"&1,base!$E$4:$BO$7238,AB$97,FALSE),"") -> 0 | AC140: =+IFERROR(VLOOKUP($D140&"_"&1,base!$E$4:$BO$7238,AC$97,FALSE),"") -> 0 | AD140: =+IFERROR(VLOOKUP($D140&"_"&1,base!$E$4:$BO$7238,AD$97,FALSE),"") -> 0 | AE140: =+IFERROR(VLOOKUP($D140&"_"&1,base!$E$4:$BO$7238,AE$97,FALSE),"") -> 0 | AF140: =+IFERROR(VLOOKUP($D140&"_"&1,base!$E$4:$BO$7238,AF$97,FALSE),"") -> 0 | AG140: =+IFERROR(VLOOKUP($D140&"_"&1,base!$E$4:$BO$7238,AG$97,FALSE),"") -> 0 | AH140: =+IFERROR(VLOOKUP($D140&"_"&1,base!$E$4:$BO$7238,AH$97,FALSE),"") -> 0 | AI140: =+IFERROR(VLOOKUP($D140&"_"&1,base!$E$4:$BO$7238,AI$97,FALSE),"") -> 0 | AJ140: =+IFERROR(VLOOKUP($D140&"_"&1,base!$E$4:$BO$7238,AJ$97,FALSE),"") -> 0 | AK140: =+IFERROR(VLOOKUP($D140&"_"&1,base!$E$4:$BO$7238,AK$97,FALSE),"") -> 0 | AL140: =+IFERROR(VLOOKUP($D140&"_"&1,base!$E$4:$BO$7238,AL$97,FALSE),"") -> 0 | AM140: =+IFERROR(VLOOKUP($D140&"_"&1,base!$E$4:$BO$7238,AM$97,FALSE),"") -> 0
B141: 42 | C141: =+IFERROR(VLOOKUP(D141,'tablero nal'!$W$9:$EM$163,121,FALSE),"") -> Protección | D141: =+IF(HLOOKUP($D$98,'listado indicadores'!$B$3:$AZ$158,$B141,FALSE)="","",HLOOKUP($D$98,'listado indicadores'!$B$3:$AZ$158,$B141,FALSE)) -> PA-43 | E141: =+IFERROR(VLOOKUP(D141,'tablero nal'!$W$9:$X$163,2,FALSE),"") -> Porcentaje de adolescentes y jóvenes que egresan el ultimo año del SRPA por cumplimiento de sanción privativa de la libertad, atendidos con estrategias post egreso o inclusión social. | J141: =+IFERROR(IF(VLOOKUP($D141&"_"&1,base!$E$4:$BO$7238,J$99,FALSE)>1,IF(VLOOKUP($D141&"_"&1,base!$E$4:$BO$7238,J$99,FALSE)>=1000,TEXT(VLOOKUP($D141&"_"&1,base!$E$4:$BO$7238,J$99,FALSE),"0.000"),TEXT(VLOOKUP($D141&"_"&1,base!$E$4:$BO$7238,J$99,FALSE),"0")),TEXT(VLOOKUP($D141&"_"&1,base!$E$4:$BO$7238,J$99,FALSE),"0.0%")),"") -> 55% | K141: =+IFERROR(IF(VLOOKUP($D141&"_"&1,base!$E$4:$BO$7238,K$99,FALSE)>1,IF(VLOOKUP($D141&"_"&1,base!$E$4:$BO$7238,K$99,FALSE)>=1000,TEXT(VLOOKUP($D141&"_"&1,base!$E$4:$BO$7238,K$99,FALSE),"0.000"),TEXT(VLOOKUP($D141&"_"&1,base!$E$4:$BO$7238,K$99,FALSE),"0")),TEXT(VLOOKUP($D141&"_"&1,base!$E$4:$BO$7238,K$99,FALSE),"0.0%")),"") -> 53% | L141: =+IFERROR(VLOOKUP($D141&"_"&1,base!$E$4:$BO$7238,L$99,FALSE),"") -> 0.527 | M141: =+IFERROR(VLOOKUP($D141&"_"&1,base!$E$4:$BO$7238,M$99,FALSE),"") -> OPTIMO | P141: =+IFERROR(VLOOKUP($D141&"_"&1,base!$E$4:$BO$7238,P$97,FALSE),"") -> NA | Q141: =+IFERROR(VLOOKUP($D141&"_"&1,base!$E$4:$BO$7238,Q$97,FALSE),"") -> NA | R141: =+IFERROR(VLOOKUP($D141&"_"&1,base!$E$4:$BO$7238,R$97,FALSE),"") -> NA | S141: =+IFERROR(VLOOKUP($D141&"_"&1,base!$E$4:$BO$7238,S$97,FALSE),"") -> NA | T141: =+IFERROR(VLOOKUP($D141&"_"&1,base!$E$4:$BO$7238,T$97,FALSE),"") -> 0.527 | U141: =+IFERROR(VLOOKUP($D141&"_"&1,base!$E$4:$BO$7238,U$97,FALSE),"") -> OPTIMO | V141: =+IFERROR(VLOOKUP($D141&"_"&1,base!$E$4:$BO$7238,V$97,FALSE),"") -> 0 | W141: =+IFERROR(VLOOKUP($D141&"_"&1,base!$E$4:$BO$7238,W$97,FALSE),"") -> 0 | X141: =+IFERROR(VLOOKUP($D141&"_"&1,base!$E$4:$BO$7238,X$97,FALSE),"") -> 0 | Y141: =+IFERROR(VLOOKUP($D141&"_"&1,base!$E$4:$BO$7238,Y$97,FALSE),"") -> 0 | Z141: =+IFERROR(VLOOKUP($D141&"_"&1,base!$E$4:$BO$7238,Z$97,FALSE),"") -> 0 | AA141: =+IFERROR(VLOOKUP($D141&"_"&1,base!$E$4:$BO$7238,AA$97,FALSE),"") -> 0 | AB141: =+IFERROR(VLOOKUP($D141&"_"&1,base!$E$4:$BO$7238,AB$97,FALSE),"") -> 0 | AC141: =+IFERROR(VLOOKUP($D141&"_"&1,base!$E$4:$BO$7238,AC$97,FALSE),"") -> 0 | AD141: =+IFERROR(VLOOKUP($D141&"_"&1,base!$E$4:$BO$7238,AD$97,FALSE),"") -> 0 | AE141: =+IFERROR(VLOOKUP($D141&"_"&1,base!$E$4:$BO$7238,AE$97,FALSE),"") -> 0 | AF141: =+IFERROR(VLOOKUP($D141&"_"&1,base!$E$4:$BO$7238,AF$97,FALSE),"") -> 0 | AG141: =+IFERROR(VLOOKUP($D141&"_"&1,base!$E$4:$BO$7238,AG$97,FALSE),"") -> 0 | AH141: =+IFERROR(VLOOKUP($D141&"_"&1,base!$E$4:$BO$7238,AH$97,FALSE),"") -> 0 | AI141: =+IFERROR(VLOOKUP($D141&"_"&1,base!$E$4:$BO$7238,AI$97,FALSE),"") -> 0 | AJ141: =+IFERROR(VLOOKUP($D141&"_"&1,base!$E$4:$BO$7238,AJ$97,FALSE),"") -> 0 | AK141: =+IFERROR(VLOOKUP($D141&"_"&1,base!$E$4:$BO$7238,AK$97,FALSE),"") -> 0 | AL141: =+IFERROR(VLOOKUP($D141&"_"&1,base!$E$4:$BO$7238,AL$97,FALSE),"") -> 0 | AM141: =+IFERROR(VLOOKUP($D141&"_"&1,base!$E$4:$BO$7238,AM$97,FALSE),"") -> 0
B142: 43 | C142: =+IFERROR(VLOOKUP(D142,'tablero nal'!$W$9:$EM$163,121,FALSE),"") -> Protección | D142: =+IF(HLOOKUP($D$98,'listado indicadores'!$B$3:$AZ$158,$B142,FALSE)="","",HLOOKUP($D$98,'listado indicadores'!$B$3:$AZ$158,$B142,FALSE)) -> PA-44 | E142: =+IFERROR(VLOOKUP(D142,'tablero nal'!$W$9:$X$163,2,FALSE),"") -> Porcentaje de Regionales con la implementación de servicios para el cumplimiento de sanciones no privativas de libertad. | J142: =+IFERROR(IF(VLOOKUP($D142&"_"&1,base!$E$4:$BO$7238,J$99,FALSE)>1,IF(VLOOKUP($D142&"_"&1,base!$E$4:$BO$7238,J$99,FALSE)>=1000,TEXT(VLOOKUP($D142&"_"&1,base!$E$4:$BO$7238,J$99,FALSE),"0.000"),TEXT(VLOOKUP($D142&"_"&1,base!$E$4:$BO$7238,J$99,FALSE),"0")),TEXT(VLOOKUP($D142&"_"&1,base!$E$4:$BO$7238,J$99,FALSE),"0.0%")),"") -> 50% | K142: =+IFERROR(IF(VLOOKUP($D142&"_"&1,base!$E$4:$BO$7238,K$99,FALSE)>1,IF(VLOOKUP($D142&"_"&1,base!$E$4:$BO$7238,K$99,FALSE)>=1000,TEXT(VLOOKUP($D142&"_"&1,base!$E$4:$BO$7238,K$99,FALSE),"0.000"),TEXT(VLOOKUP($D142&"_"&1,base!$E$4:$BO$7238,K$99,FALSE),"0")),TEXT(VLOOKUP($D142&"_"&1,base!$E$4:$BO$7238,K$99,FALSE),"0.0%")),"") -> 32% | L142: =+IFERROR(VLOOKUP($D142&"_"&1,base!$E$4:$BO$7238,L$99,FALSE),"") -> 0.323 | M142: =+IFERROR(VLOOKUP($D142&"_"&1,base!$E$4:$BO$7238,M$99,FALSE),"") -> OPTIMO | P142: =+IFERROR(VLOOKUP($D142&"_"&1,base!$E$4:$BO$7238,P$97,FALSE),"") -> NA | Q142: =+IFERROR(VLOOKUP($D142&"_"&1,base!$E$4:$BO$7238,Q$97,FALSE),"") -> NA | R142: =+IFERROR(VLOOKUP($D142&"_"&1,base!$E$4:$BO$7238,R$97,FALSE),"") -> NA | S142: =+IFERROR(VLOOKUP($D142&"_"&1,base!$E$4:$BO$7238,S$97,FALSE),"") -> NA | T142: =+IFERROR(VLOOKUP($D142&"_"&1,base!$E$4:$BO$7238,T$97,FALSE),"") -> 0.323 | U142: =+IFERROR(VLOOKUP($D142&"_"&1,base!$E$4:$BO$7238,U$97,FALSE),"") -> OPTIMO | V142: =+IFERROR(VLOOKUP($D142&"_"&1,base!$E$4:$BO$7238,V$97,FALSE),"") -> 0 | W142: =+IFERROR(VLOOKUP($D142&"_"&1,base!$E$4:$BO$7238,W$97,FALSE),"") -> 0 | X142: =+IFERROR(VLOOKUP($D142&"_"&1,base!$E$4:$BO$7238,X$97,FALSE),"") -> 0 | Y142: =+IFERROR(VLOOKUP($D142&"_"&1,base!$E$4:$BO$7238,Y$97,FALSE),"") -> 0 | Z142: =+IFERROR(VLOOKUP($D142&"_"&1,base!$E$4:$BO$7238,Z$97,FALSE),"") -> 0 | AA142: =+IFERROR(VLOOKUP($D142&"_"&1,base!$E$4:$BO$7238,AA$97,FALSE),"") -> 0 | AB142: =+IFERROR(VLOOKUP($D142&"_"&1,base!$E$4:$BO$7238,AB$97,FALSE),"") -> 0 | AC142: =+IFERROR(VLOOKUP($D142&"_"&1,base!$E$4:$BO$7238,AC$97,FALSE),"") -> 0 | AD142: =+IFERROR(VLOOKUP($D142&"_"&1,base!$E$4:$BO$7238,AD$97,FALSE),"") -> 0 | AE142: =+IFERROR(VLOOKUP($D142&"_"&1,base!$E$4:$BO$7238,AE$97,FALSE),"") -> 0 | AF142: =+IFERROR(VLOOKUP($D142&"_"&1,base!$E$4:$BO$7238,AF$97,FALSE),"") -> 0 | AG142: =+IFERROR(VLOOKUP($D142&"_"&1,base!$E$4:$BO$7238,AG$97,FALSE),"") -> 0 | AH142: =+IFERROR(VLOOKUP($D142&"_"&1,base!$E$4:$BO$7238,AH$97,FALSE),"") -> 0 | AI142: =+IFERROR(VLOOKUP($D142&"_"&1,base!$E$4:$BO$7238,AI$97,FALSE),"") -> 0 | AJ142: =+IFERROR(VLOOKUP($D142&"_"&1,base!$E$4:$BO$7238,AJ$97,FALSE),"") -> 0 | AK142: =+IFERROR(VLOOKUP($D142&"_"&1,base!$E$4:$BO$7238,AK$97,FALSE),"") -> 0 | AL142: =+IFERROR(VLOOKUP($D142&"_"&1,base!$E$4:$BO$7238,AL$97,FALSE),"") -> 0 | AM142: =+IFERROR(VLOOKUP($D142&"_"&1,base!$E$4:$BO$7238,AM$97,FALSE),"") -> 0
B143: 44 | C143: =+IFERROR(VLOOKUP(D143,'tablero nal'!$W$9:$EM$163,121,FALSE),"") -> Protección | D143: =+IF(HLOOKUP($D$98,'listado indicadores'!$B$3:$AZ$158,$B143,FALSE)="","",HLOOKUP($D$98,'listado indicadores'!$B$3:$AZ$158,$B143,FALSE)) -> PA-45 | E143: =+IFERROR(VLOOKUP(D143,'tablero nal'!$W$9:$X$163,2,FALSE),"") -> Porcentaje de Unidades de Servicio de Atención a adolescentes y jóvenes del Sistema de Responsbilidad Penal - SRPA, con implementación de procesos de formación en prácticas restaurativas | J143: =+IFERROR(IF(VLOOKUP($D143&"_"&1,base!$E$4:$BO$7238,J$99,FALSE)>1,IF(VLOOKUP($D143&"_"&1,base!$E$4:$BO$7238,J$99,FALSE)>=1000,TEXT(VLOOKUP($D143&"_"&1,base!$E$4:$BO$7238,J$99,FALSE),"0.000"),TEXT(VLOOKUP($D143&"_"&1,base!$E$4:$BO$7238,J$99,FALSE),"0")),TEXT(VLOOKUP($D143&"_"&1,base!$E$4:$BO$7238,J$99,FALSE),"0.0%")),"") -> 67% | K143: =+IFERROR(IF(VLOOKUP($D143&"_"&1,base!$E$4:$BO$7238,K$99,FALSE)>1,IF(VLOOKUP($D143&"_"&1,base!$E$4:$BO$7238,K$99,FALSE)>=1000,TEXT(VLOOKUP($D143&"_"&1,base!$E$4:$BO$7238,K$99,FALSE),"0.000"),TEXT(VLOOKUP($D143&"_"&1,base!$E$4:$BO$7238,K$99,FALSE),"0")),TEXT(VLOOKUP($D143&"_"&1,base!$E$4:$BO$7238,K$99,FALSE),"0.0%")),"") -> 52% | L143: =+IFERROR(VLOOKUP($D143&"_"&1,base!$E$4:$BO$7238,L$99,FALSE),"") -> 0.522 | M143: =+IFERROR(VLOOKUP($D143&"_"&1,base!$E$4:$BO$7238,M$99,FALSE),"") -> ADECUADO | P143: =+IFERROR(VLOOKUP($D143&"_"&1,base!$E$4:$BO$7238,P$97,FALSE),"") -> NA | Q143: =+IFERROR(VLOOKUP($D143&"_"&1,base!$E$4:$BO$7238,Q$97,FALSE),"") -> NA | R143: =+IFERROR(VLOOKUP($D143&"_"&1,base!$E$4:$BO$7238,R$97,FALSE),"") -> NA | S143: =+IFERROR(VLOOKUP($D143&"_"&1,base!$E$4:$BO$7238,S$97,FALSE),"") -> NA | T143: =+IFERROR(VLOOKUP($D143&"_"&1,base!$E$4:$BO$7238,T$97,FALSE),"") -> 0.522 | U143: =+IFERROR(VLOOKUP($D143&"_"&1,base!$E$4:$BO$7238,U$97,FALSE),"") -> ADECUADO | V143: =+IFERROR(VLOOKUP($D143&"_"&1,base!$E$4:$BO$7238,V$97,FALSE),"") -> 0 | W143: =+IFERROR(VLOOKUP($D143&"_"&1,base!$E$4:$BO$7238,W$97,FALSE),"") -> 0 | X143: =+IFERROR(VLOOKUP($D143&"_"&1,base!$E$4:$BO$7238,X$97,FALSE),"") -> 0 | Y143: =+IFERROR(VLOOKUP($D143&"_"&1,base!$E$4:$BO$7238,Y$97,FALSE),"") -> 0 | Z143: =+IFERROR(VLOOKUP($D143&"_"&1,base!$E$4:$BO$7238,Z$97,FALSE),"") -> 0 | AA143: =+IFERROR(VLOOKUP($D143&"_"&1,base!$E$4:$BO$7238,AA$97,FALSE),"") -> 0 | AB143: =+IFERROR(VLOOKUP($D143&"_"&1,base!$E$4:$BO$7238,AB$97,FALSE),"") -> 0 | AC143: =+IFERROR(VLOOKUP($D143&"_"&1,base!$E$4:$BO$7238,AC$97,FALSE),"") -> 0 | AD143: =+IFERROR(VLOOKUP($D143&"_"&1,base!$E$4:$BO$7238,AD$97,FALSE),"") -> 0 | AE143: =+IFERROR(VLOOKUP($D143&"_"&1,base!$E$4:$BO$7238,AE$97,FALSE),"") -> 0 | AF143: =+IFERROR(VLOOKUP($D143&"_"&1,base!$E$4:$BO$7238,AF$97,FALSE),"") -> 0 | AG143: =+IFERROR(VLOOKUP($D143&"_"&1,base!$E$4:$BO$7238,AG$97,FALSE),"") -> 0 | AH143: =+IFERROR(VLOOKUP($D143&"_"&1,base!$E$4:$BO$7238,AH$97,FALSE),"") -> 0 | AI143: =+IFERROR(VLOOKUP($D143&"_"&1,base!$E$4:$BO$7238,AI$97,FALSE),"") -> 0 | AJ143: =+IFERROR(VLOOKUP($D143&"_"&1,base!$E$4:$BO$7238,AJ$97,FALSE),"") -> 0 | AK143: =+IFERROR(VLOOKUP($D143&"_"&1,base!$E$4:$BO$7238,AK$97,FALSE),"") -> 0 | AL143: =+IFERROR(VLOOKUP($D143&"_"&1,base!$E$4:$BO$7238,AL$97,FALSE),"") -> 0 | AM143: =+IFERROR(VLOOKUP($D143&"_"&1,base!$E$4:$BO$7238,AM$97,FALSE),"") -> 0
B144: 45 | C144: =+IFERROR(VLOOKUP(D144,'tablero nal'!$W$9:$EM$163,121,FALSE),"") -> Gestión Humana | D144: =+IF(HLOOKUP($D$98,'listado indicadores'!$B$3:$AZ$158,$B144,FALSE)="","",HLOOKUP($D$98,'listado indicadores'!$B$3:$AZ$158,$B144,FALSE)) -> PA-46 | E144: =+IFERROR(VLOOKUP(D144,'tablero nal'!$W$9:$X$163,2,FALSE),"") -> Porcentaje de cobertura del plan de Bienestar | J144: =+IFERROR(IF(VLOOKUP($D144&"_"&1,base!$E$4:$BO$7238,J$99,FALSE)>1,IF(VLOOKUP($D144&"_"&1,base!$E$4:$BO$7238,J$99,FALSE)>=1000,TEXT(VLOOKUP($D144&"_"&1,base!$E$4:$BO$7238,J$99,FALSE),"0.000"),TEXT(VLOOKUP($D144&"_"&1,base!$E$4:$BO$7238,J$99,FALSE),"0")),TEXT(VLOOKUP($D144&"_"&1,base!$E$4:$BO$7238,J$99,FALSE),"0.0%")),"") -> 100% | K144: =+IFERROR(IF(VLOOKUP($D144&"_"&1,base!$E$4:$BO$7238,K$99,FALSE)>1,IF(VLOOKUP($D144&"_"&1,base!$E$4:$BO$7238,K$99,FALSE)>=1000,TEXT(VLOOKUP($D144&"_"&1,base!$E$4:$BO$7238,K$99,FALSE),"0.000"),TEXT(VLOOKUP($D144&"_"&1,base!$E$4:$BO$7238,K$99,FALSE),"0")),TEXT(VLOOKUP($D144&"_"&1,base!$E$4:$BO$7238,K$99,FALSE),"0.0%")),"") -> NA | L144: =+IFERROR(VLOOKUP($D144&"_"&1,base!$E$4:$BO$7238,L$99,FALSE),"") -> NA | M144: =+IFERROR(VLOOKUP($D144&"_"&1,base!$E$4:$BO$7238,M$99,FALSE),"") -> NA | P144: =+IFERROR(VLOOKUP($D144&"_"&1,base!$E$4:$BO$7238,P$97,FALSE),"") -> NA | Q144: =+IFERROR(VLOOKUP($D144&"_"&1,base!$E$4:$BO$7238,Q$97,FALSE),"") -> NA | R144: =+IFERROR(VLOOKUP($D144&"_"&1,base!$E$4:$BO$7238,R$97,FALSE),"") -> NA | S144: =+IFERROR(VLOOKUP($D144&"_"&1,base!$E$4:$BO$7238,S$97,FALSE),"") -> NA | T144: =+IFERROR(VLOOKUP($D144&"_"&1,base!$E$4:$BO$7238,T$97,FALSE),"") -> NA | U144: =+IFERROR(VLOOKUP($D144&"_"&1,base!$E$4:$BO$7238,U$97,FALSE),"") -> NA | V144: =+IFERROR(VLOOKUP($D144&"_"&1,base!$E$4:$BO$7238,V$97,FALSE),"") -> 0 | W144: =+IFERROR(VLOOKUP($D144&"_"&1,base!$E$4:$BO$7238,W$97,FALSE),"") -> 0 | X144: =+IFERROR(VLOOKUP($D144&"_"&1,base!$E$4:$BO$7238,X$97,FALSE),"") -> 0 | Y144: =+IFERROR(VLOOKUP($D144&"_"&1,base!$E$4:$BO$7238,Y$97,FALSE),"") -> 0 | Z144: =+IFERROR(VLOOKUP($D144&"_"&1,base!$E$4:$BO$7238,Z$97,FALSE),"") -> 0 | AA144: =+IFERROR(VLOOKUP($D144&"_"&1,base!$E$4:$BO$7238,AA$97,FALSE),"") -> 0 | AB144: =+IFERROR(VLOOKUP($D144&"_"&1,base!$E$4:$BO$7238,AB$97,FALSE),"") -> 0 | AC144: =+IFERROR(VLOOKUP($D144&"_"&1,base!$E$4:$BO$7238,AC$97,FALSE),"") -> 0 | AD144: =+IFERROR(VLOOKUP($D144&"_"&1,base!$E$4:$BO$7238,AD$97,FALSE),"") -> 0 | AE144: =+IFERROR(VLOOKUP($D144&"_"&1,base!$E$4:$BO$7238,AE$97,FALSE),"") -> 0 | AF144: =+IFERROR(VLOOKUP($D144&"_"&1,base!$E$4:$BO$7238,AF$97,FALSE),"") -> 0 | AG144: =+IFERROR(VLOOKUP($D144&"_"&1,base!$E$4:$BO$7238,AG$97,FALSE),"") -> 0 | AH144: =+IFERROR(VLOOKUP($D144&"_"&1,base!$E$4:$BO$7238,AH$97,FALSE),"") -> 0 | AI144: =+IFERROR(VLOOKUP($D144&"_"&1,base!$E$4:$BO$7238,AI$97,FALSE),"") -> 0 | AJ144: =+IFERROR(VLOOKUP($D144&"_"&1,base!$E$4:$BO$7238,AJ$97,FALSE),"") -> 0 | AK144: =+IFERROR(VLOOKUP($D144&"_"&1,base!$E$4:$BO$7238,AK$97,FALSE),"") -> 0 | AL144: =+IFERROR(VLOOKUP($D144&"_"&1,base!$E$4:$BO$7238,AL$97,FALSE),"") -> 0 | AM144: =+IFERROR(VLOOKUP($D144&"_"&1,base!$E$4:$BO$7238,AM$97,FALSE),"") -> 0
B145: 46 | C145: =+IFERROR(VLOOKUP(D145,'tablero nal'!$W$9:$EM$163,121,FALSE),"") -> Gestión Humana | D145: =+IF(HLOOKUP($D$98,'listado indicadores'!$B$3:$AZ$158,$B145,FALSE)="","",HLOOKUP($D$98,'listado indicadores'!$B$3:$AZ$158,$B145,FALSE)) -> PA-47 | E145: =+IFERROR(VLOOKUP(D145,'tablero nal'!$W$9:$X$163,2,FALSE),"") -> Porcentaje de vacantes en la planta global | J145: =+IFERROR(IF(VLOOKUP($D145&"_"&1,base!$E$4:$BO$7238,J$99,FALSE)>1,IF(VLOOKUP($D145&"_"&1,base!$E$4:$BO$7238,J$99,FALSE)>=1000,TEXT(VLOOKUP($D145&"_"&1,base!$E$4:$BO$7238,J$99,FALSE),"0.000"),TEXT(VLOOKUP($D145&"_"&1,base!$E$4:$BO$7238,J$99,FALSE),"0")),TEXT(VLOOKUP($D145&"_"&1,base!$E$4:$BO$7238,J$99,FALSE),"0.0%")),"") -> 04% | K145: =+IFERROR(IF(VLOOKUP($D145&"_"&1,base!$E$4:$BO$7238,K$99,FALSE)>1,IF(VLOOKUP($D145&"_"&1,base!$E$4:$BO$7238,K$99,FALSE)>=1000,TEXT(VLOOKUP($D145&"_"&1,base!$E$4:$BO$7238,K$99,FALSE),"0.000"),TEXT(VLOOKUP($D145&"_"&1,base!$E$4:$BO$7238,K$99,FALSE),"0")),TEXT(VLOOKUP($D145&"_"&1,base!$E$4:$BO$7238,K$99,FALSE),"0.0%")),"") -> 08% | L145: =+IFERROR(VLOOKUP($D145&"_"&1,base!$E$4:$BO$7238,L$99,FALSE),"") -> 0.083 | M145: =+IFERROR(VLOOKUP($D145&"_"&1,base!$E$4:$BO$7238,M$99,FALSE),"") -> CRITICO | P145: =+IFERROR(VLOOKUP($D145&"_"&1,base!$E$4:$BO$7238,P$97,FALSE),"") -> NA | Q145: =+IFERROR(VLOOKUP($D145&"_"&1,base!$E$4:$BO$7238,Q$97,FALSE),"") -> NA | R145: =+IFERROR(VLOOKUP($D145&"_"&1,base!$E$4:$BO$7238,R$97,FALSE),"") -> NA | S145: =+IFERROR(VLOOKUP($D145&"_"&1,base!$E$4:$BO$7238,S$97,FALSE),"") -> NA | T145: =+IFERROR(VLOOKUP($D145&"_"&1,base!$E$4:$BO$7238,T$97,FALSE),"") -> 0.083 | U145: =+IFERROR(VLOOKUP($D145&"_"&1,base!$E$4:$BO$7238,U$97,FALSE),"") -> CRITICO | V145: =+IFERROR(VLOOKUP($D145&"_"&1,base!$E$4:$BO$7238,V$97,FALSE),"") -> 0 | W145: =+IFERROR(VLOOKUP($D145&"_"&1,base!$E$4:$BO$7238,W$97,FALSE),"") -> 0 | X145: =+IFERROR(VLOOKUP($D145&"_"&1,base!$E$4:$BO$7238,X$97,FALSE),"") -> 0 | Y145: =+IFERROR(VLOOKUP($D145&"_"&1,base!$E$4:$BO$7238,Y$97,FALSE),"") -> 0 | Z145: =+IFERROR(VLOOKUP($D145&"_"&1,base!$E$4:$BO$7238,Z$97,FALSE),"") -> 0 | AA145: =+IFERROR(VLOOKUP($D145&"_"&1,base!$E$4:$BO$7238,AA$97,FALSE),"") -> 0 | AB145: =+IFERROR(VLOOKUP($D145&"_"&1,base!$E$4:$BO$7238,AB$97,FALSE),"") -> 0 | AC145: =+IFERROR(VLOOKUP($D145&"_"&1,base!$E$4:$BO$7238,AC$97,FALSE),"") -> 0 | AD145: =+IFERROR(VLOOKUP($D145&"_"&1,base!$E$4:$BO$7238,AD$97,FALSE),"") -> 0 | AE145: =+IFERROR(VLOOKUP($D145&"_"&1,base!$E$4:$BO$7238,AE$97,FALSE),"") -> 0 | AF145: =+IFERROR(VLOOKUP($D145&"_"&1,base!$E$4:$BO$7238,AF$97,FALSE),"") -> 0 | AG145: =+IFERROR(VLOOKUP($D145&"_"&1,base!$E$4:$BO$7238,AG$97,FALSE),"") -> 0 | AH145: =+IFERROR(VLOOKUP($D145&"_"&1,base!$E$4:$BO$7238,AH$97,FALSE),"") -> 0 | AI145: =+IFERROR(VLOOKUP($D145&"_"&1,base!$E$4:$BO$7238,AI$97,FALSE),"") -> 0 | AJ145: =+IFERROR(VLOOKUP($D145&"_"&1,base!$E$4:$BO$7238,AJ$97,FALSE),"") -> 0 | AK145: =+IFERROR(VLOOKUP($D145&"_"&1,base!$E$4:$BO$7238,AK$97,FALSE),"") -> 0 | AL145: =+IFERROR(VLOOKUP($D145&"_"&1,base!$E$4:$BO$7238,AL$97,FALSE),"") -> 0 | AM145: =+IFERROR(VLOOKUP($D145&"_"&1,base!$E$4:$BO$7238,AM$97,FALSE),"") -> 0
B146: 47 | C146: =+IFERROR(VLOOKUP(D146,'tablero nal'!$W$9:$EM$163,121,FALSE),"") -> Gestión Humana | D146: =+IF(HLOOKUP($D$98,'listado indicadores'!$B$3:$AZ$158,$B146,FALSE)="","",HLOOKUP($D$98,'listado indicadores'!$B$3:$AZ$158,$B146,FALSE)) -> PA-48 | E146: =+IFERROR(VLOOKUP(D146,'tablero nal'!$W$9:$X$163,2,FALSE),"") -> Porcentaje de servidores capacitados | J146: =+IFERROR(IF(VLOOKUP($D146&"_"&1,base!$E$4:$BO$7238,J$99,FALSE)>1,IF(VLOOKUP($D146&"_"&1,base!$E$4:$BO$7238,J$99,FALSE)>=1000,TEXT(VLOOKUP($D146&"_"&1,base!$E$4:$BO$7238,J$99,FALSE),"0.000"),TEXT(VLOOKUP($D146&"_"&1,base!$E$4:$BO$7238,J$99,FALSE),"0")),TEXT(VLOOKUP($D146&"_"&1,base!$E$4:$BO$7238,J$99,FALSE),"0.0%")),"") -> 87% | K146: =+IFERROR(IF(VLOOKUP($D146&"_"&1,base!$E$4:$BO$7238,K$99,FALSE)>1,IF(VLOOKUP($D146&"_"&1,base!$E$4:$BO$7238,K$99,FALSE)>=1000,TEXT(VLOOKUP($D146&"_"&1,base!$E$4:$BO$7238,K$99,FALSE),"0.000"),TEXT(VLOOKUP($D146&"_"&1,base!$E$4:$BO$7238,K$99,FALSE),"0")),TEXT(VLOOKUP($D146&"_"&1,base!$E$4:$BO$7238,K$99,FALSE),"0.0%")),"") -> NA | L146: =+IFERROR(VLOOKUP($D146&"_"&1,base!$E$4:$BO$7238,L$99,FALSE),"") -> NA | M146: =+IFERROR(VLOOKUP($D146&"_"&1,base!$E$4:$BO$7238,M$99,FALSE),"") -> NA | P146: =+IFERROR(VLOOKUP($D146&"_"&1,base!$E$4:$BO$7238,P$97,FALSE),"") -> NA | Q146: =+IFERROR(VLOOKUP($D146&"_"&1,base!$E$4:$BO$7238,Q$97,FALSE),"") -> NA | R146: =+IFERROR(VLOOKUP($D146&"_"&1,base!$E$4:$BO$7238,R$97,FALSE),"") -> NA | S146: =+IFERROR(VLOOKUP($D146&"_"&1,base!$E$4:$BO$7238,S$97,FALSE),"") -> NA | T146: =+IFERROR(VLOOKUP($D146&"_"&1,base!$E$4:$BO$7238,T$97,FALSE),"") -> NA | U146: =+IFERROR(VLOOKUP($D146&"_"&1,base!$E$4:$BO$7238,U$97,FALSE),"") -> NA | V146: =+IFERROR(VLOOKUP($D146&"_"&1,base!$E$4:$BO$7238,V$97,FALSE),"") -> 0 | W146: =+IFERROR(VLOOKUP($D146&"_"&1,base!$E$4:$BO$7238,W$97,FALSE),"") -> 0 | X146: =+IFERROR(VLOOKUP($D146&"_"&1,base!$E$4:$BO$7238,X$97,FALSE),"") -> 0 | Y146: =+IFERROR(VLOOKUP($D146&"_"&1,base!$E$4:$BO$7238,Y$97,FALSE),"") -> 0 | Z146: =+IFERROR(VLOOKUP($D146&"_"&1,base!$E$4:$BO$7238,Z$97,FALSE),"") -> 0 | AA146: =+IFERROR(VLOOKUP($D146&"_"&1,base!$E$4:$BO$7238,AA$97,FALSE),"") -> 0 | AB146: =+IFERROR(VLOOKUP($D146&"_"&1,base!$E$4:$BO$7238,AB$97,FALSE),"") -> 0 | AC146: =+IFERROR(VLOOKUP($D146&"_"&1,base!$E$4:$BO$7238,AC$97,FALSE),"") -> 0 | AD146: =+IFERROR(VLOOKUP($D146&"_"&1,base!$E$4:$BO$7238,AD$97,FALSE),"") -> 0 | AE146: =+IFERROR(VLOOKUP($D146&"_"&1,base!$E$4:$BO$7238,AE$97,FALSE),"") -> 0 | AF146: =+IFERROR(VLOOKUP($D146&"_"&1,base!$E$4:$BO$7238,AF$97,FALSE),"") -> 0 | AG146: =+IFERROR(VLOOKUP($D146&"_"&1,base!$E$4:$BO$7238,AG$97,FALSE),"") -> 0 | AH146: =+IFERROR(VLOOKUP($D146&"_"&1,base!$E$4:$BO$7238,AH$97,FALSE),"") -> 0 | AI146: =+IFERROR(VLOOKUP($D146&"_"&1,base!$E$4:$BO$7238,AI$97,FALSE),"") -> 0 | AJ146: =+IFERROR(VLOOKUP($D146&"_"&1,base!$E$4:$BO$7238,AJ$97,FALSE),"") -> 0 | AK146: =+IFERROR(VLOOKUP($D146&"_"&1,base!$E$4:$BO$7238,AK$97,FALSE),"") -> 0 | AL146: =+IFERROR(VLOOKUP($D146&"_"&1,base!$E$4:$BO$7238,AL$97,FALSE),"") -> 0 | AM146: =+IFERROR(VLOOKUP($D146&"_"&1,base!$E$4:$BO$7238,AM$97,FALSE),"") -> 0
B147: 48 | C147: =+IFERROR(VLOOKUP(D147,'tablero nal'!$W$9:$EM$163,121,FALSE),"") -> Gestión Humana | D147: =+IF(HLOOKUP($D$98,'listado indicadores'!$B$3:$AZ$158,$B147,FALSE)="","",HLOOKUP($D$98,'listado indicadores'!$B$3:$AZ$158,$B147,FALSE)) -> PA-49 | E147: =+IFERROR(VLOOKUP(D147,'tablero nal'!$W$9:$X$163,2,FALSE),"") -> Porcentaje de avance en la implementación del Plan Estratégico de Gestión Humana. | J147: =+IFERROR(IF(VLOOKUP($D147&"_"&1,base!$E$4:$BO$7238,J$99,FALSE)>1,IF(VLOOKUP($D147&"_"&1,base!$E$4:$BO$7238,J$99,FALSE)>=1000,TEXT(VLOOKUP($D147&"_"&1,base!$E$4:$BO$7238,J$99,FALSE),"0.000"),TEXT(VLOOKUP($D147&"_"&1,base!$E$4:$BO$7238,J$99,FALSE),"0")),TEXT(VLOOKUP($D147&"_"&1,base!$E$4:$BO$7238,J$99,FALSE),"0.0%")),"") -> 100% | K147: =+IFERROR(IF(VLOOKUP($D147&"_"&1,base!$E$4:$BO$7238,K$99,FALSE)>1,IF(VLOOKUP($D147&"_"&1,base!$E$4:$BO$7238,K$99,FALSE)>=1000,TEXT(VLOOKUP($D147&"_"&1,base!$E$4:$BO$7238,K$99,FALSE),"0.000"),TEXT(VLOOKUP($D147&"_"&1,base!$E$4:$BO$7238,K$99,FALSE),"0")),TEXT(VLOOKUP($D147&"_"&1,base!$E$4:$BO$7238,K$99,FALSE),"0.0%")),"") -> 36% | L147: =+IFERROR(VLOOKUP($D147&"_"&1,base!$E$4:$BO$7238,L$99,FALSE),"") -> 0.363 | M147: =+IFERROR(VLOOKUP($D147&"_"&1,base!$E$4:$BO$7238,M$99,FALSE),"") -> EN RIESGO | P147: =+IFERROR(VLOOKUP($D147&"_"&1,base!$E$4:$BO$7238,P$97,FALSE),"") -> NA | Q147: =+IFERROR(VLOOKUP($D147&"_"&1,base!$E$4:$BO$7238,Q$97,FALSE),"") -> NA | R147: =+IFERROR(VLOOKUP($D147&"_"&1,base!$E$4:$BO$7238,R$97,FALSE),"") -> NA | S147: =+IFERROR(VLOOKUP($D147&"_"&1,base!$E$4:$BO$7238,S$97,FALSE),"") -> NA | T147: =+IFERROR(VLOOKUP($D147&"_"&1,base!$E$4:$BO$7238,T$97,FALSE),"") -> 0.363 | U147: =+IFERROR(VLOOKUP($D147&"_"&1,base!$E$4:$BO$7238,U$97,FALSE),"") -> EN RIESGO | V147: =+IFERROR(VLOOKUP($D147&"_"&1,base!$E$4:$BO$7238,V$97,FALSE),"") -> 0 | W147: =+IFERROR(VLOOKUP($D147&"_"&1,base!$E$4:$BO$7238,W$97,FALSE),"") -> 0 | X147: =+IFERROR(VLOOKUP($D147&"_"&1,base!$E$4:$BO$7238,X$97,FALSE),"") -> 0 | Y147: =+IFERROR(VLOOKUP($D147&"_"&1,base!$E$4:$BO$7238,Y$97,FALSE),"") -> 0 | Z147: =+IFERROR(VLOOKUP($D147&"_"&1,base!$E$4:$BO$7238,Z$97,FALSE),"") -> 0 | AA147: =+IFERROR(VLOOKUP($D147&"_"&1,base!$E$4:$BO$7238,AA$97,FALSE),"") -> 0 | AB147: =+IFERROR(VLOOKUP($D147&"_"&1,base!$E$4:$BO$7238,AB$97,FALSE),"") -> 0 | AC147: =+IFERROR(VLOOKUP($D147&"_"&1,base!$E$4:$BO$7238,AC$97,FALSE),"") -> 0 | AD147: =+IFERROR(VLOOKUP($D147&"_"&1,base!$E$4:$BO$7238,AD$97,FALSE),"") -> 0 | AE147: =+IFERROR(VLOOKUP($D147&"_"&1,base!$E$4:$BO$7238,AE$97,FALSE),"") -> 0 | AF147: =+IFERROR(VLOOKUP($D147&"_"&1,base!$E$4:$BO$7238,AF$97,FALSE),"") -> 0 | AG147: =+IFERROR(VLOOKUP($D147&"_"&1,base!$E$4:$BO$7238,AG$97,FALSE),"") -> 0 | AH147: =+IFERROR(VLOOKUP($D147&"_"&1,base!$E$4:$BO$7238,AH$97,FALSE),"") -> 0 | AI147: =+IFERROR(VLOOKUP($D147&"_"&1,base!$E$4:$BO$7238,AI$97,FALSE),"") -> 0 | AJ147: =+IFERROR(VLOOKUP($D147&"_"&1,base!$E$4:$BO$7238,AJ$97,FALSE),"") -> 0 | AK147: =+IFERROR(VLOOKUP($D147&"_"&1,base!$E$4:$BO$7238,AK$97,FALSE),"") -> 0 | AL147: =+IFERROR(VLOOKUP($D147&"_"&1,base!$E$4:$BO$7238,AL$97,FALSE),"") -> 0 | AM147: =+IFERROR(VLOOKUP($D147&"_"&1,base!$E$4:$BO$7238,AM$97,FALSE),"") -> 0
B148: 49 | C148: =+IFERROR(VLOOKUP(D148,'tablero nal'!$W$9:$EM$163,121,FALSE),"") -> Financiera | D148: =+IF(HLOOKUP($D$98,'listado indicadores'!$B$3:$AZ$158,$B148,FALSE)="","",HLOOKUP($D$98,'listado indicadores'!$B$3:$AZ$158,$B148,FALSE)) -> PA-50 | E148: =+IFERROR(VLOOKUP(D148,'tablero nal'!$W$9:$X$163,2,FALSE),"") -> Porcentaje de ejecución de PAC Recursos Nación | J148: =+IFERROR(IF(VLOOKUP($D148&"_"&1,base!$E$4:$BO$7238,J$99,FALSE)>1,IF(VLOOKUP($D148&"_"&1,base!$E$4:$BO$7238,J$99,FALSE)>=1000,TEXT(VLOOKUP($D148&"_"&1,base!$E$4:$BO$7238,J$99,FALSE),"0.000"),TEXT(VLOOKUP($D148&"_"&1,base!$E$4:$BO$7238,J$99,FALSE),"0")),TEXT(VLOOKUP($D148&"_"&1,base!$E$4:$BO$7238,J$99,FALSE),"0.0%")),"") -> 100% | K148: =+IFERROR(IF(VLOOKUP($D148&"_"&1,base!$E$4:$BO$7238,K$99,FALSE)>1,IF(VLOOKUP($D148&"_"&1,base!$E$4:$BO$7238,K$99,FALSE)>=1000,TEXT(VLOOKUP($D148&"_"&1,base!$E$4:$BO$7238,K$99,FALSE),"0.000"),TEXT(VLOOKUP($D148&"_"&1,base!$E$4:$BO$7238,K$99,FALSE),"0")),TEXT(VLOOKUP($D148&"_"&1,base!$E$4:$BO$7238,K$99,FALSE),"0.0%")),"") -> 97% | L148: =+IFERROR(VLOOKUP($D148&"_"&1,base!$E$4:$BO$7238,L$99,FALSE),"") -> 0.967 | M148: =+IFERROR(VLOOKUP($D148&"_"&1,base!$E$4:$BO$7238,M$99,FALSE),"") -> ADECUADO | P148: =+IFERROR(VLOOKUP($D148&"_"&1,base!$E$4:$BO$7238,P$97,FALSE),"") -> 0.8875 | Q148: =+IFERROR(VLOOKUP($D148&"_"&1,base!$E$4:$BO$7238,Q$97,FALSE),"") -> ADECUADO | R148: =+IFERROR(VLOOKUP($D148&"_"&1,base!$E$4:$BO$7238,R$97,FALSE),"") -> 0.9333 | S148: =+IFERROR(VLOOKUP($D148&"_"&1,base!$E$4:$BO$7238,S$97,FALSE),"") -> ADECUADO | T148: =+IFERROR(VLOOKUP($D148&"_"&1,base!$E$4:$BO$7238,T$97,FALSE),"") -> 0.967 | U148: =+IFERROR(VLOOKUP($D148&"_"&1,base!$E$4:$BO$7238,U$97,FALSE),"") -> ADECUADO | V148: =+IFERROR(VLOOKUP($D148&"_"&1,base!$E$4:$BO$7238,V$97,FALSE),"") -> 0 | W148: =+IFERROR(VLOOKUP($D148&"_"&1,base!$E$4:$BO$7238,W$97,FALSE),"") -> 0 | X148: =+IFERROR(VLOOKUP($D148&"_"&1,base!$E$4:$BO$7238,X$97,FALSE),"") -> 0 | Y148: =+IFERROR(VLOOKUP($D148&"_"&1,base!$E$4:$BO$7238,Y$97,FALSE),"") -> 0 | Z148: =+IFERROR(VLOOKUP($D148&"_"&1,base!$E$4:$BO$7238,Z$97,FALSE),"") -> 0 | AA148: =+IFERROR(VLOOKUP($D148&"_"&1,base!$E$4:$BO$7238,AA$97,FALSE),"") -> 0 | AB148: =+IFERROR(VLOOKUP($D148&"_"&1,base!$E$4:$BO$7238,AB$97,FALSE),"") -> 0 | AC148: =+IFERROR(VLOOKUP($D148&"_"&1,base!$E$4:$BO$7238,AC$97,FALSE),"") -> 0 | AD148: =+IFERROR(VLOOKUP($D148&"_"&1,base!$E$4:$BO$7238,AD$97,FALSE),"") -> 0 | AE148: =+IFERROR(VLOOKUP($D148&"_"&1,base!$E$4:$BO$7238,AE$97,FALSE),"") -> 0 | AF148: =+IFERROR(VLOOKUP($D148&"_"&1,base!$E$4:$BO$7238,AF$97,FALSE),"") -> 0 | AG148: =+IFERROR(VLOOKUP($D148&"_"&1,base!$E$4:$BO$7238,AG$97,FALSE),"") -> 0 | AH148: =+IFERROR(VLOOKUP($D148&"_"&1,base!$E$4:$BO$7238,AH$97,FALSE),"") -> 0 | AI148: =+IFERROR(VLOOKUP($D148&"_"&1,base!$E$4:$BO$7238,AI$97,FALSE),"") -> 0 | AJ148: =+IFERROR(VLOOKUP($D148&"_"&1,base!$E$4:$BO$7238,AJ$97,FALSE),"") -> 0 | AK148: =+IFERROR(VLOOKUP($D148&"_"&1,base!$E$4:$BO$7238,AK$97,FALSE),"") -> 0 | AL148: =+IFERROR(VLOOKUP($D148&"_"&1,base!$E$4:$BO$7238,AL$97,FALSE),"") -> 0 | AM148: =+IFERROR(VLOOKUP($D148&"_"&1,base!$E$4:$BO$7238,AM$97,FALSE),"") -> 0
B149: 50 | C149: =+IFERROR(VLOOKUP(D149,'tablero nal'!$W$9:$EM$163,121,FALSE),"") -> Financiera | D149: =+IF(HLOOKUP($D$98,'listado indicadores'!$B$3:$AZ$158,$B149,FALSE)="","",HLOOKUP($D$98,'listado indicadores'!$B$3:$AZ$158,$B149,FALSE)) -> PA-51 | E149: =+IFERROR(VLOOKUP(D149,'tablero nal'!$W$9:$X$163,2,FALSE),"") -> Porcentaje de ejecución de PAC Recursos Propios | J149: =+IFERROR(IF(VLOOKUP($D149&"_"&1,base!$E$4:$BO$7238,J$99,FALSE)>1,IF(VLOOKUP($D149&"_"&1,base!$E$4:$BO$7238,J$99,FALSE)>=1000,TEXT(VLOOKUP($D149&"_"&1,base!$E$4:$BO$7238,J$99,FALSE),"0.000"),TEXT(VLOOKUP($D149&"_"&1,base!$E$4:$BO$7238,J$99,FALSE),"0")),TEXT(VLOOKUP($D149&"_"&1,base!$E$4:$BO$7238,J$99,FALSE),"0.0%")),"") -> 100% | K149: =+IFERROR(IF(VLOOKUP($D149&"_"&1,base!$E$4:$BO$7238,K$99,FALSE)>1,IF(VLOOKUP($D149&"_"&1,base!$E$4:$BO$7238,K$99,FALSE)>=1000,TEXT(VLOOKUP($D149&"_"&1,base!$E$4:$BO$7238,K$99,FALSE),"0.000"),TEXT(VLOOKUP($D149&"_"&1,base!$E$4:$BO$7238,K$99,FALSE),"0")),TEXT(VLOOKUP($D149&"_"&1,base!$E$4:$BO$7238,K$99,FALSE),"0.0%")),"") -> 93% | L149: =+IFERROR(VLOOKUP($D149&"_"&1,base!$E$4:$BO$7238,L$99,FALSE),"") -> 0.927 | M149: =+IFERROR(VLOOKUP($D149&"_"&1,base!$E$4:$BO$7238,M$99,FALSE),"") -> ADECUADO | P149: =+IFERROR(VLOOKUP($D149&"_"&1,base!$E$4:$BO$7238,P$97,FALSE),"") -> 1 | Q149: =+IFERROR(VLOOKUP($D149&"_"&1,base!$E$4:$BO$7238,Q$97,FALSE),"") -> OPTIMO | R149: =+IFERROR(VLOOKUP($D149&"_"&1,base!$E$4:$BO$7238,R$97,FALSE),"") -> 0.8466 | S149: =+IFERROR(VLOOKUP($D149&"_"&1,base!$E$4:$BO$7238,S$97,FALSE),"") -> EN RIESGO | T149: =+IFERROR(VLOOKUP($D149&"_"&1,base!$E$4:$BO$7238,T$97,FALSE),"") -> 0.927 | U149: =+IFERROR(VLOOKUP($D149&"_"&1,base!$E$4:$BO$7238,U$97,FALSE),"") -> ADECUADO | V149: =+IFERROR(VLOOKUP($D149&"_"&1,base!$E$4:$BO$7238,V$97,FALSE),"") -> 0 | W149: =+IFERROR(VLOOKUP($D149&"_"&1,base!$E$4:$BO$7238,W$97,FALSE),"") -> 0 | X149: =+IFERROR(VLOOKUP($D149&"_"&1,base!$E$4:$BO$7238,X$97,FALSE),"") -> 0 | Y149: =+IFERROR(VLOOKUP($D149&"_"&1,base!$E$4:$BO$7238,Y$97,FALSE),"") -> 0 | Z149: =+IFERROR(VLOOKUP($D149&"_"&1,base!$E$4:$BO$7238,Z$97,FALSE),"") -> 0 | AA149: =+IFERROR(VLOOKUP($D149&"_"&1,base!$E$4:$BO$7238,AA$97,FALSE),"") -> 0 | AB149: =+IFERROR(VLOOKUP($D149&"_"&1,base!$E$4:$BO$7238,AB$97,FALSE),"") -> 0 | AC149: =+IFERROR(VLOOKUP($D149&"_"&1,base!$E$4:$BO$7238,AC$97,FALSE),"") -> 0 | AD149: =+IFERROR(VLOOKUP($D149&"_"&1,base!$E$4:$BO$7238,AD$97,FALSE),"") -> 0 | AE149: =+IFERROR(VLOOKUP($D149&"_"&1,base!$E$4:$BO$7238,AE$97,FALSE),"") -> 0 | AF149: =+IFERROR(VLOOKUP($D149&"_"&1,base!$E$4:$BO$7238,AF$97,FALSE),"") -> 0 | AG149: =+IFERROR(VLOOKUP($D149&"_"&1,base!$E$4:$BO$7238,AG$97,FALSE),"") -> 0 | AH149: =+IFERROR(VLOOKUP($D149&"_"&1,base!$E$4:$BO$7238,AH$97,FALSE),"") -> 0 | AI149: =+IFERROR(VLOOKUP($D149&"_"&1,base!$E$4:$BO$7238,AI$97,FALSE),"") -> 0 | AJ149: =+IFERROR(VLOOKUP($D149&"_"&1,base!$E$4:$BO$7238,AJ$97,FALSE),"") -> 0 | AK149: =+IFERROR(VLOOKUP($D149&"_"&1,base!$E$4:$BO$7238,AK$97,FALSE),"") -> 0 | AL149: =+IFERROR(VLOOKUP($D149&"_"&1,base!$E$4:$BO$7238,AL$97,FALSE),"") -> 0 | AM149: =+IFERROR(VLOOKUP($D149&"_"&1,base!$E$4:$BO$7238,AM$97,FALSE),"") -> 0
B150: 51 | C150: =+IFERROR(VLOOKUP(D150,'tablero nal'!$W$9:$EM$163,121,FALSE),"") -> Control Interno Disciplinario | D150: =+IF(HLOOKUP($D$98,'listado indicadores'!$B$3:$AZ$158,$B150,FALSE)="","",HLOOKUP($D$98,'listado indicadores'!$B$3:$AZ$158,$B150,FALSE)) -> PA-52 | E150: =+IFERROR(VLOOKUP(D150,'tablero nal'!$W$9:$X$163,2,FALSE),"") -> Porcentaje de quejas disciplinarias de vigencias anteriores tramitadas | J150: =+IFERROR(IF(VLOOKUP($D150&"_"&1,base!$E$4:$BO$7238,J$99,FALSE)>1,IF(VLOOKUP($D150&"_"&1,base!$E$4:$BO$7238,J$99,FALSE)>=1000,TEXT(VLOOKUP($D150&"_"&1,base!$E$4:$BO$7238,J$99,FALSE),"0.000"),TEXT(VLOOKUP($D150&"_"&1,base!$E$4:$BO$7238,J$99,FALSE),"0")),TEXT(VLOOKUP($D150&"_"&1,base!$E$4:$BO$7238,J$99,FALSE),"0.0%")),"") -> 85% | K150: =+IFERROR(IF(VLOOKUP($D150&"_"&1,base!$E$4:$BO$7238,K$99,FALSE)>1,IF(VLOOKUP($D150&"_"&1,base!$E$4:$BO$7238,K$99,FALSE)>=1000,TEXT(VLOOKUP($D150&"_"&1,base!$E$4:$BO$7238,K$99,FALSE),"0.000"),TEXT(VLOOKUP($D150&"_"&1,base!$E$4:$BO$7238,K$99,FALSE),"0")),TEXT(VLOOKUP($D150&"_"&1,base!$E$4:$BO$7238,K$99,FALSE),"0.0%")),"") -> 50% | L150: =+IFERROR(VLOOKUP($D150&"_"&1,base!$E$4:$BO$7238,L$99,FALSE),"") -> 0.497 | M150: =+IFERROR(VLOOKUP($D150&"_"&1,base!$E$4:$BO$7238,M$99,FALSE),"") -> OPTIMO | P150: =+IFERROR(VLOOKUP($D150&"_"&1,base!$E$4:$BO$7238,P$97,FALSE),"") -> NA | Q150: =+IFERROR(VLOOKUP($D150&"_"&1,base!$E$4:$BO$7238,Q$97,FALSE),"") -> NA | R150: =+IFERROR(VLOOKUP($D150&"_"&1,base!$E$4:$BO$7238,R$97,FALSE),"") -> NA | S150: =+IFERROR(VLOOKUP($D150&"_"&1,base!$E$4:$BO$7238,S$97,FALSE),"") -> NA | T150: =+IFERROR(VLOOKUP($D150&"_"&1,base!$E$4:$BO$7238,T$97,FALSE),"") -> 0.497 | U150: =+IFERROR(VLOOKUP($D150&"_"&1,base!$E$4:$BO$7238,U$97,FALSE),"") -> OPTIMO | V150: =+IFERROR(VLOOKUP($D150&"_"&1,base!$E$4:$BO$7238,V$97,FALSE),"") -> 0 | W150: =+IFERROR(VLOOKUP($D150&"_"&1,base!$E$4:$BO$7238,W$97,FALSE),"") -> 0 | X150: =+IFERROR(VLOOKUP($D150&"_"&1,base!$E$4:$BO$7238,X$97,FALSE),"") -> 0 | Y150: =+IFERROR(VLOOKUP($D150&"_"&1,base!$E$4:$BO$7238,Y$97,FALSE),"") -> 0 | Z150: =+IFERROR(VLOOKUP($D150&"_"&1,base!$E$4:$BO$7238,Z$97,FALSE),"") -> 0 | AA150: =+IFERROR(VLOOKUP($D150&"_"&1,base!$E$4:$BO$7238,AA$97,FALSE),"") -> 0 | AB150: =+IFERROR(VLOOKUP($D150&"_"&1,base!$E$4:$BO$7238,AB$97,FALSE),"") -> 0 | AC150: =+IFERROR(VLOOKUP($D150&"_"&1,base!$E$4:$BO$7238,AC$97,FALSE),"") -> 0 | AD150: =+IFERROR(VLOOKUP($D150&"_"&1,base!$E$4:$BO$7238,AD$97,FALSE),"") -> 0 | AE150: =+IFERROR(VLOOKUP($D150&"_"&1,base!$E$4:$BO$7238,AE$97,FALSE),"") -> 0 | AF150: =+IFERROR(VLOOKUP($D150&"_"&1,base!$E$4:$BO$7238,AF$97,FALSE),"") -> 0 | AG150: =+IFERROR(VLOOKUP($D150&"_"&1,base!$E$4:$BO$7238,AG$97,FALSE),"") -> 0 | AH150: =+IFERROR(VLOOKUP($D150&"_"&1,base!$E$4:$BO$7238,AH$97,FALSE),"") -> 0 | AI150: =+IFERROR(VLOOKUP($D150&"_"&1,base!$E$4:$BO$7238,AI$97,FALSE),"") -> 0 | AJ150: =+IFERROR(VLOOKUP($D150&"_"&1,base!$E$4:$BO$7238,AJ$97,FALSE),"") -> 0 | AK150: =+IFERROR(VLOOKUP($D150&"_"&1,base!$E$4:$BO$7238,AK$97,FALSE),"") -> 0 | AL150: =+IFERROR(VLOOKUP($D150&"_"&1,base!$E$4:$BO$7238,AL$97,FALSE),"") -> 0 | AM150: =+IFERROR(VLOOKUP($D150&"_"&1,base!$E$4:$BO$7238,AM$97,FALSE),"") -> 0
B151: 52 | C151: =+IFERROR(VLOOKUP(D151,'tablero nal'!$W$9:$EM$163,121,FALSE),"") -> Abastecimiento | D151: =+IF(HLOOKUP($D$98,'listado indicadores'!$B$3:$AZ$158,$B151,FALSE)="","",HLOOKUP($D$98,'listado indicadores'!$B$3:$AZ$158,$B151,FALSE)) -> PA-53 | E151: =+IFERROR(VLOOKUP(D151,'tablero nal'!$W$9:$X$163,2,FALSE),"") -> Número de Regionales que implementan la Estrategia de Compras Locales y Compras Eficientes | J151: =+IFERROR(IF(VLOOKUP($D151&"_"&1,base!$E$4:$BO$7238,J$99,FALSE)>1,IF(VLOOKUP($D151&"_"&1,base!$E$4:$BO$7238,J$99,FALSE)>=1000,TEXT(VLOOKUP($D151&"_"&1,base!$E$4:$BO$7238,J$99,FALSE),"0.000"),TEXT(VLOOKUP($D151&"_"&1,base!$E$4:$BO$7238,J$99,FALSE),"0")),TEXT(VLOOKUP($D151&"_"&1,base!$E$4:$BO$7238,J$99,FALSE),"0.0%")),"") -> 14 | K151: =+IFERROR(IF(VLOOKUP($D151&"_"&1,base!$E$4:$BO$7238,K$99,FALSE)>1,IF(VLOOKUP($D151&"_"&1,base!$E$4:$BO$7238,K$99,FALSE)>=1000,TEXT(VLOOKUP($D151&"_"&1,base!$E$4:$BO$7238,K$99,FALSE),"0.000"),TEXT(VLOOKUP($D151&"_"&1,base!$E$4:$BO$7238,K$99,FALSE),"0")),TEXT(VLOOKUP($D151&"_"&1,base!$E$4:$BO$7238,K$99,FALSE),"0.0%")),"") -> 8 | L151: =+IFERROR(VLOOKUP($D151&"_"&1,base!$E$4:$BO$7238,L$99,FALSE),"") -> 0.571 | M151: =+IFERROR(VLOOKUP($D151&"_"&1,base!$E$4:$BO$7238,M$99,FALSE),"") -> CRITICO | P151: =+IFERROR(VLOOKUP($D151&"_"&1,base!$E$4:$BO$7238,P$97,FALSE),"") -> NA | Q151: =+IFERROR(VLOOKUP($D151&"_"&1,base!$E$4:$BO$7238,Q$97,FALSE),"") -> NA | R151: =+IFERROR(VLOOKUP($D151&"_"&1,base!$E$4:$BO$7238,R$97,FALSE),"") -> NA | S151: =+IFERROR(VLOOKUP($D151&"_"&1,base!$E$4:$BO$7238,S$97,FALSE),"") -> NA | T151: =+IFERROR(VLOOKUP($D151&"_"&1,base!$E$4:$BO$7238,T$97,FALSE),"") -> 0.571 | U151: =+IFERROR(VLOOKUP($D151&"_"&1,base!$E$4:$BO$7238,U$97,FALSE),"") -> CRITICO | V151: =+IFERROR(VLOOKUP($D151&"_"&1,base!$E$4:$BO$7238,V$97,FALSE),"") -> 0 | W151: =+IFERROR(VLOOKUP($D151&"_"&1,base!$E$4:$BO$7238,W$97,FALSE),"") -> 0 | X151: =+IFERROR(VLOOKUP($D151&"_"&1,base!$E$4:$BO$7238,X$97,FALSE),"") -> 0 | Y151: =+IFERROR(VLOOKUP($D151&"_"&1,base!$E$4:$BO$7238,Y$97,FALSE),"") -> 0 | Z151: =+IFERROR(VLOOKUP($D151&"_"&1,base!$E$4:$BO$7238,Z$97,FALSE),"") -> 0 | AA151: =+IFERROR(VLOOKUP($D151&"_"&1,base!$E$4:$BO$7238,AA$97,FALSE),"") -> 0 | AB151: =+IFERROR(VLOOKUP($D151&"_"&1,base!$E$4:$BO$7238,AB$97,FALSE),"") -> 0 | AC151: =+IFERROR(VLOOKUP($D151&"_"&1,base!$E$4:$BO$7238,AC$97,FALSE),"") -> 0 | AD151: =+IFERROR(VLOOKUP($D151&"_"&1,base!$E$4:$BO$7238,AD$97,FALSE),"") -> 0 | AE151: =+IFERROR(VLOOKUP($D151&"_"&1,base!$E$4:$BO$7238,AE$97,FALSE),"") -> 0 | AF151: =+IFERROR(VLOOKUP($D151&"_"&1,base!$E$4:$BO$7238,AF$97,FALSE),"") -> 0 | AG151: =+IFERROR(VLOOKUP($D151&"_"&1,base!$E$4:$BO$7238,AG$97,FALSE),"") -> 0 | AH151: =+IFERROR(VLOOKUP($D151&"_"&1,base!$E$4:$BO$7238,AH$97,FALSE),"") -> 0 | AI151: =+IFERROR(VLOOKUP($D151&"_"&1,base!$E$4:$BO$7238,AI$97,FALSE),"") -> 0 | AJ151: =+IFERROR(VLOOKUP($D151&"_"&1,base!$E$4:$BO$7238,AJ$97,FALSE),"") -> 0 | AK151: =+IFERROR(VLOOKUP($D151&"_"&1,base!$E$4:$BO$7238,AK$97,FALSE),"") -> 0 | AL151: =+IFERROR(VLOOKUP($D151&"_"&1,base!$E$4:$BO$7238,AL$97,FALSE),"") -> 0 | AM151: =+IFERROR(VLOOKUP($D151&"_"&1,base!$E$4:$BO$7238,AM$97,FALSE),"") -> 0
B152: 53 | C152: =+IFERROR(VLOOKUP(D152,'tablero nal'!$W$9:$EM$163,121,FALSE),"") -> Abastecimiento | D152: =+IF(HLOOKUP($D$98,'listado indicadores'!$B$3:$AZ$158,$B152,FALSE)="","",HLOOKUP($D$98,'listado indicadores'!$B$3:$AZ$158,$B152,FALSE)) -> PA-54 | E152: =+IFERROR(VLOOKUP(D152,'tablero nal'!$W$9:$X$163,2,FALSE),"") -> Número de modalidades de atención del ICBF que cuentan con modelos de costos. | J152: =+IFERROR(IF(VLOOKUP($D152&"_"&1,base!$E$4:$BO$7238,J$99,FALSE)>1,IF(VLOOKUP($D152&"_"&1,base!$E$4:$BO$7238,J$99,FALSE)>=1000,TEXT(VLOOKUP($D152&"_"&1,base!$E$4:$BO$7238,J$99,FALSE),"0.000"),TEXT(VLOOKUP($D152&"_"&1,base!$E$4:$BO$7238,J$99,FALSE),"0")),TEXT(VLOOKUP($D152&"_"&1,base!$E$4:$BO$7238,J$99,FALSE),"0.0%")),"") -> 79 | K152: =+IFERROR(IF(VLOOKUP($D152&"_"&1,base!$E$4:$BO$7238,K$99,FALSE)>1,IF(VLOOKUP($D152&"_"&1,base!$E$4:$BO$7238,K$99,FALSE)>=1000,TEXT(VLOOKUP($D152&"_"&1,base!$E$4:$BO$7238,K$99,FALSE),"0.000"),TEXT(VLOOKUP($D152&"_"&1,base!$E$4:$BO$7238,K$99,FALSE),"0")),TEXT(VLOOKUP($D152&"_"&1,base!$E$4:$BO$7238,K$99,FALSE),"0.0%")),"") -> 72 | L152: =+IFERROR(VLOOKUP($D152&"_"&1,base!$E$4:$BO$7238,L$99,FALSE),"") -> 0.911 | M152: =+IFERROR(VLOOKUP($D152&"_"&1,base!$E$4:$BO$7238,M$99,FALSE),"") -> ADECUADO | P152: =+IFERROR(VLOOKUP($D152&"_"&1,base!$E$4:$BO$7238,P$97,FALSE),"") -> NA | Q152: =+IFERROR(VLOOKUP($D152&"_"&1,base!$E$4:$BO$7238,Q$97,FALSE),"") -> NA | R152: =+IFERROR(VLOOKUP($D152&"_"&1,base!$E$4:$BO$7238,R$97,FALSE),"") -> NA | S152: =+IFERROR(VLOOKUP($D152&"_"&1,base!$E$4:$BO$7238,S$97,FALSE),"") -> NA | T152: =+IFERROR(VLOOKUP($D152&"_"&1,base!$E$4:$BO$7238,T$97,FALSE),"") -> 0.911 | U152: =+IFERROR(VLOOKUP($D152&"_"&1,base!$E$4:$BO$7238,U$97,FALSE),"") -> ADECUADO | V152: =+IFERROR(VLOOKUP($D152&"_"&1,base!$E$4:$BO$7238,V$97,FALSE),"") -> 0 | W152: =+IFERROR(VLOOKUP($D152&"_"&1,base!$E$4:$BO$7238,W$97,FALSE),"") -> 0 | X152: =+IFERROR(VLOOKUP($D152&"_"&1,base!$E$4:$BO$7238,X$97,FALSE),"") -> 0 | Y152: =+IFERROR(VLOOKUP($D152&"_"&1,base!$E$4:$BO$7238,Y$97,FALSE),"") -> 0 | Z152: =+IFERROR(VLOOKUP($D152&"_"&1,base!$E$4:$BO$7238,Z$97,FALSE),"") -> 0 | AA152: =+IFERROR(VLOOKUP($D152&"_"&1,base!$E$4:$BO$7238,AA$97,FALSE),"") -> 0 | AB152: =+IFERROR(VLOOKUP($D152&"_"&1,base!$E$4:$BO$7238,AB$97,FALSE),"") -> 0 | AC152: =+IFERROR(VLOOKUP($D152&"_"&1,base!$E$4:$BO$7238,AC$97,FALSE),"") -> 0 | AD152: =+IFERROR(VLOOKUP($D152&"_"&1,base!$E$4:$BO$7238,AD$97,FALSE),"") -> 0 | AE152: =+IFERROR(VLOOKUP($D152&"_"&1,base!$E$4:$BO$7238,AE$97,FALSE),"") -> 0 | AF152: =+IFERROR(VLOOKUP($D152&"_"&1,base!$E$4:$BO$7238,AF$97,FALSE),"") -> 0 | AG152: =+IFERROR(VLOOKUP($D152&"_"&1,base!$E$4:$BO$7238,AG$97,FALSE),"") -> 0 | AH152: =+IFERROR(VLOOKUP($D152&"_"&1,base!$E$4:$BO$7238,AH$97,FALSE),"") -> 0 | AI152: =+IFERROR(VLOOKUP($D152&"_"&1,base!$E$4:$BO$7238,AI$97,FALSE),"") -> 0 | AJ152: =+IFERROR(VLOOKUP($D152&"_"&1,base!$E$4:$BO$7238,AJ$97,FALSE),"") -> 0 | AK152: =+IFERROR(VLOOKUP($D152&"_"&1,base!$E$4:$BO$7238,AK$97,FALSE),"") -> 0 | AL152: =+IFERROR(VLOOKUP($D152&"_"&1,base!$E$4:$BO$7238,AL$97,FALSE),"") -> 0 | AM152: =+IFERROR(VLOOKUP($D152&"_"&1,base!$E$4:$BO$7238,AM$97,FALSE),"") -> 0
B153: 54 | C153: =+IFERROR(VLOOKUP(D153,'tablero nal'!$W$9:$EM$163,121,FALSE),"") -> Administrativa | D153: =+IF(HLOOKUP($D$98,'listado indicadores'!$B$3:$AZ$158,$B153,FALSE)="","",HLOOKUP($D$98,'listado indicadores'!$B$3:$AZ$158,$B153,FALSE)) -> PA-56 | E153: =+IFERROR(VLOOKUP(D153,'tablero nal'!$W$9:$X$163,2,FALSE),"") -> Porcentaje de cumplimiento en el diseño e implementación del PLAN MAESTRO DE INFRAESTRUCTURA | J153: =+IFERROR(IF(VLOOKUP($D153&"_"&1,base!$E$4:$BO$7238,J$99,FALSE)>1,IF(VLOOKUP($D153&"_"&1,base!$E$4:$BO$7238,J$99,FALSE)>=1000,TEXT(VLOOKUP($D153&"_"&1,base!$E$4:$BO$7238,J$99,FALSE),"0.000"),TEXT(VLOOKUP($D153&"_"&1,base!$E$4:$BO$7238,J$99,FALSE),"0")),TEXT(VLOOKUP($D153&"_"&1,base!$E$4:$BO$7238,J$99,FALSE),"0.0%")),"") -> 50% | K153: =+IFERROR(IF(VLOOKUP($D153&"_"&1,base!$E$4:$BO$7238,K$99,FALSE)>1,IF(VLOOKUP($D153&"_"&1,base!$E$4:$BO$7238,K$99,FALSE)>=1000,TEXT(VLOOKUP($D153&"_"&1,base!$E$4:$BO$7238,K$99,FALSE),"0.000"),TEXT(VLOOKUP($D153&"_"&1,base!$E$4:$BO$7238,K$99,FALSE),"0")),TEXT(VLOOKUP($D153&"_"&1,base!$E$4:$BO$7238,K$99,FALSE),"0.0%")),"") -> 17% | L153: =+IFERROR(VLOOKUP($D153&"_"&1,base!$E$4:$BO$7238,L$99,FALSE),"") -> 0.171 | M153: =+IFERROR(VLOOKUP($D153&"_"&1,base!$E$4:$BO$7238,M$99,FALSE),"") -> CRITICO | P153: =+IFERROR(VLOOKUP($D153&"_"&1,base!$E$4:$BO$7238,P$97,FALSE),"") -> NA | Q153: =+IFERROR(VLOOKUP($D153&"_"&1,base!$E$4:$BO$7238,Q$97,FALSE),"") -> NA | R153: =+IFERROR(VLOOKUP($D153&"_"&1,base!$E$4:$BO$7238,R$97,FALSE),"") -> NA | S153: =+IFERROR(VLOOKUP($D153&"_"&1,base!$E$4:$BO$7238,S$97,FALSE),"") -> NA | T153: =+IFERROR(VLOOKUP($D153&"_"&1,base!$E$4:$BO$7238,T$97,FALSE),"") -> 0.171 | U153: =+IFERROR(VLOOKUP($D153&"_"&1,base!$E$4:$BO$7238,U$97,FALSE),"") -> CRITICO | V153: =+IFERROR(VLOOKUP($D153&"_"&1,base!$E$4:$BO$7238,V$97,FALSE),"") -> 0 | W153: =+IFERROR(VLOOKUP($D153&"_"&1,base!$E$4:$BO$7238,W$97,FALSE),"") -> 0 | X153: =+IFERROR(VLOOKUP($D153&"_"&1,base!$E$4:$BO$7238,X$97,FALSE),"") -> 0 | Y153: =+IFERROR(VLOOKUP($D153&"_"&1,base!$E$4:$BO$7238,Y$97,FALSE),"") -> 0 | Z153: =+IFERROR(VLOOKUP($D153&"_"&1,base!$E$4:$BO$7238,Z$97,FALSE),"") -> 0 | AA153: =+IFERROR(VLOOKUP($D153&"_"&1,base!$E$4:$BO$7238,AA$97,FALSE),"") -> 0 | AB153: =+IFERROR(VLOOKUP($D153&"_"&1,base!$E$4:$BO$7238,AB$97,FALSE),"") -> 0 | AC153: =+IFERROR(VLOOKUP($D153&"_"&1,base!$E$4:$BO$7238,AC$97,FALSE),"") -> 0 | AD153: =+IFERROR(VLOOKUP($D153&"_"&1,base!$E$4:$BO$7238,AD$97,FALSE),"") -> 0 | AE153: =+IFERROR(VLOOKUP($D153&"_"&1,base!$E$4:$BO$7238,AE$97,FALSE),"") -> 0 | AF153: =+IFERROR(VLOOKUP($D153&"_"&1,base!$E$4:$BO$7238,AF$97,FALSE),"") -> 0 | AG153: =+IFERROR(VLOOKUP($D153&"_"&1,base!$E$4:$BO$7238,AG$97,FALSE),"") -> 0 | AH153: =+IFERROR(VLOOKUP($D153&"_"&1,base!$E$4:$BO$7238,AH$97,FALSE),"") -> 0 | AI153: =+IFERROR(VLOOKUP($D153&"_"&1,base!$E$4:$BO$7238,AI$97,FALSE),"") -> 0 | AJ153: =+IFERROR(VLOOKUP($D153&"_"&1,base!$E$4:$BO$7238,AJ$97,FALSE),"") -> 0 | AK153: =+IFERROR(VLOOKUP($D153&"_"&1,base!$E$4:$BO$7238,AK$97,FALSE),"") -> 0 | AL153: =+IFERROR(VLOOKUP($D153&"_"&1,base!$E$4:$BO$7238,AL$97,FALSE),"") -> 0 | AM153: =+IFERROR(VLOOKUP($D153&"_"&1,base!$E$4:$BO$7238,AM$97,FALSE),"") -> 0
B154: 55 | C154: =+IFERROR(VLOOKUP(D154,'tablero nal'!$W$9:$EM$163,121,FALSE),"") -> Administrativa | D154: =+IF(HLOOKUP($D$98,'listado indicadores'!$B$3:$AZ$158,$B154,FALSE)="","",HLOOKUP($D$98,'listado indicadores'!$B$3:$AZ$158,$B154,FALSE)) -> PA-57 | E154: =+IFERROR(VLOOKUP(D154,'tablero nal'!$W$9:$X$163,2,FALSE),"") -> Porcentaje de cumplimiento en el diseño e implementación de un modelo de gestión administrativa | J154: =+IFERROR(IF(VLOOKUP($D154&"_"&1,base!$E$4:$BO$7238,J$99,FALSE)>1,IF(VLOOKUP($D154&"_"&1,base!$E$4:$BO$7238,J$99,FALSE)>=1000,TEXT(VLOOKUP($D154&"_"&1,base!$E$4:$BO$7238,J$99,FALSE),"0.000"),TEXT(VLOOKUP($D154&"_"&1,base!$E$4:$BO$7238,J$99,FALSE),"0")),TEXT(VLOOKUP($D154&"_"&1,base!$E$4:$BO$7238,J$99,FALSE),"0.0%")),"") -> 50% | K154: =+IFERROR(IF(VLOOKUP($D154&"_"&1,base!$E$4:$BO$7238,K$99,FALSE)>1,IF(VLOOKUP($D154&"_"&1,base!$E$4:$BO$7238,K$99,FALSE)>=1000,TEXT(VLOOKUP($D154&"_"&1,base!$E$4:$BO$7238,K$99,FALSE),"0.000"),TEXT(VLOOKUP($D154&"_"&1,base!$E$4:$BO$7238,K$99,FALSE),"0")),TEXT(VLOOKUP($D154&"_"&1,base!$E$4:$BO$7238,K$99,FALSE),"0.0%")),"") -> NA | L154: =+IFERROR(VLOOKUP($D154&"_"&1,base!$E$4:$BO$7238,L$99,FALSE),"") -> NA | M154: =+IFERROR(VLOOKUP($D154&"_"&1,base!$E$4:$BO$7238,M$99,FALSE),"") -> NA | P154: =+IFERROR(VLOOKUP($D154&"_"&1,base!$E$4:$BO$7238,P$97,FALSE),"") -> NA | Q154: =+IFERROR(VLOOKUP($D154&"_"&1,base!$E$4:$BO$7238,Q$97,FALSE),"") -> NA | R154: =+IFERROR(VLOOKUP($D154&"_"&1,base!$E$4:$BO$7238,R$97,FALSE),"") -> NA | S154: =+IFERROR(VLOOKUP($D154&"_"&1,base!$E$4:$BO$7238,S$97,FALSE),"") -> NA | T154: =+IFERROR(VLOOKUP($D154&"_"&1,base!$E$4:$BO$7238,T$97,FALSE),"") -> NA | U154: =+IFERROR(VLOOKUP($D154&"_"&1,base!$E$4:$BO$7238,U$97,FALSE),"") -> NA | V154: =+IFERROR(VLOOKUP($D154&"_"&1,base!$E$4:$BO$7238,V$97,FALSE),"") -> 0 | W154: =+IFERROR(VLOOKUP($D154&"_"&1,base!$E$4:$BO$7238,W$97,FALSE),"") -> 0 | X154: =+IFERROR(VLOOKUP($D154&"_"&1,base!$E$4:$BO$7238,X$97,FALSE),"") -> 0 | Y154: =+IFERROR(VLOOKUP($D154&"_"&1,base!$E$4:$BO$7238,Y$97,FALSE),"") -> 0 | Z154: =+IFERROR(VLOOKUP($D154&"_"&1,base!$E$4:$BO$7238,Z$97,FALSE),"") -> 0 | AA154: =+IFERROR(VLOOKUP($D154&"_"&1,base!$E$4:$BO$7238,AA$97,FALSE),"") -> 0 | AB154: =+IFERROR(VLOOKUP($D154&"_"&1,base!$E$4:$BO$7238,AB$97,FALSE),"") -> 0 | AC154: =+IFERROR(VLOOKUP($D154&"_"&1,base!$E$4:$BO$7238,AC$97,FALSE),"") -> 0 | AD154: =+IFERROR(VLOOKUP($D154&"_"&1,base!$E$4:$BO$7238,AD$97,FALSE),"") -> 0 | AE154: =+IFERROR(VLOOKUP($D154&"_"&1,base!$E$4:$BO$7238,AE$97,FALSE),"") -> 0 | AF154: =+IFERROR(VLOOKUP($D154&"_"&1,base!$E$4:$BO$7238,AF$97,FALSE),"") -> 0 | AG154: =+IFERROR(VLOOKUP($D154&"_"&1,base!$E$4:$BO$7238,AG$97,FALSE),"") -> 0 | AH154: =+IFERROR(VLOOKUP($D154&"_"&1,base!$E$4:$BO$7238,AH$97,FALSE),"") -> 0 | AI154: =+IFERROR(VLOOKUP($D154&"_"&1,base!$E$4:$BO$7238,AI$97,FALSE),"") -> 0 | AJ154: =+IFERROR(VLOOKUP($D154&"_"&1,base!$E$4:$BO$7238,AJ$97,FALSE),"") -> 0 | AK154: =+IFERROR(VLOOKUP($D154&"_"&1,base!$E$4:$BO$7238,AK$97,FALSE),"") -> 0 | AL154: =+IFERROR(VLOOKUP($D154&"_"&1,base!$E$4:$BO$7238,AL$97,FALSE),"") -> 0 | AM154: =+IFERROR(VLOOKUP($D154&"_"&1,base!$E$4:$BO$7238,AM$97,FALSE),"") -> 0
B155: 56 | C155: =+IFERROR(VLOOKUP(D155,'tablero nal'!$W$9:$EM$163,121,FALSE),"") -> Administrativa | D155: =+IF(HLOOKUP($D$98,'listado indicadores'!$B$3:$AZ$158,$B155,FALSE)="","",HLOOKUP($D$98,'listado indicadores'!$B$3:$AZ$158,$B155,FALSE)) -> PA-58 | E155: =+IFERROR(VLOOKUP(D155,'tablero nal'!$W$9:$X$163,2,FALSE),"") -> Porcentaje de avance de la gestión para la realización de Estudios y Diseños | J155: =+IFERROR(IF(VLOOKUP($D155&"_"&1,base!$E$4:$BO$7238,J$99,FALSE)>1,IF(VLOOKUP($D155&"_"&1,base!$E$4:$BO$7238,J$99,FALSE)>=1000,TEXT(VLOOKUP($D155&"_"&1,base!$E$4:$BO$7238,J$99,FALSE),"0.000"),TEXT(VLOOKUP($D155&"_"&1,base!$E$4:$BO$7238,J$99,FALSE),"0")),TEXT(VLOOKUP($D155&"_"&1,base!$E$4:$BO$7238,J$99,FALSE),"0.0%")),"") -> 85% | K155: =+IFERROR(IF(VLOOKUP($D155&"_"&1,base!$E$4:$BO$7238,K$99,FALSE)>1,IF(VLOOKUP($D155&"_"&1,base!$E$4:$BO$7238,K$99,FALSE)>=1000,TEXT(VLOOKUP($D155&"_"&1,base!$E$4:$BO$7238,K$99,FALSE),"0.000"),TEXT(VLOOKUP($D155&"_"&1,base!$E$4:$BO$7238,K$99,FALSE),"0")),TEXT(VLOOKUP($D155&"_"&1,base!$E$4:$BO$7238,K$99,FALSE),"0.0%")),"") -> NA | L155: =+IFERROR(VLOOKUP($D155&"_"&1,base!$E$4:$BO$7238,L$99,FALSE),"") -> NA | M155: =+IFERROR(VLOOKUP($D155&"_"&1,base!$E$4:$BO$7238,M$99,FALSE),"") -> NA | P155: =+IFERROR(VLOOKUP($D155&"_"&1,base!$E$4:$BO$7238,P$97,FALSE),"") -> NA | Q155: =+IFERROR(VLOOKUP($D155&"_"&1,base!$E$4:$BO$7238,Q$97,FALSE),"") -> NA | R155: =+IFERROR(VLOOKUP($D155&"_"&1,base!$E$4:$BO$7238,R$97,FALSE),"") -> NA | S155: =+IFERROR(VLOOKUP($D155&"_"&1,base!$E$4:$BO$7238,S$97,FALSE),"") -> NA | T155: =+IFERROR(VLOOKUP($D155&"_"&1,base!$E$4:$BO$7238,T$97,FALSE),"") -> NA | U155: =+IFERROR(VLOOKUP($D155&"_"&1,base!$E$4:$BO$7238,U$97,FALSE),"") -> NA | V155: =+IFERROR(VLOOKUP($D155&"_"&1,base!$E$4:$BO$7238,V$97,FALSE),"") -> 0 | W155: =+IFERROR(VLOOKUP($D155&"_"&1,base!$E$4:$BO$7238,W$97,FALSE),"") -> 0 | X155: =+IFERROR(VLOOKUP($D155&"_"&1,base!$E$4:$BO$7238,X$97,FALSE),"") -> 0 | Y155: =+IFERROR(VLOOKUP($D155&"_"&1,base!$E$4:$BO$7238,Y$97,FALSE),"") -> 0 | Z155: =+IFERROR(VLOOKUP($D155&"_"&1,base!$E$4:$BO$7238,Z$97,FALSE),"") -> 0 | AA155: =+IFERROR(VLOOKUP($D155&"_"&1,base!$E$4:$BO$7238,AA$97,FALSE),"") -> 0 | AB155: =+IFERROR(VLOOKUP($D155&"_"&1,base!$E$4:$BO$7238,AB$97,FALSE),"") -> 0 | AC155: =+IFERROR(VLOOKUP($D155&"_"&1,base!$E$4:$BO$7238,AC$97,FALSE),"") -> 0 | AD155: =+IFERROR(VLOOKUP($D155&"_"&1,base!$E$4:$BO$7238,AD$97,FALSE),"") -> 0 | AE155: =+IFERROR(VLOOKUP($D155&"_"&1,base!$E$4:$BO$7238,AE$97,FALSE),"") -> 0 | AF155: =+IFERROR(VLOOKUP($D155&"_"&1,base!$E$4:$BO$7238,AF$97,FALSE),"") -> 0 | AG155: =+IFERROR(VLOOKUP($D155&"_"&1,base!$E$4:$BO$7238,AG$97,FALSE),"") -> 0 | AH155: =+IFERROR(VLOOKUP($D155&"_"&1,base!$E$4:$BO$7238,AH$97,FALSE),"") -> 0 | AI155: =+IFERROR(VLOOKUP($D155&"_"&1,base!$E$4:$BO$7238,AI$97,FALSE),"") -> 0 | AJ155: =+IFERROR(VLOOKUP($D155&"_"&1,base!$E$4:$BO$7238,AJ$97,FALSE),"") -> 0 | AK155: =+IFERROR(VLOOKUP($D155&"_"&1,base!$E$4:$BO$7238,AK$97,FALSE),"") -> 0 | AL155: =+IFERROR(VLOOKUP($D155&"_"&1,base!$E$4:$BO$7238,AL$97,FALSE),"") -> 0 | AM155: =+IFERROR(VLOOKUP($D155&"_"&1,base!$E$4:$BO$7238,AM$97,FALSE),"") -> 0
B156: 57 | C156: =+IFERROR(VLOOKUP(D156,'tablero nal'!$W$9:$EM$163,121,FALSE),"") -> Administrativa | D156: =+IF(HLOOKUP($D$98,'listado indicadores'!$B$3:$AZ$158,$B156,FALSE)="","",HLOOKUP($D$98,'listado indicadores'!$B$3:$AZ$158,$B156,FALSE)) -> PA-60 | E156: =+IFERROR(VLOOKUP(D156,'tablero nal'!$W$9:$X$163,2,FALSE),"") -> Porcentaje de implementación de la estrategia Cero Papel | J156: =+IFERROR(IF(VLOOKUP($D156&"_"&1,base!$E$4:$BO$7238,J$99,FALSE)>1,IF(VLOOKUP($D156&"_"&1,base!$E$4:$BO$7238,J$99,FALSE)>=1000,TEXT(VLOOKUP($D156&"_"&1,base!$E$4:$BO$7238,J$99,FALSE),"0.000"),TEXT(VLOOKUP($D156&"_"&1,base!$E$4:$BO$7238,J$99,FALSE),"0")),TEXT(VLOOKUP($D156&"_"&1,base!$E$4:$BO$7238,J$99,FALSE),"0.0%")),"") -> 60% | K156: =+IFERROR(IF(VLOOKUP($D156&"_"&1,base!$E$4:$BO$7238,K$99,FALSE)>1,IF(VLOOKUP($D156&"_"&1,base!$E$4:$BO$7238,K$99,FALSE)>=1000,TEXT(VLOOKUP($D156&"_"&1,base!$E$4:$BO$7238,K$99,FALSE),"0.000"),TEXT(VLOOKUP($D156&"_"&1,base!$E$4:$BO$7238,K$99,FALSE),"0")),TEXT(VLOOKUP($D156&"_"&1,base!$E$4:$BO$7238,K$99,FALSE),"0.0%")),"") -> NA | L156: =+IFERROR(VLOOKUP($D156&"_"&1,base!$E$4:$BO$7238,L$99,FALSE),"") -> NA | M156: =+IFERROR(VLOOKUP($D156&"_"&1,base!$E$4:$BO$7238,M$99,FALSE),"") -> NA | P156: =+IFERROR(VLOOKUP($D156&"_"&1,base!$E$4:$BO$7238,P$97,FALSE),"") -> NA | Q156: =+IFERROR(VLOOKUP($D156&"_"&1,base!$E$4:$BO$7238,Q$97,FALSE),"") -> NA | R156: =+IFERROR(VLOOKUP($D156&"_"&1,base!$E$4:$BO$7238,R$97,FALSE),"") -> NA | S156: =+IFERROR(VLOOKUP($D156&"_"&1,base!$E$4:$BO$7238,S$97,FALSE),"") -> NA | T156: =+IFERROR(VLOOKUP($D156&"_"&1,base!$E$4:$BO$7238,T$97,FALSE),"") -> NA | U156: =+IFERROR(VLOOKUP($D156&"_"&1,base!$E$4:$BO$7238,U$97,FALSE),"") -> NA | V156: =+IFERROR(VLOOKUP($D156&"_"&1,base!$E$4:$BO$7238,V$97,FALSE),"") -> 0 | W156: =+IFERROR(VLOOKUP($D156&"_"&1,base!$E$4:$BO$7238,W$97,FALSE),"") -> 0 | X156: =+IFERROR(VLOOKUP($D156&"_"&1,base!$E$4:$BO$7238,X$97,FALSE),"") -> 0 | Y156: =+IFERROR(VLOOKUP($D156&"_"&1,base!$E$4:$BO$7238,Y$97,FALSE),"") -> 0 | Z156: =+IFERROR(VLOOKUP($D156&"_"&1,base!$E$4:$BO$7238,Z$97,FALSE),"") -> 0 | AA156: =+IFERROR(VLOOKUP($D156&"_"&1,base!$E$4:$BO$7238,AA$97,FALSE),"") -> 0 | AB156: =+IFERROR(VLOOKUP($D156&"_"&1,base!$E$4:$BO$7238,AB$97,FALSE),"") -> 0 | AC156: =+IFERROR(VLOOKUP($D156&"_"&1,base!$E$4:$BO$7238,AC$97,FALSE),"") -> 0 | AD156: =+IFERROR(VLOOKUP($D156&"_"&1,base!$E$4:$BO$7238,AD$97,FALSE),"") -> 0 | AE156: =+IFERROR(VLOOKUP($D156&"_"&1,base!$E$4:$BO$7238,AE$97,FALSE),"") -> 0 | AF156: =+IFERROR(VLOOKUP($D156&"_"&1,base!$E$4:$BO$7238,AF$97,FALSE),"") -> 0 | AG156: =+IFERROR(VLOOKUP($D156&"_"&1,base!$E$4:$BO$7238,AG$97,FALSE),"") -> 0 | AH156: =+IFERROR(VLOOKUP($D156&"_"&1,base!$E$4:$BO$7238,AH$97,FALSE),"") -> 0 | AI156: =+IFERROR(VLOOKUP($D156&"_"&1,base!$E$4:$BO$7238,AI$97,FALSE),"") -> 0 | AJ156: =+IFERROR(VLOOKUP($D156&"_"&1,base!$E$4:$BO$7238,AJ$97,FALSE),"") -> 0 | AK156: =+IFERROR(VLOOKUP($D156&"_"&1,base!$E$4:$BO$7238,AK$97,FALSE),"") -> 0 | AL156: =+IFERROR(VLOOKUP($D156&"_"&1,base!$E$4:$BO$7238,AL$97,FALSE),"") -> 0 | AM156: =+IFERROR(VLOOKUP($D156&"_"&1,base!$E$4:$BO$7238,AM$97,FALSE),"") -> 0
B157: 58 | C157: =+IFERROR(VLOOKUP(D157,'tablero nal'!$W$9:$EM$163,121,FALSE),"") -> Administrativa | D157: =+IF(HLOOKUP($D$98,'listado indicadores'!$B$3:$AZ$158,$B157,FALSE)="","",HLOOKUP($D$98,'listado indicadores'!$B$3:$AZ$158,$B157,FALSE)) -> PA-62 | E157: =+IFERROR(VLOOKUP(D157,'tablero nal'!$W$9:$X$163,2,FALSE),"") -> Porcentaje de archivos transferidos en soporte físico al Archivo Central Unificado del ICBF | J157: =+IFERROR(IF(VLOOKUP($D157&"_"&1,base!$E$4:$BO$7238,J$99,FALSE)>1,IF(VLOOKUP($D157&"_"&1,base!$E$4:$BO$7238,J$99,FALSE)>=1000,TEXT(VLOOKUP($D157&"_"&1,base!$E$4:$BO$7238,J$99,FALSE),"0.000"),TEXT(VLOOKUP($D157&"_"&1,base!$E$4:$BO$7238,J$99,FALSE),"0")),TEXT(VLOOKUP($D157&"_"&1,base!$E$4:$BO$7238,J$99,FALSE),"0.0%")),"") -> 50% | K157: =+IFERROR(IF(VLOOKUP($D157&"_"&1,base!$E$4:$BO$7238,K$99,FALSE)>1,IF(VLOOKUP($D157&"_"&1,base!$E$4:$BO$7238,K$99,FALSE)>=1000,TEXT(VLOOKUP($D157&"_"&1,base!$E$4:$BO$7238,K$99,FALSE),"0.000"),TEXT(VLOOKUP($D157&"_"&1,base!$E$4:$BO$7238,K$99,FALSE),"0")),TEXT(VLOOKUP($D157&"_"&1,base!$E$4:$BO$7238,K$99,FALSE),"0.0%")),"") -> NA | L157: =+IFERROR(VLOOKUP($D157&"_"&1,base!$E$4:$BO$7238,L$99,FALSE),"") -> NA | M157: =+IFERROR(VLOOKUP($D157&"_"&1,base!$E$4:$BO$7238,M$99,FALSE),"") -> NA | P157: =+IFERROR(VLOOKUP($D157&"_"&1,base!$E$4:$BO$7238,P$97,FALSE),"") -> NA | Q157: =+IFERROR(VLOOKUP($D157&"_"&1,base!$E$4:$BO$7238,Q$97,FALSE),"") -> NA | R157: =+IFERROR(VLOOKUP($D157&"_"&1,base!$E$4:$BO$7238,R$97,FALSE),"") -> NA | S157: =+IFERROR(VLOOKUP($D157&"_"&1,base!$E$4:$BO$7238,S$97,FALSE),"") -> NA | T157: =+IFERROR(VLOOKUP($D157&"_"&1,base!$E$4:$BO$7238,T$97,FALSE),"") -> NA | U157: =+IFERROR(VLOOKUP($D157&"_"&1,base!$E$4:$BO$7238,U$97,FALSE),"") -> NA | V157: =+IFERROR(VLOOKUP($D157&"_"&1,base!$E$4:$BO$7238,V$97,FALSE),"") -> 0 | W157: =+IFERROR(VLOOKUP($D157&"_"&1,base!$E$4:$BO$7238,W$97,FALSE),"") -> 0 | X157: =+IFERROR(VLOOKUP($D157&"_"&1,base!$E$4:$BO$7238,X$97,FALSE),"") -> 0 | Y157: =+IFERROR(VLOOKUP($D157&"_"&1,base!$E$4:$BO$7238,Y$97,FALSE),"") -> 0 | Z157: =+IFERROR(VLOOKUP($D157&"_"&1,base!$E$4:$BO$7238,Z$97,FALSE),"") -> 0 | AA157: =+IFERROR(VLOOKUP($D157&"_"&1,base!$E$4:$BO$7238,AA$97,FALSE),"") -> 0 | AB157: =+IFERROR(VLOOKUP($D157&"_"&1,base!$E$4:$BO$7238,AB$97,FALSE),"") -> 0 | AC157: =+IFERROR(VLOOKUP($D157&"_"&1,base!$E$4:$BO$7238,AC$97,FALSE),"") -> 0 | AD157: =+IFERROR(VLOOKUP($D157&"_"&1,base!$E$4:$BO$7238,AD$97,FALSE),"") -> 0 | AE157: =+IFERROR(VLOOKUP($D157&"_"&1,base!$E$4:$BO$7238,AE$97,FALSE),"") -> 0 | AF157: =+IFERROR(VLOOKUP($D157&"_"&1,base!$E$4:$BO$7238,AF$97,FALSE),"") -> 0 | AG157: =+IFERROR(VLOOKUP($D157&"_"&1,base!$E$4:$BO$7238,AG$97,FALSE),"") -> 0 | AH157: =+IFERROR(VLOOKUP($D157&"_"&1,base!$E$4:$BO$7238,AH$97,FALSE),"") -> 0 | AI157: =+IFERROR(VLOOKUP($D157&"_"&1,base!$E$4:$BO$7238,AI$97,FALSE),"") -> 0 | AJ157: =+IFERROR(VLOOKUP($D157&"_"&1,base!$E$4:$BO$7238,AJ$97,FALSE),"") -> 0 | AK157: =+IFERROR(VLOOKUP($D157&"_"&1,base!$E$4:$BO$7238,AK$97,FALSE),"") -> 0 | AL157: =+IFERROR(VLOOKUP($D157&"_"&1,base!$E$4:$BO$7238,AL$97,FALSE),"") -> 0 | AM157: =+IFERROR(VLOOKUP($D157&"_"&1,base!$E$4:$BO$7238,AM$97,FALSE),"") -> 0
B158: 59 | C158: =+IFERROR(VLOOKUP(D158,'tablero nal'!$W$9:$EM$163,121,FALSE),"") -> Contratación | D158: =+IF(HLOOKUP($D$98,'listado indicadores'!$B$3:$AZ$158,$B158,FALSE)="","",HLOOKUP($D$98,'listado indicadores'!$B$3:$AZ$158,$B158,FALSE)) -> PA-63 | E158: =+IFERROR(VLOOKUP(D158,'tablero nal'!$W$9:$X$163,2,FALSE),"") -> Porcentaje de avance de la actualización y aplicación del Proceso de Adquisición de Bienes y Servicios | J158: =+IFERROR(IF(VLOOKUP($D158&"_"&1,base!$E$4:$BO$7238,J$99,FALSE)>1,IF(VLOOKUP($D158&"_"&1,base!$E$4:$BO$7238,J$99,FALSE)>=1000,TEXT(VLOOKUP($D158&"_"&1,base!$E$4:$BO$7238,J$99,FALSE),"0.000"),TEXT(VLOOKUP($D158&"_"&1,base!$E$4:$BO$7238,J$99,FALSE),"0")),TEXT(VLOOKUP($D158&"_"&1,base!$E$4:$BO$7238,J$99,FALSE),"0.0%")),"") -> 100% | K158: =+IFERROR(IF(VLOOKUP($D158&"_"&1,base!$E$4:$BO$7238,K$99,FALSE)>1,IF(VLOOKUP($D158&"_"&1,base!$E$4:$BO$7238,K$99,FALSE)>=1000,TEXT(VLOOKUP($D158&"_"&1,base!$E$4:$BO$7238,K$99,FALSE),"0.000"),TEXT(VLOOKUP($D158&"_"&1,base!$E$4:$BO$7238,K$99,FALSE),"0")),TEXT(VLOOKUP($D158&"_"&1,base!$E$4:$BO$7238,K$99,FALSE),"0.0%")),"") -> NA | L158: =+IFERROR(VLOOKUP($D158&"_"&1,base!$E$4:$BO$7238,L$99,FALSE),"") -> NA | M158: =+IFERROR(VLOOKUP($D158&"_"&1,base!$E$4:$BO$7238,M$99,FALSE),"") -> NA | P158: =+IFERROR(VLOOKUP($D158&"_"&1,base!$E$4:$BO$7238,P$97,FALSE),"") -> NA | Q158: =+IFERROR(VLOOKUP($D158&"_"&1,base!$E$4:$BO$7238,Q$97,FALSE),"") -> NA | R158: =+IFERROR(VLOOKUP($D158&"_"&1,base!$E$4:$BO$7238,R$97,FALSE),"") -> NA | S158: =+IFERROR(VLOOKUP($D158&"_"&1,base!$E$4:$BO$7238,S$97,FALSE),"") -> NA | T158: =+IFERROR(VLOOKUP($D158&"_"&1,base!$E$4:$BO$7238,T$97,FALSE),"") -> NA | U158: =+IFERROR(VLOOKUP($D158&"_"&1,base!$E$4:$BO$7238,U$97,FALSE),"") -> NA | V158: =+IFERROR(VLOOKUP($D158&"_"&1,base!$E$4:$BO$7238,V$97,FALSE),"") -> 0 | W158: =+IFERROR(VLOOKUP($D158&"_"&1,base!$E$4:$BO$7238,W$97,FALSE),"") -> 0 | X158: =+IFERROR(VLOOKUP($D158&"_"&1,base!$E$4:$BO$7238,X$97,FALSE),"") -> 0 | Y158: =+IFERROR(VLOOKUP($D158&"_"&1,base!$E$4:$BO$7238,Y$97,FALSE),"") -> 0 | Z158: =+IFERROR(VLOOKUP($D158&"_"&1,base!$E$4:$BO$7238,Z$97,FALSE),"") -> 0 | AA158: =+IFERROR(VLOOKUP($D158&"_"&1,base!$E$4:$BO$7238,AA$97,FALSE),"") -> 0 | AB158: =+IFERROR(VLOOKUP($D158&"_"&1,base!$E$4:$BO$7238,AB$97,FALSE),"") -> 0 | AC158: =+IFERROR(VLOOKUP($D158&"_"&1,base!$E$4:$BO$7238,AC$97,FALSE),"") -> 0 | AD158: =+IFERROR(VLOOKUP($D158&"_"&1,base!$E$4:$BO$7238,AD$97,FALSE),"") -> 0 | AE158: =+IFERROR(VLOOKUP($D158&"_"&1,base!$E$4:$BO$7238,AE$97,FALSE),"") -> 0 | AF158: =+IFERROR(VLOOKUP($D158&"_"&1,base!$E$4:$BO$7238,AF$97,FALSE),"") -> 0 | AG158: =+IFERROR(VLOOKUP($D158&"_"&1,base!$E$4:$BO$7238,AG$97,FALSE),"") -> 0 | AH158: =+IFERROR(VLOOKUP($D158&"_"&1,base!$E$4:$BO$7238,AH$97,FALSE),"") -> 0 | AI158: =+IFERROR(VLOOKUP($D158&"_"&1,base!$E$4:$BO$7238,AI$97,FALSE),"") -> 0 | AJ158: =+IFERROR(VLOOKUP($D158&"_"&1,base!$E$4:$BO$7238,AJ$97,FALSE),"") -> 0 | AK158: =+IFERROR(VLOOKUP($D158&"_"&1,base!$E$4:$BO$7238,AK$97,FALSE),"") -> 0 | AL158: =+IFERROR(VLOOKUP($D158&"_"&1,base!$E$4:$BO$7238,AL$97,FALSE),"") -> 0 | AM158: =+IFERROR(VLOOKUP($D158&"_"&1,base!$E$4:$BO$7238,AM$97,FALSE),"") -> 0
B159: 60 | C159: =+IFERROR(VLOOKUP(D159,'tablero nal'!$W$9:$EM$163,121,FALSE),"") -> Contratación | D159: =+IF(HLOOKUP($D$98,'listado indicadores'!$B$3:$AZ$158,$B159,FALSE)="","",HLOOKUP($D$98,'listado indicadores'!$B$3:$AZ$158,$B159,FALSE)) -> PA-64 | E159: =+IFERROR(VLOOKUP(D159,'tablero nal'!$W$9:$X$163,2,FALSE),"") -> Porcentaje de contratos liquidados de la Sede de la Dirección Nacional y Direcciones Regionales | J159: =+IFERROR(IF(VLOOKUP($D159&"_"&1,base!$E$4:$BO$7238,J$99,FALSE)>1,IF(VLOOKUP($D159&"_"&1,base!$E$4:$BO$7238,J$99,FALSE)>=1000,TEXT(VLOOKUP($D159&"_"&1,base!$E$4:$BO$7238,J$99,FALSE),"0.000"),TEXT(VLOOKUP($D159&"_"&1,base!$E$4:$BO$7238,J$99,FALSE),"0")),TEXT(VLOOKUP($D159&"_"&1,base!$E$4:$BO$7238,J$99,FALSE),"0.0%")),"") -> 100% | K159: =+IFERROR(IF(VLOOKUP($D159&"_"&1,base!$E$4:$BO$7238,K$99,FALSE)>1,IF(VLOOKUP($D159&"_"&1,base!$E$4:$BO$7238,K$99,FALSE)>=1000,TEXT(VLOOKUP($D159&"_"&1,base!$E$4:$BO$7238,K$99,FALSE),"0.000"),TEXT(VLOOKUP($D159&"_"&1,base!$E$4:$BO$7238,K$99,FALSE),"0")),TEXT(VLOOKUP($D159&"_"&1,base!$E$4:$BO$7238,K$99,FALSE),"0.0%")),"") -> NA | L159: =+IFERROR(VLOOKUP($D159&"_"&1,base!$E$4:$BO$7238,L$99,FALSE),"") -> NA | M159: =+IFERROR(VLOOKUP($D159&"_"&1,base!$E$4:$BO$7238,M$99,FALSE),"") -> NA | P159: =+IFERROR(VLOOKUP($D159&"_"&1,base!$E$4:$BO$7238,P$97,FALSE),"") -> NA | Q159: =+IFERROR(VLOOKUP($D159&"_"&1,base!$E$4:$BO$7238,Q$97,FALSE),"") -> NA | R159: =+IFERROR(VLOOKUP($D159&"_"&1,base!$E$4:$BO$7238,R$97,FALSE),"") -> 0.0879 | S159: =+IFERROR(VLOOKUP($D159&"_"&1,base!$E$4:$BO$7238,S$97,FALSE),"") -> CRITICO | T159: =+IFERROR(VLOOKUP($D159&"_"&1,base!$E$4:$BO$7238,T$97,FALSE),"") -> NA | U159: =+IFERROR(VLOOKUP($D159&"_"&1,base!$E$4:$BO$7238,U$97,FALSE),"") -> NA | V159: =+IFERROR(VLOOKUP($D159&"_"&1,base!$E$4:$BO$7238,V$97,FALSE),"") -> 0 | W159: =+IFERROR(VLOOKUP($D159&"_"&1,base!$E$4:$BO$7238,W$97,FALSE),"") -> 0 | X159: =+IFERROR(VLOOKUP($D159&"_"&1,base!$E$4:$BO$7238,X$97,FALSE),"") -> 0 | Y159: =+IFERROR(VLOOKUP($D159&"_"&1,base!$E$4:$BO$7238,Y$97,FALSE),"") -> 0 | Z159: =+IFERROR(VLOOKUP($D159&"_"&1,base!$E$4:$BO$7238,Z$97,FALSE),"") -> 0 | AA159: =+IFERROR(VLOOKUP($D159&"_"&1,base!$E$4:$BO$7238,AA$97,FALSE),"") -> 0 | AB159: =+IFERROR(VLOOKUP($D159&"_"&1,base!$E$4:$BO$7238,AB$97,FALSE),"") -> 0 | AC159: =+IFERROR(VLOOKUP($D159&"_"&1,base!$E$4:$BO$7238,AC$97,FALSE),"") -> 0 | AD159: =+IFERROR(VLOOKUP($D159&"_"&1,base!$E$4:$BO$7238,AD$97,FALSE),"") -> 0 | AE159: =+IFERROR(VLOOKUP($D159&"_"&1,base!$E$4:$BO$7238,AE$97,FALSE),"") -> 0 | AF159: =+IFERROR(VLOOKUP($D159&"_"&1,base!$E$4:$BO$7238,AF$97,FALSE),"") -> 0 | AG159: =+IFERROR(VLOOKUP($D159&"_"&1,base!$E$4:$BO$7238,AG$97,FALSE),"") -> 0 | AH159: =+IFERROR(VLOOKUP($D159&"_"&1,base!$E$4:$BO$7238,AH$97,FALSE),"") -> 0 | AI159: =+IFERROR(VLOOKUP($D159&"_"&1,base!$E$4:$BO$7238,AI$97,FALSE),"") -> 0 | AJ159: =+IFERROR(VLOOKUP($D159&"_"&1,base!$E$4:$BO$7238,AJ$97,FALSE),"") -> 0 | AK159: =+IFERROR(VLOOKUP($D159&"_"&1,base!$E$4:$BO$7238,AK$97,FALSE),"") -> 0 | AL159: =+IFERROR(VLOOKUP($D159&"_"&1,base!$E$4:$BO$7238,AL$97,FALSE),"") -> 0 | AM159: =+IFERROR(VLOOKUP($D159&"_"&1,base!$E$4:$BO$7238,AM$97,FALSE),"") -> 0
B160: 61 | C160: =+IFERROR(VLOOKUP(D160,'tablero nal'!$W$9:$EM$163,121,FALSE),"") -> Jurídica | D160: =+IF(HLOOKUP($D$98,'listado indicadores'!$B$3:$AZ$158,$B160,FALSE)="","",HLOOKUP($D$98,'listado indicadores'!$B$3:$AZ$158,$B160,FALSE)) -> PA-65 | E160: =+IFERROR(VLOOKUP(D160,'tablero nal'!$W$9:$X$163,2,FALSE),"") -> Porcentaje de avance en el diseño e implementacion de un modelo eficiente de prevencion del daño antijuridico. | J160: =+IFERROR(IF(VLOOKUP($D160&"_"&1,base!$E$4:$BO$7238,J$99,FALSE)>1,IF(VLOOKUP($D160&"_"&1,base!$E$4:$BO$7238,J$99,FALSE)>=1000,TEXT(VLOOKUP($D160&"_"&1,base!$E$4:$BO$7238,J$99,FALSE),"0.000"),TEXT(VLOOKUP($D160&"_"&1,base!$E$4:$BO$7238,J$99,FALSE),"0")),TEXT(VLOOKUP($D160&"_"&1,base!$E$4:$BO$7238,J$99,FALSE),"0.0%")),"") -> 75% | K160: =+IFERROR(IF(VLOOKUP($D160&"_"&1,base!$E$4:$BO$7238,K$99,FALSE)>1,IF(VLOOKUP($D160&"_"&1,base!$E$4:$BO$7238,K$99,FALSE)>=1000,TEXT(VLOOKUP($D160&"_"&1,base!$E$4:$BO$7238,K$99,FALSE),"0.000"),TEXT(VLOOKUP($D160&"_"&1,base!$E$4:$BO$7238,K$99,FALSE),"0")),TEXT(VLOOKUP($D160&"_"&1,base!$E$4:$BO$7238,K$99,FALSE),"0.0%")),"") -> NA | L160: =+IFERROR(VLOOKUP($D160&"_"&1,base!$E$4:$BO$7238,L$99,FALSE),"") -> NA | M160: =+IFERROR(VLOOKUP($D160&"_"&1,base!$E$4:$BO$7238,M$99,FALSE),"") -> NA | P160: =+IFERROR(VLOOKUP($D160&"_"&1,base!$E$4:$BO$7238,P$97,FALSE),"") -> NA | Q160: =+IFERROR(VLOOKUP($D160&"_"&1,base!$E$4:$BO$7238,Q$97,FALSE),"") -> NA | R160: =+IFERROR(VLOOKUP($D160&"_"&1,base!$E$4:$BO$7238,R$97,FALSE),"") -> NA | S160: =+IFERROR(VLOOKUP($D160&"_"&1,base!$E$4:$BO$7238,S$97,FALSE),"") -> NA | T160: =+IFERROR(VLOOKUP($D160&"_"&1,base!$E$4:$BO$7238,T$97,FALSE),"") -> NA | U160: =+IFERROR(VLOOKUP($D160&"_"&1,base!$E$4:$BO$7238,U$97,FALSE),"") -> NA | V160: =+IFERROR(VLOOKUP($D160&"_"&1,base!$E$4:$BO$7238,V$97,FALSE),"") -> 0 | W160: =+IFERROR(VLOOKUP($D160&"_"&1,base!$E$4:$BO$7238,W$97,FALSE),"") -> 0 | X160: =+IFERROR(VLOOKUP($D160&"_"&1,base!$E$4:$BO$7238,X$97,FALSE),"") -> 0 | Y160: =+IFERROR(VLOOKUP($D160&"_"&1,base!$E$4:$BO$7238,Y$97,FALSE),"") -> 0 | Z160: =+IFERROR(VLOOKUP($D160&"_"&1,base!$E$4:$BO$7238,Z$97,FALSE),"") -> 0 | AA160: =+IFERROR(VLOOKUP($D160&"_"&1,base!$E$4:$BO$7238,AA$97,FALSE),"") -> 0 | AB160: =+IFERROR(VLOOKUP($D160&"_"&1,base!$E$4:$BO$7238,AB$97,FALSE),"") -> 0 | AC160: =+IFERROR(VLOOKUP($D160&"_"&1,base!$E$4:$BO$7238,AC$97,FALSE),"") -> 0 | AD160: =+IFERROR(VLOOKUP($D160&"_"&1,base!$E$4:$BO$7238,AD$97,FALSE),"") -> 0 | AE160: =+IFERROR(VLOOKUP($D160&"_"&1,base!$E$4:$BO$7238,AE$97,FALSE),"") -> 0 | AF160: =+IFERROR(VLOOKUP($D160&"_"&1,base!$E$4:$BO$7238,AF$97,FALSE),"") -> 0 | AG160: =+IFERROR(VLOOKUP($D160&"_"&1,base!$E$4:$BO$7238,AG$97,FALSE),"") -> 0 | AH160: =+IFERROR(VLOOKUP($D160&"_"&1,base!$E$4:$BO$7238,AH$97,FALSE),"") -> 0 | AI160: =+IFERROR(VLOOKUP($D160&"_"&1,base!$E$4:$BO$7238,AI$97,FALSE),"") -> 0 | AJ160: =+IFERROR(VLOOKUP($D160&"_"&1,base!$E$4:$BO$7238,AJ$97,FALSE),"") -> 0 | AK160: =+IFERROR(VLOOKUP($D160&"_"&1,base!$E$4:$BO$7238,AK$97,FALSE),"") -> 0 | AL160: =+IFERROR(VLOOKUP($D160&"_"&1,base!$E$4:$BO$7238,AL$97,FALSE),"") -> 0 | AM160: =+IFERROR(VLOOKUP($D160&"_"&1,base!$E$4:$BO$7238,AM$97,FALSE),"") -> 0
B161: 62 | C161: =+IFERROR(VLOOKUP(D161,'tablero nal'!$W$9:$EM$163,121,FALSE),"") -> Gestión Regional | D161: =+IF(HLOOKUP($D$98,'listado indicadores'!$B$3:$AZ$158,$B161,FALSE)="","",HLOOKUP($D$98,'listado indicadores'!$B$3:$AZ$158,$B161,FALSE)) -> PA-66 | E161: =+IFERROR(VLOOKUP(D161,'tablero nal'!$W$9:$X$163,2,FALSE),"") -> Porcentaje de cumplimiento de diseño e implementación del modelo de acompañamiento. | J161: =+IFERROR(IF(VLOOKUP($D161&"_"&1,base!$E$4:$BO$7238,J$99,FALSE)>1,IF(VLOOKUP($D161&"_"&1,base!$E$4:$BO$7238,J$99,FALSE)>=1000,TEXT(VLOOKUP($D161&"_"&1,base!$E$4:$BO$7238,J$99,FALSE),"0.000"),TEXT(VLOOKUP($D161&"_"&1,base!$E$4:$BO$7238,J$99,FALSE),"0")),TEXT(VLOOKUP($D161&"_"&1,base!$E$4:$BO$7238,J$99,FALSE),"0.0%")),"") -> 1 | K161: =+IFERROR(IF(VLOOKUP($D161&"_"&1,base!$E$4:$BO$7238,K$99,FALSE)>1,IF(VLOOKUP($D161&"_"&1,base!$E$4:$BO$7238,K$99,FALSE)>=1000,TEXT(VLOOKUP($D161&"_"&1,base!$E$4:$BO$7238,K$99,FALSE),"0.000"),TEXT(VLOOKUP($D161&"_"&1,base!$E$4:$BO$7238,K$99,FALSE),"0")),TEXT(VLOOKUP($D161&"_"&1,base!$E$4:$BO$7238,K$99,FALSE),"0.0%")),"") -> NA | L161: =+IFERROR(VLOOKUP($D161&"_"&1,base!$E$4:$BO$7238,L$99,FALSE),"") -> NA | M161: =+IFERROR(VLOOKUP($D161&"_"&1,base!$E$4:$BO$7238,M$99,FALSE),"") -> NA | P161: =+IFERROR(VLOOKUP($D161&"_"&1,base!$E$4:$BO$7238,P$97,FALSE),"") -> NA | Q161: =+IFERROR(VLOOKUP($D161&"_"&1,base!$E$4:$BO$7238,Q$97,FALSE),"") -> NA | R161: =+IFERROR(VLOOKUP($D161&"_"&1,base!$E$4:$BO$7238,R$97,FALSE),"") -> NA | S161: =+IFERROR(VLOOKUP($D161&"_"&1,base!$E$4:$BO$7238,S$97,FALSE),"") -> NA | T161: =+IFERROR(VLOOKUP($D161&"_"&1,base!$E$4:$BO$7238,T$97,FALSE),"") -> NA | U161: =+IFERROR(VLOOKUP($D161&"_"&1,base!$E$4:$BO$7238,U$97,FALSE),"") -> NA | V161: =+IFERROR(VLOOKUP($D161&"_"&1,base!$E$4:$BO$7238,V$97,FALSE),"") -> 0 | W161: =+IFERROR(VLOOKUP($D161&"_"&1,base!$E$4:$BO$7238,W$97,FALSE),"") -> 0 | X161: =+IFERROR(VLOOKUP($D161&"_"&1,base!$E$4:$BO$7238,X$97,FALSE),"") -> 0 | Y161: =+IFERROR(VLOOKUP($D161&"_"&1,base!$E$4:$BO$7238,Y$97,FALSE),"") -> 0 | Z161: =+IFERROR(VLOOKUP($D161&"_"&1,base!$E$4:$BO$7238,Z$97,FALSE),"") -> 0 | AA161: =+IFERROR(VLOOKUP($D161&"_"&1,base!$E$4:$BO$7238,AA$97,FALSE),"") -> 0 | AB161: =+IFERROR(VLOOKUP($D161&"_"&1,base!$E$4:$BO$7238,AB$97,FALSE),"") -> 0 | AC161: =+IFERROR(VLOOKUP($D161&"_"&1,base!$E$4:$BO$7238,AC$97,FALSE),"") -> 0 | AD161: =+IFERROR(VLOOKUP($D161&"_"&1,base!$E$4:$BO$7238,AD$97,FALSE),"") -> 0 | AE161: =+IFERROR(VLOOKUP($D161&"_"&1,base!$E$4:$BO$7238,AE$97,FALSE),"") -> 0 | AF161: =+IFERROR(VLOOKUP($D161&"_"&1,base!$E$4:$BO$7238,AF$97,FALSE),"") -> 0 | AG161: =+IFERROR(VLOOKUP($D161&"_"&1,base!$E$4:$BO$7238,AG$97,FALSE),"") -> 0 | AH161: =+IFERROR(VLOOKUP($D161&"_"&1,base!$E$4:$BO$7238,AH$97,FALSE),"") -> 0 | AI161: =+IFERROR(VLOOKUP($D161&"_"&1,base!$E$4:$BO$7238,AI$97,FALSE),"") -> 0 | AJ161: =+IFERROR(VLOOKUP($D161&"_"&1,base!$E$4:$BO$7238,AJ$97,FALSE),"") -> 0 | AK161: =+IFERROR(VLOOKUP($D161&"_"&1,base!$E$4:$BO$7238,AK$97,FALSE),"") -> 0 | AL161: =+IFERROR(VLOOKUP($D161&"_"&1,base!$E$4:$BO$7238,AL$97,FALSE),"") -> 0 | AM161: =+IFERROR(VLOOKUP($D161&"_"&1,base!$E$4:$BO$7238,AM$97,FALSE),"") -> 0
B162: 63 | C162: =+IFERROR(VLOOKUP(D162,'tablero nal'!$W$9:$EM$163,121,FALSE),"") -> Cooperación y Convenios | D162: =+IF(HLOOKUP($D$98,'listado indicadores'!$B$3:$AZ$158,$B162,FALSE)="","",HLOOKUP($D$98,'listado indicadores'!$B$3:$AZ$158,$B162,FALSE)) -> PA-68 | E162: =+IFERROR(VLOOKUP(D162,'tablero nal'!$W$9:$X$163,2,FALSE),"") -> Número de departamentos con la " estrategia de articulación" con la cooperación implementada | J162: =+IFERROR(IF(VLOOKUP($D162&"_"&1,base!$E$4:$BO$7238,J$99,FALSE)>1,IF(VLOOKUP($D162&"_"&1,base!$E$4:$BO$7238,J$99,FALSE)>=1000,TEXT(VLOOKUP($D162&"_"&1,base!$E$4:$BO$7238,J$99,FALSE),"0.000"),TEXT(VLOOKUP($D162&"_"&1,base!$E$4:$BO$7238,J$99,FALSE),"0")),TEXT(VLOOKUP($D162&"_"&1,base!$E$4:$BO$7238,J$99,FALSE),"0.0%")),"") -> 18 | K162: =+IFERROR(IF(VLOOKUP($D162&"_"&1,base!$E$4:$BO$7238,K$99,FALSE)>1,IF(VLOOKUP($D162&"_"&1,base!$E$4:$BO$7238,K$99,FALSE)>=1000,TEXT(VLOOKUP($D162&"_"&1,base!$E$4:$BO$7238,K$99,FALSE),"0.000"),TEXT(VLOOKUP($D162&"_"&1,base!$E$4:$BO$7238,K$99,FALSE),"0")),TEXT(VLOOKUP($D162&"_"&1,base!$E$4:$BO$7238,K$99,FALSE),"0.0%")),"") -> NA | L162: =+IFERROR(VLOOKUP($D162&"_"&1,base!$E$4:$BO$7238,L$99,FALSE),"") -> NA | M162: =+IFERROR(VLOOKUP($D162&"_"&1,base!$E$4:$BO$7238,M$99,FALSE),"") -> NA | P162: =+IFERROR(VLOOKUP($D162&"_"&1,base!$E$4:$BO$7238,P$97,FALSE),"") -> NA | Q162: =+IFERROR(VLOOKUP($D162&"_"&1,base!$E$4:$BO$7238,Q$97,FALSE),"") -> NA | R162: =+IFERROR(VLOOKUP($D162&"_"&1,base!$E$4:$BO$7238,R$97,FALSE),"") -> NA | S162: =+IFERROR(VLOOKUP($D162&"_"&1,base!$E$4:$BO$7238,S$97,FALSE),"") -> NA | T162: =+IFERROR(VLOOKUP($D162&"_"&1,base!$E$4:$BO$7238,T$97,FALSE),"") -> NA | U162: =+IFERROR(VLOOKUP($D162&"_"&1,base!$E$4:$BO$7238,U$97,FALSE),"") -> NA | V162: =+IFERROR(VLOOKUP($D162&"_"&1,base!$E$4:$BO$7238,V$97,FALSE),"") -> 0 | W162: =+IFERROR(VLOOKUP($D162&"_"&1,base!$E$4:$BO$7238,W$97,FALSE),"") -> 0 | X162: =+IFERROR(VLOOKUP($D162&"_"&1,base!$E$4:$BO$7238,X$97,FALSE),"") -> 0 | Y162: =+IFERROR(VLOOKUP($D162&"_"&1,base!$E$4:$BO$7238,Y$97,FALSE),"") -> 0 | Z162: =+IFERROR(VLOOKUP($D162&"_"&1,base!$E$4:$BO$7238,Z$97,FALSE),"") -> 0 | AA162: =+IFERROR(VLOOKUP($D162&"_"&1,base!$E$4:$BO$7238,AA$97,FALSE),"") -> 0 | AB162: =+IFERROR(VLOOKUP($D162&"_"&1,base!$E$4:$BO$7238,AB$97,FALSE),"") -> 0 | AC162: =+IFERROR(VLOOKUP($D162&"_"&1,base!$E$4:$BO$7238,AC$97,FALSE),"") -> 0 | AD162: =+IFERROR(VLOOKUP($D162&"_"&1,base!$E$4:$BO$7238,AD$97,FALSE),"") -> 0 | AE162: =+IFERROR(VLOOKUP($D162&"_"&1,base!$E$4:$BO$7238,AE$97,FALSE),"") -> 0 | AF162: =+IFERROR(VLOOKUP($D162&"_"&1,base!$E$4:$BO$7238,AF$97,FALSE),"") -> 0 | AG162: =+IFERROR(VLOOKUP($D162&"_"&1,base!$E$4:$BO$7238,AG$97,FALSE),"") -> 0 | AH162: =+IFERROR(VLOOKUP($D162&"_"&1,base!$E$4:$BO$7238,AH$97,FALSE),"") -> 0 | AI162: =+IFERROR(VLOOKUP($D162&"_"&1,base!$E$4:$BO$7238,AI$97,FALSE),"") -> 0 | AJ162: =+IFERROR(VLOOKUP($D162&"_"&1,base!$E$4:$BO$7238,AJ$97,FALSE),"") -> 0 | AK162: =+IFERROR(VLOOKUP($D162&"_"&1,base!$E$4:$BO$7238,AK$97,FALSE),"") -> 0 | AL162: =+IFERROR(VLOOKUP($D162&"_"&1,base!$E$4:$BO$7238,AL$97,FALSE),"") -> 0 | AM162: =+IFERROR(VLOOKUP($D162&"_"&1,base!$E$4:$BO$7238,AM$97,FALSE),"") -> 0
B163: 64 | C163: =+IFERROR(VLOOKUP(D163,'tablero nal'!$W$9:$EM$163,121,FALSE),"") -> Cooperación y Convenios | D163: =+IF(HLOOKUP($D$98,'listado indicadores'!$B$3:$AZ$158,$B163,FALSE)="","",HLOOKUP($D$98,'listado indicadores'!$B$3:$AZ$158,$B163,FALSE)) -> PA-69 | E163: =+IFERROR(VLOOKUP(D163,'tablero nal'!$W$9:$X$163,2,FALSE),"") -> Número de alianzas gestionadas con el sector privado y ayuda oficial al desarrollo | J163: =+IFERROR(IF(VLOOKUP($D163&"_"&1,base!$E$4:$BO$7238,J$99,FALSE)>1,IF(VLOOKUP($D163&"_"&1,base!$E$4:$BO$7238,J$99,FALSE)>=1000,TEXT(VLOOKUP($D163&"_"&1,base!$E$4:$BO$7238,J$99,FALSE),"0.000"),TEXT(VLOOKUP($D163&"_"&1,base!$E$4:$BO$7238,J$99,FALSE),"0")),TEXT(VLOOKUP($D163&"_"&1,base!$E$4:$BO$7238,J$99,FALSE),"0.0%")),"") -> 100% | K163: =+IFERROR(IF(VLOOKUP($D163&"_"&1,base!$E$4:$BO$7238,K$99,FALSE)>1,IF(VLOOKUP($D163&"_"&1,base!$E$4:$BO$7238,K$99,FALSE)>=1000,TEXT(VLOOKUP($D163&"_"&1,base!$E$4:$BO$7238,K$99,FALSE),"0.000"),TEXT(VLOOKUP($D163&"_"&1,base!$E$4:$BO$7238,K$99,FALSE),"0")),TEXT(VLOOKUP($D163&"_"&1,base!$E$4:$BO$7238,K$99,FALSE),"0.0%")),"") -> 74 | L163: =+IFERROR(VLOOKUP($D163&"_"&1,base!$E$4:$BO$7238,L$99,FALSE),"") -> 0.74 | M163: =+IFERROR(VLOOKUP($D163&"_"&1,base!$E$4:$BO$7238,M$99,FALSE),"") -> OPTIMO | P163: =+IFERROR(VLOOKUP($D163&"_"&1,base!$E$4:$BO$7238,P$97,FALSE),"") -> NA | Q163: =+IFERROR(VLOOKUP($D163&"_"&1,base!$E$4:$BO$7238,Q$97,FALSE),"") -> NA | R163: =+IFERROR(VLOOKUP($D163&"_"&1,base!$E$4:$BO$7238,R$97,FALSE),"") -> NA | S163: =+IFERROR(VLOOKUP($D163&"_"&1,base!$E$4:$BO$7238,S$97,FALSE),"") -> NA | T163: =+IFERROR(VLOOKUP($D163&"_"&1,base!$E$4:$BO$7238,T$97,FALSE),"") -> 0.74 | U163: =+IFERROR(VLOOKUP($D163&"_"&1,base!$E$4:$BO$7238,U$97,FALSE),"") -> OPTIMO | V163: =+IFERROR(VLOOKUP($D163&"_"&1,base!$E$4:$BO$7238,V$97,FALSE),"") -> 0 | W163: =+IFERROR(VLOOKUP($D163&"_"&1,base!$E$4:$BO$7238,W$97,FALSE),"") -> 0 | X163: =+IFERROR(VLOOKUP($D163&"_"&1,base!$E$4:$BO$7238,X$97,FALSE),"") -> 0 | Y163: =+IFERROR(VLOOKUP($D163&"_"&1,base!$E$4:$BO$7238,Y$97,FALSE),"") -> 0 | Z163: =+IFERROR(VLOOKUP($D163&"_"&1,base!$E$4:$BO$7238,Z$97,FALSE),"") -> 0 | AA163: =+IFERROR(VLOOKUP($D163&"_"&1,base!$E$4:$BO$7238,AA$97,FALSE),"") -> 0 | AB163: =+IFERROR(VLOOKUP($D163&"_"&1,base!$E$4:$BO$7238,AB$97,FALSE),"") -> 0 | AC163: =+IFERROR(VLOOKUP($D163&"_"&1,base!$E$4:$BO$7238,AC$97,FALSE),"") -> 0 | AD163: =+IFERROR(VLOOKUP($D163&"_"&1,base!$E$4:$BO$7238,AD$97,FALSE),"") -> 0 | AE163: =+IFERROR(VLOOKUP($D163&"_"&1,base!$E$4:$BO$7238,AE$97,FALSE),"") -> 0 | AF163: =+IFERROR(VLOOKUP($D163&"_"&1,base!$E$4:$BO$7238,AF$97,FALSE),"") -> 0 | AG163: =+IFERROR(VLOOKUP($D163&"_"&1,base!$E$4:$BO$7238,AG$97,FALSE),"") -> 0 | AH163: =+IFERROR(VLOOKUP($D163&"_"&1,base!$E$4:$BO$7238,AH$97,FALSE),"") -> 0 | AI163: =+IFERROR(VLOOKUP($D163&"_"&1,base!$E$4:$BO$7238,AI$97,FALSE),"") -> 0 | AJ163: =+IFERROR(VLOOKUP($D163&"_"&1,base!$E$4:$BO$7238,AJ$97,FALSE),"") -> 0 | AK163: =+IFERROR(VLOOKUP($D163&"_"&1,base!$E$4:$BO$7238,AK$97,FALSE),"") -> 0 | AL163: =+IFERROR(VLOOKUP($D163&"_"&1,base!$E$4:$BO$7238,AL$97,FALSE),"") -> 0 | AM163: =+IFERROR(VLOOKUP($D163&"_"&1,base!$E$4:$BO$7238,AM$97,FALSE),"") -> 0
B164: 65 | C164: =+IFERROR(VLOOKUP(D164,'tablero nal'!$W$9:$EM$163,121,FALSE),"") -> Cooperación y Convenios | D164: =+IF(HLOOKUP($D$98,'listado indicadores'!$B$3:$AZ$158,$B164,FALSE)="","",HLOOKUP($D$98,'listado indicadores'!$B$3:$AZ$158,$B164,FALSE)) -> PA-70 | E164: =+IFERROR(VLOOKUP(D164,'tablero nal'!$W$9:$X$163,2,FALSE),"") -> Número de beneficios gestionados para los niños, niñas y adolescentes beneficiaros de los programas del ICBF. | J164: =+IFERROR(IF(VLOOKUP($D164&"_"&1,base!$E$4:$BO$7238,J$99,FALSE)>1,IF(VLOOKUP($D164&"_"&1,base!$E$4:$BO$7238,J$99,FALSE)>=1000,TEXT(VLOOKUP($D164&"_"&1,base!$E$4:$BO$7238,J$99,FALSE),"0.000"),TEXT(VLOOKUP($D164&"_"&1,base!$E$4:$BO$7238,J$99,FALSE),"0")),TEXT(VLOOKUP($D164&"_"&1,base!$E$4:$BO$7238,J$99,FALSE),"0.0%")),"") -> 200.000 | K164: =+IFERROR(IF(VLOOKUP($D164&"_"&1,base!$E$4:$BO$7238,K$99,FALSE)>1,IF(VLOOKUP($D164&"_"&1,base!$E$4:$BO$7238,K$99,FALSE)>=1000,TEXT(VLOOKUP($D164&"_"&1,base!$E$4:$BO$7238,K$99,FALSE),"0.000"),TEXT(VLOOKUP($D164&"_"&1,base!$E$4:$BO$7238,K$99,FALSE),"0")),TEXT(VLOOKUP($D164&"_"&1,base!$E$4:$BO$7238,K$99,FALSE),"0.0%")),"") -> 189.489 | L164: =+IFERROR(VLOOKUP($D164&"_"&1,base!$E$4:$BO$7238,L$99,FALSE),"") -> 0.947 | M164: =+IFERROR(VLOOKUP($D164&"_"&1,base!$E$4:$BO$7238,M$99,FALSE),"") -> OPTIMO | P164: =+IFERROR(VLOOKUP($D164&"_"&1,base!$E$4:$BO$7238,P$97,FALSE),"") -> NA | Q164: =+IFERROR(VLOOKUP($D164&"_"&1,base!$E$4:$BO$7238,Q$97,FALSE),"") -> NA | R164: =+IFERROR(VLOOKUP($D164&"_"&1,base!$E$4:$BO$7238,R$97,FALSE),"") -> NA | S164: =+IFERROR(VLOOKUP($D164&"_"&1,base!$E$4:$BO$7238,S$97,FALSE),"") -> NA | T164: =+IFERROR(VLOOKUP($D164&"_"&1,base!$E$4:$BO$7238,T$97,FALSE),"") -> 0.947 | U164: =+IFERROR(VLOOKUP($D164&"_"&1,base!$E$4:$BO$7238,U$97,FALSE),"") -> OPTIMO | V164: =+IFERROR(VLOOKUP($D164&"_"&1,base!$E$4:$BO$7238,V$97,FALSE),"") -> 0 | W164: =+IFERROR(VLOOKUP($D164&"_"&1,base!$E$4:$BO$7238,W$97,FALSE),"") -> 0 | X164: =+IFERROR(VLOOKUP($D164&"_"&1,base!$E$4:$BO$7238,X$97,FALSE),"") -> 0 | Y164: =+IFERROR(VLOOKUP($D164&"_"&1,base!$E$4:$BO$7238,Y$97,FALSE),"") -> 0 | Z164: =+IFERROR(VLOOKUP($D164&"_"&1,base!$E$4:$BO$7238,Z$97,FALSE),"") -> 0 | AA164: =+IFERROR(VLOOKUP($D164&"_"&1,base!$E$4:$BO$7238,AA$97,FALSE),"") -> 0 | AB164: =+IFERROR(VLOOKUP($D164&"_"&1,base!$E$4:$BO$7238,AB$97,FALSE),"") -> 0 | AC164: =+IFERROR(VLOOKUP($D164&"_"&1,base!$E$4:$BO$7238,AC$97,FALSE),"") -> 0 | AD164: =+IFERROR(VLOOKUP($D164&"_"&1,base!$E$4:$BO$7238,AD$97,FALSE),"") -> 0 | AE164: =+IFERROR(VLOOKUP($D164&"_"&1,base!$E$4:$BO$7238,AE$97,FALSE),"") -> 0 | AF164: =+IFERROR(VLOOKUP($D164&"_"&1,base!$E$4:$BO$7238,AF$97,FALSE),"") -> 0 | AG164: =+IFERROR(VLOOKUP($D164&"_"&1,base!$E$4:$BO$7238,AG$97,FALSE),"") -> 0 | AH164: =+IFERROR(VLOOKUP($D164&"_"&1,base!$E$4:$BO$7238,AH$97,FALSE),"") -> 0 | AI164: =+IFERROR(VLOOKUP($D164&"_"&1,base!$E$4:$BO$7238,AI$97,FALSE),"") -> 0 | AJ164: =+IFERROR(VLOOKUP($D164&"_"&1,base!$E$4:$BO$7238,AJ$97,FALSE),"") -> 0 | AK164: =+IFERROR(VLOOKUP($D164&"_"&1,base!$E$4:$BO$7238,AK$97,FALSE),"") -> 0 | AL164: =+IFERROR(VLOOKUP($D164&"_"&1,base!$E$4:$BO$7238,AL$97,FALSE),"") -> 0 | AM164: =+IFERROR(VLOOKUP($D164&"_"&1,base!$E$4:$BO$7238,AM$97,FALSE),"") -> 0
